Workbook

Sheet ACCUEIL
C2: UTILITAIRE DE CALCULS DES CALORIES ET DES MACRONUTRIMENTS PERSONNALISABLE
C3: Cet utilitaire a été conçu pour aider les élèves à identifier les valeurs nutritionnelles des aliments qu’ils consomment. Il accompagne aisément un cycle de CA5 au lycée mais peut aussi être utilisé par les élèves de collège pour s’informer.
C4: Toutefois il ne peut faire l’exclusion d’un enseignement autour de la nutrition en général pour éviter certaines dérives.
C6: AVANTAGES
C7: Contrôle des Apports Nutritionnels : Le calculateur aide à identifier et ajuster les apports en macronutriments (lipides, glucides, protides) en fonction des objectifs spécifiques tels que la perte de poids, la prise de masse musculaire, ou le maintien de la santé générale.
C8: Gestion des Calories : Il permet de surveiller l’apport calorique, ce qui est essentiel pour la gestion du poids en identifiant notamment les aliments à fort pouvoir calorique consommé chaque jour par les élèves. Toutefois il faut éviter les raccourcis du type : baisse des calories = perte de poids ou encore "mangez ce que vous voulez tant que vous brûlez des calories" qui peuvent être dangereux pour la santé.
C9: Optimisation des Performances : Pour les sportifs aguerris, cet outil peut aider à optimiser la nutrition pour des performances sportives optimales.
C10: Conscience Alimentaire : En enregistrant ce que vous mangez, vous pouvez prendre conscience de vos habitudes alimentaires et identifier des zones où des améliorations sont nécessaires.
C11: Personnalisation : Le calculateur peut être individualisé en choisissant les aliments fréquemment consommés et lister dans la Table CIQUAL.
C12: Création de menus et liste de course : avec l’onglet récapitulatif, les élèves peuvent voir leur menus de la semaine et identifier les courses à réaliser selon le type d’aliment pour gagner du temps.
C13: LIMITES
C14: Complexité : Certains élèves peuvent trouver la nécessité de peser et mesurer chaque aliment consommé trop complexe ou contraignante.
C15: Focus Exclusif sur les Calories : Se concentrer uniquement sur les calories peut négliger l’importance des choix alimentaires nutritifs et de la qualité des aliments. il faut éviter les raccourcis du type : baisse des calories = perte de poids ou encore "mangez ce que vous voulez tant que vous brûlez des calories" qui peuvent être dangereux pour la santé.
C16: Variabilité de l’Absorption des Nutriments : Les besoins nutritionnels varient d’une personne à l’autre en raison de facteurs génétiques, métaboliques et autres, et les calculateurs ne tiennent pas toujours compte de ces variations individuelles.
C17: Tendance à l’Obsession Alimentaire : Certains utilisateurs peuvent développer une obsession pour le suivi précis des macros et des calories, ce qui peut entraîner des comportements alimentaires malsains. Cet outil doit être utilisé à titre informatif.
C18: Pas de Mesure de la Qualité des Aliments : Le calculateur se concentre sur les macronutriments sans tenir compte de la qualité nutritionnelle des aliments. Manger des aliments riches en nutriments est tout aussi important que respecter les objectifs caloriques.
C19: Manque de Prise en Compte des Besoins Émotionnels : Le calculateur ne prent pas en compte les aspects émotionnels liés à l’alimentation, tels que la faim émotionnelle ou les déclencheurs alimentaires.
C20: Besoin d’Éducation Nutritionnelle : Les élèves peuvent mal interpréter les résultats du calculateur s’ils ne comprennent pas correctement la nutrition, ce qui souligne l’importance de l’éducation nutritionnelle. La nutrition ne se résume pas au calories et aux macronutriments.
C21: En résumé, bien que cet utilitaire de macronutriments et de calories puisse être un outil utile pour atteindre certains objectifs nutritionnels et informer les élèves sur certains aspects des aliments qu’ils consomment, il est essentiel de l’utiliser de manière réfléchie, en les combinant avec une alimentation équilibrée, une activité physique régulière et une approche globale de la santé. Si des préoccupations spécifiques liées à la nutrition se posent, il est toujours recommandé de consulter un professionnel de la santé ou un nutritionniste.

Sheet MENUS
C1: LUNDI | D1: Quantité | E1: Cal | F1: P | G1: G | H1: L | I1: MARDI | J1: Quantité | K1: Cal | L1: P | M1: G | N1: L | O1: MERCREDI | P1: Quantité | Q1: Cal | R1: P | S1: G | T1: L | U1: JEUDI | V1: Quantité | W1: Cal | X1: P | Y1: G | Z1: L | AA1: VENDREDI | AB1: Quantité | AC1: Cal | AD1: P | AE1: G | AF1: L | AG1: SAMEDI | AH1: Quantité | AI1: Cal | AJ1: P | AK1: G | AL1: L | AM1: DIMANCHE | AN1: Quantité | AO1: Cal | AP1: P | AQ1: G | AR1: L
A2: PETIT DEJEUNER | B2: Féculents | C2: Avoine, crue | D2: 50 | E2: =IFERROR(VLOOKUP(C2,Ingrédients!$J$3:$N$300,2,0)*D2/100,0) -> 189 | F2: =IFERROR(VLOOKUP(C2,Ingrédients!$J$3:$N$300,3,0)*D2/100,0) -> 8.45 | G2: =IFERROR(VLOOKUP(C2,Ingrédients!$J$3:$N$300,4,0)*D2/100,0) -> 27.85 | H2: =IFERROR(VLOOKUP(C2,Ingrédients!$J$3:$N$300,5,0)*D2/100,0) -> 3.45 | K2: =IFERROR(VLOOKUP(I2,Ingrédients!$J$3:$N$300,2,0)*J2/100,0) -> 0 | L2: =IFERROR(VLOOKUP(I2,Ingrédients!$J$3:$N$300,3,0)*J2/100,0) -> 0 | M2: =IFERROR(VLOOKUP(I2,Ingrédients!$J$3:$N$300,4,0)*J2/100,0) -> 0 | N2: =IFERROR(VLOOKUP(I2,Ingrédients!$J$3:$N$300,5,0)*J2/100,0) -> 0 | O2: Avoine, crue | P2: 60 | Q2: =IFERROR(VLOOKUP(O2,Ingrédients!$J$3:$N$300,2,0)*P2/100,0) -> 226.8 | R2: =IFERROR(VLOOKUP(O2,Ingrédients!$J$3:$N$300,3,0)*P2/100,0) -> 10.14 | S2: =IFERROR(VLOOKUP(O2,Ingrédients!$J$3:$N$300,4,0)*P2/100,0) -> 33.42 | T2: =IFERROR(VLOOKUP(O2,Ingrédients!$J$3:$N$300,5,0)*P2/100,0) -> 4.14 | U2: Avoine, crue | V2: 60 | W2: =IFERROR(VLOOKUP(U2,Ingrédients!$J$3:$N$300,2,0)*V2/100,0) -> 226.8 | X2: =IFERROR(VLOOKUP(U2,Ingrédients!$J$3:$N$300,3,0)*V2/100,0) -> 10.14 | Y2: =IFERROR(VLOOKUP(U2,Ingrédients!$J$3:$N$300,4,0)*V2/100,0) -> 33.42 | Z2: =IFERROR(VLOOKUP(U2,Ingrédients!$J$3:$N$300,5,0)*V2/100,0) -> 4.14 | AC2: =IFERROR(VLOOKUP(AA2,Ingrédients!$J$3:$N$300,2,0)*AB2/100,0) -> 0 | AD2: =IFERROR(VLOOKUP(AA2,Ingrédients!$J$3:$N$300,3,0)*AB2/100,0) -> 0 | AE2: =IFERROR(VLOOKUP(AA2,Ingrédients!$J$3:$N$300,4,0)*AB2/100,0) -> 0 | AF2: =IFERROR(VLOOKUP(AA2,Ingrédients!$J$3:$N$300,5,0)*AB2/100,0) -> 0 | AG2: Avoine, crue | AH2: 60 | AI2: =IFERROR(VLOOKUP(AG2,Ingrédients!$J$3:$N$300,2,0)*AH2/100,0) -> 226.8 | AJ2: =IFERROR(VLOOKUP(AG2,Ingrédients!$J$3:$N$300,3,0)*AH2/100,0) -> 10.14 | AK2: =IFERROR(VLOOKUP(AG2,Ingrédients!$J$3:$N$300,4,0)*AH2/100,0) -> 33.42 | AL2: =IFERROR(VLOOKUP(AG2,Ingrédients!$J$3:$N$300,5,0)*AH2/100,0) -> 4.14 | AM2: flocons avoine | AN2: 100 | AO2: =IFERROR(VLOOKUP(AM2,Ingrédients!$J$3:$N$300,2,0)*AN2/100,0) -> 0 | AP2: =IFERROR(VLOOKUP(AM2,Ingrédients!$J$3:$N$300,3,0)*AN2/100,0) -> 0 | AQ2: =IFERROR(VLOOKUP(AM2,Ingrédients!$J$3:$N$300,4,0)*AN2/100,0) -> 0 | AR2: =IFERROR(VLOOKUP(AM2,Ingrédients!$J$3:$N$300,5,0)*AN2/100,0) -> 0
B3: Légumes | E3: =IFERROR(VLOOKUP(C3,Ingrédients!$P$3:$T$300,2,0)*D3/100,0) -> 0 | F3: =IFERROR(VLOOKUP(C3,Ingrédients!$P$3:$T$300,3,0)*D3/100,0) -> 0 | G3: =IFERROR(VLOOKUP(C3,Ingrédients!$P$3:$T$300,4,0)*D3/100,0) -> 0 | H3: =IFERROR(VLOOKUP(C3,Ingrédients!$P$3:$T$300,5,0)*D3/100,0) -> 0 | I3: Poivron rouge, cuit | J3: 100 | K3: =IFERROR(VLOOKUP(I3,Ingrédients!$P$3:$T$300,2,0)*J3/100,0) -> 0 | L3: =IFERROR(VLOOKUP(I3,Ingrédients!$P$3:$T$300,3,0)*J3/100,0) -> 1.4 | M3: =IFERROR(VLOOKUP(I3,Ingrédients!$P$3:$T$300,4,0)*J3/100,0) -> 7 | N3: =IFERROR(VLOOKUP(I3,Ingrédients!$P$3:$T$300,5,0)*J3/100,0) -> 0.3 | Q3: =IFERROR(VLOOKUP(O3,Ingrédients!$P$3:$T$300,2,0)*P3/100,0) -> 0 | R3: =IFERROR(VLOOKUP(O3,Ingrédients!$P$3:$T$300,3,0)*P3/100,0) -> 0 | S3: =IFERROR(VLOOKUP(O3,Ingrédients!$P$3:$T$300,4,0)*P3/100,0) -> 0 | T3: =IFERROR(VLOOKUP(O3,Ingrédients!$P$3:$T$300,5,0)*P3/100,0) -> 0 | W3: =IFERROR(VLOOKUP(U3,Ingrédients!$P$3:$T$300,2,0)*V3/100,0) -> 0 | X3: =IFERROR(VLOOKUP(U3,Ingrédients!$P$3:$T$300,3,0)*V3/100,0) -> 0 | Y3: =IFERROR(VLOOKUP(U3,Ingrédients!$P$3:$T$300,4,0)*V3/100,0) -> 0 | Z3: =IFERROR(VLOOKUP(U3,Ingrédients!$P$3:$T$300,5,0)*V3/100,0) -> 0 | AC3: =IFERROR(VLOOKUP(AA3,Ingrédients!$P$3:$T$300,2,0)*AB3/100,0) -> 0 | AD3: =IFERROR(VLOOKUP(AA3,Ingrédients!$P$3:$T$300,3,0)*AB3/100,0) -> 0 | AE3: =IFERROR(VLOOKUP(AA3,Ingrédients!$P$3:$T$300,4,0)*AB3/100,0) -> 0 | AF3: =IFERROR(VLOOKUP(AA3,Ingrédients!$P$3:$T$300,5,0)*AB3/100,0) -> 0 | AI3: =IFERROR(VLOOKUP(AG3,Ingrédients!$P$3:$T$300,2,0)*AH3/100,0) -> 0 | AJ3: =IFERROR(VLOOKUP(AG3,Ingrédients!$P$3:$T$300,3,0)*AH3/100,0) -> 0 | AK3: =IFERROR(VLOOKUP(AG3,Ingrédients!$P$3:$T$300,4,0)*AH3/100,0) -> 0 | AL3: =IFERROR(VLOOKUP(AG3,Ingrédients!$P$3:$T$300,5,0)*AH3/100,0) -> 0 | AN3: 100 | AO3: =IFERROR(VLOOKUP(AM3,Ingrédients!$P$3:$T$300,2,0)*AN3/100,0) -> 0 | AP3: =IFERROR(VLOOKUP(AM3,Ingrédients!$P$3:$T$300,3,0)*AN3/100,0) -> 0 | AQ3: =IFERROR(VLOOKUP(AM3,Ingrédients!$P$3:$T$300,4,0)*AN3/100,0) -> 0 | AR3: =IFERROR(VLOOKUP(AM3,Ingrédients!$P$3:$T$300,5,0)*AN3/100,0) -> 0
B4: Légumes 2 | E4: =IFERROR(VLOOKUP(C4,Ingrédients!$P$3:$T$300,2,0)*D4/100,0) -> 0 | F4: =IFERROR(VLOOKUP(C4,Ingrédients!$P$3:$T$300,3,0)*D4/100,0) -> 0 | G4: =IFERROR(VLOOKUP(C4,Ingrédients!$P$3:$T$300,4,0)*D4/100,0) -> 0 | H4: =IFERROR(VLOOKUP(C4,Ingrédients!$P$3:$T$300,5,0)*D4/100,0) -> 0 | I4: Épinard, cru | J4: 100 | K4: =IFERROR(VLOOKUP(I4,Ingrédients!$P$3:$T$300,2,0)*J4/100,0) -> 0 | L4: =IFERROR(VLOOKUP(I4,Ingrédients!$P$3:$T$300,3,0)*J4/100,0) -> 2.62 | M4: =IFERROR(VLOOKUP(I4,Ingrédients!$P$3:$T$300,4,0)*J4/100,0) -> 2.25 | N4: =IFERROR(VLOOKUP(I4,Ingrédients!$P$3:$T$300,5,0)*J4/100,0) -> 0.5 | Q4: =IFERROR(VLOOKUP(O4,Ingrédients!$P$3:$T$300,2,0)*P4/100,0) -> 0 | R4: =IFERROR(VLOOKUP(O4,Ingrédients!$P$3:$T$300,3,0)*P4/100,0) -> 0 | S4: =IFERROR(VLOOKUP(O4,Ingrédients!$P$3:$T$300,4,0)*P4/100,0) -> 0 | T4: =IFERROR(VLOOKUP(O4,Ingrédients!$P$3:$T$300,5,0)*P4/100,0) -> 0 | W4: =IFERROR(VLOOKUP(U4,Ingrédients!$P$3:$T$300,2,0)*V4/100,0) -> 0 | X4: =IFERROR(VLOOKUP(U4,Ingrédients!$P$3:$T$300,3,0)*V4/100,0) -> 0 | Y4: =IFERROR(VLOOKUP(U4,Ingrédients!$P$3:$T$300,4,0)*V4/100,0) -> 0 | Z4: =IFERROR(VLOOKUP(U4,Ingrédients!$P$3:$T$300,5,0)*V4/100,0) -> 0 | AC4: =IFERROR(VLOOKUP(AA4,Ingrédients!$P$3:$T$300,2,0)*AB4/100,0) -> 0 | AD4: =IFERROR(VLOOKUP(AA4,Ingrédients!$P$3:$T$300,3,0)*AB4/100,0) -> 0 | AE4: =IFERROR(VLOOKUP(AA4,Ingrédients!$P$3:$T$300,4,0)*AB4/100,0) -> 0 | AF4: =IFERROR(VLOOKUP(AA4,Ingrédients!$P$3:$T$300,5,0)*AB4/100,0) -> 0 | AI4: =IFERROR(VLOOKUP(AG4,Ingrédients!$P$3:$T$300,2,0)*AH4/100,0) -> 0 | AJ4: =IFERROR(VLOOKUP(AG4,Ingrédients!$P$3:$T$300,3,0)*AH4/100,0) -> 0 | AK4: =IFERROR(VLOOKUP(AG4,Ingrédients!$P$3:$T$300,4,0)*AH4/100,0) -> 0 | AL4: =IFERROR(VLOOKUP(AG4,Ingrédients!$P$3:$T$300,5,0)*AH4/100,0) -> 0 | AN4: 100 | AO4: =IFERROR(VLOOKUP(AM4,Ingrédients!$P$3:$T$300,2,0)*AN4/100,0) -> 0 | AP4: =IFERROR(VLOOKUP(AM4,Ingrédients!$P$3:$T$300,3,0)*AN4/100,0) -> 0 | AQ4: =IFERROR(VLOOKUP(AM4,Ingrédients!$P$3:$T$300,4,0)*AN4/100,0) -> 0 | AR4: =IFERROR(VLOOKUP(AM4,Ingrédients!$P$3:$T$300,5,0)*AN4/100,0) -> 0
B5: Protéines | C5: Oeuf, dur | D5: 100 | E5: =IFERROR(VLOOKUP(C5,Ingrédients!$D$3:$H$300,2,0)*D5/100,0) -> 134 | F5: =IFERROR(VLOOKUP(C5,Ingrédients!$D$3:$H$300,3,0)*D5/100,0) -> 13.5 | G5: =IFERROR(VLOOKUP(C5,Ingrédients!$D$3:$H$300,4,0)*D5/100,0) -> 0.52 | H5: =IFERROR(VLOOKUP(C5,Ingrédients!$D$3:$H$300,5,0)*D5/100,0) -> 8.62 | I5: Oeuf, au plat, sans matière grasse | J5: 180 | K5: =IFERROR(VLOOKUP(I5,Ingrédients!$D$3:$H$300,2,0)*J5/100,0) -> 264.6 | L5: =IFERROR(VLOOKUP(I5,Ingrédients!$D$3:$H$300,3,0)*J5/100,0) -> 24.84 | M5: =IFERROR(VLOOKUP(I5,Ingrédients!$D$3:$H$300,4,0)*J5/100,0) -> 1.818 | N5: =IFERROR(VLOOKUP(I5,Ingrédients!$D$3:$H$300,5,0)*J5/100,0) -> 17.496 | Q5: =IFERROR(VLOOKUP(O5,Ingrédients!$D$3:$H$300,2,0)*P5/100,0) -> 0 | R5: =IFERROR(VLOOKUP(O5,Ingrédients!$D$3:$H$300,3,0)*P5/100,0) -> 0 | S5: =IFERROR(VLOOKUP(O5,Ingrédients!$D$3:$H$300,4,0)*P5/100,0) -> 0 | T5: =IFERROR(VLOOKUP(O5,Ingrédients!$D$3:$H$300,5,0)*P5/100,0) -> 0 | W5: =IFERROR(VLOOKUP(U5,Ingrédients!$D$3:$H$300,2,0)*V5/100,0) -> 0 | X5: =IFERROR(VLOOKUP(U5,Ingrédients!$D$3:$H$300,3,0)*V5/100,0) -> 0 | Y5: =IFERROR(VLOOKUP(U5,Ingrédients!$D$3:$H$300,4,0)*V5/100,0) -> 0 | Z5: =IFERROR(VLOOKUP(U5,Ingrédients!$D$3:$H$300,5,0)*V5/100,0) -> 0 | AA5: Omelette aux champignons | AB5: 100 | AC5: =IFERROR(VLOOKUP(AA5,Ingrédients!$D$3:$H$300,2,0)*AB5/100,0) -> 125 | AD5: =IFERROR(VLOOKUP(AA5,Ingrédients!$D$3:$H$300,3,0)*AB5/100,0) -> 8.09 | AE5: =IFERROR(VLOOKUP(AA5,Ingrédients!$D$3:$H$300,4,0)*AB5/100,0) -> 2.28 | AF5: =IFERROR(VLOOKUP(AA5,Ingrédients!$D$3:$H$300,5,0)*AB5/100,0) -> 9.2 | AI5: =IFERROR(VLOOKUP(AG5,Ingrédients!$D$3:$H$300,2,0)*AH5/100,0) -> 0 | AJ5: =IFERROR(VLOOKUP(AG5,Ingrédients!$D$3:$H$300,3,0)*AH5/100,0) -> 0 | AK5: =IFERROR(VLOOKUP(AG5,Ingrédients!$D$3:$H$300,4,0)*AH5/100,0) -> 0 | AL5: =IFERROR(VLOOKUP(AG5,Ingrédients!$D$3:$H$300,5,0)*AH5/100,0) -> 0 | AN5: 100 | AO5: =IFERROR(VLOOKUP(AM5,Ingrédients!$D$3:$H$300,2,0)*AN5/100,0) -> 0 | AP5: =IFERROR(VLOOKUP(AM5,Ingrédients!$D$3:$H$300,3,0)*AN5/100,0) -> 0 | AQ5: =IFERROR(VLOOKUP(AM5,Ingrédients!$D$3:$H$300,4,0)*AN5/100,0) -> 0 | AR5: =IFERROR(VLOOKUP(AM5,Ingrédients!$D$3:$H$300,5,0)*AN5/100,0) -> 0
B6: Fruits | C6: Banane, pulpe, crue | D6: 100 | E6: =IFERROR(VLOOKUP(C6,Ingrédients!$V$3:$Z$300,2,0)*D6/100,0) -> 90.5 | F6: =IFERROR(VLOOKUP(C6,Ingrédients!$V$3:$Z$300,3,0)*D6/100,0) -> 1.06 | G6: =IFERROR(VLOOKUP(C6,Ingrédients!$V$3:$Z$300,4,0)*D6/100,0) -> 19.7 | H6: =IFERROR(VLOOKUP(C6,Ingrédients!$V$3:$Z$300,5,0)*D6/100,0) -> 0 | K6: =IFERROR(VLOOKUP(I6,Ingrédients!$V$3:$Z$300,2,0)*J6/100,0) -> 0 | L6: =IFERROR(VLOOKUP(I6,Ingrédients!$V$3:$Z$300,3,0)*J6/100,0) -> 0 | M6: =IFERROR(VLOOKUP(I6,Ingrédients!$V$3:$Z$300,4,0)*J6/100,0) -> 0 | N6: =IFERROR(VLOOKUP(I6,Ingrédients!$V$3:$Z$300,5,0)*J6/100,0) -> 0 | O6: Banane, pulpe, crue | P6: 70 | Q6: =IFERROR(VLOOKUP(O6,Ingrédients!$V$3:$Z$300,2,0)*P6/100,0) -> 63.35 | R6: =IFERROR(VLOOKUP(O6,Ingrédients!$V$3:$Z$300,3,0)*P6/100,0) -> 0.742 | S6: =IFERROR(VLOOKUP(O6,Ingrédients!$V$3:$Z$300,4,0)*P6/100,0) -> 13.79 | T6: =IFERROR(VLOOKUP(O6,Ingrédients!$V$3:$Z$300,5,0)*P6/100,0) -> 0 | U6: Myrtille, crue | V6: 40 | W6: =IFERROR(VLOOKUP(U6,Ingrédients!$V$3:$Z$300,2,0)*V6/100,0) -> 23.08 | X6: =IFERROR(VLOOKUP(U6,Ingrédients!$V$3:$Z$300,3,0)*V6/100,0) -> 0.348 | Y6: =IFERROR(VLOOKUP(U6,Ingrédients!$V$3:$Z$300,4,0)*V6/100,0) -> 4.24 | Z6: =IFERROR(VLOOKUP(U6,Ingrédients!$V$3:$Z$300,5,0)*V6/100,0) -> 0.132 | AC6: =IFERROR(VLOOKUP(AA6,Ingrédients!$V$3:$Z$300,2,0)*AB6/100,0) -> 0 | AD6: =IFERROR(VLOOKUP(AA6,Ingrédients!$V$3:$Z$300,3,0)*AB6/100,0) -> 0 | AE6: =IFERROR(VLOOKUP(AA6,Ingrédients!$V$3:$Z$300,4,0)*AB6/100,0) -> 0 | AF6: =IFERROR(VLOOKUP(AA6,Ingrédients!$V$3:$Z$300,5,0)*AB6/100,0) -> 0 | AG6: Myrtille, crue | AH6: 50 | AI6: =IFERROR(VLOOKUP(AG6,Ingrédients!$V$3:$Z$300,2,0)*AH6/100,0) -> 28.85 | AJ6: =IFERROR(VLOOKUP(AG6,Ingrédients!$V$3:$Z$300,3,0)*AH6/100,0) -> 0.435 | AK6: =IFERROR(VLOOKUP(AG6,Ingrédients!$V$3:$Z$300,4,0)*AH6/100,0) -> 5.3 | AL6: =IFERROR(VLOOKUP(AG6,Ingrédients!$V$3:$Z$300,5,0)*AH6/100,0) -> 0.165 | AN6: 100 | AO6: =IFERROR(VLOOKUP(AM6,Ingrédients!$V$3:$Z$300,2,0)*AN6/100,0) -> 0 | AP6: =IFERROR(VLOOKUP(AM6,Ingrédients!$V$3:$Z$300,3,0)*AN6/100,0) -> 0 | AQ6: =IFERROR(VLOOKUP(AM6,Ingrédients!$V$3:$Z$300,4,0)*AN6/100,0) -> 0 | AR6: =IFERROR(VLOOKUP(AM6,Ingrédients!$V$3:$Z$300,5,0)*AN6/100,0) -> 0
B7: Laitage | C7: Fromage blanc nature, 0% MG | D7: 120 | E7: =IFERROR(VLOOKUP(C7,Ingrédients!$AH$3:$AL$300,2,0)*D7/100,0) -> 59.28 | F7: =IFERROR(VLOOKUP(C7,Ingrédients!$AH$3:$AL$300,3,0)*D7/100,0) -> 9.54 | G7: =IFERROR(VLOOKUP(C7,Ingrédients!$AH$3:$AL$300,4,0)*D7/100,0) -> 4.668 | H7: =IFERROR(VLOOKUP(C7,Ingrédients!$AH$3:$AL$300,5,0)*D7/100,0) -> 0.0528 | K7: =IFERROR(VLOOKUP(I7,Ingrédients!$AH$3:$AL$300,2,0)*J7/100,0) -> 0 | L7: =IFERROR(VLOOKUP(I7,Ingrédients!$AH$3:$AL$300,3,0)*J7/100,0) -> 0 | M7: =IFERROR(VLOOKUP(I7,Ingrédients!$AH$3:$AL$300,4,0)*J7/100,0) -> 0 | N7: =IFERROR(VLOOKUP(I7,Ingrédients!$AH$3:$AL$300,5,0)*J7/100,0) -> 0 | O7: Lait d'amande | P7: 100 | Q7: =IFERROR(VLOOKUP(O7,Ingrédients!$AH$3:$AL$300,2,0)*P7/100,0) -> 0 | R7: =IFERROR(VLOOKUP(O7,Ingrédients!$AH$3:$AL$300,3,0)*P7/100,0) -> 0 | S7: =IFERROR(VLOOKUP(O7,Ingrédients!$AH$3:$AL$300,4,0)*P7/100,0) -> 0 | T7: =IFERROR(VLOOKUP(O7,Ingrédients!$AH$3:$AL$300,5,0)*P7/100,0) -> 0 | W7: =IFERROR(VLOOKUP(U7,Ingrédients!$AH$3:$AL$300,2,0)*V7/100,0) -> 0 | X7: =IFERROR(VLOOKUP(U7,Ingrédients!$AH$3:$AL$300,3,0)*V7/100,0) -> 0 | Y7: =IFERROR(VLOOKUP(U7,Ingrédients!$AH$3:$AL$300,4,0)*V7/100,0) -> 0 | Z7: =IFERROR(VLOOKUP(U7,Ingrédients!$AH$3:$AL$300,5,0)*V7/100,0) -> 0 | AC7: =IFERROR(VLOOKUP(AA7,Ingrédients!$AH$3:$AL$300,2,0)*AB7/100,0) -> 0 | AD7: =IFERROR(VLOOKUP(AA7,Ingrédients!$AH$3:$AL$300,3,0)*AB7/100,0) -> 0 | AE7: =IFERROR(VLOOKUP(AA7,Ingrédients!$AH$3:$AL$300,4,0)*AB7/100,0) -> 0 | AF7: =IFERROR(VLOOKUP(AA7,Ingrédients!$AH$3:$AL$300,5,0)*AB7/100,0) -> 0 | AI7: =IFERROR(VLOOKUP(AG7,Ingrédients!$AH$3:$AL$300,2,0)*AH7/100,0) -> 0 | AJ7: =IFERROR(VLOOKUP(AG7,Ingrédients!$AH$3:$AL$300,3,0)*AH7/100,0) -> 0 | AK7: =IFERROR(VLOOKUP(AG7,Ingrédients!$AH$3:$AL$300,4,0)*AH7/100,0) -> 0 | AL7: =IFERROR(VLOOKUP(AG7,Ingrédients!$AH$3:$AL$300,5,0)*AH7/100,0) -> 0 | AN7: 100 | AO7: =IFERROR(VLOOKUP(AM7,Ingrédients!$AH$3:$AL$300,2,0)*AN7/100,0) -> 0 | AP7: =IFERROR(VLOOKUP(AM7,Ingrédients!$AH$3:$AL$300,3,0)*AN7/100,0) -> 0 | AQ7: =IFERROR(VLOOKUP(AM7,Ingrédients!$AH$3:$AL$300,4,0)*AN7/100,0) -> 0 | AR7: =IFERROR(VLOOKUP(AM7,Ingrédients!$AH$3:$AL$300,5,0)*AN7/100,0) -> 0
B8: Autres | C8: Amande (avec peau) | D8: 20 | E8: =IFERROR(VLOOKUP(C8,Ingrédients!$AB$3:$AF$300,2,0)*D8/100,0) -> 0 | F8: =IFERROR(VLOOKUP(C8,Ingrédients!$AB$3:$AF$300,3,0)*D8/100,0) -> 3.76 | G8: =IFERROR(VLOOKUP(C8,Ingrédients!$AB$3:$AF$300,4,0)*D8/100,0) -> 1.902 | H8: =IFERROR(VLOOKUP(C8,Ingrédients!$AB$3:$AF$300,5,0)*D8/100,0) -> 10.26 | K8: =IFERROR(VLOOKUP(I8,Ingrédients!$AB$3:$AF$300,2,0)*J8/100,0) -> 0 | L8: =IFERROR(VLOOKUP(I8,Ingrédients!$AB$3:$AF$300,3,0)*J8/100,0) -> 0 | M8: =IFERROR(VLOOKUP(I8,Ingrédients!$AB$3:$AF$300,4,0)*J8/100,0) -> 0 | N8: =IFERROR(VLOOKUP(I8,Ingrédients!$AB$3:$AF$300,5,0)*J8/100,0) -> 0 | Q8: =IFERROR(VLOOKUP(O8,Ingrédients!$AB$3:$AF$300,2,0)*P8/100,0) -> 0 | R8: =IFERROR(VLOOKUP(O8,Ingrédients!$AB$3:$AF$300,3,0)*P8/100,0) -> 0 | S8: =IFERROR(VLOOKUP(O8,Ingrédients!$AB$3:$AF$300,4,0)*P8/100,0) -> 0 | T8: =IFERROR(VLOOKUP(O8,Ingrédients!$AB$3:$AF$300,5,0)*P8/100,0) -> 0 | U8: Amande (avec peau) | V8: 20 | W8: =IFERROR(VLOOKUP(U8,Ingrédients!$AB$3:$AF$300,2,0)*V8/100,0) -> 0 | X8: =IFERROR(VLOOKUP(U8,Ingrédients!$AB$3:$AF$300,3,0)*V8/100,0) -> 3.76 | Y8: =IFERROR(VLOOKUP(U8,Ingrédients!$AB$3:$AF$300,4,0)*V8/100,0) -> 1.902 | Z8: =IFERROR(VLOOKUP(U8,Ingrédients!$AB$3:$AF$300,5,0)*V8/100,0) -> 10.26 | AC8: =IFERROR(VLOOKUP(AA8,Ingrédients!$AB$3:$AF$300,2,0)*AB8/100,0) -> 0 | AD8: =IFERROR(VLOOKUP(AA8,Ingrédients!$AB$3:$AF$300,3,0)*AB8/100,0) -> 0 | AE8: =IFERROR(VLOOKUP(AA8,Ingrédients!$AB$3:$AF$300,4,0)*AB8/100,0) -> 0 | AF8: =IFERROR(VLOOKUP(AA8,Ingrédients!$AB$3:$AF$300,5,0)*AB8/100,0) -> 0 | AG8: Amande (avec peau) | AH8: 30 | AI8: =IFERROR(VLOOKUP(AG8,Ingrédients!$AB$3:$AF$300,2,0)*AH8/100,0) -> 0 | AJ8: =IFERROR(VLOOKUP(AG8,Ingrédients!$AB$3:$AF$300,3,0)*AH8/100,0) -> 5.64 | AK8: =IFERROR(VLOOKUP(AG8,Ingrédients!$AB$3:$AF$300,4,0)*AH8/100,0) -> 2.853 | AL8: =IFERROR(VLOOKUP(AG8,Ingrédients!$AB$3:$AF$300,5,0)*AH8/100,0) -> 15.39 | AN8: 100 | AO8: =IFERROR(VLOOKUP(AM8,Ingrédients!$AB$3:$AF$300,2,0)*AN8/100,0) -> 0 | AP8: =IFERROR(VLOOKUP(AM8,Ingrédients!$AB$3:$AF$300,3,0)*AN8/100,0) -> 0 | AQ8: =IFERROR(VLOOKUP(AM8,Ingrédients!$AB$3:$AF$300,4,0)*AN8/100,0) -> 0 | AR8: =IFERROR(VLOOKUP(AM8,Ingrédients!$AB$3:$AF$300,5,0)*AN8/100,0) -> 0
B9: TOTAL | D9: =D2+D3+D4+D5+D6+D7+D8 -> 390 | E9: =E2+E3+E4+E5+E6+E7+E8 -> 472.78 | F9: =F2+F3+F4+F5+F6+F7+F8 -> 36.31 | G9: 54.64 | H9: 22.3828 | J9: =J2+J3+J4+J5+J6+J7+J8 -> 380 | K9: =K2+K3+K4+K5+K6+K7+K8 -> 264.6 | L9: =L2+L3+L4+L5+L6+L7+L8 -> 28.86 | M9: 11.068 | N9: 18.296 | P9: =P2+P3+P4+P5+P6+P7+P8 -> 230 | Q9: =Q2+Q3+Q4+Q5+Q6+Q7+Q8 -> 290.15 | R9: =R2+R3+R4+R5+R6+R7+R8 -> 10.882 | S9: 47.21 | T9: 4.14 | V9: =V2+V3+V4+V5+V6+V7+V8 -> 120 | W9: =W2+W3+W4+W5+W6+W7+W8 -> 249.88 | X9: =X2+X3+X4+X5+X6+X7+X8 -> 14.248 | Y9: 39.562 | Z9: 14.532 | AB9: =AB2+AB3+AB4+AB5+AB6+AB7+AB8 -> 100 | AC9: =AC2+AC3+AC4+AC5+AC6+AC7+AC8 -> 125 | AD9: =AD2+AD3+AD4+AD5+AD6+AD7+AD8 -> 8.09 | AE9: 2.28 | AF9: 9.2 | AH9: =AH2+AH3+AH4+AH5+AH6+AH7+AH8 -> 140 | AI9: =AI2+AI3+AI4+AI5+AI6+AI7+AI8 -> 255.65 | AJ9: =AJ2+AJ3+AJ4+AJ5+AJ6+AJ7+AJ8 -> 16.215 | AK9: 41.573 | AL9: 19.695 | AN9: =AN2+AN3+AN4+AN5+AN6+AN7+AN8 -> 700 | AO9: =AO2+AO3+AO4+AO5+AO6+AO7+AO8 -> 0 | AP9: =AP2+AP3+AP4+AP5+AP6+AP7+AP8 -> 0 | AQ9: 0 | AR9: 0
A10: COLLATION | B10: Féculents | E10: =IFERROR(VLOOKUP(C10,Ingrédients!$J$3:$N$300,2,0)*D10/100,0) -> 0 | F10: =IFERROR(VLOOKUP(C10,Ingrédients!$J$3:$N$300,3,0)*D10/100,0) -> 0 | G10: =IFERROR(VLOOKUP(C10,Ingrédients!$J$3:$N$300,4,0)*D10/100,0) -> 0 | H10: =IFERROR(VLOOKUP(C10,Ingrédients!$J$3:$N$300,5,0)*D10/100,0) -> 0 | K10: =IFERROR(VLOOKUP(I10,Ingrédients!$J$3:$N$300,2,0)*J10/100,0) -> 0 | L10: =IFERROR(VLOOKUP(I10,Ingrédients!$J$3:$N$300,3,0)*J10/100,0) -> 0 | M10: =IFERROR(VLOOKUP(I10,Ingrédients!$J$3:$N$300,4,0)*J10/100,0) -> 0 | N10: =IFERROR(VLOOKUP(I10,Ingrédients!$J$3:$N$300,5,0)*J10/100,0) -> 0 | Q10: =IFERROR(VLOOKUP(O10,Ingrédients!$J$3:$N$300,2,0)*P10/100,0) -> 0 | R10: =IFERROR(VLOOKUP(O10,Ingrédients!$J$3:$N$300,3,0)*P10/100,0) -> 0 | S10: =IFERROR(VLOOKUP(O10,Ingrédients!$J$3:$N$300,4,0)*P10/100,0) -> 0 | T10: =IFERROR(VLOOKUP(O10,Ingrédients!$J$3:$N$300,5,0)*P10/100,0) -> 0 | W10: =IFERROR(VLOOKUP(U10,Ingrédients!$J$3:$N$300,2,0)*V10/100,0) -> 0 | X10: =IFERROR(VLOOKUP(U10,Ingrédients!$J$3:$N$300,3,0)*V10/100,0) -> 0 | Y10: =IFERROR(VLOOKUP(U10,Ingrédients!$J$3:$N$300,4,0)*V10/100,0) -> 0 | Z10: =IFERROR(VLOOKUP(U10,Ingrédients!$J$3:$N$300,5,0)*V10/100,0) -> 0 | AC10: =IFERROR(VLOOKUP(AA10,Ingrédients!$J$3:$N$300,2,0)*AB10/100,0) -> 0 | AD10: =IFERROR(VLOOKUP(AA10,Ingrédients!$J$3:$N$300,3,0)*AB10/100,0) -> 0 | AE10: =IFERROR(VLOOKUP(AA10,Ingrédients!$J$3:$N$300,4,0)*AB10/100,0) -> 0 | AF10: =IFERROR(VLOOKUP(AA10,Ingrédients!$J$3:$N$300,5,0)*AB10/100,0) -> 0 | AI10: =IFERROR(VLOOKUP(AG10,Ingrédients!$J$3:$N$300,2,0)*AH10/100,0) -> 0 | AJ10: =IFERROR(VLOOKUP(AG10,Ingrédients!$J$3:$N$300,3,0)*AH10/100,0) -> 0 | AK10: =IFERROR(VLOOKUP(AG10,Ingrédients!$J$3:$N$300,4,0)*AH10/100,0) -> 0 | AL10: =IFERROR(VLOOKUP(AG10,Ingrédients!$J$3:$N$300,5,0)*AH10/100,0) -> 0 | AN10: 100 | AO10: =IFERROR(VLOOKUP(AM10,Ingrédients!$J$3:$N$300,2,0)*AN10/100,0) -> 0 | AP10: =IFERROR(VLOOKUP(AM10,Ingrédients!$J$3:$N$300,3,0)*AN10/100,0) -> 0 | AQ10: =IFERROR(VLOOKUP(AM10,Ingrédients!$J$3:$N$300,4,0)*AN10/100,0) -> 0 | AR10: =IFERROR(VLOOKUP(AM10,Ingrédients!$J$3:$N$300,5,0)*AN10/100,0) -> 0
B11: Légumes | E11: =IFERROR(VLOOKUP(C11,Ingrédients!$P$3:$T$300,2,0)*D11/100,0) -> 0 | F11: =IFERROR(VLOOKUP(C11,Ingrédients!$P$3:$T$300,3,0)*D11/100,0) -> 0 | G11: =IFERROR(VLOOKUP(C11,Ingrédients!$P$3:$T$300,4,0)*D11/100,0) -> 0 | H11: =IFERROR(VLOOKUP(C11,Ingrédients!$P$3:$T$300,5,0)*D11/100,0) -> 0 | K11: =IFERROR(VLOOKUP(I11,Ingrédients!$P$3:$T$300,2,0)*J11/100,0) -> 0 | L11: =IFERROR(VLOOKUP(I11,Ingrédients!$P$3:$T$300,3,0)*J11/100,0) -> 0 | M11: =IFERROR(VLOOKUP(I11,Ingrédients!$P$3:$T$300,4,0)*J11/100,0) -> 0 | N11: =IFERROR(VLOOKUP(I11,Ingrédients!$P$3:$T$300,5,0)*J11/100,0) -> 0 | Q11: =IFERROR(VLOOKUP(O11,Ingrédients!$P$3:$T$300,2,0)*P11/100,0) -> 0 | R11: =IFERROR(VLOOKUP(O11,Ingrédients!$P$3:$T$300,3,0)*P11/100,0) -> 0 | S11: =IFERROR(VLOOKUP(O11,Ingrédients!$P$3:$T$300,4,0)*P11/100,0) -> 0 | T11: =IFERROR(VLOOKUP(O11,Ingrédients!$P$3:$T$300,5,0)*P11/100,0) -> 0 | W11: =IFERROR(VLOOKUP(U11,Ingrédients!$P$3:$T$300,2,0)*V11/100,0) -> 0 | X11: =IFERROR(VLOOKUP(U11,Ingrédients!$P$3:$T$300,3,0)*V11/100,0) -> 0 | Y11: =IFERROR(VLOOKUP(U11,Ingrédients!$P$3:$T$300,4,0)*V11/100,0) -> 0 | Z11: =IFERROR(VLOOKUP(U11,Ingrédients!$P$3:$T$300,5,0)*V11/100,0) -> 0 | AC11: =IFERROR(VLOOKUP(AA11,Ingrédients!$P$3:$T$300,2,0)*AB11/100,0) -> 0 | AD11: =IFERROR(VLOOKUP(AA11,Ingrédients!$P$3:$T$300,3,0)*AB11/100,0) -> 0 | AE11: =IFERROR(VLOOKUP(AA11,Ingrédients!$P$3:$T$300,4,0)*AB11/100,0) -> 0 | AF11: =IFERROR(VLOOKUP(AA11,Ingrédients!$P$3:$T$300,5,0)*AB11/100,0) -> 0 | AI11: =IFERROR(VLOOKUP(AG11,Ingrédients!$P$3:$T$300,2,0)*AH11/100,0) -> 0 | AJ11: =IFERROR(VLOOKUP(AG11,Ingrédients!$P$3:$T$300,3,0)*AH11/100,0) -> 0 | AK11: =IFERROR(VLOOKUP(AG11,Ingrédients!$P$3:$T$300,4,0)*AH11/100,0) -> 0 | AL11: =IFERROR(VLOOKUP(AG11,Ingrédients!$P$3:$T$300,5,0)*AH11/100,0) -> 0 | AN11: 100 | AO11: =IFERROR(VLOOKUP(AM11,Ingrédients!$P$3:$T$300,2,0)*AN11/100,0) -> 0 | AP11: =IFERROR(VLOOKUP(AM11,Ingrédients!$P$3:$T$300,3,0)*AN11/100,0) -> 0 | AQ11: =IFERROR(VLOOKUP(AM11,Ingrédients!$P$3:$T$300,4,0)*AN11/100,0) -> 0 | AR11: =IFERROR(VLOOKUP(AM11,Ingrédients!$P$3:$T$300,5,0)*AN11/100,0) -> 0
B12: Légumes 2 | E12: =IFERROR(VLOOKUP(C12,Ingrédients!$P$3:$T$300,2,0)*D12/100,0) -> 0 | F12: =IFERROR(VLOOKUP(C12,Ingrédients!$P$3:$T$300,3,0)*D12/100,0) -> 0 | G12: =IFERROR(VLOOKUP(C12,Ingrédients!$P$3:$T$300,4,0)*D12/100,0) -> 0 | H12: =IFERROR(VLOOKUP(C12,Ingrédients!$P$3:$T$300,5,0)*D12/100,0) -> 0 | K12: =IFERROR(VLOOKUP(I12,Ingrédients!$P$3:$T$300,2,0)*J12/100,0) -> 0 | L12: =IFERROR(VLOOKUP(I12,Ingrédients!$P$3:$T$300,3,0)*J12/100,0) -> 0 | M12: =IFERROR(VLOOKUP(I12,Ingrédients!$P$3:$T$300,4,0)*J12/100,0) -> 0 | N12: =IFERROR(VLOOKUP(I12,Ingrédients!$P$3:$T$300,5,0)*J12/100,0) -> 0 | Q12: =IFERROR(VLOOKUP(O12,Ingrédients!$P$3:$T$300,2,0)*P12/100,0) -> 0 | R12: =IFERROR(VLOOKUP(O12,Ingrédients!$P$3:$T$300,3,0)*P12/100,0) -> 0 | S12: =IFERROR(VLOOKUP(O12,Ingrédients!$P$3:$T$300,4,0)*P12/100,0) -> 0 | T12: =IFERROR(VLOOKUP(O12,Ingrédients!$P$3:$T$300,5,0)*P12/100,0) -> 0 | W12: =IFERROR(VLOOKUP(U12,Ingrédients!$P$3:$T$300,2,0)*V12/100,0) -> 0 | X12: =IFERROR(VLOOKUP(U12,Ingrédients!$P$3:$T$300,3,0)*V12/100,0) -> 0 | Y12: =IFERROR(VLOOKUP(U12,Ingrédients!$P$3:$T$300,4,0)*V12/100,0) -> 0 | Z12: =IFERROR(VLOOKUP(U12,Ingrédients!$P$3:$T$300,5,0)*V12/100,0) -> 0 | AC12: =IFERROR(VLOOKUP(AA12,Ingrédients!$P$3:$T$300,2,0)*AB12/100,0) -> 0 | AD12: =IFERROR(VLOOKUP(AA12,Ingrédients!$P$3:$T$300,3,0)*AB12/100,0) -> 0 | AE12: =IFERROR(VLOOKUP(AA12,Ingrédients!$P$3:$T$300,4,0)*AB12/100,0) -> 0 | AF12: =IFERROR(VLOOKUP(AA12,Ingrédients!$P$3:$T$300,5,0)*AB12/100,0) -> 0 | AI12: =IFERROR(VLOOKUP(AG12,Ingrédients!$P$3:$T$300,2,0)*AH12/100,0) -> 0 | AJ12: =IFERROR(VLOOKUP(AG12,Ingrédients!$P$3:$T$300,3,0)*AH12/100,0) -> 0 | AK12: =IFERROR(VLOOKUP(AG12,Ingrédients!$P$3:$T$300,4,0)*AH12/100,0) -> 0 | AL12: =IFERROR(VLOOKUP(AG12,Ingrédients!$P$3:$T$300,5,0)*AH12/100,0) -> 0 | AN12: 100 | AO12: =IFERROR(VLOOKUP(AM12,Ingrédients!$P$3:$T$300,2,0)*AN12/100,0) -> 0 | AP12: =IFERROR(VLOOKUP(AM12,Ingrédients!$P$3:$T$300,3,0)*AN12/100,0) -> 0 | AQ12: =IFERROR(VLOOKUP(AM12,Ingrédients!$P$3:$T$300,4,0)*AN12/100,0) -> 0 | AR12: =IFERROR(VLOOKUP(AM12,Ingrédients!$P$3:$T$300,5,0)*AN12/100,0) -> 0
B13: Protéines | E13: =IFERROR(VLOOKUP(C13,Ingrédients!$D$3:$H$300,2,0)*D13/100,0) -> 0 | F13: =IFERROR(VLOOKUP(C13,Ingrédients!$D$3:$H$300,3,0)*D13/100,0) -> 0 | G13: =IFERROR(VLOOKUP(C13,Ingrédients!$D$3:$H$300,4,0)*D13/100,0) -> 0 | H13: =IFERROR(VLOOKUP(C13,Ingrédients!$D$3:$H$300,5,0)*D13/100,0) -> 0 | K13: =IFERROR(VLOOKUP(I13,Ingrédients!$D$3:$H$300,2,0)*J13/100,0) -> 0 | L13: =IFERROR(VLOOKUP(I13,Ingrédients!$D$3:$H$300,3,0)*J13/100,0) -> 0 | M13: =IFERROR(VLOOKUP(I13,Ingrédients!$D$3:$H$300,4,0)*J13/100,0) -> 0 | N13: =IFERROR(VLOOKUP(I13,Ingrédients!$D$3:$H$300,5,0)*J13/100,0) -> 0 | Q13: =IFERROR(VLOOKUP(O13,Ingrédients!$D$3:$H$300,2,0)*P13/100,0) -> 0 | R13: =IFERROR(VLOOKUP(O13,Ingrédients!$D$3:$H$300,3,0)*P13/100,0) -> 0 | S13: =IFERROR(VLOOKUP(O13,Ingrédients!$D$3:$H$300,4,0)*P13/100,0) -> 0 | T13: =IFERROR(VLOOKUP(O13,Ingrédients!$D$3:$H$300,5,0)*P13/100,0) -> 0 | W13: =IFERROR(VLOOKUP(U13,Ingrédients!$D$3:$H$300,2,0)*V13/100,0) -> 0 | X13: =IFERROR(VLOOKUP(U13,Ingrédients!$D$3:$H$300,3,0)*V13/100,0) -> 0 | Y13: =IFERROR(VLOOKUP(U13,Ingrédients!$D$3:$H$300,4,0)*V13/100,0) -> 0 | Z13: =IFERROR(VLOOKUP(U13,Ingrédients!$D$3:$H$300,5,0)*V13/100,0) -> 0 | AC13: =IFERROR(VLOOKUP(AA13,Ingrédients!$D$3:$H$300,2,0)*AB13/100,0) -> 0 | AD13: =IFERROR(VLOOKUP(AA13,Ingrédients!$D$3:$H$300,3,0)*AB13/100,0) -> 0 | AE13: =IFERROR(VLOOKUP(AA13,Ingrédients!$D$3:$H$300,4,0)*AB13/100,0) -> 0 | AF13: =IFERROR(VLOOKUP(AA13,Ingrédients!$D$3:$H$300,5,0)*AB13/100,0) -> 0 | AI13: =IFERROR(VLOOKUP(AG13,Ingrédients!$D$3:$H$300,2,0)*AH13/100,0) -> 0 | AJ13: =IFERROR(VLOOKUP(AG13,Ingrédients!$D$3:$H$300,3,0)*AH13/100,0) -> 0 | AK13: =IFERROR(VLOOKUP(AG13,Ingrédients!$D$3:$H$300,4,0)*AH13/100,0) -> 0 | AL13: =IFERROR(VLOOKUP(AG13,Ingrédients!$D$3:$H$300,5,0)*AH13/100,0) -> 0 | AN13: 100 | AO13: =IFERROR(VLOOKUP(AM13,Ingrédients!$D$3:$H$300,2,0)*AN13/100,0) -> 0 | AP13: =IFERROR(VLOOKUP(AM13,Ingrédients!$D$3:$H$300,3,0)*AN13/100,0) -> 0 | AQ13: =IFERROR(VLOOKUP(AM13,Ingrédients!$D$3:$H$300,4,0)*AN13/100,0) -> 0 | AR13: =IFERROR(VLOOKUP(AM13,Ingrédients!$D$3:$H$300,5,0)*AN13/100,0) -> 0
B14: Fruits | E14: =IFERROR(VLOOKUP(C14,Ingrédients!$V$3:$Z$300,2,0)*D14/100,0) -> 0 | F14: =IFERROR(VLOOKUP(C14,Ingrédients!$V$3:$Z$300,3,0)*D14/100,0) -> 0 | G14: =IFERROR(VLOOKUP(C14,Ingrédients!$V$3:$Z$300,4,0)*D14/100,0) -> 0 | H14: =IFERROR(VLOOKUP(C14,Ingrédients!$V$3:$Z$300,5,0)*D14/100,0) -> 0 | K14: =IFERROR(VLOOKUP(I14,Ingrédients!$V$3:$Z$300,2,0)*J14/100,0) -> 0 | L14: =IFERROR(VLOOKUP(I14,Ingrédients!$V$3:$Z$300,3,0)*J14/100,0) -> 0 | M14: =IFERROR(VLOOKUP(I14,Ingrédients!$V$3:$Z$300,4,0)*J14/100,0) -> 0 | N14: =IFERROR(VLOOKUP(I14,Ingrédients!$V$3:$Z$300,5,0)*J14/100,0) -> 0 | Q14: =IFERROR(VLOOKUP(O14,Ingrédients!$V$3:$Z$300,2,0)*P14/100,0) -> 0 | R14: =IFERROR(VLOOKUP(O14,Ingrédients!$V$3:$Z$300,3,0)*P14/100,0) -> 0 | S14: =IFERROR(VLOOKUP(O14,Ingrédients!$V$3:$Z$300,4,0)*P14/100,0) -> 0 | T14: =IFERROR(VLOOKUP(O14,Ingrédients!$V$3:$Z$300,5,0)*P14/100,0) -> 0 | U14: Pomme Pink lady, pulpe, crue | V14: 100 | W14: =IFERROR(VLOOKUP(U14,Ingrédients!$V$3:$Z$300,2,0)*V14/100,0) -> 60.1 | X14: =IFERROR(VLOOKUP(U14,Ingrédients!$V$3:$Z$300,3,0)*V14/100,0) -> 0 | Y14: =IFERROR(VLOOKUP(U14,Ingrédients!$V$3:$Z$300,4,0)*V14/100,0) -> 12.8 | Z14: =IFERROR(VLOOKUP(U14,Ingrédients!$V$3:$Z$300,5,0)*V14/100,0) -> 0 | AC14: =IFERROR(VLOOKUP(AA14,Ingrédients!$V$3:$Z$300,2,0)*AB14/100,0) -> 0 | AD14: =IFERROR(VLOOKUP(AA14,Ingrédients!$V$3:$Z$300,3,0)*AB14/100,0) -> 0 | AE14: =IFERROR(VLOOKUP(AA14,Ingrédients!$V$3:$Z$300,4,0)*AB14/100,0) -> 0 | AF14: =IFERROR(VLOOKUP(AA14,Ingrédients!$V$3:$Z$300,5,0)*AB14/100,0) -> 0 | AI14: =IFERROR(VLOOKUP(AG14,Ingrédients!$V$3:$Z$300,2,0)*AH14/100,0) -> 0 | AJ14: =IFERROR(VLOOKUP(AG14,Ingrédients!$V$3:$Z$300,3,0)*AH14/100,0) -> 0 | AK14: =IFERROR(VLOOKUP(AG14,Ingrédients!$V$3:$Z$300,4,0)*AH14/100,0) -> 0 | AL14: =IFERROR(VLOOKUP(AG14,Ingrédients!$V$3:$Z$300,5,0)*AH14/100,0) -> 0 | AN14: 100 | AO14: =IFERROR(VLOOKUP(AM14,Ingrédients!$V$3:$Z$300,2,0)*AN14/100,0) -> 0 | AP14: =IFERROR(VLOOKUP(AM14,Ingrédients!$V$3:$Z$300,3,0)*AN14/100,0) -> 0 | AQ14: =IFERROR(VLOOKUP(AM14,Ingrédients!$V$3:$Z$300,4,0)*AN14/100,0) -> 0 | AR14: =IFERROR(VLOOKUP(AM14,Ingrédients!$V$3:$Z$300,5,0)*AN14/100,0) -> 0
B15: Laitage | E15: =IFERROR(VLOOKUP(C15,Ingrédients!$AH$3:$AL$300,2,0)*D15/100,0) -> 0 | F15: =IFERROR(VLOOKUP(C15,Ingrédients!$AH$3:$AL$300,3,0)*D15/100,0) -> 0 | G15: =IFERROR(VLOOKUP(C15,Ingrédients!$AH$3:$AL$300,4,0)*D15/100,0) -> 0 | H15: =IFERROR(VLOOKUP(C15,Ingrédients!$AH$3:$AL$300,5,0)*D15/100,0) -> 0 | I15: Yaourt à la grecque, au lait de brebis | J15: 120 | K15: =IFERROR(VLOOKUP(I15,Ingrédients!$AH$3:$AL$300,2,0)*J15/100,0) -> 82.92 | L15: =IFERROR(VLOOKUP(I15,Ingrédients!$AH$3:$AL$300,3,0)*J15/100,0) -> 4.608 | M15: =IFERROR(VLOOKUP(I15,Ingrédients!$AH$3:$AL$300,4,0)*J15/100,0) -> 5.988 | N15: =IFERROR(VLOOKUP(I15,Ingrédients!$AH$3:$AL$300,5,0)*J15/100,0) -> 4.08 | Q15: =IFERROR(VLOOKUP(O15,Ingrédients!$AH$3:$AL$300,2,0)*P15/100,0) -> 0 | R15: =IFERROR(VLOOKUP(O15,Ingrédients!$AH$3:$AL$300,3,0)*P15/100,0) -> 0 | S15: =IFERROR(VLOOKUP(O15,Ingrédients!$AH$3:$AL$300,4,0)*P15/100,0) -> 0 | T15: =IFERROR(VLOOKUP(O15,Ingrédients!$AH$3:$AL$300,5,0)*P15/100,0) -> 0 | W15: =IFERROR(VLOOKUP(U15,Ingrédients!$AH$3:$AL$300,2,0)*V15/100,0) -> 0 | X15: =IFERROR(VLOOKUP(U15,Ingrédients!$AH$3:$AL$300,3,0)*V15/100,0) -> 0 | Y15: =IFERROR(VLOOKUP(U15,Ingrédients!$AH$3:$AL$300,4,0)*V15/100,0) -> 0 | Z15: =IFERROR(VLOOKUP(U15,Ingrédients!$AH$3:$AL$300,5,0)*V15/100,0) -> 0 | AA15: Yaourt à la grecque, au lait de brebis | AB15: 120 | AC15: =IFERROR(VLOOKUP(AA15,Ingrédients!$AH$3:$AL$300,2,0)*AB15/100,0) -> 82.92 | AD15: =IFERROR(VLOOKUP(AA15,Ingrédients!$AH$3:$AL$300,3,0)*AB15/100,0) -> 4.608 | AE15: =IFERROR(VLOOKUP(AA15,Ingrédients!$AH$3:$AL$300,4,0)*AB15/100,0) -> 5.988 | AF15: =IFERROR(VLOOKUP(AA15,Ingrédients!$AH$3:$AL$300,5,0)*AB15/100,0) -> 4.08 | AI15: =IFERROR(VLOOKUP(AG15,Ingrédients!$AH$3:$AL$300,2,0)*AH15/100,0) -> 0 | AJ15: =IFERROR(VLOOKUP(AG15,Ingrédients!$AH$3:$AL$300,3,0)*AH15/100,0) -> 0 | AK15: =IFERROR(VLOOKUP(AG15,Ingrédients!$AH$3:$AL$300,4,0)*AH15/100,0) -> 0 | AL15: =IFERROR(VLOOKUP(AG15,Ingrédients!$AH$3:$AL$300,5,0)*AH15/100,0) -> 0 | AN15: 100 | AO15: =IFERROR(VLOOKUP(AM15,Ingrédients!$AH$3:$AL$300,2,0)*AN15/100,0) -> 0 | AP15: =IFERROR(VLOOKUP(AM15,Ingrédients!$AH$3:$AL$300,3,0)*AN15/100,0) -> 0 | AQ15: =IFERROR(VLOOKUP(AM15,Ingrédients!$AH$3:$AL$300,4,0)*AN15/100,0) -> 0 | AR15: =IFERROR(VLOOKUP(AM15,Ingrédients!$AH$3:$AL$300,5,0)*AN15/100,0) -> 0
B16: Autres | C16: Amande (avec peau) | D16: 20 | E16: =IFERROR(VLOOKUP(C16,Ingrédients!$AB$3:$AF$300,2,0)*D16/100,0) -> 0 | F16: =IFERROR(VLOOKUP(C16,Ingrédients!$AB$3:$AF$300,3,0)*D16/100,0) -> 3.76 | G16: =IFERROR(VLOOKUP(C16,Ingrédients!$AB$3:$AF$300,4,0)*D16/100,0) -> 1.902 | H16: =IFERROR(VLOOKUP(C16,Ingrédients!$AB$3:$AF$300,5,0)*D16/100,0) -> 10.26 | I16: Noix, séchée, cerneaux | J16: 20 | K16: =IFERROR(VLOOKUP(I16,Ingrédients!$AB$3:$AF$300,2,0)*J16/100,0) -> 0 | L16: =IFERROR(VLOOKUP(I16,Ingrédients!$AB$3:$AF$300,3,0)*J16/100,0) -> 2.66 | M16: =IFERROR(VLOOKUP(I16,Ingrédients!$AB$3:$AF$300,4,0)*J16/100,0) -> 1.376 | N16: =IFERROR(VLOOKUP(I16,Ingrédients!$AB$3:$AF$300,5,0)*J16/100,0) -> 13.46 | O16: Noix de cajou, grillée, non salée | P16: 20 | Q16: =IFERROR(VLOOKUP(O16,Ingrédients!$AB$3:$AF$300,2,0)*P16/100,0) -> 123.6 | R16: =IFERROR(VLOOKUP(O16,Ingrédients!$AB$3:$AF$300,3,0)*P16/100,0) -> 3.48 | S16: =IFERROR(VLOOKUP(O16,Ingrédients!$AB$3:$AF$300,4,0)*P16/100,0) -> 4.26 | T16: =IFERROR(VLOOKUP(O16,Ingrédients!$AB$3:$AF$300,5,0)*P16/100,0) -> 9.62 | W16: =IFERROR(VLOOKUP(U16,Ingrédients!$AB$3:$AF$300,2,0)*V16/100,0) -> 0 | X16: =IFERROR(VLOOKUP(U16,Ingrédients!$AB$3:$AF$300,3,0)*V16/100,0) -> 0 | Y16: =IFERROR(VLOOKUP(U16,Ingrédients!$AB$3:$AF$300,4,0)*V16/100,0) -> 0 | Z16: =IFERROR(VLOOKUP(U16,Ingrédients!$AB$3:$AF$300,5,0)*V16/100,0) -> 0 | AA16: Amande (avec peau) | AB16: 30 | AC16: =IFERROR(VLOOKUP(AA16,Ingrédients!$AB$3:$AF$300,2,0)*AB16/100,0) -> 0 | AD16: =IFERROR(VLOOKUP(AA16,Ingrédients!$AB$3:$AF$300,3,0)*AB16/100,0) -> 5.64 | AE16: =IFERROR(VLOOKUP(AA16,Ingrédients!$AB$3:$AF$300,4,0)*AB16/100,0) -> 2.853 | AF16: =IFERROR(VLOOKUP(AA16,Ingrédients!$AB$3:$AF$300,5,0)*AB16/100,0) -> 15.39 | AG16: Noix de pécan | AH16: 30 | AI16: =IFERROR(VLOOKUP(AG16,Ingrédients!$AB$3:$AF$300,2,0)*AH16/100,0) -> 0 | AJ16: =IFERROR(VLOOKUP(AG16,Ingrédients!$AB$3:$AF$300,3,0)*AH16/100,0) -> 2.871 | AK16: =IFERROR(VLOOKUP(AG16,Ingrédients!$AB$3:$AF$300,4,0)*AH16/100,0) -> 1.629 | AL16: =IFERROR(VLOOKUP(AG16,Ingrédients!$AB$3:$AF$300,5,0)*AH16/100,0) -> 21.78 | AN16: 100 | AO16: =IFERROR(VLOOKUP(AM16,Ingrédients!$AB$3:$AF$300,2,0)*AN16/100,0) -> 0 | AP16: =IFERROR(VLOOKUP(AM16,Ingrédients!$AB$3:$AF$300,3,0)*AN16/100,0) -> 0 | AQ16: =IFERROR(VLOOKUP(AM16,Ingrédients!$AB$3:$AF$300,4,0)*AN16/100,0) -> 0 | AR16: =IFERROR(VLOOKUP(AM16,Ingrédients!$AB$3:$AF$300,5,0)*AN16/100,0) -> 0
B17: TOTAL | D17: =D10+D11+D12+D13+D14+D15+D16 -> 20 | E17: =E10+E11+E12+E13+E14+E15+E16 -> 0 | F17: =F10+F11+F12+F13+F14+F15+F16 -> 3.76 | G17: =G10+G11+G12+G13+G14+G15+G16 -> 1.902 | H17: =H10+H11+H12+H13+H14+H15+H16 -> 10.26 | J17: =J10+J11+J12+J13+J14+J15+J16 -> 140 | K17: =K10+K11+K12+K13+K14+K15+K16 -> 82.92 | L17: =L10+L11+L12+L13+L14+L15+L16 -> 7.268 | M17: 7.364 | N17: 17.54 | P17: =P10+P11+P12+P13+P14+P15+P16 -> 20 | Q17: =Q10+Q11+Q12+Q13+Q14+Q15+Q16 -> 123.6 | R17: =R10+R11+R12+R13+R14+R15+R16 -> 3.48 | S17: 4.26 | T17: 9.62 | V17: =V10+V11+V12+V13+V14+V15+V16 -> 100 | W17: =W10+W11+W12+W13+W14+W15+W16 -> 60.1 | X17: =X10+X11+X12+X13+X14+X15+X16 -> 0 | Y17: 12.8 | Z17: 0 | AB17: =AB10+AB11+AB12+AB13+AB14+AB15+AB16 -> 150 | AC17: =AC10+AC11+AC12+AC13+AC14+AC15+AC16 -> 82.92 | AD17: =AD10+AD11+AD12+AD13+AD14+AD15+AD16 -> 10.248 | AE17: 8.841 | AF17: 19.47 | AH17: =AH10+AH11+AH12+AH13+AH14+AH15+AH16 -> 30 | AI17: =AI10+AI11+AI12+AI13+AI14+AI15+AI16 -> 0 | AJ17: =AJ10+AJ11+AJ12+AJ13+AJ14+AJ15+AJ16 -> 2.871 | AK17: 1.629 | AL17: 21.78 | AN17: =AN10+AN11+AN12+AN13+AN14+AN15+AN16 -> 700 | AO17: =AO10+AO11+AO12+AO13+AO14+AO15+AO16 -> 0 | AP17: =AP10+AP11+AP12+AP13+AP14+AP15+AP16 -> 0 | AQ17: 0 | AR17: 0
A18: DEJEUNER | B18: Féculents | C18: Riz complet, cuit, non salé | D18: 150 | E18: =IFERROR(VLOOKUP(C18,Ingrédients!$J$3:$N$300,2,0)*D18/100,0) -> 237 | F18: =IFERROR(VLOOKUP(C18,Ingrédients!$J$3:$N$300,3,0)*D18/100,0) -> 4.815 | G18: =IFERROR(VLOOKUP(C18,Ingrédients!$J$3:$N$300,4,0)*D18/100,0) -> 48.9 | H18: =IFERROR(VLOOKUP(C18,Ingrédients!$J$3:$N$300,5,0)*D18/100,0) -> 1.5 | I18: Quinoa, cru | J18: 100 | K18: =IFERROR(VLOOKUP(I18,Ingrédients!$J$3:$N$300,2,0)*J18/100,0) -> 358 | L18: =IFERROR(VLOOKUP(I18,Ingrédients!$J$3:$N$300,3,0)*J18/100,0) -> 13.2 | M18: =IFERROR(VLOOKUP(I18,Ingrédients!$J$3:$N$300,4,0)*J18/100,0) -> 58.1 | N18: =IFERROR(VLOOKUP(I18,Ingrédients!$J$3:$N$300,5,0)*J18/100,0) -> 6.07 | O18: Riz basmati, cuit, non salé | P18: 100 | Q18: =IFERROR(VLOOKUP(O18,Ingrédients!$J$3:$N$300,2,0)*P18/100,0) -> 117 | R18: =IFERROR(VLOOKUP(O18,Ingrédients!$J$3:$N$300,3,0)*P18/100,0) -> 2.74 | S18: =IFERROR(VLOOKUP(O18,Ingrédients!$J$3:$N$300,4,0)*P18/100,0) -> 24.4 | T18: =IFERROR(VLOOKUP(O18,Ingrédients!$J$3:$N$300,5,0)*P18/100,0) -> 0.6 | U18: Pain de mie, complet | V18: 100 | W18: =IFERROR(VLOOKUP(U18,Ingrédients!$J$3:$N$300,2,0)*V18/100,0) -> 262 | X18: =IFERROR(VLOOKUP(U18,Ingrédients!$J$3:$N$300,3,0)*V18/100,0) -> 8.51 | Y18: =IFERROR(VLOOKUP(U18,Ingrédients!$J$3:$N$300,4,0)*V18/100,0) -> 43.7 | Z18: =IFERROR(VLOOKUP(U18,Ingrédients!$J$3:$N$300,5,0)*V18/100,0) -> 4.06 | AA18: Riz sauvage, cuit, non salé | AB18: 100 | AC18: =IFERROR(VLOOKUP(AA18,Ingrédients!$J$3:$N$300,2,0)*AB18/100,0) -> 102 | AD18: =IFERROR(VLOOKUP(AA18,Ingrédients!$J$3:$N$300,3,0)*AB18/100,0) -> 3.8 | AE18: =IFERROR(VLOOKUP(AA18,Ingrédients!$J$3:$N$300,4,0)*AB18/100,0) -> 19.7 | AF18: =IFERROR(VLOOKUP(AA18,Ingrédients!$J$3:$N$300,5,0)*AB18/100,0) -> 0.34 | AG18: Patate douce, cuite | AH18: 100 | AI18: =IFERROR(VLOOKUP(AG18,Ingrédients!$J$3:$N$300,2,0)*AH18/100,0) -> 62.8 | AJ18: =IFERROR(VLOOKUP(AG18,Ingrédients!$J$3:$N$300,3,0)*AH18/100,0) -> 1.69 | AK18: =IFERROR(VLOOKUP(AG18,Ingrédients!$J$3:$N$300,4,0)*AH18/100,0) -> 12.2 | AL18: =IFERROR(VLOOKUP(AG18,Ingrédients!$J$3:$N$300,5,0)*AH18/100,0) -> 0.15 | AN18: 100 | AO18: =IFERROR(VLOOKUP(AM18,Ingrédients!$J$3:$N$300,2,0)*AN18/100,0) -> 0 | AP18: =IFERROR(VLOOKUP(AM18,Ingrédients!$J$3:$N$300,3,0)*AN18/100,0) -> 0 | AQ18: =IFERROR(VLOOKUP(AM18,Ingrédients!$J$3:$N$300,4,0)*AN18/100,0) -> 0 | AR18: =IFERROR(VLOOKUP(AM18,Ingrédients!$J$3:$N$300,5,0)*AN18/100,0) -> 0
B19: Légumes | C19: Brocoli, cuit | D19: 100 | E19: =IFERROR(VLOOKUP(C19,Ingrédients!$P$3:$T$300,2,0)*D19/100,0) -> 0 | F19: =IFERROR(VLOOKUP(C19,Ingrédients!$P$3:$T$300,3,0)*D19/100,0) -> 2.1 | G19: =IFERROR(VLOOKUP(C19,Ingrédients!$P$3:$T$300,4,0)*D19/100,0) -> 1.1 | H19: =IFERROR(VLOOKUP(C19,Ingrédients!$P$3:$T$300,5,0)*D19/100,0) -> 0.78 | I19: Brocoli, cuit | J19: 200 | K19: =IFERROR(VLOOKUP(I19,Ingrédients!$P$3:$T$300,2,0)*J19/100,0) -> 0 | L19: =IFERROR(VLOOKUP(I19,Ingrédients!$P$3:$T$300,3,0)*J19/100,0) -> 4.2 | M19: =IFERROR(VLOOKUP(I19,Ingrédients!$P$3:$T$300,4,0)*J19/100,0) -> 2.2 | N19: =IFERROR(VLOOKUP(I19,Ingrédients!$P$3:$T$300,5,0)*J19/100,0) -> 1.56 | O19: Haricot vert, cuit | P19: 200 | Q19: =IFERROR(VLOOKUP(O19,Ingrédients!$P$3:$T$300,2,0)*P19/100,0) -> 58.8 | R19: =IFERROR(VLOOKUP(O19,Ingrédients!$P$3:$T$300,3,0)*P19/100,0) -> 4 | S19: =IFERROR(VLOOKUP(O19,Ingrédients!$P$3:$T$300,4,0)*P19/100,0) -> 6 | T19: =IFERROR(VLOOKUP(O19,Ingrédients!$P$3:$T$300,5,0)*P19/100,0) -> 0.34 | U19: Salade ou chicorée frisée, crue | V19: 50 | W19: =IFERROR(VLOOKUP(U19,Ingrédients!$P$3:$T$300,2,0)*V19/100,0) -> 0 | X19: =IFERROR(VLOOKUP(U19,Ingrédients!$P$3:$T$300,3,0)*V19/100,0) -> 0.74 | Y19: =IFERROR(VLOOKUP(U19,Ingrédients!$P$3:$T$300,4,0)*V19/100,0) -> 1.2 | Z19: =IFERROR(VLOOKUP(U19,Ingrédients!$P$3:$T$300,5,0)*V19/100,0) -> 0.125 | AA19: Bette ou blette, cuite | AB19: 100 | AC19: =IFERROR(VLOOKUP(AA19,Ingrédients!$P$3:$T$300,2,0)*AB19/100,0) -> 14.7 | AD19: =IFERROR(VLOOKUP(AA19,Ingrédients!$P$3:$T$300,3,0)*AB19/100,0) -> 0.7 | AE19: =IFERROR(VLOOKUP(AA19,Ingrédients!$P$3:$T$300,4,0)*AB19/100,0) -> 1.23 | AF19: =IFERROR(VLOOKUP(AA19,Ingrédients!$P$3:$T$300,5,0)*AB19/100,0) -> 0 | AG19: Courgette, pulpe et peau, cuite | AH19: 100 | AI19: =IFERROR(VLOOKUP(AG19,Ingrédients!$P$3:$T$300,2,0)*AH19/100,0) -> 15.5 | AJ19: =IFERROR(VLOOKUP(AG19,Ingrédients!$P$3:$T$300,3,0)*AH19/100,0) -> 0.93 | AK19: =IFERROR(VLOOKUP(AG19,Ingrédients!$P$3:$T$300,4,0)*AH19/100,0) -> 1.4 | AL19: =IFERROR(VLOOKUP(AG19,Ingrédients!$P$3:$T$300,5,0)*AH19/100,0) -> 0.36 | AN19: 100 | AO19: =IFERROR(VLOOKUP(AM19,Ingrédients!$P$3:$T$300,2,0)*AN19/100,0) -> 0 | AP19: =IFERROR(VLOOKUP(AM19,Ingrédients!$P$3:$T$300,3,0)*AN19/100,0) -> 0 | AQ19: =IFERROR(VLOOKUP(AM19,Ingrédients!$P$3:$T$300,4,0)*AN19/100,0) -> 0 | AR19: =IFERROR(VLOOKUP(AM19,Ingrédients!$P$3:$T$300,5,0)*AN19/100,0) -> 0
B20: Légumes 2 | C20: Haricot vert, cuit | D20: 100 | E20: =IFERROR(VLOOKUP(C20,Ingrédients!$P$3:$T$300,2,0)*D20/100,0) -> 29.4 | F20: =IFERROR(VLOOKUP(C20,Ingrédients!$P$3:$T$300,3,0)*D20/100,0) -> 2 | G20: =IFERROR(VLOOKUP(C20,Ingrédients!$P$3:$T$300,4,0)*D20/100,0) -> 3 | H20: =IFERROR(VLOOKUP(C20,Ingrédients!$P$3:$T$300,5,0)*D20/100,0) -> 0.17 | K20: =IFERROR(VLOOKUP(I20,Ingrédients!$P$3:$T$300,2,0)*J20/100,0) -> 0 | L20: =IFERROR(VLOOKUP(I20,Ingrédients!$P$3:$T$300,3,0)*J20/100,0) -> 0 | M20: =IFERROR(VLOOKUP(I20,Ingrédients!$P$3:$T$300,4,0)*J20/100,0) -> 0 | N20: =IFERROR(VLOOKUP(I20,Ingrédients!$P$3:$T$300,5,0)*J20/100,0) -> 0 | Q20: =IFERROR(VLOOKUP(O20,Ingrédients!$P$3:$T$300,2,0)*P20/100,0) -> 0 | R20: =IFERROR(VLOOKUP(O20,Ingrédients!$P$3:$T$300,3,0)*P20/100,0) -> 0 | S20: =IFERROR(VLOOKUP(O20,Ingrédients!$P$3:$T$300,4,0)*P20/100,0) -> 0 | T20: =IFERROR(VLOOKUP(O20,Ingrédients!$P$3:$T$300,5,0)*P20/100,0) -> 0 | W20: =IFERROR(VLOOKUP(U20,Ingrédients!$P$3:$T$300,2,0)*V20/100,0) -> 0 | X20: =IFERROR(VLOOKUP(U20,Ingrédients!$P$3:$T$300,3,0)*V20/100,0) -> 0 | Y20: =IFERROR(VLOOKUP(U20,Ingrédients!$P$3:$T$300,4,0)*V20/100,0) -> 0 | Z20: =IFERROR(VLOOKUP(U20,Ingrédients!$P$3:$T$300,5,0)*V20/100,0) -> 0 | AC20: =IFERROR(VLOOKUP(AA20,Ingrédients!$P$3:$T$300,2,0)*AB20/100,0) -> 0 | AD20: =IFERROR(VLOOKUP(AA20,Ingrédients!$P$3:$T$300,3,0)*AB20/100,0) -> 0 | AE20: =IFERROR(VLOOKUP(AA20,Ingrédients!$P$3:$T$300,4,0)*AB20/100,0) -> 0 | AF20: =IFERROR(VLOOKUP(AA20,Ingrédients!$P$3:$T$300,5,0)*AB20/100,0) -> 0 | AI20: =IFERROR(VLOOKUP(AG20,Ingrédients!$P$3:$T$300,2,0)*AH20/100,0) -> 0 | AJ20: =IFERROR(VLOOKUP(AG20,Ingrédients!$P$3:$T$300,3,0)*AH20/100,0) -> 0 | AK20: =IFERROR(VLOOKUP(AG20,Ingrédients!$P$3:$T$300,4,0)*AH20/100,0) -> 0 | AL20: =IFERROR(VLOOKUP(AG20,Ingrédients!$P$3:$T$300,5,0)*AH20/100,0) -> 0 | AN20: 100 | AO20: =IFERROR(VLOOKUP(AM20,Ingrédients!$P$3:$T$300,2,0)*AN20/100,0) -> 0 | AP20: =IFERROR(VLOOKUP(AM20,Ingrédients!$P$3:$T$300,3,0)*AN20/100,0) -> 0 | AQ20: =IFERROR(VLOOKUP(AM20,Ingrédients!$P$3:$T$300,4,0)*AN20/100,0) -> 0 | AR20: =IFERROR(VLOOKUP(AM20,Ingrédients!$P$3:$T$300,5,0)*AN20/100,0) -> 0
B21: Protéines | C21: Poulet, filet, sans peau, sauté/poêlé | D21: 200 | E21: =IFERROR(VLOOKUP(C21,Ingrédients!$D$3:$H$300,2,0)*D21/100,0) -> 282 | F21: =IFERROR(VLOOKUP(C21,Ingrédients!$D$3:$H$300,3,0)*D21/100,0) -> 60.2 | G21: =IFERROR(VLOOKUP(C21,Ingrédients!$D$3:$H$300,4,0)*D21/100,0) -> 0 | H21: =IFERROR(VLOOKUP(C21,Ingrédients!$D$3:$H$300,5,0)*D21/100,0) -> 4 | I21: Poulet, filet, sans peau, sauté/poêlé | J21: 200 | K21: =IFERROR(VLOOKUP(I21,Ingrédients!$D$3:$H$300,2,0)*J21/100,0) -> 282 | L21: =IFERROR(VLOOKUP(I21,Ingrédients!$D$3:$H$300,3,0)*J21/100,0) -> 60.2 | M21: =IFERROR(VLOOKUP(I21,Ingrédients!$D$3:$H$300,4,0)*J21/100,0) -> 0 | N21: =IFERROR(VLOOKUP(I21,Ingrédients!$D$3:$H$300,5,0)*J21/100,0) -> 4 | O21: Dinde, escalope, sautée/poêlée | P21: 200 | Q21: =IFERROR(VLOOKUP(O21,Ingrédients!$D$3:$H$300,2,0)*P21/100,0) -> 248 | R21: =IFERROR(VLOOKUP(O21,Ingrédients!$D$3:$H$300,3,0)*P21/100,0) -> 57 | S21: =IFERROR(VLOOKUP(O21,Ingrédients!$D$3:$H$300,4,0)*P21/100,0) -> 0 | T21: =IFERROR(VLOOKUP(O21,Ingrédients!$D$3:$H$300,5,0)*P21/100,0) -> 2.18 | U21: Thon, au naturel, appertisé, égoutté | V21: 140 | W21: =IFERROR(VLOOKUP(U21,Ingrédients!$D$3:$H$300,2,0)*V21/100,0) -> 155.4 | X21: =IFERROR(VLOOKUP(U21,Ingrédients!$D$3:$H$300,3,0)*V21/100,0) -> 37.52 | Y21: =IFERROR(VLOOKUP(U21,Ingrédients!$D$3:$H$300,4,0)*V21/100,0) -> 0 | Z21: =IFERROR(VLOOKUP(U21,Ingrédients!$D$3:$H$300,5,0)*V21/100,0) -> 0.56 | AA21: Cabillaud, cuit, sans précision (aliment moyen) | AB21: 120 | AC21: =IFERROR(VLOOKUP(AA21,Ingrédients!$D$3:$H$300,2,0)*AB21/100,0) -> 118.68 | AD21: =IFERROR(VLOOKUP(AA21,Ingrédients!$D$3:$H$300,3,0)*AB21/100,0) -> 27.72 | AE21: =IFERROR(VLOOKUP(AA21,Ingrédients!$D$3:$H$300,4,0)*AB21/100,0) -> 0 | AF21: =IFERROR(VLOOKUP(AA21,Ingrédients!$D$3:$H$300,5,0)*AB21/100,0) -> 0.876 | AG21: Boeuf, steak haché 5% MG, cuit | AH21: 150 | AI21: =IFERROR(VLOOKUP(AG21,Ingrédients!$D$3:$H$300,2,0)*AH21/100,0) -> 232.5 | AJ21: =IFERROR(VLOOKUP(AG21,Ingrédients!$D$3:$H$300,3,0)*AH21/100,0) -> 38.25 | AK21: =IFERROR(VLOOKUP(AG21,Ingrédients!$D$3:$H$300,4,0)*AH21/100,0) -> 0 | AL21: =IFERROR(VLOOKUP(AG21,Ingrédients!$D$3:$H$300,5,0)*AH21/100,0) -> 8.775 | AN21: 100 | AO21: =IFERROR(VLOOKUP(AM21,Ingrédients!$D$3:$H$300,2,0)*AN21/100,0) -> 0 | AP21: =IFERROR(VLOOKUP(AM21,Ingrédients!$D$3:$H$300,3,0)*AN21/100,0) -> 0 | AQ21: =IFERROR(VLOOKUP(AM21,Ingrédients!$D$3:$H$300,4,0)*AN21/100,0) -> 0 | AR21: =IFERROR(VLOOKUP(AM21,Ingrédients!$D$3:$H$300,5,0)*AN21/100,0) -> 0
B22: Fruits | E22: =IFERROR(VLOOKUP(C22,Ingrédients!$V$3:$Z$300,2,0)*D22/100,0) -> 0 | F22: =IFERROR(VLOOKUP(C22,Ingrédients!$V$3:$Z$300,3,0)*D22/100,0) -> 0 | G22: =IFERROR(VLOOKUP(C22,Ingrédients!$V$3:$Z$300,4,0)*D22/100,0) -> 0 | H22: =IFERROR(VLOOKUP(C22,Ingrédients!$V$3:$Z$300,5,0)*D22/100,0) -> 0 | K22: =IFERROR(VLOOKUP(I22,Ingrédients!$V$3:$Z$300,2,0)*J22/100,0) -> 0 | L22: =IFERROR(VLOOKUP(I22,Ingrédients!$V$3:$Z$300,3,0)*J22/100,0) -> 0 | M22: =IFERROR(VLOOKUP(I22,Ingrédients!$V$3:$Z$300,4,0)*J22/100,0) -> 0 | N22: =IFERROR(VLOOKUP(I22,Ingrédients!$V$3:$Z$300,5,0)*J22/100,0) -> 0 | Q22: =IFERROR(VLOOKUP(O22,Ingrédients!$V$3:$Z$300,2,0)*P22/100,0) -> 0 | R22: =IFERROR(VLOOKUP(O22,Ingrédients!$V$3:$Z$300,3,0)*P22/100,0) -> 0 | S22: =IFERROR(VLOOKUP(O22,Ingrédients!$V$3:$Z$300,4,0)*P22/100,0) -> 0 | T22: =IFERROR(VLOOKUP(O22,Ingrédients!$V$3:$Z$300,5,0)*P22/100,0) -> 0 | W22: =IFERROR(VLOOKUP(U22,Ingrédients!$V$3:$Z$300,2,0)*V22/100,0) -> 0 | X22: =IFERROR(VLOOKUP(U22,Ingrédients!$V$3:$Z$300,3,0)*V22/100,0) -> 0 | Y22: =IFERROR(VLOOKUP(U22,Ingrédients!$V$3:$Z$300,4,0)*V22/100,0) -> 0 | Z22: =IFERROR(VLOOKUP(U22,Ingrédients!$V$3:$Z$300,5,0)*V22/100,0) -> 0 | AC22: =IFERROR(VLOOKUP(AA22,Ingrédients!$V$3:$Z$300,2,0)*AB22/100,0) -> 0 | AD22: =IFERROR(VLOOKUP(AA22,Ingrédients!$V$3:$Z$300,3,0)*AB22/100,0) -> 0 | AE22: =IFERROR(VLOOKUP(AA22,Ingrédients!$V$3:$Z$300,4,0)*AB22/100,0) -> 0 | AF22: =IFERROR(VLOOKUP(AA22,Ingrédients!$V$3:$Z$300,5,0)*AB22/100,0) -> 0 | AI22: =IFERROR(VLOOKUP(AG22,Ingrédients!$V$3:$Z$300,2,0)*AH22/100,0) -> 0 | AJ22: =IFERROR(VLOOKUP(AG22,Ingrédients!$V$3:$Z$300,3,0)*AH22/100,0) -> 0 | AK22: =IFERROR(VLOOKUP(AG22,Ingrédients!$V$3:$Z$300,4,0)*AH22/100,0) -> 0 | AL22: =IFERROR(VLOOKUP(AG22,Ingrédients!$V$3:$Z$300,5,0)*AH22/100,0) -> 0 | AN22: 100 | AO22: =IFERROR(VLOOKUP(AM22,Ingrédients!$V$3:$Z$300,2,0)*AN22/100,0) -> 0 | AP22: =IFERROR(VLOOKUP(AM22,Ingrédients!$V$3:$Z$300,3,0)*AN22/100,0) -> 0 | AQ22: =IFERROR(VLOOKUP(AM22,Ingrédients!$V$3:$Z$300,4,0)*AN22/100,0) -> 0 | AR22: =IFERROR(VLOOKUP(AM22,Ingrédients!$V$3:$Z$300,5,0)*AN22/100,0) -> 0
B23: Laitage | E23: =IFERROR(VLOOKUP(C23,Ingrédients!$AH$3:$AL$300,2,0)*D23/100,0) -> 0 | F23: =IFERROR(VLOOKUP(C23,Ingrédients!$AH$3:$AL$300,3,0)*D23/100,0) -> 0 | G23: =IFERROR(VLOOKUP(C23,Ingrédients!$AH$3:$AL$300,4,0)*D23/100,0) -> 0 | H23: =IFERROR(VLOOKUP(C23,Ingrédients!$AH$3:$AL$300,5,0)*D23/100,0) -> 0 | K23: =IFERROR(VLOOKUP(I23,Ingrédients!$AH$3:$AL$300,2,0)*J23/100,0) -> 0 | L23: =IFERROR(VLOOKUP(I23,Ingrédients!$AH$3:$AL$300,3,0)*J23/100,0) -> 0 | M23: =IFERROR(VLOOKUP(I23,Ingrédients!$AH$3:$AL$300,4,0)*J23/100,0) -> 0 | N23: =IFERROR(VLOOKUP(I23,Ingrédients!$AH$3:$AL$300,5,0)*J23/100,0) -> 0 | Q23: =IFERROR(VLOOKUP(O23,Ingrédients!$AH$3:$AL$300,2,0)*P23/100,0) -> 0 | R23: =IFERROR(VLOOKUP(O23,Ingrédients!$AH$3:$AL$300,3,0)*P23/100,0) -> 0 | S23: =IFERROR(VLOOKUP(O23,Ingrédients!$AH$3:$AL$300,4,0)*P23/100,0) -> 0 | T23: =IFERROR(VLOOKUP(O23,Ingrédients!$AH$3:$AL$300,5,0)*P23/100,0) -> 0 | W23: =IFERROR(VLOOKUP(U23,Ingrédients!$AH$3:$AL$300,2,0)*V23/100,0) -> 0 | X23: =IFERROR(VLOOKUP(U23,Ingrédients!$AH$3:$AL$300,3,0)*V23/100,0) -> 0 | Y23: =IFERROR(VLOOKUP(U23,Ingrédients!$AH$3:$AL$300,4,0)*V23/100,0) -> 0 | Z23: =IFERROR(VLOOKUP(U23,Ingrédients!$AH$3:$AL$300,5,0)*V23/100,0) -> 0 | AC23: =IFERROR(VLOOKUP(AA23,Ingrédients!$AH$3:$AL$300,2,0)*AB23/100,0) -> 0 | AD23: =IFERROR(VLOOKUP(AA23,Ingrédients!$AH$3:$AL$300,3,0)*AB23/100,0) -> 0 | AE23: =IFERROR(VLOOKUP(AA23,Ingrédients!$AH$3:$AL$300,4,0)*AB23/100,0) -> 0 | AF23: =IFERROR(VLOOKUP(AA23,Ingrédients!$AH$3:$AL$300,5,0)*AB23/100,0) -> 0 | AI23: =IFERROR(VLOOKUP(AG23,Ingrédients!$AH$3:$AL$300,2,0)*AH23/100,0) -> 0 | AJ23: =IFERROR(VLOOKUP(AG23,Ingrédients!$AH$3:$AL$300,3,0)*AH23/100,0) -> 0 | AK23: =IFERROR(VLOOKUP(AG23,Ingrédients!$AH$3:$AL$300,4,0)*AH23/100,0) -> 0 | AL23: =IFERROR(VLOOKUP(AG23,Ingrédients!$AH$3:$AL$300,5,0)*AH23/100,0) -> 0 | AN23: 100 | AO23: =IFERROR(VLOOKUP(AM23,Ingrédients!$AH$3:$AL$300,2,0)*AN23/100,0) -> 0 | AP23: =IFERROR(VLOOKUP(AM23,Ingrédients!$AH$3:$AL$300,3,0)*AN23/100,0) -> 0 | AQ23: =IFERROR(VLOOKUP(AM23,Ingrédients!$AH$3:$AL$300,4,0)*AN23/100,0) -> 0 | AR23: =IFERROR(VLOOKUP(AM23,Ingrédients!$AH$3:$AL$300,5,0)*AN23/100,0) -> 0
B24: Autres | E24: =IFERROR(VLOOKUP(C24,Ingrédients!$AB$3:$AF$300,2,0)*D24/100,0) -> 0 | F24: =IFERROR(VLOOKUP(C24,Ingrédients!$AB$3:$AF$300,3,0)*D24/100,0) -> 0 | G24: =IFERROR(VLOOKUP(C24,Ingrédients!$AB$3:$AF$300,4,0)*D24/100,0) -> 0 | H24: =IFERROR(VLOOKUP(C24,Ingrédients!$AB$3:$AF$300,5,0)*D24/100,0) -> 0 | K24: =IFERROR(VLOOKUP(I24,Ingrédients!$AB$3:$AF$300,2,0)*J24/100,0) -> 0 | L24: =IFERROR(VLOOKUP(I24,Ingrédients!$AB$3:$AF$300,3,0)*J24/100,0) -> 0 | M24: =IFERROR(VLOOKUP(I24,Ingrédients!$AB$3:$AF$300,4,0)*J24/100,0) -> 0 | N24: =IFERROR(VLOOKUP(I24,Ingrédients!$AB$3:$AF$300,5,0)*J24/100,0) -> 0 | Q24: =IFERROR(VLOOKUP(O24,Ingrédients!$AB$3:$AF$300,2,0)*P24/100,0) -> 0 | R24: =IFERROR(VLOOKUP(O24,Ingrédients!$AB$3:$AF$300,3,0)*P24/100,0) -> 0 | S24: =IFERROR(VLOOKUP(O24,Ingrédients!$AB$3:$AF$300,4,0)*P24/100,0) -> 0 | T24: =IFERROR(VLOOKUP(O24,Ingrédients!$AB$3:$AF$300,5,0)*P24/100,0) -> 0 | W24: =IFERROR(VLOOKUP(U24,Ingrédients!$AB$3:$AF$300,2,0)*V24/100,0) -> 0 | X24: =IFERROR(VLOOKUP(U24,Ingrédients!$AB$3:$AF$300,3,0)*V24/100,0) -> 0 | Y24: =IFERROR(VLOOKUP(U24,Ingrédients!$AB$3:$AF$300,4,0)*V24/100,0) -> 0 | Z24: =IFERROR(VLOOKUP(U24,Ingrédients!$AB$3:$AF$300,5,0)*V24/100,0) -> 0 | AC24: =IFERROR(VLOOKUP(AA24,Ingrédients!$AB$3:$AF$300,2,0)*AB24/100,0) -> 0 | AD24: =IFERROR(VLOOKUP(AA24,Ingrédients!$AB$3:$AF$300,3,0)*AB24/100,0) -> 0 | AE24: =IFERROR(VLOOKUP(AA24,Ingrédients!$AB$3:$AF$300,4,0)*AB24/100,0) -> 0 | AF24: =IFERROR(VLOOKUP(AA24,Ingrédients!$AB$3:$AF$300,5,0)*AB24/100,0) -> 0 | AI24: =IFERROR(VLOOKUP(AG24,Ingrédients!$AB$3:$AF$300,2,0)*AH24/100,0) -> 0 | AJ24: =IFERROR(VLOOKUP(AG24,Ingrédients!$AB$3:$AF$300,3,0)*AH24/100,0) -> 0 | AK24: =IFERROR(VLOOKUP(AG24,Ingrédients!$AB$3:$AF$300,4,0)*AH24/100,0) -> 0 | AL24: =IFERROR(VLOOKUP(AG24,Ingrédients!$AB$3:$AF$300,5,0)*AH24/100,0) -> 0 | AN24: 100 | AO24: =IFERROR(VLOOKUP(AM24,Ingrédients!$AB$3:$AF$300,2,0)*AN24/100,0) -> 0 | AP24: =IFERROR(VLOOKUP(AM24,Ingrédients!$AB$3:$AF$300,3,0)*AN24/100,0) -> 0 | AQ24: =IFERROR(VLOOKUP(AM24,Ingrédients!$AB$3:$AF$300,4,0)*AN24/100,0) -> 0 | AR24: =IFERROR(VLOOKUP(AM24,Ingrédients!$AB$3:$AF$300,5,0)*AN24/100,0) -> 0
B25: TOTAL | D25: =D18+D19+D20+D21+D22+D23+D24 -> 550 | E25: =E18+E19+E20+E21+E22+E23+E24 -> 548.4 | F25: =F18+F19+F20+F21+F22+F23+F24 -> 69.115 | G25: =G18+G19+G20+G21+G22+G23+G24 -> 53 | H25: =H18+H19+H20+H21+H22+H23+H24 -> 6.45 | J25: =J18+J19+J20+J21+J22+J23+J24 -> 500 | K25: =K18+K19+K20+K21+K22+K23+K24 -> 640 | L25: =L18+L19+L20+L21+L22+L23+L24 -> 77.6 | M25: 60.3 | N25: 11.63 | P25: =P18+P19+P20+P21+P22+P23+P24 -> 500 | Q25: =Q18+Q19+Q20+Q21+Q22+Q23+Q24 -> 423.8 | R25: =R18+R19+R20+R21+R22+R23+R24 -> 63.74 | S25: 30.4 | T25: 3.12 | V25: =V18+V19+V20+V21+V22+V23+V24 -> 290 | W25: =W18+W19+W20+W21+W22+W23+W24 -> 417.4 | X25: =X18+X19+X20+X21+X22+X23+X24 -> 46.77 | Y25: 44.9 | Z25: 4.745 | AB25: =AB18+AB19+AB20+AB21+AB22+AB23+AB24 -> 320 | AC25: =AC18+AC19+AC20+AC21+AC22+AC23+AC24 -> 235.38 | AD25: =AD18+AD19+AD20+AD21+AD22+AD23+AD24 -> 32.22 | AE25: 20.93 | AF25: 1.216 | AH25: =AH18+AH19+AH20+AH21+AH22+AH23+AH24 -> 350 | AI25: =AI18+AI19+AI20+AI21+AI22+AI23+AI24 -> 310.8 | AJ25: =AJ18+AJ19+AJ20+AJ21+AJ22+AJ23+AJ24 -> 40.87 | AK25: 13.6 | AL25: 9.285 | AN25: =AN18+AN19+AN20+AN21+AN22+AN23+AN24 -> 700 | AO25: =AO18+AO19+AO20+AO21+AO22+AO23+AO24 -> 0 | AP25: =AP18+AP19+AP20+AP21+AP22+AP23+AP24 -> 0 | AQ25: 0 | AR25: 0
A26: GOUTER | B26: Féculents | E26: =IFERROR(VLOOKUP(C26,Ingrédients!$J$3:$N$300,2,0)*D26/100,0) -> 0 | F26: =IFERROR(VLOOKUP(C26,Ingrédients!$J$3:$N$300,3,0)*D26/100,0) -> 0 | G26: =IFERROR(VLOOKUP(C26,Ingrédients!$J$3:$N$300,4,0)*D26/100,0) -> 0 | H26: =IFERROR(VLOOKUP(C26,Ingrédients!$J$3:$N$300,5,0)*D26/100,0) -> 0 | K26: =IFERROR(VLOOKUP(I26,Ingrédients!$J$3:$N$300,2,0)*J26/100,0) -> 0 | L26: =IFERROR(VLOOKUP(I26,Ingrédients!$J$3:$N$300,3,0)*J26/100,0) -> 0 | M26: =IFERROR(VLOOKUP(I26,Ingrédients!$J$3:$N$300,4,0)*J26/100,0) -> 0 | N26: =IFERROR(VLOOKUP(I26,Ingrédients!$J$3:$N$300,5,0)*J26/100,0) -> 0 | Q26: =IFERROR(VLOOKUP(O26,Ingrédients!$J$3:$N$300,2,0)*P26/100,0) -> 0 | R26: =IFERROR(VLOOKUP(O26,Ingrédients!$J$3:$N$300,3,0)*P26/100,0) -> 0 | S26: =IFERROR(VLOOKUP(O26,Ingrédients!$J$3:$N$300,4,0)*P26/100,0) -> 0 | T26: =IFERROR(VLOOKUP(O26,Ingrédients!$J$3:$N$300,5,0)*P26/100,0) -> 0 | W26: =IFERROR(VLOOKUP(U26,Ingrédients!$J$3:$N$300,2,0)*V26/100,0) -> 0 | X26: =IFERROR(VLOOKUP(U26,Ingrédients!$J$3:$N$300,3,0)*V26/100,0) -> 0 | Y26: =IFERROR(VLOOKUP(U26,Ingrédients!$J$3:$N$300,4,0)*V26/100,0) -> 0 | Z26: =IFERROR(VLOOKUP(U26,Ingrédients!$J$3:$N$300,5,0)*V26/100,0) -> 0 | AC26: =IFERROR(VLOOKUP(AA26,Ingrédients!$J$3:$N$300,2,0)*AB26/100,0) -> 0 | AD26: =IFERROR(VLOOKUP(AA26,Ingrédients!$J$3:$N$300,3,0)*AB26/100,0) -> 0 | AE26: =IFERROR(VLOOKUP(AA26,Ingrédients!$J$3:$N$300,4,0)*AB26/100,0) -> 0 | AF26: =IFERROR(VLOOKUP(AA26,Ingrédients!$J$3:$N$300,5,0)*AB26/100,0) -> 0 | AI26: =IFERROR(VLOOKUP(AG26,Ingrédients!$J$3:$N$300,2,0)*AH26/100,0) -> 0 | AJ26: =IFERROR(VLOOKUP(AG26,Ingrédients!$J$3:$N$300,3,0)*AH26/100,0) -> 0 | AK26: =IFERROR(VLOOKUP(AG26,Ingrédients!$J$3:$N$300,4,0)*AH26/100,0) -> 0 | AL26: =IFERROR(VLOOKUP(AG26,Ingrédients!$J$3:$N$300,5,0)*AH26/100,0) -> 0 | AN26: 100 | AO26: =IFERROR(VLOOKUP(AM26,Ingrédients!$J$3:$N$300,2,0)*AN26/100,0) -> 0 | AP26: =IFERROR(VLOOKUP(AM26,Ingrédients!$J$3:$N$300,3,0)*AN26/100,0) -> 0 | AQ26: =IFERROR(VLOOKUP(AM26,Ingrédients!$J$3:$N$300,4,0)*AN26/100,0) -> 0 | AR26: =IFERROR(VLOOKUP(AM26,Ingrédients!$J$3:$N$300,5,0)*AN26/100,0) -> 0
B27: Légumes | E27: =IFERROR(VLOOKUP(C27,Ingrédients!$P$3:$T$300,2,0)*D27/100,0) -> 0 | F27: =IFERROR(VLOOKUP(C27,Ingrédients!$P$3:$T$300,3,0)*D27/100,0) -> 0 | G27: =IFERROR(VLOOKUP(C27,Ingrédients!$P$3:$T$300,4,0)*D27/100,0) -> 0 | H27: =IFERROR(VLOOKUP(C27,Ingrédients!$P$3:$T$300,5,0)*D27/100,0) -> 0 | I27: Carotte, crue | J27: 50 | K27: =IFERROR(VLOOKUP(I27,Ingrédients!$P$3:$T$300,2,0)*J27/100,0) -> 20.1 | L27: =IFERROR(VLOOKUP(I27,Ingrédients!$P$3:$T$300,3,0)*J27/100,0) -> 0.315 | M27: =IFERROR(VLOOKUP(I27,Ingrédients!$P$3:$T$300,4,0)*J27/100,0) -> 3.795 | N27: =IFERROR(VLOOKUP(I27,Ingrédients!$P$3:$T$300,5,0)*J27/100,0) -> 0 | Q27: =IFERROR(VLOOKUP(O27,Ingrédients!$P$3:$T$300,2,0)*P27/100,0) -> 0 | R27: =IFERROR(VLOOKUP(O27,Ingrédients!$P$3:$T$300,3,0)*P27/100,0) -> 0 | S27: =IFERROR(VLOOKUP(O27,Ingrédients!$P$3:$T$300,4,0)*P27/100,0) -> 0 | T27: =IFERROR(VLOOKUP(O27,Ingrédients!$P$3:$T$300,5,0)*P27/100,0) -> 0 | U27: Concombre, pulpe et peau, cru | V27: 50 | W27: =IFERROR(VLOOKUP(U27,Ingrédients!$P$3:$T$300,2,0)*V27/100,0) -> 7.8 | X27: =IFERROR(VLOOKUP(U27,Ingrédients!$P$3:$T$300,3,0)*V27/100,0) -> 0.32 | Y27: =IFERROR(VLOOKUP(U27,Ingrédients!$P$3:$T$300,4,0)*V27/100,0) -> 1.27 | Z27: =IFERROR(VLOOKUP(U27,Ingrédients!$P$3:$T$300,5,0)*V27/100,0) -> 0.055 | AC27: =IFERROR(VLOOKUP(AA27,Ingrédients!$P$3:$T$300,2,0)*AB27/100,0) -> 0 | AD27: =IFERROR(VLOOKUP(AA27,Ingrédients!$P$3:$T$300,3,0)*AB27/100,0) -> 0 | AE27: =IFERROR(VLOOKUP(AA27,Ingrédients!$P$3:$T$300,4,0)*AB27/100,0) -> 0 | AF27: =IFERROR(VLOOKUP(AA27,Ingrédients!$P$3:$T$300,5,0)*AB27/100,0) -> 0 | AI27: =IFERROR(VLOOKUP(AG27,Ingrédients!$P$3:$T$300,2,0)*AH27/100,0) -> 0 | AJ27: =IFERROR(VLOOKUP(AG27,Ingrédients!$P$3:$T$300,3,0)*AH27/100,0) -> 0 | AK27: =IFERROR(VLOOKUP(AG27,Ingrédients!$P$3:$T$300,4,0)*AH27/100,0) -> 0 | AL27: =IFERROR(VLOOKUP(AG27,Ingrédients!$P$3:$T$300,5,0)*AH27/100,0) -> 0 | AN27: 100 | AO27: =IFERROR(VLOOKUP(AM27,Ingrédients!$P$3:$T$300,2,0)*AN27/100,0) -> 0 | AP27: =IFERROR(VLOOKUP(AM27,Ingrédients!$P$3:$T$300,3,0)*AN27/100,0) -> 0 | AQ27: =IFERROR(VLOOKUP(AM27,Ingrédients!$P$3:$T$300,4,0)*AN27/100,0) -> 0 | AR27: =IFERROR(VLOOKUP(AM27,Ingrédients!$P$3:$T$300,5,0)*AN27/100,0) -> 0
B28: Légumes 2 | E28: =IFERROR(VLOOKUP(C28,Ingrédients!$P$3:$T$300,2,0)*D28/100,0) -> 0 | F28: =IFERROR(VLOOKUP(C28,Ingrédients!$P$3:$T$300,3,0)*D28/100,0) -> 0 | G28: =IFERROR(VLOOKUP(C28,Ingrédients!$P$3:$T$300,4,0)*D28/100,0) -> 0 | H28: =IFERROR(VLOOKUP(C28,Ingrédients!$P$3:$T$300,5,0)*D28/100,0) -> 0 | K28: =IFERROR(VLOOKUP(I28,Ingrédients!$P$3:$T$300,2,0)*J28/100,0) -> 0 | L28: =IFERROR(VLOOKUP(I28,Ingrédients!$P$3:$T$300,3,0)*J28/100,0) -> 0 | M28: =IFERROR(VLOOKUP(I28,Ingrédients!$P$3:$T$300,4,0)*J28/100,0) -> 0 | N28: =IFERROR(VLOOKUP(I28,Ingrédients!$P$3:$T$300,5,0)*J28/100,0) -> 0 | Q28: =IFERROR(VLOOKUP(O28,Ingrédients!$P$3:$T$300,2,0)*P28/100,0) -> 0 | R28: =IFERROR(VLOOKUP(O28,Ingrédients!$P$3:$T$300,3,0)*P28/100,0) -> 0 | S28: =IFERROR(VLOOKUP(O28,Ingrédients!$P$3:$T$300,4,0)*P28/100,0) -> 0 | T28: =IFERROR(VLOOKUP(O28,Ingrédients!$P$3:$T$300,5,0)*P28/100,0) -> 0 | U28: Tomate, crue | V28: 50 | W28: =IFERROR(VLOOKUP(U28,Ingrédients!$P$3:$T$300,2,0)*V28/100,0) -> 9.65 | X28: =IFERROR(VLOOKUP(U28,Ingrédients!$P$3:$T$300,3,0)*V28/100,0) -> 0.43 | Y28: =IFERROR(VLOOKUP(U28,Ingrédients!$P$3:$T$300,4,0)*V28/100,0) -> 1.245 | Z28: =IFERROR(VLOOKUP(U28,Ingrédients!$P$3:$T$300,5,0)*V28/100,0) -> 0.13 | AC28: =IFERROR(VLOOKUP(AA28,Ingrédients!$P$3:$T$300,2,0)*AB28/100,0) -> 0 | AD28: =IFERROR(VLOOKUP(AA28,Ingrédients!$P$3:$T$300,3,0)*AB28/100,0) -> 0 | AE28: =IFERROR(VLOOKUP(AA28,Ingrédients!$P$3:$T$300,4,0)*AB28/100,0) -> 0 | AF28: =IFERROR(VLOOKUP(AA28,Ingrédients!$P$3:$T$300,5,0)*AB28/100,0) -> 0 | AI28: =IFERROR(VLOOKUP(AG28,Ingrédients!$P$3:$T$300,2,0)*AH28/100,0) -> 0 | AJ28: =IFERROR(VLOOKUP(AG28,Ingrédients!$P$3:$T$300,3,0)*AH28/100,0) -> 0 | AK28: =IFERROR(VLOOKUP(AG28,Ingrédients!$P$3:$T$300,4,0)*AH28/100,0) -> 0 | AL28: =IFERROR(VLOOKUP(AG28,Ingrédients!$P$3:$T$300,5,0)*AH28/100,0) -> 0 | AN28: 100 | AO28: =IFERROR(VLOOKUP(AM28,Ingrédients!$P$3:$T$300,2,0)*AN28/100,0) -> 0 | AP28: =IFERROR(VLOOKUP(AM28,Ingrédients!$P$3:$T$300,3,0)*AN28/100,0) -> 0 | AQ28: =IFERROR(VLOOKUP(AM28,Ingrédients!$P$3:$T$300,4,0)*AN28/100,0) -> 0 | AR28: =IFERROR(VLOOKUP(AM28,Ingrédients!$P$3:$T$300,5,0)*AN28/100,0) -> 0
B29: Protéines | E29: =IFERROR(VLOOKUP(C29,Ingrédients!$D$3:$H$300,2,0)*D29/100,0) -> 0 | F29: =IFERROR(VLOOKUP(C29,Ingrédients!$D$3:$H$300,3,0)*D29/100,0) -> 0 | G29: =IFERROR(VLOOKUP(C29,Ingrédients!$D$3:$H$300,4,0)*D29/100,0) -> 0 | H29: =IFERROR(VLOOKUP(C29,Ingrédients!$D$3:$H$300,5,0)*D29/100,0) -> 0 | K29: =IFERROR(VLOOKUP(I29,Ingrédients!$D$3:$H$300,2,0)*J29/100,0) -> 0 | L29: =IFERROR(VLOOKUP(I29,Ingrédients!$D$3:$H$300,3,0)*J29/100,0) -> 0 | M29: =IFERROR(VLOOKUP(I29,Ingrédients!$D$3:$H$300,4,0)*J29/100,0) -> 0 | N29: =IFERROR(VLOOKUP(I29,Ingrédients!$D$3:$H$300,5,0)*J29/100,0) -> 0 | Q29: =IFERROR(VLOOKUP(O29,Ingrédients!$D$3:$H$300,2,0)*P29/100,0) -> 0 | R29: =IFERROR(VLOOKUP(O29,Ingrédients!$D$3:$H$300,3,0)*P29/100,0) -> 0 | S29: =IFERROR(VLOOKUP(O29,Ingrédients!$D$3:$H$300,4,0)*P29/100,0) -> 0 | T29: =IFERROR(VLOOKUP(O29,Ingrédients!$D$3:$H$300,5,0)*P29/100,0) -> 0 | W29: =IFERROR(VLOOKUP(U29,Ingrédients!$D$3:$H$300,2,0)*V29/100,0) -> 0 | X29: =IFERROR(VLOOKUP(U29,Ingrédients!$D$3:$H$300,3,0)*V29/100,0) -> 0 | Y29: =IFERROR(VLOOKUP(U29,Ingrédients!$D$3:$H$300,4,0)*V29/100,0) -> 0 | Z29: =IFERROR(VLOOKUP(U29,Ingrédients!$D$3:$H$300,5,0)*V29/100,0) -> 0 | AC29: =IFERROR(VLOOKUP(AA29,Ingrédients!$D$3:$H$300,2,0)*AB29/100,0) -> 0 | AD29: =IFERROR(VLOOKUP(AA29,Ingrédients!$D$3:$H$300,3,0)*AB29/100,0) -> 0 | AE29: =IFERROR(VLOOKUP(AA29,Ingrédients!$D$3:$H$300,4,0)*AB29/100,0) -> 0 | AF29: =IFERROR(VLOOKUP(AA29,Ingrédients!$D$3:$H$300,5,0)*AB29/100,0) -> 0 | AI29: =IFERROR(VLOOKUP(AG29,Ingrédients!$D$3:$H$300,2,0)*AH29/100,0) -> 0 | AJ29: =IFERROR(VLOOKUP(AG29,Ingrédients!$D$3:$H$300,3,0)*AH29/100,0) -> 0 | AK29: =IFERROR(VLOOKUP(AG29,Ingrédients!$D$3:$H$300,4,0)*AH29/100,0) -> 0 | AL29: =IFERROR(VLOOKUP(AG29,Ingrédients!$D$3:$H$300,5,0)*AH29/100,0) -> 0 | AN29: 100 | AO29: =IFERROR(VLOOKUP(AM29,Ingrédients!$D$3:$H$300,2,0)*AN29/100,0) -> 0 | AP29: =IFERROR(VLOOKUP(AM29,Ingrédients!$D$3:$H$300,3,0)*AN29/100,0) -> 0 | AQ29: =IFERROR(VLOOKUP(AM29,Ingrédients!$D$3:$H$300,4,0)*AN29/100,0) -> 0 | AR29: =IFERROR(VLOOKUP(AM29,Ingrédients!$D$3:$H$300,5,0)*AN29/100,0) -> 0
B30: Fruits | C30: Kiwi, pulpe et graines, cru | D30: 60 | E30: =IFERROR(VLOOKUP(C30,Ingrédients!$V$3:$Z$300,2,0)*D30/100,0) -> 36.3 | F30: =IFERROR(VLOOKUP(C30,Ingrédients!$V$3:$Z$300,3,0)*D30/100,0) -> 0.528 | G30: =IFERROR(VLOOKUP(C30,Ingrédients!$V$3:$Z$300,4,0)*D30/100,0) -> 6.6 | H30: =IFERROR(VLOOKUP(C30,Ingrédients!$V$3:$Z$300,5,0)*D30/100,0) -> 0.36 | K30: =IFERROR(VLOOKUP(I30,Ingrédients!$V$3:$Z$300,2,0)*J30/100,0) -> 0 | L30: =IFERROR(VLOOKUP(I30,Ingrédients!$V$3:$Z$300,3,0)*J30/100,0) -> 0 | M30: =IFERROR(VLOOKUP(I30,Ingrédients!$V$3:$Z$300,4,0)*J30/100,0) -> 0 | N30: =IFERROR(VLOOKUP(I30,Ingrédients!$V$3:$Z$300,5,0)*J30/100,0) -> 0 | O30: Myrtille, crue | P30: 30 | Q30: =IFERROR(VLOOKUP(O30,Ingrédients!$V$3:$Z$300,2,0)*P30/100,0) -> 17.31 | R30: =IFERROR(VLOOKUP(O30,Ingrédients!$V$3:$Z$300,3,0)*P30/100,0) -> 0.261 | S30: =IFERROR(VLOOKUP(O30,Ingrédients!$V$3:$Z$300,4,0)*P30/100,0) -> 3.18 | T30: =IFERROR(VLOOKUP(O30,Ingrédients!$V$3:$Z$300,5,0)*P30/100,0) -> 0.099 | W30: =IFERROR(VLOOKUP(U30,Ingrédients!$V$3:$Z$300,2,0)*V30/100,0) -> 0 | X30: =IFERROR(VLOOKUP(U30,Ingrédients!$V$3:$Z$300,3,0)*V30/100,0) -> 0 | Y30: =IFERROR(VLOOKUP(U30,Ingrédients!$V$3:$Z$300,4,0)*V30/100,0) -> 0 | Z30: =IFERROR(VLOOKUP(U30,Ingrédients!$V$3:$Z$300,5,0)*V30/100,0) -> 0 | AC30: =IFERROR(VLOOKUP(AA30,Ingrédients!$V$3:$Z$300,2,0)*AB30/100,0) -> 0 | AD30: =IFERROR(VLOOKUP(AA30,Ingrédients!$V$3:$Z$300,3,0)*AB30/100,0) -> 0 | AE30: =IFERROR(VLOOKUP(AA30,Ingrédients!$V$3:$Z$300,4,0)*AB30/100,0) -> 0 | AF30: =IFERROR(VLOOKUP(AA30,Ingrédients!$V$3:$Z$300,5,0)*AB30/100,0) -> 0 | AI30: =IFERROR(VLOOKUP(AG30,Ingrédients!$V$3:$Z$300,2,0)*AH30/100,0) -> 0 | AJ30: =IFERROR(VLOOKUP(AG30,Ingrédients!$V$3:$Z$300,3,0)*AH30/100,0) -> 0 | AK30: =IFERROR(VLOOKUP(AG30,Ingrédients!$V$3:$Z$300,4,0)*AH30/100,0) -> 0 | AL30: =IFERROR(VLOOKUP(AG30,Ingrédients!$V$3:$Z$300,5,0)*AH30/100,0) -> 0 | AN30: 100 | AO30: =IFERROR(VLOOKUP(AM30,Ingrédients!$V$3:$Z$300,2,0)*AN30/100,0) -> 0 | AP30: =IFERROR(VLOOKUP(AM30,Ingrédients!$V$3:$Z$300,3,0)*AN30/100,0) -> 0 | AQ30: =IFERROR(VLOOKUP(AM30,Ingrédients!$V$3:$Z$300,4,0)*AN30/100,0) -> 0 | AR30: =IFERROR(VLOOKUP(AM30,Ingrédients!$V$3:$Z$300,5,0)*AN30/100,0) -> 0
B31: Laitage | C31: Yaourt à la grecque, au lait de brebis | D31: 120 | E31: =IFERROR(VLOOKUP(C31,Ingrédients!$AH$3:$AL$300,2,0)*D31/100,0) -> 82.92 | F31: =IFERROR(VLOOKUP(C31,Ingrédients!$AH$3:$AL$300,3,0)*D31/100,0) -> 4.608 | G31: =IFERROR(VLOOKUP(C31,Ingrédients!$AH$3:$AL$300,4,0)*D31/100,0) -> 5.988 | H31: =IFERROR(VLOOKUP(C31,Ingrédients!$AH$3:$AL$300,5,0)*D31/100,0) -> 4.08 | K31: =IFERROR(VLOOKUP(I31,Ingrédients!$AH$3:$AL$300,2,0)*J31/100,0) -> 0 | L31: =IFERROR(VLOOKUP(I31,Ingrédients!$AH$3:$AL$300,3,0)*J31/100,0) -> 0 | M31: =IFERROR(VLOOKUP(I31,Ingrédients!$AH$3:$AL$300,4,0)*J31/100,0) -> 0 | N31: =IFERROR(VLOOKUP(I31,Ingrédients!$AH$3:$AL$300,5,0)*J31/100,0) -> 0 | O31: Tomme ou tome de vache | P31: 20 | Q31: =IFERROR(VLOOKUP(O31,Ingrédients!$AH$3:$AL$300,2,0)*P31/100,0) -> 70 | R31: =IFERROR(VLOOKUP(O31,Ingrédients!$AH$3:$AL$300,3,0)*P31/100,0) -> 4.32 | S31: =IFERROR(VLOOKUP(O31,Ingrédients!$AH$3:$AL$300,4,0)*P31/100,0) -> 0 | T31: =IFERROR(VLOOKUP(O31,Ingrédients!$AH$3:$AL$300,5,0)*P31/100,0) -> 5.88 | W31: =IFERROR(VLOOKUP(U31,Ingrédients!$AH$3:$AL$300,2,0)*V31/100,0) -> 0 | X31: =IFERROR(VLOOKUP(U31,Ingrédients!$AH$3:$AL$300,3,0)*V31/100,0) -> 0 | Y31: =IFERROR(VLOOKUP(U31,Ingrédients!$AH$3:$AL$300,4,0)*V31/100,0) -> 0 | Z31: =IFERROR(VLOOKUP(U31,Ingrédients!$AH$3:$AL$300,5,0)*V31/100,0) -> 0 | AC31: =IFERROR(VLOOKUP(AA31,Ingrédients!$AH$3:$AL$300,2,0)*AB31/100,0) -> 0 | AD31: =IFERROR(VLOOKUP(AA31,Ingrédients!$AH$3:$AL$300,3,0)*AB31/100,0) -> 0 | AE31: =IFERROR(VLOOKUP(AA31,Ingrédients!$AH$3:$AL$300,4,0)*AB31/100,0) -> 0 | AF31: =IFERROR(VLOOKUP(AA31,Ingrédients!$AH$3:$AL$300,5,0)*AB31/100,0) -> 0 | AG31: Yaourt à la grecque, au lait de brebis | AH31: 120 | AI31: =IFERROR(VLOOKUP(AG31,Ingrédients!$AH$3:$AL$300,2,0)*AH31/100,0) -> 82.92 | AJ31: =IFERROR(VLOOKUP(AG31,Ingrédients!$AH$3:$AL$300,3,0)*AH31/100,0) -> 4.608 | AK31: =IFERROR(VLOOKUP(AG31,Ingrédients!$AH$3:$AL$300,4,0)*AH31/100,0) -> 5.988 | AL31: =IFERROR(VLOOKUP(AG31,Ingrédients!$AH$3:$AL$300,5,0)*AH31/100,0) -> 4.08 | AN31: 100 | AO31: =IFERROR(VLOOKUP(AM31,Ingrédients!$AH$3:$AL$300,2,0)*AN31/100,0) -> 0 | AP31: =IFERROR(VLOOKUP(AM31,Ingrédients!$AH$3:$AL$300,3,0)*AN31/100,0) -> 0 | AQ31: =IFERROR(VLOOKUP(AM31,Ingrédients!$AH$3:$AL$300,4,0)*AN31/100,0) -> 0 | AR31: =IFERROR(VLOOKUP(AM31,Ingrédients!$AH$3:$AL$300,5,0)*AN31/100,0) -> 0
B32: Autres | E32: =IFERROR(VLOOKUP(C32,Ingrédients!$AB$3:$AF$300,2,0)*D32/100,0) -> 0 | F32: =IFERROR(VLOOKUP(C32,Ingrédients!$AB$3:$AF$300,3,0)*D32/100,0) -> 0 | G32: =IFERROR(VLOOKUP(C32,Ingrédients!$AB$3:$AF$300,4,0)*D32/100,0) -> 0 | H32: =IFERROR(VLOOKUP(C32,Ingrédients!$AB$3:$AF$300,5,0)*D32/100,0) -> 0 | I32: Houmous | J32: 50 | K32: =IFERROR(VLOOKUP(I32,Ingrédients!$AB$3:$AF$300,2,0)*J32/100,0) -> 0 | L32: =IFERROR(VLOOKUP(I32,Ingrédients!$AB$3:$AF$300,3,0)*J32/100,0) -> 0 | M32: =IFERROR(VLOOKUP(I32,Ingrédients!$AB$3:$AF$300,4,0)*J32/100,0) -> 0 | N32: =IFERROR(VLOOKUP(I32,Ingrédients!$AB$3:$AF$300,5,0)*J32/100,0) -> 0 | Q32: =IFERROR(VLOOKUP(O32,Ingrédients!$AB$3:$AF$300,2,0)*P32/100,0) -> 0 | R32: =IFERROR(VLOOKUP(O32,Ingrédients!$AB$3:$AF$300,3,0)*P32/100,0) -> 0 | S32: =IFERROR(VLOOKUP(O32,Ingrédients!$AB$3:$AF$300,4,0)*P32/100,0) -> 0 | T32: =IFERROR(VLOOKUP(O32,Ingrédients!$AB$3:$AF$300,5,0)*P32/100,0) -> 0 | U32: Houmous | V32: 50 | W32: =IFERROR(VLOOKUP(U32,Ingrédients!$AB$3:$AF$300,2,0)*V32/100,0) -> 0 | X32: =IFERROR(VLOOKUP(U32,Ingrédients!$AB$3:$AF$300,3,0)*V32/100,0) -> 0 | Y32: =IFERROR(VLOOKUP(U32,Ingrédients!$AB$3:$AF$300,4,0)*V32/100,0) -> 0 | Z32: =IFERROR(VLOOKUP(U32,Ingrédients!$AB$3:$AF$300,5,0)*V32/100,0) -> 0 | AA32: Noix, séchée, cerneaux | AB32: 30 | AC32: =IFERROR(VLOOKUP(AA32,Ingrédients!$AB$3:$AF$300,2,0)*AB32/100,0) -> 0 | AD32: =IFERROR(VLOOKUP(AA32,Ingrédients!$AB$3:$AF$300,3,0)*AB32/100,0) -> 3.99 | AE32: =IFERROR(VLOOKUP(AA32,Ingrédients!$AB$3:$AF$300,4,0)*AB32/100,0) -> 2.064 | AF32: =IFERROR(VLOOKUP(AA32,Ingrédients!$AB$3:$AF$300,5,0)*AB32/100,0) -> 20.19 | AG32: Noisette | AH32: 30 | AI32: =IFERROR(VLOOKUP(AG32,Ingrédients!$AB$3:$AF$300,2,0)*AH32/100,0) -> 0 | AJ32: =IFERROR(VLOOKUP(AG32,Ingrédients!$AB$3:$AF$300,3,0)*AH32/100,0) -> 4.32 | AK32: =IFERROR(VLOOKUP(AG32,Ingrédients!$AB$3:$AF$300,4,0)*AH32/100,0) -> 2.148 | AL32: =IFERROR(VLOOKUP(AG32,Ingrédients!$AB$3:$AF$300,5,0)*AH32/100,0) -> 17.07 | AN32: 100 | AO32: =IFERROR(VLOOKUP(AM32,Ingrédients!$AB$3:$AF$300,2,0)*AN32/100,0) -> 0 | AP32: =IFERROR(VLOOKUP(AM32,Ingrédients!$AB$3:$AF$300,3,0)*AN32/100,0) -> 0 | AQ32: =IFERROR(VLOOKUP(AM32,Ingrédients!$AB$3:$AF$300,4,0)*AN32/100,0) -> 0 | AR32: =IFERROR(VLOOKUP(AM32,Ingrédients!$AB$3:$AF$300,5,0)*AN32/100,0) -> 0
B33: TOTAL | D33: =D26+D27+D28+D29+D30+D31+D32 -> 180 | E33: =E26+E27+E28+E29+E30+E31+E32 -> 119.22 | F33: =F26+F27+F28+F29+F30+F31+F32 -> 5.136 | G33: =G26+G27+G28+G29+G30+G31+G32 -> 12.588 | H33: =H26+H27+H28+H29+H30+H31+H32 -> 4.44 | J33: =J26+J27+J28+J29+J30+J31+J32 -> 100 | K33: =K26+K27+K28+K29+K30+K31+K32 -> 20.1 | L33: =L26+L27+L28+L29+L30+L31+L32 -> 0.315 | M33: 3.795 | N33: 0 | P33: =P26+P27+P28+P29+P30+P31+P32 -> 50 | Q33: =Q26+Q27+Q28+Q29+Q30+Q31+Q32 -> 87.31 | R33: =R26+R27+R28+R29+R30+R31+R32 -> 4.581 | S33: 3.18 | T33: 5.979 | V33: =V26+V27+V28+V29+V30+V31+V32 -> 150 | W33: =W26+W27+W28+W29+W30+W31+W32 -> 17.45 | X33: =X26+X27+X28+X29+X30+X31+X32 -> 0.75 | Y33: 2.515 | Z33: 0.185 | AB33: =AB26+AB27+AB28+AB29+AB30+AB31+AB32 -> 30 | AC33: =AC26+AC27+AC28+AC29+AC30+AC31+AC32 -> 0 | AD33: =AD26+AD27+AD28+AD29+AD30+AD31+AD32 -> 3.99 | AE33: 2.064 | AF33: 20.19 | AH33: =AH26+AH27+AH28+AH29+AH30+AH31+AH32 -> 150 | AI33: =AI26+AI27+AI28+AI29+AI30+AI31+AI32 -> 82.92 | AJ33: =AJ26+AJ27+AJ28+AJ29+AJ30+AJ31+AJ32 -> 8.928 | AK33: 8.136 | AL33: 21.15 | AN33: =AN26+AN27+AN28+AN29+AN30+AN31+AN32 -> 700 | AO33: =AO26+AO27+AO28+AO29+AO30+AO31+AO32 -> 0 | AP33: =AP26+AP27+AP28+AP29+AP30+AP31+AP32 -> 0 | AQ33: 0 | AR33: 0
A34: DINER | B34: Féculents | C34: Patate douce, cuite | D34: 100 | E34: =IFERROR(VLOOKUP(C34,Ingrédients!$J$3:$N$300,2,0)*D34/100,0) -> 62.8 | F34: =IFERROR(VLOOKUP(C34,Ingrédients!$J$3:$N$300,3,0)*D34/100,0) -> 1.69 | G34: =IFERROR(VLOOKUP(C34,Ingrédients!$J$3:$N$300,4,0)*D34/100,0) -> 12.2 | H34: =IFERROR(VLOOKUP(C34,Ingrédients!$J$3:$N$300,5,0)*D34/100,0) -> 0.15 | I34: Patate douce, cuite | J34: 100 | K34: =IFERROR(VLOOKUP(I34,Ingrédients!$J$3:$N$300,2,0)*J34/100,0) -> 62.8 | L34: =IFERROR(VLOOKUP(I34,Ingrédients!$J$3:$N$300,3,0)*J34/100,0) -> 1.69 | M34: =IFERROR(VLOOKUP(I34,Ingrédients!$J$3:$N$300,4,0)*J34/100,0) -> 12.2 | N34: =IFERROR(VLOOKUP(I34,Ingrédients!$J$3:$N$300,5,0)*J34/100,0) -> 0.15 | O34: Quinoa, bouilli/cuit à l'eau, non salé | P34: 100 | Q34: =IFERROR(VLOOKUP(O34,Ingrédients!$J$3:$N$300,2,0)*P34/100,0) -> 149 | R34: =IFERROR(VLOOKUP(O34,Ingrédients!$J$3:$N$300,3,0)*P34/100,0) -> 4.66 | S34: =IFERROR(VLOOKUP(O34,Ingrédients!$J$3:$N$300,4,0)*P34/100,0) -> 27.9 | T34: =IFERROR(VLOOKUP(O34,Ingrédients!$J$3:$N$300,5,0)*P34/100,0) -> 1.1 | U34: Boulgour de blé, cuit, non salé | V34: 100 | W34: =IFERROR(VLOOKUP(U34,Ingrédients!$J$3:$N$300,2,0)*V34/100,0) -> 111 | X34: =IFERROR(VLOOKUP(U34,Ingrédients!$J$3:$N$300,3,0)*V34/100,0) -> 3.73 | Y34: =IFERROR(VLOOKUP(U34,Ingrédients!$J$3:$N$300,4,0)*V34/100,0) -> 21.7 | Z34: =IFERROR(VLOOKUP(U34,Ingrédients!$J$3:$N$300,5,0)*V34/100,0) -> 0.5 | AC34: =IFERROR(VLOOKUP(AA34,Ingrédients!$J$3:$N$300,2,0)*AB34/100,0) -> 0 | AD34: =IFERROR(VLOOKUP(AA34,Ingrédients!$J$3:$N$300,3,0)*AB34/100,0) -> 0 | AE34: =IFERROR(VLOOKUP(AA34,Ingrédients!$J$3:$N$300,4,0)*AB34/100,0) -> 0 | AF34: =IFERROR(VLOOKUP(AA34,Ingrédients!$J$3:$N$300,5,0)*AB34/100,0) -> 0 | AG34: Pain complet ou intégral (à la farine T150) | AH34: 100 | AI34: =IFERROR(VLOOKUP(AG34,Ingrédients!$J$3:$N$300,2,0)*AH34/100,0) -> 244 | AJ34: =IFERROR(VLOOKUP(AG34,Ingrédients!$J$3:$N$300,3,0)*AH34/100,0) -> 8.38 | AK34: =IFERROR(VLOOKUP(AG34,Ingrédients!$J$3:$N$300,4,0)*AH34/100,0) -> 44.3 | AL34: =IFERROR(VLOOKUP(AG34,Ingrédients!$J$3:$N$300,5,0)*AH34/100,0) -> 1.8 | AN34: 100 | AO34: =IFERROR(VLOOKUP(AM34,Ingrédients!$J$3:$N$300,2,0)*AN34/100,0) -> 0 | AP34: =IFERROR(VLOOKUP(AM34,Ingrédients!$J$3:$N$300,3,0)*AN34/100,0) -> 0 | AQ34: =IFERROR(VLOOKUP(AM34,Ingrédients!$J$3:$N$300,4,0)*AN34/100,0) -> 0 | AR34: =IFERROR(VLOOKUP(AM34,Ingrédients!$J$3:$N$300,5,0)*AN34/100,0) -> 0
B35: Légumes | C35: Épinard, cru | D35: 200 | E35: =IFERROR(VLOOKUP(C35,Ingrédients!$P$3:$T$300,2,0)*D35/100,0) -> 0 | F35: =IFERROR(VLOOKUP(C35,Ingrédients!$P$3:$T$300,3,0)*D35/100,0) -> 5.24 | G35: =IFERROR(VLOOKUP(C35,Ingrédients!$P$3:$T$300,4,0)*D35/100,0) -> 4.5 | H35: =IFERROR(VLOOKUP(C35,Ingrédients!$P$3:$T$300,5,0)*D35/100,0) -> 1 | I35: Asperge, pelée, crue | J35: 50 | K35: =IFERROR(VLOOKUP(I35,Ingrédients!$P$3:$T$300,2,0)*J35/100,0) -> 0 | L35: =IFERROR(VLOOKUP(I35,Ingrédients!$P$3:$T$300,3,0)*J35/100,0) -> 1.02 | M35: =IFERROR(VLOOKUP(I35,Ingrédients!$P$3:$T$300,4,0)*J35/100,0) -> 1.2 | N35: =IFERROR(VLOOKUP(I35,Ingrédients!$P$3:$T$300,5,0)*J35/100,0) -> 0.105 | O35: Brocoli, cuit | P35: 200 | Q35: =IFERROR(VLOOKUP(O35,Ingrédients!$P$3:$T$300,2,0)*P35/100,0) -> 0 | R35: =IFERROR(VLOOKUP(O35,Ingrédients!$P$3:$T$300,3,0)*P35/100,0) -> 4.2 | S35: =IFERROR(VLOOKUP(O35,Ingrédients!$P$3:$T$300,4,0)*P35/100,0) -> 2.2 | T35: =IFERROR(VLOOKUP(O35,Ingrédients!$P$3:$T$300,5,0)*P35/100,0) -> 1.56 | U35: Champignon de Paris ou champignon de couche, cru | V35: 100 | W35: =IFERROR(VLOOKUP(U35,Ingrédients!$P$3:$T$300,2,0)*V35/100,0) -> 28 | X35: =IFERROR(VLOOKUP(U35,Ingrédients!$P$3:$T$300,3,0)*V35/100,0) -> 2.62 | Y35: =IFERROR(VLOOKUP(U35,Ingrédients!$P$3:$T$300,4,0)*V35/100,0) -> 3.15 | Z35: =IFERROR(VLOOKUP(U35,Ingrédients!$P$3:$T$300,5,0)*V35/100,0) -> 0.36 | AA35: Salade ou chicorée frisée, crue | AB35: 80 | AC35: =IFERROR(VLOOKUP(AA35,Ingrédients!$P$3:$T$300,2,0)*AB35/100,0) -> 0 | AD35: =IFERROR(VLOOKUP(AA35,Ingrédients!$P$3:$T$300,3,0)*AB35/100,0) -> 1.184 | AE35: =IFERROR(VLOOKUP(AA35,Ingrédients!$P$3:$T$300,4,0)*AB35/100,0) -> 1.92 | AF35: =IFERROR(VLOOKUP(AA35,Ingrédients!$P$3:$T$300,5,0)*AB35/100,0) -> 0.2 | AG35: Endive, crue | AH35: 100 | AI35: =IFERROR(VLOOKUP(AG35,Ingrédients!$P$3:$T$300,2,0)*AH35/100,0) -> 20.2 | AJ35: =IFERROR(VLOOKUP(AG35,Ingrédients!$P$3:$T$300,3,0)*AH35/100,0) -> 1.19 | AK35: =IFERROR(VLOOKUP(AG35,Ingrédients!$P$3:$T$300,4,0)*AH35/100,0) -> 2.83 | AL35: =IFERROR(VLOOKUP(AG35,Ingrédients!$P$3:$T$300,5,0)*AH35/100,0) -> 0 | AN35: 100 | AO35: =IFERROR(VLOOKUP(AM35,Ingrédients!$P$3:$T$300,2,0)*AN35/100,0) -> 0 | AP35: =IFERROR(VLOOKUP(AM35,Ingrédients!$P$3:$T$300,3,0)*AN35/100,0) -> 0 | AQ35: =IFERROR(VLOOKUP(AM35,Ingrédients!$P$3:$T$300,4,0)*AN35/100,0) -> 0 | AR35: =IFERROR(VLOOKUP(AM35,Ingrédients!$P$3:$T$300,5,0)*AN35/100,0) -> 0
B36: Légumes 2 | E36: =IFERROR(VLOOKUP(C36,Ingrédients!$P$3:$T$300,2,0)*D36/100,0) -> 0 | F36: =IFERROR(VLOOKUP(C36,Ingrédients!$P$3:$T$300,3,0)*D36/100,0) -> 0 | G36: =IFERROR(VLOOKUP(C36,Ingrédients!$P$3:$T$300,4,0)*D36/100,0) -> 0 | H36: =IFERROR(VLOOKUP(C36,Ingrédients!$P$3:$T$300,5,0)*D36/100,0) -> 0 | K36: =IFERROR(VLOOKUP(I36,Ingrédients!$P$3:$T$300,2,0)*J36/100,0) -> 0 | L36: =IFERROR(VLOOKUP(I36,Ingrédients!$P$3:$T$300,3,0)*J36/100,0) -> 0 | M36: =IFERROR(VLOOKUP(I36,Ingrédients!$P$3:$T$300,4,0)*J36/100,0) -> 0 | N36: =IFERROR(VLOOKUP(I36,Ingrédients!$P$3:$T$300,5,0)*J36/100,0) -> 0 | Q36: =IFERROR(VLOOKUP(O36,Ingrédients!$P$3:$T$300,2,0)*P36/100,0) -> 0 | R36: =IFERROR(VLOOKUP(O36,Ingrédients!$P$3:$T$300,3,0)*P36/100,0) -> 0 | S36: =IFERROR(VLOOKUP(O36,Ingrédients!$P$3:$T$300,4,0)*P36/100,0) -> 0 | T36: =IFERROR(VLOOKUP(O36,Ingrédients!$P$3:$T$300,5,0)*P36/100,0) -> 0 | W36: =IFERROR(VLOOKUP(U36,Ingrédients!$P$3:$T$300,2,0)*V36/100,0) -> 0 | X36: =IFERROR(VLOOKUP(U36,Ingrédients!$P$3:$T$300,3,0)*V36/100,0) -> 0 | Y36: =IFERROR(VLOOKUP(U36,Ingrédients!$P$3:$T$300,4,0)*V36/100,0) -> 0 | Z36: =IFERROR(VLOOKUP(U36,Ingrédients!$P$3:$T$300,5,0)*V36/100,0) -> 0 | AA36: Brocoli, cuit | AB36: 100 | AC36: =IFERROR(VLOOKUP(AA36,Ingrédients!$P$3:$T$300,2,0)*AB36/100,0) -> 0 | AD36: =IFERROR(VLOOKUP(AA36,Ingrédients!$P$3:$T$300,3,0)*AB36/100,0) -> 2.1 | AE36: =IFERROR(VLOOKUP(AA36,Ingrédients!$P$3:$T$300,4,0)*AB36/100,0) -> 1.1 | AF36: =IFERROR(VLOOKUP(AA36,Ingrédients!$P$3:$T$300,5,0)*AB36/100,0) -> 0.78 | AI36: =IFERROR(VLOOKUP(AG36,Ingrédients!$P$3:$T$300,2,0)*AH36/100,0) -> 0 | AJ36: =IFERROR(VLOOKUP(AG36,Ingrédients!$P$3:$T$300,3,0)*AH36/100,0) -> 0 | AK36: =IFERROR(VLOOKUP(AG36,Ingrédients!$P$3:$T$300,4,0)*AH36/100,0) -> 0 | AL36: =IFERROR(VLOOKUP(AG36,Ingrédients!$P$3:$T$300,5,0)*AH36/100,0) -> 0 | AN36: 100 | AO36: =IFERROR(VLOOKUP(AM36,Ingrédients!$P$3:$T$300,2,0)*AN36/100,0) -> 0 | AP36: =IFERROR(VLOOKUP(AM36,Ingrédients!$P$3:$T$300,3,0)*AN36/100,0) -> 0 | AQ36: =IFERROR(VLOOKUP(AM36,Ingrédients!$P$3:$T$300,4,0)*AN36/100,0) -> 0 | AR36: =IFERROR(VLOOKUP(AM36,Ingrédients!$P$3:$T$300,5,0)*AN36/100,0) -> 0
B37: Protéines | C37: Boeuf, steak ou bifteck, grillé | D37: 200 | E37: =IFERROR(VLOOKUP(C37,Ingrédients!$D$3:$H$300,2,0)*D37/100,0) -> 256 | F37: =IFERROR(VLOOKUP(C37,Ingrédients!$D$3:$H$300,3,0)*D37/100,0) -> 55.2 | G37: =IFERROR(VLOOKUP(C37,Ingrédients!$D$3:$H$300,4,0)*D37/100,0) -> 0 | H37: =IFERROR(VLOOKUP(C37,Ingrédients!$D$3:$H$300,5,0)*D37/100,0) -> 3.9 | I37: Saumon, cuit à la vapeur | J37: 150 | K37: =IFERROR(VLOOKUP(I37,Ingrédients!$D$3:$H$300,2,0)*J37/100,0) -> 292.5 | L37: =IFERROR(VLOOKUP(I37,Ingrédients!$D$3:$H$300,3,0)*J37/100,0) -> 34.5 | M37: =IFERROR(VLOOKUP(I37,Ingrédients!$D$3:$H$300,4,0)*J37/100,0) -> 0 | N37: =IFERROR(VLOOKUP(I37,Ingrédients!$D$3:$H$300,5,0)*J37/100,0) -> 17.25 | O37: Poulet, filet, sans peau, sauté/poêlé | P37: 200 | Q37: =IFERROR(VLOOKUP(O37,Ingrédients!$D$3:$H$300,2,0)*P37/100,0) -> 282 | R37: =IFERROR(VLOOKUP(O37,Ingrédients!$D$3:$H$300,3,0)*P37/100,0) -> 60.2 | S37: =IFERROR(VLOOKUP(O37,Ingrédients!$D$3:$H$300,4,0)*P37/100,0) -> 0 | T37: =IFERROR(VLOOKUP(O37,Ingrédients!$D$3:$H$300,5,0)*P37/100,0) -> 4 | U37: Poulet, cuisse, viande, rôti/cuit au four | V37: 150 | W37: =IFERROR(VLOOKUP(U37,Ingrédients!$D$3:$H$300,2,0)*V37/100,0) -> 256.5 | X37: =IFERROR(VLOOKUP(U37,Ingrédients!$D$3:$H$300,3,0)*V37/100,0) -> 37.2 | Y37: =IFERROR(VLOOKUP(U37,Ingrédients!$D$3:$H$300,4,0)*V37/100,0) -> 0 | Z37: =IFERROR(VLOOKUP(U37,Ingrédients!$D$3:$H$300,5,0)*V37/100,0) -> 12.045 | AA37: Dinde, escalope, rôtie/cuite au four | AB37: 150 | AC37: =IFERROR(VLOOKUP(AA37,Ingrédients!$D$3:$H$300,2,0)*AB37/100,0) -> 192 | AD37: =IFERROR(VLOOKUP(AA37,Ingrédients!$D$3:$H$300,3,0)*AB37/100,0) -> 36.9 | AE37: =IFERROR(VLOOKUP(AA37,Ingrédients!$D$3:$H$300,4,0)*AB37/100,0) -> 0.75 | AF37: =IFERROR(VLOOKUP(AA37,Ingrédients!$D$3:$H$300,5,0)*AB37/100,0) -> 4.56 | AG37: Sardine, grillée | AH37: 100 | AI37: =IFERROR(VLOOKUP(AG37,Ingrédients!$D$3:$H$300,2,0)*AH37/100,0) -> 194 | AJ37: =IFERROR(VLOOKUP(AG37,Ingrédients!$D$3:$H$300,3,0)*AH37/100,0) -> 25.1 | AK37: =IFERROR(VLOOKUP(AG37,Ingrédients!$D$3:$H$300,4,0)*AH37/100,0) -> 0 | AL37: =IFERROR(VLOOKUP(AG37,Ingrédients!$D$3:$H$300,5,0)*AH37/100,0) -> 10.4 | AN37: 100 | AO37: =IFERROR(VLOOKUP(AM37,Ingrédients!$D$3:$H$300,2,0)*AN37/100,0) -> 0 | AP37: =IFERROR(VLOOKUP(AM37,Ingrédients!$D$3:$H$300,3,0)*AN37/100,0) -> 0 | AQ37: =IFERROR(VLOOKUP(AM37,Ingrédients!$D$3:$H$300,4,0)*AN37/100,0) -> 0 | AR37: =IFERROR(VLOOKUP(AM37,Ingrédients!$D$3:$H$300,5,0)*AN37/100,0) -> 0
B38: Fruits | E38: =IFERROR(VLOOKUP(C38,Ingrédients!$V$3:$Z$300,2,0)*D38/100,0) -> 0 | F38: =IFERROR(VLOOKUP(C38,Ingrédients!$V$3:$Z$300,3,0)*D38/100,0) -> 0 | G38: =IFERROR(VLOOKUP(C38,Ingrédients!$V$3:$Z$300,4,0)*D38/100,0) -> 0 | H38: =IFERROR(VLOOKUP(C38,Ingrédients!$V$3:$Z$300,5,0)*D38/100,0) -> 0 | K38: =IFERROR(VLOOKUP(I38,Ingrédients!$V$3:$Z$300,2,0)*J38/100,0) -> 0 | L38: =IFERROR(VLOOKUP(I38,Ingrédients!$V$3:$Z$300,3,0)*J38/100,0) -> 0 | M38: =IFERROR(VLOOKUP(I38,Ingrédients!$V$3:$Z$300,4,0)*J38/100,0) -> 0 | N38: =IFERROR(VLOOKUP(I38,Ingrédients!$V$3:$Z$300,5,0)*J38/100,0) -> 0 | Q38: =IFERROR(VLOOKUP(O38,Ingrédients!$V$3:$Z$300,2,0)*P38/100,0) -> 0 | R38: =IFERROR(VLOOKUP(O38,Ingrédients!$V$3:$Z$300,3,0)*P38/100,0) -> 0 | S38: =IFERROR(VLOOKUP(O38,Ingrédients!$V$3:$Z$300,4,0)*P38/100,0) -> 0 | T38: =IFERROR(VLOOKUP(O38,Ingrédients!$V$3:$Z$300,5,0)*P38/100,0) -> 0 | W38: =IFERROR(VLOOKUP(U38,Ingrédients!$V$3:$Z$300,2,0)*V38/100,0) -> 0 | X38: =IFERROR(VLOOKUP(U38,Ingrédients!$V$3:$Z$300,3,0)*V38/100,0) -> 0 | Y38: =IFERROR(VLOOKUP(U38,Ingrédients!$V$3:$Z$300,4,0)*V38/100,0) -> 0 | Z38: =IFERROR(VLOOKUP(U38,Ingrédients!$V$3:$Z$300,5,0)*V38/100,0) -> 0 | AC38: =IFERROR(VLOOKUP(AA38,Ingrédients!$V$3:$Z$300,2,0)*AB38/100,0) -> 0 | AD38: =IFERROR(VLOOKUP(AA38,Ingrédients!$V$3:$Z$300,3,0)*AB38/100,0) -> 0 | AE38: =IFERROR(VLOOKUP(AA38,Ingrédients!$V$3:$Z$300,4,0)*AB38/100,0) -> 0 | AF38: =IFERROR(VLOOKUP(AA38,Ingrédients!$V$3:$Z$300,5,0)*AB38/100,0) -> 0 | AI38: =IFERROR(VLOOKUP(AG38,Ingrédients!$V$3:$Z$300,2,0)*AH38/100,0) -> 0 | AJ38: =IFERROR(VLOOKUP(AG38,Ingrédients!$V$3:$Z$300,3,0)*AH38/100,0) -> 0 | AK38: =IFERROR(VLOOKUP(AG38,Ingrédients!$V$3:$Z$300,4,0)*AH38/100,0) -> 0 | AL38: =IFERROR(VLOOKUP(AG38,Ingrédients!$V$3:$Z$300,5,0)*AH38/100,0) -> 0 | AN38: 100 | AO38: =IFERROR(VLOOKUP(AM38,Ingrédients!$V$3:$Z$300,2,0)*AN38/100,0) -> 0 | AP38: =IFERROR(VLOOKUP(AM38,Ingrédients!$V$3:$Z$300,3,0)*AN38/100,0) -> 0 | AQ38: =IFERROR(VLOOKUP(AM38,Ingrédients!$V$3:$Z$300,4,0)*AN38/100,0) -> 0 | AR38: =IFERROR(VLOOKUP(AM38,Ingrédients!$V$3:$Z$300,5,0)*AN38/100,0) -> 0
B39: Laitage | E39: =IFERROR(VLOOKUP(C39,Ingrédients!$AH$3:$AL$300,2,0)*D39/100,0) -> 0 | F39: =IFERROR(VLOOKUP(C39,Ingrédients!$AH$3:$AL$300,3,0)*D39/100,0) -> 0 | G39: =IFERROR(VLOOKUP(C39,Ingrédients!$AH$3:$AL$300,4,0)*D39/100,0) -> 0 | H39: =IFERROR(VLOOKUP(C39,Ingrédients!$AH$3:$AL$300,5,0)*D39/100,0) -> 0 | K39: =IFERROR(VLOOKUP(I39,Ingrédients!$AH$3:$AL$300,2,0)*J39/100,0) -> 0 | L39: =IFERROR(VLOOKUP(I39,Ingrédients!$AH$3:$AL$300,3,0)*J39/100,0) -> 0 | M39: =IFERROR(VLOOKUP(I39,Ingrédients!$AH$3:$AL$300,4,0)*J39/100,0) -> 0 | N39: =IFERROR(VLOOKUP(I39,Ingrédients!$AH$3:$AL$300,5,0)*J39/100,0) -> 0 | Q39: =IFERROR(VLOOKUP(O39,Ingrédients!$AH$3:$AL$300,2,0)*P39/100,0) -> 0 | R39: =IFERROR(VLOOKUP(O39,Ingrédients!$AH$3:$AL$300,3,0)*P39/100,0) -> 0 | S39: =IFERROR(VLOOKUP(O39,Ingrédients!$AH$3:$AL$300,4,0)*P39/100,0) -> 0 | T39: =IFERROR(VLOOKUP(O39,Ingrédients!$AH$3:$AL$300,5,0)*P39/100,0) -> 0 | W39: =IFERROR(VLOOKUP(U39,Ingrédients!$AH$3:$AL$300,2,0)*V39/100,0) -> 0 | X39: =IFERROR(VLOOKUP(U39,Ingrédients!$AH$3:$AL$300,3,0)*V39/100,0) -> 0 | Y39: =IFERROR(VLOOKUP(U39,Ingrédients!$AH$3:$AL$300,4,0)*V39/100,0) -> 0 | Z39: =IFERROR(VLOOKUP(U39,Ingrédients!$AH$3:$AL$300,5,0)*V39/100,0) -> 0 | AC39: =IFERROR(VLOOKUP(AA39,Ingrédients!$AH$3:$AL$300,2,0)*AB39/100,0) -> 0 | AD39: =IFERROR(VLOOKUP(AA39,Ingrédients!$AH$3:$AL$300,3,0)*AB39/100,0) -> 0 | AE39: =IFERROR(VLOOKUP(AA39,Ingrédients!$AH$3:$AL$300,4,0)*AB39/100,0) -> 0 | AF39: =IFERROR(VLOOKUP(AA39,Ingrédients!$AH$3:$AL$300,5,0)*AB39/100,0) -> 0 | AI39: =IFERROR(VLOOKUP(AG39,Ingrédients!$AH$3:$AL$300,2,0)*AH39/100,0) -> 0 | AJ39: =IFERROR(VLOOKUP(AG39,Ingrédients!$AH$3:$AL$300,3,0)*AH39/100,0) -> 0 | AK39: =IFERROR(VLOOKUP(AG39,Ingrédients!$AH$3:$AL$300,4,0)*AH39/100,0) -> 0 | AL39: =IFERROR(VLOOKUP(AG39,Ingrédients!$AH$3:$AL$300,5,0)*AH39/100,0) -> 0 | AN39: 100 | AO39: =IFERROR(VLOOKUP(AM39,Ingrédients!$AH$3:$AL$300,2,0)*AN39/100,0) -> 0 | AP39: =IFERROR(VLOOKUP(AM39,Ingrédients!$AH$3:$AL$300,3,0)*AN39/100,0) -> 0 | AQ39: =IFERROR(VLOOKUP(AM39,Ingrédients!$AH$3:$AL$300,4,0)*AN39/100,0) -> 0 | AR39: =IFERROR(VLOOKUP(AM39,Ingrédients!$AH$3:$AL$300,5,0)*AN39/100,0) -> 0
B40: Autres | E40: =IFERROR(VLOOKUP(C40,Ingrédients!$AB$3:$AF$300,2,0)*D40/100,0) -> 0 | F40: =IFERROR(VLOOKUP(C40,Ingrédients!$AB$3:$AF$300,3,0)*D40/100,0) -> 0 | G40: =IFERROR(VLOOKUP(C40,Ingrédients!$AB$3:$AF$300,4,0)*D40/100,0) -> 0 | H40: =IFERROR(VLOOKUP(C40,Ingrédients!$AB$3:$AF$300,5,0)*D40/100,0) -> 0 | K40: =IFERROR(VLOOKUP(I40,Ingrédients!$AB$3:$AF$300,2,0)*J40/100,0) -> 0 | L40: =IFERROR(VLOOKUP(I40,Ingrédients!$AB$3:$AF$300,3,0)*J40/100,0) -> 0 | M40: =IFERROR(VLOOKUP(I40,Ingrédients!$AB$3:$AF$300,4,0)*J40/100,0) -> 0 | N40: =IFERROR(VLOOKUP(I40,Ingrédients!$AB$3:$AF$300,5,0)*J40/100,0) -> 0 | Q40: =IFERROR(VLOOKUP(O40,Ingrédients!$AB$3:$AF$300,2,0)*P40/100,0) -> 0 | R40: =IFERROR(VLOOKUP(O40,Ingrédients!$AB$3:$AF$300,3,0)*P40/100,0) -> 0 | S40: =IFERROR(VLOOKUP(O40,Ingrédients!$AB$3:$AF$300,4,0)*P40/100,0) -> 0 | T40: =IFERROR(VLOOKUP(O40,Ingrédients!$AB$3:$AF$300,5,0)*P40/100,0) -> 0 | W40: =IFERROR(VLOOKUP(U40,Ingrédients!$AB$3:$AF$300,2,0)*V40/100,0) -> 0 | X40: =IFERROR(VLOOKUP(U40,Ingrédients!$AB$3:$AF$300,3,0)*V40/100,0) -> 0 | Y40: =IFERROR(VLOOKUP(U40,Ingrédients!$AB$3:$AF$300,4,0)*V40/100,0) -> 0 | Z40: =IFERROR(VLOOKUP(U40,Ingrédients!$AB$3:$AF$300,5,0)*V40/100,0) -> 0 | AC40: =IFERROR(VLOOKUP(AA40,Ingrédients!$AB$3:$AF$300,2,0)*AB40/100,0) -> 0 | AD40: =IFERROR(VLOOKUP(AA40,Ingrédients!$AB$3:$AF$300,3,0)*AB40/100,0) -> 0 | AE40: =IFERROR(VLOOKUP(AA40,Ingrédients!$AB$3:$AF$300,4,0)*AB40/100,0) -> 0 | AF40: =IFERROR(VLOOKUP(AA40,Ingrédients!$AB$3:$AF$300,5,0)*AB40/100,0) -> 0 | AI40: =IFERROR(VLOOKUP(AG40,Ingrédients!$AB$3:$AF$300,2,0)*AH40/100,0) -> 0 | AJ40: =IFERROR(VLOOKUP(AG40,Ingrédients!$AB$3:$AF$300,3,0)*AH40/100,0) -> 0 | AK40: =IFERROR(VLOOKUP(AG40,Ingrédients!$AB$3:$AF$300,4,0)*AH40/100,0) -> 0 | AL40: =IFERROR(VLOOKUP(AG40,Ingrédients!$AB$3:$AF$300,5,0)*AH40/100,0) -> 0 | AN40: 100 | AO40: =IFERROR(VLOOKUP(AM40,Ingrédients!$AB$3:$AF$300,2,0)*AN40/100,0) -> 0 | AP40: =IFERROR(VLOOKUP(AM40,Ingrédients!$AB$3:$AF$300,3,0)*AN40/100,0) -> 0 | AQ40: =IFERROR(VLOOKUP(AM40,Ingrédients!$AB$3:$AF$300,4,0)*AN40/100,0) -> 0 | AR40: =IFERROR(VLOOKUP(AM40,Ingrédients!$AB$3:$AF$300,5,0)*AN40/100,0) -> 0
B41: TOTAL | D41: =D34+D35+D36+D37+D38+D39+D40 -> 500 | E41: =E34+E35+E36+E37+E38+E39+E40 -> 318.8 | F41: =F34+F35+F36+F37+F38+F39+F40 -> 62.13 | G41: =G34+G35+G36+G37+G38+G39+G40 -> 16.7 | H41: =H34+H35+H36+H37+H38+H39+H40 -> 5.05 | J41: =J34+J35+J36+J37+J38+J39+J40 -> 300 | K41: =K34+K35+K36+K37+K38+K39+K40 -> 355.3 | L41: =L34+L35+L36+L37+L38+L39+L40 -> 37.21 | M41: 13.4 | N41: 17.505 | P41: =P34+P35+P36+P37+P38+P39+P40 -> 500 | Q41: =Q34+Q35+Q36+Q37+Q38+Q39+Q40 -> 431 | R41: =R34+R35+R36+R37+R38+R39+R40 -> 69.06 | S41: 30.1 | T41: 6.66 | V41: =V34+V35+V36+V37+V38+V39+V40 -> 350 | W41: =W34+W35+W36+W37+W38+W39+W40 -> 395.5 | X41: =X34+X35+X36+X37+X38+X39+X40 -> 43.55 | Y41: 24.85 | Z41: 12.905 | AB41: =AB34+AB35+AB36+AB37+AB38+AB39+AB40 -> 330 | AC41: =AC34+AC35+AC36+AC37+AC38+AC39+AC40 -> 192 | AD41: =AD34+AD35+AD36+AD37+AD38+AD39+AD40 -> 40.184 | AE41: 3.77 | AF41: 5.54 | AH41: =AH34+AH35+AH36+AH37+AH38+AH39+AH40 -> 300 | AI41: =AI34+AI35+AI36+AI37+AI38+AI39+AI40 -> 458.2 | AJ41: =AJ34+AJ35+AJ36+AJ37+AJ38+AJ39+AJ40 -> 34.67 | AK41: 47.13 | AL41: 12.2 | AN41: =AN34+AN35+AN36+AN37+AN38+AN39+AN40 -> 700 | AO41: =AO34+AO35+AO36+AO37+AO38+AO39+AO40 -> 0 | AP41: =AP34+AP35+AP36+AP37+AP38+AP39+AP40 -> 0 | AQ41: 0 | AR41: 0
A42: TOTAL | D42: =D41+D33+D17+D25+D9 -> 1640 | E42: =E9+E25+E17+E33+E41 -> 1459.2 | F42: =F9+F25+F17+F33+F41 -> 176.451 | G42: 138.83 | H42: 48.5828 | J42: =J41+J33+J17+J25+J9 -> 1420 | K42: =K9+K25+K17+K33+K41 -> 1362.92 | L42: =L9+L25+L17+L33+L41 -> 151.253 | M42: =M9+M25+M17+M33+M41 -> 95.927 | N42: =N9+N25+N17+N33+N41 -> 64.971 | P42: =P41+P33+P17+P25+P9 -> 1300 | Q42: =Q9+Q25+Q17+Q33+Q41 -> 1355.86 | R42: =R9+R25+R17+R33+R41 -> 151.743 | S42: =S9+S25+S17+S33+S41 -> 115.15 | T42: =T9+T25+T17+T33+T41 -> 29.519 | V42: =V41+V33+V17+V25+V9 -> 1010 | W42: =W9+W25+W17+W33+W41 -> 1140.33 | X42: =X9+X25+X17+X33+X41 -> 105.318 | Y42: =Y9+Y25+Y17+Y33+Y41 -> 124.627 | Z42: =Z9+Z25+Z17+Z33+Z41 -> 32.367 | AB42: =AB41+AB33+AB17+AB25+AB9 -> 930 | AC42: =AC9+AC25+AC17+AC33+AC41 -> 635.3 | AD42: =AD9+AD25+AD17+AD33+AD41 -> 94.732 | AE42: =AE9+AE25+AE17+AE33+AE41 -> 37.885 | AF42: =AF9+AF25+AF17+AF33+AF41 -> 55.616 | AH42: =AH41+AH33+AH17+AH25+AH9 -> 970 | AI42: =AI9+AI25+AI17+AI33+AI41 -> 1107.57 | AJ42: =AJ9+AJ25+AJ17+AJ33+AJ41 -> 103.554 | AK42: =AK9+AK25+AK17+AK33+AK41 -> 112.068 | AL42: =AL9+AL25+AL17+AL33+AL41 -> 84.11 | AN42: =AN41+AN33+AN17+AN25+AN9 -> 3500 | AO42: =AO9+AO25+AO17+AO33+AO41 -> 0 | AP42: =AP9+AP25+AP17+AP33+AP41 -> 0 | AQ42: =AQ9+AQ25+AQ17+AQ33+AQ41 -> 0 | AR42: =AR9+AR25+AR17+AR33+AR41 -> 0

Sheet MENUSenforme
B1: MENUS | J1: Précisions
C2: LUNDI | D2: MARDI | E2: MERCREDI | F2: JEUDI | G2: VENDREDI | H2: SAMEDI | I2: DIMANCHE
B3: Petit déjeuner | C3: =CONCATENATE(MENUS!C2," ",MENUS!C3," ",MENUS!C4," ",MENUS!C5," ",MENUS!C6," ",MENUS!C7," ",MENUS!C8) -> Avoine, crue Oeuf, dur Banane, pulpe, crue Fromage blanc nature, 0% MG Amande (avec peau) | D3: =CONCATENATE(MENUS!I2," ",MENUS!I3," ",MENUS!I4," ",MENUS!I5," ",MENUS!I6," ",MENUS!I7," ",MENUS!I8) -> Poivron rouge, cuit Épinard, cru Oeuf, au plat, sans matière grasse | E3: =CONCATENATE(MENUS!O2," ",MENUS!O3," ",MENUS!O4," ",MENUS!O5," ",MENUS!O6," ",MENUS!O7," ",MENUS!O8) -> Avoine, crue Banane, pulpe, crue Lait d'amande | F3: =CONCATENATE(MENUS!U2," ",MENUS!U3," ",MENUS!U4," ",MENUS!U5," ",MENUS!U6," ",MENUS!U7," ",MENUS!U8) -> Avoine, crue Myrtille, crue Amande (avec peau) | G3: =CONCATENATE(MENUS!AA2," ",MENUS!AA3," ",MENUS!AA4," ",MENUS!AA5," ",MENUS!AA6," ",MENUS!AA7," ",MENUS!AA8) -> Omelette aux champignons | H3: =CONCATENATE(MENUS!AG2," ",MENUS!AG3," ",MENUS!AG4," ",MENUS!AG5," ",MENUS!AG6," ",MENUS!AG7," ",MENUS!AG8) -> Avoine, crue Myrtille, crue Amande (avec peau) | I3: =CONCATENATE(MENUS!AM2," ",MENUS!AM3," ",MENUS!AM4," ",MENUS!AM5," ",MENUS!AM6," ",MENUS!AM7," ",MENUS!AM8) -> flocons avoine
B4: Collation | C4: =CONCATENATE(MENUS!C10," ",MENUS!C11," ",MENUS!C12," ",MENUS!C13," ",MENUS!C14," ",MENUS!C15," ",MENUS!C16) -> Amande (avec peau) | D4: =CONCATENATE(MENUS!I10," ",MENUS!I11," ",MENUS!I12," ",MENUS!I13," ",MENUS!I14," ",MENUS!I15," ",MENUS!I16) -> Yaourt à la grecque, au lait de brebis Noix, séchée, cerneaux | E4: =CONCATENATE(MENUS!O10," ",MENUS!O11," ",MENUS!O12," ",MENUS!O13," ",MENUS!O14," ",MENUS!O15," ",MENUS!O16) -> Noix de cajou, grillée, non salée | F4: =CONCATENATE(MENUS!U10," ",MENUS!U11," ",MENUS!U12," ",MENUS!U13," ",MENUS!U14," ",MENUS!U15," ",MENUS!U16) -> Pomme Pink lady, pulpe, crue | G4: =CONCATENATE(MENUS!AA10," ",MENUS!AA11," ",MENUS!AA12," ",MENUS!AA13," ",MENUS!AA14," ",MENUS!AA15," ",MENUS!AA16) -> Yaourt à la grecque, au lait de brebis Amande (avec peau) | H4: =CONCATENATE(MENUS!AG10," ",MENUS!AG11," ",MENUS!AG12," ",MENUS!AG13," ",MENUS!AG14," ",MENUS!AG15," ",MENUS!AG16) -> Noix de pécan | I4: =CONCATENATE(MENUS!AM10," ",MENUS!AM11," ",MENUS!AM12," ",MENUS!AM13," ",MENUS!AM14," ",MENUS!AM15," ",MENUS!AM16) -> 
B5: Déjeuner | C5: =CONCATENATE(MENUS!C18," ",MENUS!C19," ",MENUS!C20," ",MENUS!C21," ",MENUS!C22," ",MENUS!C23," ",MENUS!C24) -> Riz complet, cuit, non salé Brocoli, cuit Haricot vert, cuit Poulet, filet, sans peau, sauté/poêlé | D5: =CONCATENATE(MENUS!I18," ",MENUS!I19," ",MENUS!I20," ",MENUS!I21," ",MENUS!I22," ",MENUS!I23," ",MENUS!I24) -> Quinoa, cru Brocoli, cuit Poulet, filet, sans peau, sauté/poêlé | E5: =CONCATENATE(MENUS!O18," ",MENUS!O19," ",MENUS!O20," ",MENUS!O21," ",MENUS!O22," ",MENUS!O23," ",MENUS!O24) -> Riz basmati, cuit, non salé Haricot vert, cuit Dinde, escalope, sautée/poêlée | F5: =CONCATENATE(MENUS!U18," ",MENUS!U19," ",MENUS!U20," ",MENUS!U21," ",MENUS!U22," ",MENUS!U23," ",MENUS!U24) -> Pain de mie, complet Salade ou chicorée frisée, crue Thon, au naturel, appertisé, égoutté | G5: =CONCATENATE(MENUS!AA18," ",MENUS!AA19," ",MENUS!AA20," ",MENUS!AA21," ",MENUS!AA22," ",MENUS!AA23," ",MENUS!AA24) -> Riz sauvage, cuit, non salé Bette ou blette, cuite Cabillaud, cuit, sans précision (aliment moyen) | H5: =CONCATENATE(MENUS!AG18," ",MENUS!AG19," ",MENUS!AG20," ",MENUS!AG21," ",MENUS!AG22," ",MENUS!AG23," ",MENUS!AG24) -> Patate douce, cuite Courgette, pulpe et peau, cuite Boeuf, steak haché 5% MG, cuit | I5: =CONCATENATE(MENUS!AM18," ",MENUS!AM19," ",MENUS!AM20," ",MENUS!AM21," ",MENUS!AM22," ",MENUS!AM23," ",MENUS!AM24) -> 
B6: Goûter | C6: =CONCATENATE(MENUS!C26," ",MENUS!C27," ",MENUS!C28," ",MENUS!C29," ",MENUS!C30," ",MENUS!C31," ",MENUS!C32) -> Kiwi, pulpe et graines, cru Yaourt à la grecque, au lait de brebis | D6: =CONCATENATE(MENUS!I26," ",MENUS!I27," ",MENUS!I28," ",MENUS!I29," ",MENUS!I30," ",MENUS!I31," ",MENUS!I32) -> Carotte, crue Houmous | E6: =CONCATENATE(MENUS!O26," ",MENUS!O27," ",MENUS!O28," ",MENUS!O29," ",MENUS!O30," ",MENUS!O31," ",MENUS!O32) -> Myrtille, crue Tomme ou tome de vache | F6: =CONCATENATE(MENUS!U26," ",MENUS!U27," ",MENUS!U28," ",MENUS!U29," ",MENUS!U30," ",MENUS!U31," ",MENUS!U32) -> Concombre, pulpe et peau, cru Tomate, crue Houmous | G6: =CONCATENATE(MENUS!AA26," ",MENUS!AA27," ",MENUS!AA28," ",MENUS!AA29," ",MENUS!AA30," ",MENUS!AA31," ",MENUS!AA32) -> Noix, séchée, cerneaux | H6: =CONCATENATE(MENUS!AG26," ",MENUS!AG27," ",MENUS!AG28," ",MENUS!AG29," ",MENUS!AG30," ",MENUS!AG31," ",MENUS!AG32) -> Yaourt à la grecque, au lait de brebis Noisette | I6: =CONCATENATE(MENUS!AM26," ",MENUS!AM27," ",MENUS!AM28," ",MENUS!AM29," ",MENUS!AM30," ",MENUS!AM31," ",MENUS!AM32) -> 
B7: Diner | C7: =CONCATENATE(MENUS!C34," ",MENUS!C35," ",MENUS!C36," ",MENUS!C37," ",MENUS!C38," ",MENUS!C39," ",MENUS!C40) -> Patate douce, cuite Épinard, cru Boeuf, steak ou bifteck, grillé | D7: =CONCATENATE(MENUS!I34," ",MENUS!I35," ",MENUS!I36," ",MENUS!I37," ",MENUS!I38," ",MENUS!I39," ",MENUS!I40) -> Patate douce, cuite Asperge, pelée, crue Saumon, cuit à la vapeur | E7: =CONCATENATE(MENUS!O34," ",MENUS!O35," ",MENUS!O36," ",MENUS!O37," ",MENUS!O38," ",MENUS!O39," ",MENUS!O40) -> Quinoa, bouilli/cuit à l'eau, non salé Brocoli, cuit Poulet, filet, sans peau, sauté/poêlé | F7: =CONCATENATE(MENUS!U34," ",MENUS!U35," ",MENUS!U36," ",MENUS!U37," ",MENUS!U38," ",MENUS!U39," ",MENUS!U40) -> Boulgour de blé, cuit, non salé Champignon de Paris ou champignon de couche, cru Poulet, cuisse, viande, rôti/cuit au four | G7: =CONCATENATE(MENUS!AA34," ",MENUS!AA35," ",MENUS!AA36," ",MENUS!AA37," ",MENUS!AA38," ",MENUS!AA39," ",MENUS!AA40) -> Salade ou chicorée frisée, crue Brocoli, cuit Dinde, escalope, rôtie/cuite au four | H7: =CONCATENATE(MENUS!AG34," ",MENUS!AG35," ",MENUS!AG36," ",MENUS!AG37," ",MENUS!AG38," ",MENUS!AG39," ",MENUS!AG40) -> Pain complet ou intégral (à la farine T150) Endive, crue Sardine, grillée | I7: =CONCATENATE(MENUS!AM34," ",MENUS!AM35," ",MENUS!AM36," ",MENUS!AM37," ",MENUS!AM38," ",MENUS!AM39," ",MENUS!AM40) -> 
B9: COURSES
B10: Féculents | C10: =CONCATENATE(MENUS!C2," ",MENUS!C10," ",MENUS!C18," ",MENUS!C26," ",MENUS!C34) -> Avoine, crue Riz complet, cuit, non salé Patate douce, cuite | D10: =CONCATENATE(MENUS!I2," ",MENUS!I10," ",MENUS!I18," ",MENUS!I26," ",MENUS!I34) -> Quinoa, cru Patate douce, cuite | E10: =CONCATENATE(MENUS!O2," ",MENUS!O10," ",MENUS!O18," ",MENUS!O26," ",MENUS!O34) -> Avoine, crue Riz basmati, cuit, non salé Quinoa, bouilli/cuit à l'eau, non salé | F10: =CONCATENATE(MENUS!U2," ",MENUS!U10," ",MENUS!U18," ",MENUS!U26," ",MENUS!U34) -> Avoine, crue Pain de mie, complet Boulgour de blé, cuit, non salé | G10: =CONCATENATE(MENUS!AA2," ",MENUS!AA10," ",MENUS!AA18," ",MENUS!AA26," ",MENUS!AA34) -> Riz sauvage, cuit, non salé | H10: =CONCATENATE(MENUS!AG2," ",MENUS!AG10," ",MENUS!AG18," ",MENUS!AG26," ",MENUS!AG34) -> Avoine, crue Patate douce, cuite Pain complet ou intégral (à la farine T150) | I10: =CONCATENATE(MENUS!AM2," ",MENUS!AM10," ",MENUS!AM18," ",MENUS!AM26," ",MENUS!AM34) -> flocons avoine
B11: Légumes | C11: =CONCATENATE(MENUS!C3," ",MENUS!C11," ",MENUS!C19," ",MENUS!C27," ",MENUS!C35) -> Brocoli, cuit Épinard, cru | D11: =CONCATENATE(MENUS!I3," ",MENUS!I11," ",MENUS!I19," ",MENUS!I27," ",MENUS!I35) -> Poivron rouge, cuit Brocoli, cuit Carotte, crue Asperge, pelée, crue | E11: =CONCATENATE(MENUS!O3," ",MENUS!O11," ",MENUS!O19," ",MENUS!O27," ",MENUS!O35) -> Haricot vert, cuit Brocoli, cuit | F11: =CONCATENATE(MENUS!U3," ",MENUS!U11," ",MENUS!U19," ",MENUS!U27," ",MENUS!U35) -> Salade ou chicorée frisée, crue Concombre, pulpe et peau, cru Champignon de Paris ou champignon de couche, cru | G11: =CONCATENATE(MENUS!AA3," ",MENUS!AA11," ",MENUS!AA19," ",MENUS!AA27," ",MENUS!AA35) -> Bette ou blette, cuite Salade ou chicorée frisée, crue | H11: =CONCATENATE(MENUS!AG3," ",MENUS!AG11," ",MENUS!AG19," ",MENUS!AG27," ",MENUS!AG35) -> Courgette, pulpe et peau, cuite Endive, crue | I11: =CONCATENATE(MENUS!AM3," ",MENUS!AM11," ",MENUS!AM19," ",MENUS!AM27," ",MENUS!AM35) -> 
B12: Légumes 2 | C12: =CONCATENATE(MENUS!C4," ",MENUS!C12," ",MENUS!C20," ",MENUS!C28," ",MENUS!C36) -> Haricot vert, cuit | D12: =CONCATENATE(MENUS!I4," ",MENUS!I12," ",MENUS!I20," ",MENUS!I28," ",MENUS!I36) -> Épinard, cru | E12: =CONCATENATE(MENUS!O4," ",MENUS!O12," ",MENUS!O20," ",MENUS!O28," ",MENUS!O36) ->  | F12: =CONCATENATE(MENUS!U4," ",MENUS!U12," ",MENUS!U20," ",MENUS!U28," ",MENUS!U36) -> Tomate, crue | G12: =CONCATENATE(MENUS!AA4," ",MENUS!AA12," ",MENUS!AA20," ",MENUS!AA28," ",MENUS!AA36) -> Brocoli, cuit | H12: =CONCATENATE(MENUS!AG4," ",MENUS!AG12," ",MENUS!AG20," ",MENUS!AG28," ",MENUS!AG36) ->  | I12: =CONCATENATE(MENUS!AM4," ",MENUS!AM12," ",MENUS!AM20," ",MENUS!AM28," ",MENUS!AM36) -> 
B13: Protéines | C13: =CONCATENATE(MENUS!C5," ",MENUS!C13," ",MENUS!C21," ",MENUS!C29," ",MENUS!C37) -> Oeuf, dur Poulet, filet, sans peau, sauté/poêlé Boeuf, steak ou bifteck, grillé | D13: =CONCATENATE(MENUS!I5," ",MENUS!I13," ",MENUS!I21," ",MENUS!I29," ",MENUS!I37) -> Oeuf, au plat, sans matière grasse Poulet, filet, sans peau, sauté/poêlé Saumon, cuit à la vapeur | E13: =CONCATENATE(MENUS!O5," ",MENUS!O13," ",MENUS!O21," ",MENUS!O29," ",MENUS!O37) -> Dinde, escalope, sautée/poêlée Poulet, filet, sans peau, sauté/poêlé | F13: =CONCATENATE(MENUS!U5," ",MENUS!U13," ",MENUS!U21," ",MENUS!U29," ",MENUS!U37) -> Thon, au naturel, appertisé, égoutté Poulet, cuisse, viande, rôti/cuit au four | G13: =CONCATENATE(MENUS!AA5," ",MENUS!AA13," ",MENUS!AA21," ",MENUS!AA29," ",MENUS!AA37) -> Omelette aux champignons Cabillaud, cuit, sans précision (aliment moyen) Dinde, escalope, rôtie/cuite au four | H13: =CONCATENATE(MENUS!AG5," ",MENUS!AG13," ",MENUS!AG21," ",MENUS!AG29," ",MENUS!AG37) -> Boeuf, steak haché 5% MG, cuit Sardine, grillée | I13: =CONCATENATE(MENUS!AM5," ",MENUS!AM13," ",MENUS!AM21," ",MENUS!AM29," ",MENUS!AM37) -> 
B14: Fruits | C14: =CONCATENATE(MENUS!C6," ",MENUS!C14," ",MENUS!C22," ",MENUS!C30," ",MENUS!C38) -> Banane, pulpe, crue Kiwi, pulpe et graines, cru | D14: =CONCATENATE(MENUS!I6," ",MENUS!I14," ",MENUS!I22," ",MENUS!I30," ",MENUS!I38) ->  | E14: =CONCATENATE(MENUS!O6," ",MENUS!O14," ",MENUS!O22," ",MENUS!O30," ",MENUS!O38) -> Banane, pulpe, crue Myrtille, crue | F14: =CONCATENATE(MENUS!U6," ",MENUS!U14," ",MENUS!U22," ",MENUS!U30," ",MENUS!U38) -> Myrtille, crue Pomme Pink lady, pulpe, crue | G14: =CONCATENATE(MENUS!AA6," ",MENUS!AA14," ",MENUS!AA22," ",MENUS!AA30," ",MENUS!AA38) ->  | H14: =CONCATENATE(MENUS!AG6," ",MENUS!AG14," ",MENUS!AG22," ",MENUS!AG30," ",MENUS!AG38) -> Myrtille, crue | I14: =CONCATENATE(MENUS!AM6," ",MENUS!AM14," ",MENUS!AM22," ",MENUS!AM30," ",MENUS!AM38) -> 
B15: Laitage | C15: =CONCATENATE(MENUS!C7," ",MENUS!C15," ",MENUS!C23," ",MENUS!C31," ",MENUS!C39) -> Fromage blanc nature, 0% MG Yaourt à la grecque, au lait de brebis | D15: =CONCATENATE(MENUS!I7," ",MENUS!I15," ",MENUS!I23," ",MENUS!I31," ",MENUS!I39) -> Yaourt à la grecque, au lait de brebis | E15: =CONCATENATE(MENUS!O7," ",MENUS!O15," ",MENUS!O23," ",MENUS!O31," ",MENUS!O39) -> Lait d'amande Tomme ou tome de vache | F15: =CONCATENATE(MENUS!U7," ",MENUS!U15," ",MENUS!U23," ",MENUS!U31," ",MENUS!U39) ->  | G15: =CONCATENATE(MENUS!AA7," ",MENUS!AA15," ",MENUS!AA23," ",MENUS!AA31," ",MENUS!AA39) -> Yaourt à la grecque, au lait de brebis | H15: =CONCATENATE(MENUS!AG7," ",MENUS!AG15," ",MENUS!AG23," ",MENUS!AG31," ",MENUS!AG39) -> Yaourt à la grecque, au lait de brebis | I15: =CONCATENATE(MENUS!AM7," ",MENUS!AM15," ",MENUS!AM23," ",MENUS!AM31," ",MENUS!AM39) -> 
B16: Autres | C16: =CONCATENATE(MENUS!C8," ",MENUS!C16," ",MENUS!C24," ",MENUS!C32," ",MENUS!C40) -> Amande (avec peau) Amande (avec peau) | D16: =CONCATENATE(MENUS!I8," ",MENUS!I16," ",MENUS!I24," ",MENUS!I32," ",MENUS!I40) -> Noix, séchée, cerneaux Houmous | E16: =CONCATENATE(MENUS!O8," ",MENUS!O16," ",MENUS!O24," ",MENUS!O32," ",MENUS!O40) -> Noix de cajou, grillée, non salée | F16: =CONCATENATE(MENUS!U8," ",MENUS!U16," ",MENUS!U24," ",MENUS!U32," ",MENUS!U40) -> Amande (avec peau) Houmous | G16: =CONCATENATE(MENUS!AA8," ",MENUS!AA16," ",MENUS!AA24," ",MENUS!AA32," ",MENUS!AA40) -> Amande (avec peau) Noix, séchée, cerneaux | H16: =CONCATENATE(MENUS!AG8," ",MENUS!AG16," ",MENUS!AG24," ",MENUS!AG32," ",MENUS!AG40) -> Amande (avec peau) Noix de pécan Noisette | I16: =CONCATENATE(MENUS!AM8," ",MENUS!AM16," ",MENUS!AM24," ",MENUS!AM32," ",MENUS!AM40) -> 

Sheet Ingrédients
D1: PROTEINES | E1: Pour 100g | J1: FECULENTS | K1: Pour 100g | P1: LEGUMES | Q1: Pour 100g | V1: FRUITS | W1: Pour 100g | AB1: AUTRES | AC1: Pour 100g | AH1: LAITAGE | AI1: Pour 100g
B2: Quantité | D2: Ingrédients | E2: Calories | F2: Protéines | G2: Glucides | H2: Lipides | J2: Ingrédients | K2: Calories | L2: Protéines | M2: Glucides | N2: Lipides | P2: Ingrédients | Q2: Calories | R2: Protéines | S2: Glucides | T2: Lipides | V2: Ingrédients | W2: Calories | X2: Protéines | Y2: Glucides | Z2: Lipides | AB2: Ingrédients | AC2: Calories | AD2: Protéines | AE2: Glucides | AF2: Lipides | AH2: Ingrédients | AI2: Calories | AJ2: Protéines | AK2: Glucides | AL2: Lipides
D3: Agneau, épaule, rôtie/cuite au four | E3: 252 | F3: 30,5 | G3: < 0,1 | H3: 14,5 | J3: Avoine, crue | K3: 378 | L3: 16,9 | M3: 55,7 | N3: 6,9 | P3: Asperge, pelée, crue | Q3: - | R3: 2,04 | S3: 2,4 | T3: 0,21 | V3: Abricot, dénoyauté, cru | W3: 45,9 | X3: 0,81 | Y3: 9,01 | Z3: < 0,5 | AB3: Amande (avec peau) | AC3: - | AD3: 18,8 | AE3: 9,51 | AF3: 51,3 | AH3: Abondance | AI3: 393 | AJ3: 27,1 | AK3: traces | AL3: 31,6
B4: 10 | D4: Boeuf, entrecôte, partie maigre, grillée/poêlée | E4: 198 | F4: 25,5 | G4: < 0,1 | H4: 10,7 | J4: Blé dur précuit, grains entiers, cuit, non salé | K4: 149 | L4: 5,54 | M4: 27,4 | N4: 0,9 | P4: Aubergine, crue | Q4: - | R4: 1,12 | S4: 2,39 | T4: 0,14 | V4: Abricot, dénoyauté, sec | W4: 239 | X4: 2,88 | Y4: 59,1 | Z4: 0,5 | AB4: Amande, grillée, salée | AC4: - | AD4: 21,1 | AE4: 8,72 | AF4: 53,9 | AH4: Beaufort | AI4: 410 | AJ4: 26,5 | AK4: traces | AL4: 34
B5: 20 | D5: Boeuf, faux-filet, rôti/cuit au four | E5: 194 | F5: 28,8 | G5: traces | H5: 8,71 | J5: Boulgour de blé, cuit, non salé | K5: 111 | L5: 3,73 | M5: 21,7 | N5: 0,5 | P5: Aubergine, cuite | Q5: - | R5: 1,33 | S5: 4,17 | T5: 0,28 | V5: Ananas, pulpe, cru | W5: 54,4 | X5: < 0,5 | Y5: 11,7 | Z5: < 0,5 | AB5: Beurre de cacahuète ou Pâte d'arachide | AC5: - | AD5: 22,2 | AE5: 16,1 | AF5: 52,5 | AH5: Cheddar | AI5: 399 | AJ5: 24 | AK5: traces | AL5: 33,8
B6: 30 | D6: Boeuf, gîte à la noix, cuit | E6: 102 | F6: 21 | G6: 0,2 | H6: 1,9 | J6: Épeautre, cru | K6: 344 | L6: 14,6 | M6: 59,5 | N6: 2,43 | P6: Avocat, pulpe, cru | Q6: 205 | R6: 1,56 | S6: 0,83 | T6: 20,6 | V6: Banane, pulpe, crue | W6: 90,5 | X6: 1,06 | Y6: 19,7 | Z6: < 0,5 | AB6: Cacahuète ou Arachide | AC6: - | AD6: 22,8 | AE6: 14,8 | AF6: 49,1 | AH6: Comté | AI6: 418 | AJ6: 27,2 | AK6: traces | AL6: 34,6
B7: 40 | D7: Boeuf, hampe, grillée/poêlée | E7: 174 | F7: 21,6 | G7: traces | H7: 9,76 | J7: Farine d'épeautre (grand épeautre) | K7: 352 | L7: 11,4 | M7: 64 | N7: 3 | P7: Batavia, crue | Q7: 17,9 | R7: 1,25 | S7: 1,78 | T7: < 0,5 | V7: Cerise, dénoyautée, crue | W7: 55,7 | X7: 0,81 | Y7: 13 | Z7: < 0,3 | AB7: Chewing-gum, sans sucre | AC7: 228 | AD7: 0,69 | AE7: 78,1 | AF7: 0,45 | AH7: Crottin de chèvre, au lait cru | AI7: 384 | AJ7: 23,2 | AK7: traces | AL7: 32,6
B8: 50 | D8: Boeuf, onglet, grillé | E8: 171 | F8: 23 | G8: traces | H8: 8,8 | J8: Farine de sarrasin | K8: 348 | L8: 11,5 | M8: 68,4 | N8: 2,19 | P8: Bette ou blette, crue | Q8: 16,4 | R8: 1 | S8: 1,63 | T8: < 0,5 | V8: Citron, pulpe, cru | W8: 27,6 | X8: < 0,5 | Y8: 1,56 | Z8: < 0,5 | AB8: Chia, graine, séchée | AC8: - | AD8: 16,5 | AE8: 7,72 | AF8: 30,7 | AH8: Emmental ou emmenthal | AI8: 373 | AJ8: 27,9 | AK8: traces | AL8: 28,8
B9: 60 | D9: Boeuf, rumsteck, grillé | E9: 123 | F9: 25 | G9: traces | H9: 2,5 | J9: Farine de seigle T130 | K9: 344 | L9: 7,24 | M9: 70,9 | N9: 1,12 | P9: Bette ou blette, cuite | Q9: 14,7 | R9: 0,7 | S9: 1,23 | T9: < 0,5 | V9: Clémentine ou Mandarine, pulpe, crue | W9: 47,3 | X9: 0,81 | Y9: 9,17 | Z9: < 0,5 | AB9: Chocolat noir à moins de 70% de cacao, à croquer, tablette | AC9: - | AD9: 6,63 | AE9: 42,9 | AF9: 33,8 | AH9: Faisselle, 0% MG | AI9: - | AJ9: 4,47 | AK9: 4,44 | AL9: 0
B10: 70 | D10: Boeuf, steak haché 10% MG, cuit | E10: 210 | F10: 26,1 | G10: 0 | H10: 11,8 | J10: Flocon d'avoine | K10: 367 | L10: 13,3 | M10: 57,9 | N10: 6,51 | P10: Betterave rouge, crue | Q10: - | R10: 1,74 | S10: 9,1 | T10: 0,24 | V10: Datte, pulpe et peau, sèche | W10: - | X10: 1,81 | Y10: 64,7 | Z10: 0,25 | AB10: Chocolat noir aux fruits (orange, framboise, poire), tablette | AC10: - | AD10: 6,8 | AE10: 45,3 | AF10: 34,4 | AH10: Faisselle, 6% MG environ | AI10: 84,2 | AJ10: 4,47 | AK10: 3,57 | AL10: 5,5
B11: 80 | D11: Boeuf, steak haché 15% MG, cuit | E11: 239 | F11: 23,6 | G11: 0 | H11: 16,1 | J11: Frik (blé dur immature concassé), cuit, non salé | K11: 76 | L11: 2,04 | M11: 14 | N11: 0,48 | P11: Betterave rouge, cuite | Q11: 42,8 | R11: 1,44 | S11: 7,13 | T11: 0,4 | V11: Figue, crue | W11: 69,4 | X11: 1,19 | Y11: 13,5 | Z11: < 0,5 | AB11: Crème de marrons | AC11: - | AD11: 1,28 | AE11: 55 | AF11: 0,67 | AH11: Fourme d'Ambert | AI11: 326 | AJ11: 19,9 | AK11: traces | AL11: 27,6
B12: 90 | D12: Boeuf, steak haché 5% MG, cuit | E12: 155 | F12: 25,5 | G12: 0 | H12: 5,85 | J12: Graine de couscous (semoule de blé dur précuite), cuite, non salée | K12: 157 | L12: 4,56 | M12: 31 | N12: 1 | P12: Brocoli, cru | Q12: - | R12: 3,95 | S12: 1,7 | T12: 0,48 | V12: Figue, sèche | W12: - | X12: 2,99 | Y12: 54,3 | Z12: 0,87 | AB12: Croissant au beurre, artisanal | AC12: 420 | AD12: 6,61 | AE12: 45,7 | AF12: 22,6 | AH12: Fromage à pâte molle et croûte fleurie (type camembert) | AI12: 359 | AJ12: 17,5 | AK12: traces | AL12: 32,3
B13: 100 | D13: Boeuf, steak ou bifteck, grillé | E13: 128 | F13: 27,6 | G13: traces | H13: 1,95 | J13: Orge perlée, bouilli/cuite à l'eau, non salée | K13: 119 | L13: 2,26 | M13: 24,4 | N13: 0,44 | P13: Brocoli, cuit | Q13: - | R13: 2,1 | S13: 1,1 | T13: 0,78 | V13: Fraise, crue | W13: 38,6 | X13: 0,63 | Y13: 6,03 | Z13: < 0,5 | AB13: Glace ou crème glacée, cône (taille standard) | AC13: - | AD13: 3,51 | AE13: 37,8 | AF13: 13,5 | AH13: Fromage blanc nature, 0% MG | AI13: 49,4 | AJ13: 7,95 | AK13: 3,89 | AL13: 0,044
B14: 110 | D14: Cabillaud, cuit, sans précision (aliment moyen) | E14: 98,9 | F14: 23,1 | G14: 0 | H14: 0,73 | J14: Pain complet ou intégral (à la farine T150) | K14: 244 | L14: 8,38 | M14: 44,3 | N14: 1,8 | P14: Carotte, crue | Q14: 40,2 | R14: 0,63 | S14: 7,59 | T14: < 0,5 | V14: Framboise, crue | W14: 49,2 | X14: 1,19 | Y14: 5,83 | Z14: 0,8 | AB14: Huile d'olive vierge extra | AC14: 900 | AD14: < 0,5 | AE14: 0 | AF14: 99,9 | AH14: Fromage bleu d'Auvergne | AI14: 343 | AJ14: 22,4 | AK14: traces | AL14: 28,4
B15: 120 | D15: Calmar ou calamar ou encornet, cru | E15: 77 | F15: 14,4 | G15: 2,17 | H15: 1,19 | J15: Pain de mie, complet | K15: 262 | L15: 8,51 | M15: 43,7 | N15: 4,06 | P15: Carotte, cuite | Q15: 18,9 | R15: 0,55 | S15: 2,6 | T15: 0,1 | V15: Grenade, pulpe et pépins, crue | W15: 80,6 | X15: 1,44 | Y15: 14,3 | Z15: 1,2 | AB15: Huile de tournesol | AC15: 901 | AD15: < 0,5 | AE15: 0 | AF15: 100 | AH15: Fromage bleu de Bresse | AI15: 342 | AJ15: 17,4 | AK15: traces | AL15: 30,5
B16: 130 | D16: Crevette grise, cuite | E16: 89,9 | F16: 18,3 | G16: 1,47 | H16: 1,2 | J16: Pain pour hamburger ou hot dog (bun), préemballé | K16: 293 | L16: 9,07 | M16: 49,7 | N16: 5,35 | P16: Champignon de Paris ou champignon de couche, cru | Q16: 28 | R16: 2,62 | S16: 3,15 | T16: 0,36 | V16: Groseille, crue | W16: 68,5 | X16: 1,56 | Y16: 7,06 | Z16: 0,7 | AB16: Lin, graine | AC16: - | AD16: 20,2 | AE16: 6,6 | AF16: 36,6 | AH16: Fromage de chèvre lactique affiné, au lait cru (type Crottin de Chavignol, Picodon, Rocamadour, Sainte-Maure de Touraine) | AI16: 324 | AJ16: 20,7 | AK16: traces | AL16: 27
B17: 140 | D17: Dinde, escalope viennoise ou milanaise ou escalope panée | E17: 211 | F17: 14,1 | G17: 13,5 | H17: 10,9 | J17: Pâtes fraîches, aux oeufs, cuites, non salées | K17: 168 | L17: 5,76 | M17: 32 | N17: 1,3 | P17: Champignon, tout type, cru | Q17: 21,7 | R17: 2,37 | S17: 1,88 | T17: 0,23 | V17: Kiwi, pulpe et graines, cru | W17: 60,5 | X17: 0,88 | Y17: 11 | Z17: 0,6 | AB17: Miel | AC17: - | AD17: 0,56 | AE17: 81,7 | AF17: 0 | AH17: Gorgonzola | AI17: 312 | AJ17: 19 | AK17: traces | AL17: 26,4
B18: 150 | D18: Dinde, escalope, rôtie/cuite au four | E18: 128 | F18: 24,6 | G18: 0,5 | H18: 3,04 | J18: Pâtes sèches standard, cuites, non salées | K18: 126 | L18: 3,99 | M18: 25 | N18: 0,55 | P18: Chou de Bruxelles, cru | Q18: - | R18: 3,98 | S18: 5,67 | T18: 0,4 | V18: Mangue, pulpe, crue | W18: 73,9 | X18: 0,63 | Y18: 14,3 | Z18: < 0,5 | AB18: Noisette | AC18: - | AD18: 14,4 | AE18: 7,16 | AF18: 56,9 | AH18: Lait de brebis, entier | AI18: 103 | AJ18: 5,68 | AK18: 4,5 | AL18: 6,97
B19: 160 | D19: Dinde, escalope, sautée/poêlée | E19: 124 | F19: 28,5 | G19: 0 | H19: 1,09 | J19: Quinoa, bouilli/cuit à l'eau, non salé | K19: 149 | L19: 4,66 | M19: 27,9 | N19: 1,1 | P19: Chou rouge, cru | Q19: 30 | R19: 1,13 | S19: 4,33 | T19: < 0,5 | V19: Melon cantaloup (par ex.: Charentais, de Cavaillon) pulpe, cru | W19: 62,7 | X19: 1,13 | Y19: 14,8 | Z19: < 0,5 | AB19: Noix de cajou, grillée, non salée | AC19: 618 | AD19: 17,4 | AE19: 21,3 | AF19: 48,1 | AH19: Lait demi-écrémé, UHT | AI19: 47 | AJ19: 3,38 | AK19: 4,83 | AL19: 1,55
B20: 170 | D20: Maquereau, au naturel, appertisé, égoutté | E20: 189 | F20: 21,6 | G20: 0 | H20: 11,4 | J20: Quinoa, cru | K20: 358 | L20: 13,2 | M20: 58,1 | N20: 6,07 | P20: Chou-fleur, cru | Q20: 26,2 | R20: 1,81 | S20: 2,13 | T20: 0,7 | V20: Mirabelle, crue | W20: 76,9 | X20: 0,63 | Y20: 18 | Z20: < 0,5 | AB20: Noix de macadamia | AC20: - | AD20: 7,91 | AE20: 5,22 | AF20: 75,8 | AH20: Lait entier, UHT | AI20: 65,1 | AJ20: 3,32 | AK20: 4,85 | AL20: 3,63
B21: 180 | D21: Maquereau, filet sauce moutarde, appertisé, égoutté | E21: 217 | F21: 20,8 | G21: 1,09 | H21: 14,2 | J21: Riz basmati, cuit, non salé | K21: 117 | L21: 2,74 | M21: 24,4 | N21: 0,6 | P21: Concombre, pulpe et peau, cru | Q21: 15,6 | R21: 0,64 | S21: 2,54 | T21: 0,11 | V21: Mûre (de ronce), crue | W21: 47,3 | X21: 1,13 | Y21: 6,53 | Z21: 0,7 | AB21: Noix de pécan | AC21: - | AD21: 9,57 | AE21: 5,43 | AF21: 72,6 | AH21: Mascarpone | AI21: - | AJ21: 4,38 | AK21: 4 | AL21: 39
B22: 190 | D22: Maquereau, rôti/cuit au four | E22: 228 | F22: 21,5 | G22: traces | H22: 15,8 | J22: Riz blanc, cuit, non salé | K22: 145 | L22: 2,92 | M22: 31,8 | N22: 0,41 | P22: courgette | V22: Myrtille, crue | W22: 57,7 | X22: 0,87 | Y22: 10,6 | Z22: 0,33 | AB22: Noix du Brésil | AC22: - | AD22: 14,8 | AE22: 6,17 | AF22: 66,1 | AH22: Mozzarella au lait de bufflonne ou buflesse ("di bufala") | AI22: 260 | AJ22: 14,5 | AK22: 0,24 | AL22: 22,3
B23: 200 | D23: Merguez, pur boeuf, crue | E23: - | F23: 11 | G23: - | H23: 43,5 | J23: Riz complet, cuit, non salé | K23: 158 | L23: 3,21 | M23: 32,6 | N23: 1 | P23: Courgette, pulpe et peau, crue | Q23: 16,5 | R23: 1,23 | S23: 1,8 | T23: 0,26 | V23: Nectarine ou brugnon, blanche, pulpe et peau, crue | W23: 51,8 | X23: 0,81 | Y23: 11,4 | Z23: < 0,5 | AB23: Noix, séchée, cerneaux | AC23: - | AD23: 13,3 | AE23: 6,88 | AF23: 67,3 | AH23: Mozzarella au lait de vache | AI23: 227 | AJ23: 16,5 | AK23: 0,75 | AL23: 17,7
B24: 210 | D24: Oeuf, au plat, frit, salé | E24: 204 | F24: 14,3 | G24: 0,74 | H24: 16 | J24: Riz sauvage, cuit, non salé | K24: 102 | L24: 3,8 | M24: 19,7 | N24: 0,34 | P24: Courgette, pulpe et peau, cuite | Q24: 15,5 | R24: 0,93 | S24: 1,4 | T24: 0,36 | V24: Nectarine ou brugnon, jaune, pulpe et peau, crue | W24: 51,3 | X24: 0,69 | Y24: 11,3 | Z24: < 0,5 | AB24: Pain au chocolat feuilleté, artisanal | AC24: 423 | AD24: 7,47 | AE24: 45,4 | AF24: 22,5 | AH24: Ossau-Iraty | AI24: 428 | AJ24: 24,2 | AK24: traces | AL24: 37
B25: 220 | D25: Oeuf, au plat, sans matière grasse | E25: 147 | F25: 13,8 | G25: 1,01 | H25: 9,72 | J25: Riz thaï, cuit, non salé | K25: 143 | L25: 2,92 | M25: 30,5 | N25: 0,7 | P25: Échalote, crue | Q25: 63,6 | R25: 1,81 | S25: 12,2 | T25: < 0,5 | V25: Nectarine ou brugnon, pulpe et peau, crue | W25: - | X25: 1,16 | Y25: 8,9 | Z25: 0,31 | AB25: Pignon de pin | AC25: - | AD25: 13,7 | AE25: 6,31 | AF25: 65 | AH25: Parmesan | AI25: 406 | AJ25: 31,1 | AK25: traces | AL25: 31
B26: 230 | D26: Oeuf, blanc (blanc d'oeuf), cuit | E26: 47,3 | F26: 10,3 | G26: 1,12 | H26: 0,17 | J26: Tortilla souple (à garnir), à base de blé | K26: 327 | L26: 8,34 | M26: 52,1 | N26: 8,2 | P26: Endive, crue | Q26: 20,2 | R26: 1,19 | S26: 2,83 | T26: < 0,5 | V26: Orange, pulpe, crue | W26: 45,5 | X26: 0,75 | Y26: 8,03 | Z26: < 0,5 | AB26: Pistache, grillée, salée | AC26: - | AD26: 18,9 | AE26: 15,9 | AF26: 49,5 | AH26: Ricotta | AI26: - | AJ26: 8,79 | AK26: 4 | AL26: 11,9
B27: 240 | D27: Oeuf, brouillé, avec matière grasse | E27: 145 | F27: 9,99 | G27: 1,62 | H27: 11 | J27: Patate douce, crue | K27: 86,3 | L27: 1,51 | M27: 18,3 | N27: 0,15 | P27: Épinard, cru | Q27: - | R27: 2,62 | S27: 2,25 | T27: 0,5 | V27: Pastèque, pulpe, crue | W27: 38,9 | X27: 0,69 | Y27: 8,33 | Z27: < 0,5 | AB27: Sésame, graine | AC27: - | AD27: 17,6 | AE27: 9,85 | AF27: 49,7 | AH27: Roquefort | AI27: 384 | AJ27: 19,5 | AK27: traces | AL27: 33,9
B28: 250 | D28: Oeuf, dur | E28: 134 | F28: 13,5 | G28: 0,52 | H28: 8,62 | J28: Patate douce, cuite | K28: 62,8 | L28: 1,69 | M28: 12,2 | N28: 0,15 | P28: Fondue de poireau | Q28: - | R28: 1,1 | S28: 0 | T28: 5,2 | V28: Pêche, pulpe et peau, crue | W28: - | X28: 1,08 | Y28: 9 | Z28: 0,33 | AB28: Sésame, graine décortiquée | AC28: - | AD28: 21,1 | AE28: 4,5 | AF28: 56,1 | AH28: Saint-Nectaire, fermier | AI28: 355 | AJ28: 22,3 | AK28: traces | AL28: 29,8
B29: 260 | D29: Oeuf, jaune (jaune d'oeuf), cuit | E29: 340 | F29: 16 | G29: 1,31 | H29: 30,1 | P29: Haricot blanc, bouilli/cuit à l'eau | Q29: 112 | R29: 6,75 | S29: 12 | T29: 1,1 | V29: Poire, pulpe et peau, crue | W29: - | X29: 0,49 | Y29: 10,9 | Z29: 0,27 | AB29: Sirop d'érable | AC29: - | AD29: 0,04 | AE29: 67,1 | AF29: 0,06 | AH29: skyr
B30: 270 | D30: Oeuf, poché | E30: 138 | F30: 12,5 | G30: 0,71 | H30: 9,47 | P30: Haricot rouge, bouilli/cuit à l'eau | Q30: 116 | R30: 9,63 | S30: 12,3 | T30: 0,6 | V30: Pomme Pink lady, pulpe, crue | W30: 60,1 | X30: < 0,5 | Y30: 12,8 | Z30: < 0,5 | AB30: Spéculoos | AC30: - | AD30: 5,94 | AE30: 69 | AF30: 19,7 | AH30: Tomme ou tome de vache | AI30: 350 | AJ30: 21,6 | AK30: traces | AL30: 29,4
B31: 280 | D31: Omelette aux champignons | E31: 125 | F31: 8,09 | G31: 2,28 | H31: 9,2 | P31: Haricot vert, cru | Q31: - | R31: 1,85 | S31: 4,14 | T31: 0,21 | V31: Pomme, pulpe et peau, crue | W31: - | X31: 0,25 | Y31: 11,6 | Z31: 0,25 | AB31: Tournesol, graine | AC31: - | AD31: 21,3 | AE31: 10,1 | AF31: 55,5 | AH31: Yaourt à la grecque, au lait de brebis | AI31: 69,1 | AJ31: 3,84 | AK31: 4,99 | AL31: 3,4
B32: 290 | D32: Poulet, cuisse, viande et peau, rôtie/cuite au four | E32: 213 | F32: 25,9 | G32: 2 | H32: 11,3 | P32: Haricot vert, cuit | Q32: 29,4 | R32: 2 | S32: 3 | T32: 0,17 | V32: Pomme, pulpe, crue | W32: - | X32: 0,27 | Y32: 10,7 | Z32: 0,13 | AB32: Houmous | AH32: Yaourt au lait de brebis, nature, 3% MG environ | AI32: - | AJ32: 5,72 | AK32: 4,6 | AL32: 3
B33: 300 | D33: Poulet, cuisse, viande, rôti/cuit au four | E33: 171 | F33: 24,8 | G33: 0 | H33: 8,03 | P33: Haricot vert, surgelé, cru | Q33: 34 | R33: 1,97 | S33: 4,35 | T33: 0,17 | V33: Prune Reine-Claude, crue | W33: 71,3 | X33: 0,94 | Y33: 16,4 | Z33: < 0,5 | AH33: Yaourt au lait de chèvre, nature, 5% MG environ | AI33: 73,4 | AJ33: 4,15 | AK33: 1,12 | AL33: 5,2
D34: Poulet, escalope panée | E34: 339 | F34: 7,25 | G34: 21,7 | H34: 24 | P34: Lentille blonde, bouillie/cuite à l'eau | Q34: - | R34: 9,7 | S34: 16,3 | T34: 0,7 | V34: Pruneau, sec | W34: 229 | X34: 1,63 | Y34: 55,4 | Z34: 0,4 | AH34: Lait d'amande
D35: Poulet, filet, sans peau, sauté/poêlé | E35: 141 | F35: 30,1 | G35: 0 | H35: 2 | P35: Lentille corail, bouillie/cuite à l'eau | Q35: - | R35: 10,6 | S35: 15 | T35: 0,5 | V35: Raisin blanc, à gros grain (type Italia ou Dattier), cru | W35: 73,4 | X35: 0,75 | Y35: 16,6 | Z35: < 0,5 | AH35: Lait de coco
D36: Poulet, viande et peau, rôti/cuit au four | E36: 213 | F36: 28,9 | G36: 2,1 | H36: 9,88 | P36: Lentille verte, bouillie/cuite à l'eau | Q36: 127 | R36: 10,1 | S36: 16,2 | T36: 0,58 | V36: Raisin noir, cru | W36: - | X36: 0,63 | Y36: 15,6 | Z36: 0,4 | AH36: Lait d'avoine
D37: Sardine, à l'huile d'olive, appertisée, égouttée | E37: 202 | F37: 24,3 | G37: 1,06 | H37: 11,2 | P37: Lentille, bouillie/cuite à l'eau | Q37: - | R37: 9,02 | S37: 12,2 | T37: 0,38
D38: Sardine, grillée | E38: 194 | F38: 25,1 | G38: traces | H38: 10,4 | P38: Mâche, crue | Q38: 16,8 | R38: 2 | S38: 0,5 | T38: < 0,5
D39: Saumon fumé | E39: 178 | F39: 22 | G39: 0,91 | H39: 9,49 | P39: Oignon, cru | Q39: - | R39: 1,1 | S39: 6,25 | T39: 0,62
D40: Saumon, cuit à la vapeur | E40: 195 | F40: 23 | G40: traces | H40: 11,5 | P40: Patate douce, crue | Q40: 86,3 | R40: 1,51 | S40: 18,3 | T40: 0,15
D41: Thon à l'huile de tournesol, entier, appertisé, égoutté | E41: 206 | F41: 23,3 | G41: 0,76 | H41: 12,2 | P41: Patate douce, cuite | Q41: 62,8 | R41: 1,69 | S41: 12,2 | T41: 0,15
D42: Thon, au naturel, appertisé, égoutté | E42: 111 | F42: 26,8 | G42: 0 | H42: 0,4 | P42: Petits pois, crus | Q42: - | R42: 5,84 | S42: 7 | T42: 0,55
D43: Truite, cuite à la vapeur | E43: 99,4 | F43: 19 | G43: traces | H43: 2,6 | P43: Poireau, cru | Q43: 32,3 | R43: 1,49 | S43: 4,9 | T43: 0,25
D44: Truite, rôtie/cuite au four | E44: 183 | F44: 26,6 | G44: traces | H44: 8,47 | P44: Pois chiche, appertisé, égoutté | Q44: - | R44: 6,74 | S44: 15 | T44: 2,68
D45: Veau, escalope, cuite | E45: 147 | F45: 31 | G45: traces | H45: 2,5 | P45: Poivron rouge, cru | Q45: 36,6 | R45: 1,06 | S45: 5,98 | T45: < 0,5
D46: Veau, noix, grillée/poêlée | E46: 147 | F46: 29,1 | G46: traces | H46: 3,44 | P46: Poivron rouge, cuit | Q46: - | R46: 1,4 | S46: 7 | T46: 0,3
D47: Viande blanche, cuite (aliment moyen) | E47: 173 | F47: 28,1 | G47: 0,26 | H47: 6,55 | P47: Poivron vert, cru | Q47: 26 | R47: 0,81 | S47: 3,43 | T47: < 0,5
D48: Viande rouge, cuite (aliment moyen) | E48: 195 | F48: 26 | G48: 0,027 | H48: 10,1 | P48: Poivron, vert, jaune ou rouge, cru | Q48: - | R48: 0,8 | S48: 4,55 | T48: 0,27
P49: Pomme de terre nouvelle, bouillie/cuite à l'eau | Q49: - | R49: 1,44 | S49: - | T49: 0,3
P50: Pomme de terre, bouillie/cuite à l'eau | Q50: 80,5 | R50: 1,8 | S50: 16,7 | T50: 0,34
P51: Pomme de terre, sans peau, rôtie/cuite au four | Q51: 91,9 | R51: 1,96 | S51: 20,1 | T51: 0,1
P52: Potiron, cru | Q52: - | R52: 1 | S52: 3,5 | T52: 0,1
P53: Potiron, cuit | Q53: - | R53: 0,81 | S53: 4,5 | T53: 0,07
P54: Radis rouge, cru | Q54: 14,5 | R54: 0,94 | S54: 1,53 | T54: < 0,5
P55: Salade ou chicorée frisée, crue | Q55: - | R55: 1,48 | S55: 2,4 | T55: 0,25
P56: Tomate, crue | Q56: 19,3 | R56: 0,86 | S56: 2,49 | T56: 0,26

Sheet Table ciqual 2020
A1: alim_grp_code | B1: alim_ssgrp_code | C1: alim_ssssgrp_code | D1: alim_grp_nom_fr | E1: alim_ssgrp_nom_fr | F1: alim_ssssgrp_nom_fr | G1: alim_code | H1: alim_nom_fr | I1: alim_nom_sci | J1: Energie, Règlement UE N° 1169/2011 (kJ/100 g) | K1: Energie, Règlement UE N° 1169/2011 (kcal/100 g) | L1: Energie, N x facteur Jones, avec fibres (kJ/100 g) | M1: Energie, N x facteur Jones, avec fibres (kcal/100 g) | N1: Eau (g/100 g) | O1: Protéines, N x facteur de Jones (g/100 g) | P1: Protéines, N x 6.25 (g/100 g) | Q1: Glucides (g/100 g) | R1: Lipides (g/100 g) | S1: Sucres (g/100 g) | T1: Fructose (g/100 g) | U1: Galactose (g/100 g) | V1: Glucose (g/100 g) | W1: Lactose (g/100 g) | X1: Maltose (g/100 g) | Y1: Saccharose (g/100 g) | Z1: Amidon (g/100 g) | AA1: Fibres alimentaires (g/100 g) | AB1: Polyols totaux (g/100 g) | AC1: Cendres (g/100 g) | AD1: Alcool (g/100 g) | AE1: Acides organiques (g/100 g) | AF1: AG saturés (g/100 g) | AG1: AG monoinsaturés (g/100 g) | AH1: AG polyinsaturés (g/100 g) | AI1: AG 4:0, butyrique (g/100 g) | AJ1: AG 6:0, caproïque (g/100 g) | AK1: AG 8:0, caprylique (g/100 g) | AL1: AG 10:0, caprique (g/100 g) | AM1: AG 12:0, laurique (g/100 g) | AN1: AG 14:0, myristique (g/100 g) | AO1: AG 16:0, palmitique (g/100 g) | AP1: AG 18:0, stéarique (g/100 g) | AQ1: AG 18:1 9c (n-9), oléique (g/100 g) | AR1: AG 18:2 9c,12c (n-6), linoléique (g/100 g) | AS1: AG 18:3 c9,c12,c15 (n-3), alpha-linolénique (g/100 g) | AT1: AG 20:4 5c,8c,11c,14c (n-6), arachidonique (g/100 g) | AU1: AG 20:5 5c,8c,11c,14c,17c (n-3) EPA (g/100 g) | AV1: AG 22:6 4c,7c,10c,13c,16c,19c (n-3) DHA (g/100 g) | AW1: Cholestérol (mg/100 g) | AX1: Sel chlorure de sodium (g/100 g) | AY1: Calcium (mg/100 g) | AZ1: Chlorure (mg/100 g) | BA1: Cuivre (mg/100 g) | BB1: Fer (mg/100 g) | BC1: Iode (µg/100 g) | BD1: Magnésium (mg/100 g) | BE1: Manganèse (mg/100 g) | BF1: Phosphore (mg/100 g) | BG1: Potassium (mg/100 g) | BH1: Sélénium (µg/100 g) | BI1: Sodium (mg/100 g) | BJ1: Zinc (mg/100 g) | BK1: Rétinol (µg/100 g) | BL1: Beta-Carotène (µg/100 g) | BM1: Vitamine D (µg/100 g) | BN1: Vitamine E (mg/100 g) | BO1: Vitamine K1 (µg/100 g) | BP1: Vitamine K2 (µg/100 g) | BQ1: Vitamine C (mg/100 g) | BR1: Vitamine B1 ou Thiamine (mg/100 g) | BS1: Vitamine B2 ou Riboflavine (mg/100 g) | BT1: Vitamine B3 ou PP ou Niacine (mg/100 g) | BU1: Vitamine B5 ou Acide pantothénique (mg/100 g) | BV1: Vitamine B6 (mg/100 g) | BW1: Vitamine B9 ou Folates totaux (µg/100 g) | BX1: Vitamine B12 (µg/100 g)
A2: 00 | B2: 0000 | C2: 000000 | G2: 24999 | H2: Dessert (aliment moyen) | N2: 45,4 | O2: 4,63 | P2: 4,61 | Q2: 36,6 | R2: 12,9 | S2: 23,7 | T2: 1,81 | V2: 2,18 | W2: 1,89 | X2: 1,07 | Y2: 15,7 | Z2: 9,53 | AA2: 1,54 | AC2: 0,92 | AD2: 0,081 | AE2: 0,083 | AF2: 5,18 | AG2: 4,74 | AH2: 1,68 | AI2: 0,14 | AJ2: 0,19 | AK2: 0,083 | AL2: 0,14 | AM2: 0,35 | AN2: 0,55 | AO2: 2,47 | AP2: 0,99 | AQ2: 4,62 | AR2: 1,32 | AS2: 0,37 | AT2: 0,012 | AU2: 0,0041 | AV2: 0,0051 | AW2: 56,7 | AX2: 0,38 | AY2: 75 | AZ2: 178 | BA2: 0,15 | BB2: 1,45 | BC2: 11 | BD2: 23,8 | BE2: 0,23 | BF2: 107 | BG2: 181 | BH2: 7,04 | BI2: 153 | BJ2: 0,5 | BK2: 56,3 | BL2: 34,6 | BM2: 0,27 | BN2: 1,97 | BQ2: 1,37 | BR2: 0,084 | BS2: 0,15 | BT2: 0,61 | BU2: 0,4 | BV2: 0,056 | BW2: 30,8 | BX2: 0,21
A3: 01 | B3: 0101 | C3: 000000 | D3: entrées et plats composés | E3: salades composées et crudités | F3: - | G3: 25601 | H3: Salade de thon et légumes, appertisée | J3: - | K3: - | L3: - | M3: - | N3: 76,5 | O3: 9,15 | P3: 9,15 | Q3: 7,74 | R3: 4,7 | S3: 3,08 | T3: 0,82 | U3: - | V3: 0,78 | W3: - | X3: < 0,3 | Y3: 0,97 | Z3: 4,1 | AA3: 2,7 | AB3: - | AC3: 1,79 | AD3: 0 | AE3: - | AF3: 0,56 | AG3: 1,83 | AH3: 1,76 | AI3: < 0,05 | AJ3: < 0,05 | AK3: < 0,05 | AL3: < 0,05 | AM3: < 0,05 | AN3: 0,008 | AO3: 0,38 | AP3: 0,12 | AQ3: - | AR3: 1,15 | AS3: 0,056 | AT3: - | AU3: 0,008 | AV3: 0,039 | AW3: 19,2 | AX3: 1,11 | AY3: 20,7 | AZ3: 731 | BA3: 0,1 | BB3: 1,1 | BC3: 2 | BD3: 25,1 | BE3: 0,1 | BF3: 88,4 | BG3: 232 | BH3: - | BI3: 445 | BJ3: 0,6 | BK3: < 2 | BL3: - | BM3: < 0,5 | BN3: 1,6 | BO3: - | BP3: - | BQ3: 2,75 | BR3: < 0,04 | BS3: 0,053 | BT3: 4,45 | BU3: < 0,16 | BV3: 0,29 | BW3: 31 | BX3: 1,45
A4: 01 | B4: 0101 | C4: 000000 | D4: entrées et plats composés | E4: salades composées et crudités | F4: - | G4: 25602 | H4: Salade composée avec viande ou poisson, appertisée | J4: - | K4: - | L4: - | M4: - | N4: 76,7 | O4: 8,06 | P4: 8,06 | Q4: 6,4 | R4: 5,3 | S4: 1,9 | T4: 0,7 | U4: - | V4: 0,6 | W4: < 0,2 | X4: < 0,2 | Y4: 0,6 | Z4: 3,3 | AA4: 2 | AB4: - | AC4: 1,5 | AD4: 0 | AE4: - | AF4: 0,16 | AG4: 3,27 | AH4: 1,54 | AI4: < 0,01 | AJ4: < 0,01 | AK4: < 0,01 | AL4: < 0,01 | AM4: < 0,01 | AN4: < 0,01 | AO4: 0,12 | AP4: 0,04 | AQ4: 2,24 | AR4: 1,08 | AS4: 0,28 | AT4: 0,016 | AU4: 0,016 | AV4: 0,15 | AW4: 15,2 | AX4: 0,95 | AY4: 22 | AZ4: 584 | BA4: 0,07 | BB4: 0,7 | BC4: < 20 | BD4: 20 | BE4: 0,1 | BF4: 92 | BG4: 220 | BH4: 30 | BI4: 381 | BJ4: 0,38 | BK4: < 21 | BL4: 781 | BM4: 0,44 | BN4: 2,04 | BO4: 9,75 | BP4: - | BQ4: - | BR4: 0,032 | BS4: 0,022 | BT4: 4,13 | BU4: 0,2 | BV4: 0,12 | BW4: 11,1 | BX4: 1,23
A5: 01 | B5: 0101 | C5: 000000 | D5: entrées et plats composés | E5: salades composées et crudités | F5: - | G5: 25605 | H5: Champignons à la grecque, appertisés | J5: - | K5: - | L5: - | M5: - | N5: 85,2 | O5: 2,08 | P5: 2,08 | Q5: 3,95 | R5: 3,55 | S5: 2,38 | T5: 0,7 | U5: - | V5: 1 | W5: < 0,3 | X5: < 0,3 | Y5: 0,3 | Z5: 0,99 | AA5: 2,35 | AB5: - | AC5: 1,65 | AD5: 0 | AE5: - | AF5: 0,23 | AG5: 0,2 | AH5: 1,67 | AI5: - | AJ5: - | AK5: - | AL5: - | AM5: - | AN5: - | AO5: - | AP5: - | AQ5: - | AR5: - | AS5: 0,026 | AT5: - | AU5: - | AV5: - | AW5: 0,11 | AX5: 1,26 | AY5: 27 | AZ5: - | BA5: 0,17 | BB5: 1,06 | BC5: 2,46 | BD5: 13,5 | BE5: 0,13 | BF5: 64,1 | BG5: 277 | BH5: 1,79 | BI5: 500 | BJ5: 0,4 | BK5: 0 | BL5: 747 | BM5: 0 | BN5: 1,08 | BO5: - | BP5: - | BQ5: 6,67 | BR5: 0,056 | BS5: 0,21 | BT5: 1,84 | BU5: 0,88 | BV5: 0,088 | BW5: 19,6 | BX5: 0,018
A6: 01 | B6: 0101 | C6: 000000 | D6: entrées et plats composés | E6: salades composées et crudités | F6: - | G6: 25606 | H6: Salade de pommes de terre, fait maison | J6: - | K6: - | L6: - | M6: - | N6: 76 | O6: 2,68 | P6: 2,68 | Q6: 9,9 | R6: 8,2 | S6: - | T6: - | U6: - | V6: - | W6: - | X6: - | Y6: - | Z6: - | AA6: 1,3 | AB6: - | AC6: 1,95 | AD6: 0 | AE6: - | AF6: 1,43 | AG6: 2,48 | AH6: 3,74 | AI6: - | AJ6: - | AK6: - | AL6: 0 | AM6: 0,011 | AN6: 0,013 | AO6: 1,03 | AP6: 0,37 | AQ6: - | AR6: - | AS6: - | AT6: - | AU6: - | AV6: - | AW6: 68 | AX6: 1,32 | AY6: 19 | AZ6: - | BA6: 0,12 | BB6: 0,65 | BC6: - | BD6: 15 | BE6: 0,1 | BF6: 52 | BG6: 254 | BH6: - | BI6: 529 | BJ6: 0,31 | BK6: 29 | BL6: 36 | BM6: 0 | BN6: - | BO6: - | BP6: - | BQ6: 10 | BR6: 0,077 | BS6: 0,06 | BT6: 0,89 | BU6: 0,53 | BV6: 0,14 | BW6: 7 | BX6: 0
A7: 01 | B7: 0101 | C7: 000000 | D7: entrées et plats composés | E7: salades composées et crudités | F7: - | G7: 25608 | H7: Taboulé ou Salade de couscous, préemballé | J7: 753 | K7: 179 | L7: 753 | M7: 179 | N7: 60,3 | O7: 4,88 | P7: 4,88 | Q7: 23,7 | R7: 6,7 | S7: 4,9 | T7: 2 | U7: < 0,2 | V7: 1,5 | W7: < 0,2 | X7: 1,4 | Y7: < 0,2 | Z7: 17,7 | AA7: 2,5 | AB7: 0,9 | AC7: 1,52 | AD7: 0 | AE7: 0,38 | AF7: 0,67 | AG7: 4,23 | AH7: 1,45 | AI7: < 0,01 | AJ7: < 0,01 | AK7: < 0,01 | AL7: < 0,01 | AM7: < 0,01 | AN7: < 0,01 | AO7: 0,47 | AP7: 0,15 | AQ7: 3,95 | AR7: 1,1 | AS7: 0,34 | AT7: < 0,01 | AU7: < 0,01 | AV7: < 0,01 | AW7: 0,1 | AX7: 1 | AY7: 24 | AZ7: 647 | BA7: 0,16 | BB7: 0,88 | BC7: < 20 | BD7: 25 | BE7: 0,4 | BF7: 80 | BG7: 210 | BH7: < 20 | BI7: 399 | BJ7: 0,65 | BK7: 0 | BL7: 149 | BM7: 0 | BN7: 1,26 | BO7: 10,6 | BP7: - | BQ7: 6,27 | BR7: 0,087 | BS7: 0,024 | BT7: 0,5 | BU7: 0,26 | BV7: 0,052 | BW7: 14,5 | BX7: 0
A8: 01 | B8: 0101 | C8: 000000 | D8: entrées et plats composés | E8: salades composées et crudités | F8: - | G8: 25609 | H8: Salade de pomme de terre à la piémontaise, préemballée | J8: 542 | K8: 130 | L8: 542 | M8: 130 | N8: 75,8 | O8: 4,5 | P8: 4,5 | Q8: 8,87 | R8: 8,3 | S8: 1,2 | T8: 0,5 | U8: < 0,2 | V8: 0,7 | W8: < 0,2 | X8: < 0,2 | Y8: < 0,2 | Z8: 6 | AA8: < 0,5 | AB8: < 0,5 | AC8: 1,74 | AD8: 0 | AE8: 0,54 | AF8: 0,82 | AG8: 5,02 | AH8: 2,04 | AI8: < 0,01 | AJ8: < 0,01 | AK8: < 0,01 | AL8: < 0,01 | AM8: < 0,01 | AN8: 0,01 | AO8: 0,54 | AP8: 0,2 | AQ8: 4,57 | AR8: 1,47 | AS8: 0,57 | AT8: < 0,01 | AU8: < 0,01 | AV8: < 0,01 | AW8: 29,6 | AX8: 1,08 | AY8: 13 | AZ8: 709 | BA8: 0,07 | BB8: 0,43 | BC8: < 20 | BD8: 16 | BE8: 0,08 | BF8: 72 | BG8: 300 | BH8: < 20 | BI8: 433 | BJ8: 0,49 | BK8: < 21 | BL8: 93,6 | BM8: 0,5 | BN8: 3,96 | BO8: 10,9 | BP8: - | BQ8: 21,6 | BR8: 0,08 | BS8: 0,049 | BT8: 0,98 | BU8: 0,44 | BV8: 0,099 | BW8: 21,6 | BX8: -
A9: 01 | B9: 0101 | C9: 000000 | D9: entrées et plats composés | E9: salades composées et crudités | F9: - | G9: 25614 | H9: Salade de riz, appertisée | J9: - | K9: - | L9: - | M9: - | N9: 72,5 | O9: 5,13 | P9: 5,13 | Q9: 16,1 | R9: 4,35 | S9: 1 | T9: - | U9: - | V9: - | W9: - | X9: - | Y9: - | Z9: 14,3 | AA9: 1,7 | AB9: - | AC9: 1,49 | AD9: 0 | AE9: - | AF9: 0,53 | AG9: 2,23 | AH9: - | AI9: - | AJ9: - | AK9: - | AL9: - | AM9: 0,0042 | AN9: 0,0083 | AO9: 0,36 | AP9: 0,12 | AQ9: 2,23 | AR9: 1,05 | AS9: 0,2 | AT9: - | AU9: - | AV9: 0,013 | AW9: 6,5 | AX9: 1,1 | AY9: 23,3 | AZ9: - | BA9: < 0,1 | BB9: 0,43 | BC9: < 5 | BD9: 13,1 | BE9: 0,1 | BF9: 66,6 | BG9: 143 | BH9: 17,7 | BI9: 431 | BJ9: 0,3 | BK9: < 2 | BL9: 34 | BM9: < 0,5 | BN9: 1,63 | BO9: - | BP9: - | BQ9: 4,48 | BR9: 0,058 | BS9: 0,045 | BT9: 2,65 | BU9: 0,14 | BV9: 0,13 | BW9: 33,5 | BX9: 0,43
A10: 01 | B10: 0101 | C10: 000000 | D10: entrées et plats composés | E10: salades composées et crudités | F10: - | G10: 25615 | H10: Salade de pâtes, végétarienne | J10: - | K10: - | L10: - | M10: - | N10: 72,6 | O10: 5,7 | P10: 5,7 | Q10: 13,7 | R10: 8,1 | S10: 2,3 | T10: 0,6 | U10: 0 | V10: 0,6 | W10: 0 | X10: 0,1 | Y10: 0,8 | Z10: 10 | AA10: 1,7 | AB10: - | AC10: 1,18 | AD10: 0 | AE10: - | AF10: 2,37 | AG10: 1,46 | AH10: 3,92 | AI10: - | AJ10: - | AK10: - | AL10: - | AM10: - | AN10: - | AO10: - | AP10: - | AQ10: - | AR10: - | AS10: - | AT10: - | AU10: - | AV10: - | AW10: 6 | AX10: 1,04 | AY10: 14 | AZ10: 86 | BA10: 0,06 | BB10: 0,6 | BC10: 4 | BD10: 11 | BE10: 0,2 | BF10: 37 | BG10: 84 | BH10: - | BI10: 51 | BJ10: 0,4 | BK10: 7 | BL10: 1180 | BM10: 0 | BN10: 1,95 | BO10: - | BP10: - | BQ10: 21 | BR10: 0,04 | BS10: 0,02 | BT10: 0,4 | BU10: 0 | BV10: 0,09 | BW10: 16 | BX10: 0
A11: 01 | B11: 0101 | C11: 000000 | D11: entrées et plats composés | E11: salades composées et crudités | F11: - | G11: 25616 | H11: Crudité, sans assaisonnement (aliment moyen) | J11: 125 | K11: 29,9 | L11: 125 | M11: 29,9 | N11: 93,2 | O11: 0,94 | P11: 0,94 | Q11: 3,07 | R11: 0,7 | S11: 2,27 | T11: 1,12 | V11: 1,02 | W11: 0,085 | X11: 0,085 | Y11: 0,58 | Z11: 0,22 | AA11: 1,51 | AB11: 0,29 | AC11: 0,69 | AD11: 0 | AE11: 0,094 | AF11: 0,12 | AG11: 0,29 | AH11: 0,095 | AI11: 0,0041 | AJ11: 0,0041 | AK11: 0,0041 | AL11: 0,0041 | AM11: 0,0041 | AN11: 0,0037 | AO11: 0,12 | AP11: 0,0074 | AQ11: 0,21 | AR11: 0,078 | AS11: 0,017 | AT11: 0,0043 | AU11: 0,0041 | AV11: 0,0041 | AW11: 0,076 | AX11: 0,031 | AY11: 25,1 | AZ11: 44,9 | BA11: 0,048 | BB11: 0,42 | BC11: 7,21 | BD11: 11,7 | BE11: 0,17 | BF11: 25,6 | BG11: 241 | BH11: 7,79 | BI11: 12,5 | BJ11: 0,17 | BK11: 0,017 | BL11: 1930 | BM11: 0,093 | BN11: 0,34 | BO11: 24 | BQ11: 12,2 | BR11: 0,042 | BS11: 0,025 | BT11: 0,37 | BU11: 0,17 | BV11: 0,082 | BW11: 38,8 | BX11: 0
A12: 01 | B12: 0101 | C12: 000000 | D12: entrées et plats composés | E12: salades composées et crudités | F12: - | G12: 25619 | H12: Salade de pâtes aux légumes, avec poisson ou viande, préemballée | J12: - | K12: - | L12: - | M12: - | N12: 70,5 | O12: 5,19 | P12: 5,19 | Q12: 14 | R12: 9,94 | S12: 2,16 | T12: 1,04 | U12: - | V12: 0,86 | W12: - | X12: < 0,28 | Y12: 0,26 | Z12: 7,92 | AA12: 1,98 | AB12: - | AC12: 1,4 | AD12: 0 | AE12: - | AF12: 1,74 | AG12: 5,85 | AH12: 1,91 | AI12: - | AJ12: - | AK12: - | AL12: - | AM12: - | AN12: - | AO12: - | AP12: - | AQ12: - | AR12: - | AS12: - | AT12: - | AU12: 0,0023 | AV12: 0,0098 | AW12: 11,3 | AX12: 0,95 | AY12: 19 | AZ12: 492 | BA12: 0,085 | BB12: 0,95 | BC12: 3,13 | BD12: 23,3 | BE12: 0,15 | BF12: 69,4 | BG12: 193 | BH12: 5,3 | BI12: 378 | BJ12: 0,53 | BK12: 11 | BL12: 494 | BM12: 0,12 | BN12: 1,18 | BO12: - | BP12: - | BQ12: 12,3 | BR12: 0,064 | BS12: 0,057 | BT12: 1,77 | BU12: 0,28 | BV12: 0,14 | BW12: 18,4 | BX12: 0,14
A13: 01 | B13: 0101 | C13: 000000 | D13: entrées et plats composés | E13: salades composées et crudités | F13: - | G13: 25626 | H13: Macédoine de légumes en salade, avec sauce, préemballée | J13: - | K13: - | L13: - | M13: - | N13: 78,3 | O13: 2,81 | P13: 2,81 | Q13: 7 | R13: 9,3 | S13: 2,3 | T13: < 0,3 | U13: - | V13: < 0,3 | W13: < 0,3 | X13: < 0,3 | Y13: 1,5 | Z13: - | AA13: 4,11 | AB13: - | AC13: 1,47 | AD13: 0 | AE13: - | AF13: 0,7 | AG13: - | AH13: - | AI13: - | AJ13: - | AK13: - | AL13: - | AM13: - | AN13: - | AO13: - | AP13: - | AQ13: - | AR13: - | AS13: - | AT13: - | AU13: - | AV13: - | AW13: - | AX13: 1,04 | AY13: - | AZ13: - | BA13: - | BB13: - | BC13: - | BD13: - | BE13: - | BF13: - | BG13: - | BH13: - | BI13: 426 | BJ13: - | BK13: - | BL13: - | BM13: - | BN13: - | BO13: - | BP13: - | BQ13: - | BR13: - | BS13: - | BT13: - | BU13: - | BV13: - | BW13: - | BX13: -
A14: 01 | B14: 0101 | C14: 000000 | D14: entrées et plats composés | E14: salades composées et crudités | F14: - | G14: 25628 | H14: Salade César au poulet (salade verte, fromage, croûtons, sauce), préemballée | J14: - | K14: - | L14: - | M14: - | N14: 71,8 | O14: 8,13 | P14: 8,13 | Q14: 4,88 | R14: 10 | S14: 1,71 | T14: 0,6 | U14: - | V14: 0,51 | W14: < 0,2 | X14: 0,6 | Y14: < 0,2 | Z14: 3,17 | AA14: 2 | AB14: - | AC14: 1,54 | AD14: 0 | AE14: 1,66 | AF14: 2,36 | AG14: 4,99 | AH14: 2,09 | AI14: 0,08 | AJ14: 0,05 | AK14: 0,03 | AL14: 0,06 | AM14: 0,08 | AN14: 0,26 | AO14: 1,26 | AP14: 0,41 | AQ14: 4,6 | AR14: 1,7 | AS14: 0,39 | AT14: < 0,01 | AU14: < 0,01 | AV14: < 0,01 | AW14: 40,7 | AX14: 0,75 | AY14: 100 | AZ14: 483 | BA14: 0,11 | BB14: 0,5 | BC14: < 20 | BD14: 19 | BE14: 0,15 | BF14: 150 | BG14: 300 | BH14: < 20 | BI14: 301 | BJ14: 0,69 | BK14: 27,9 | BL14: 627 | BM14: < 0,25 | BN14: 2,24 | BO14: 32 | BP14: - | BQ14: 1,11 | BR14: 0,096 | BS14: 0,068 | BT14: 2,29 | BU14: 0,47 | BV14: 0,094 | BW14: 29,3 | BX14: 0,48
A15: 01 | B15: 0101 | C15: 000000 | D15: entrées et plats composés | E15: salades composées et crudités | F15: - | G15: 25629 | H15: Salade végétale à base de boulgour et/ou quinoa et légumes, préemballée | J15: 704 | K15: 168 | L15: 699 | M15: 167 | N15: 65,5 | O15: 3,79 | P15: 4,06 | Q15: 17,4 | R15: 8,3 | S15: 4,61 | T15: 0,99 | U15: < 0,1 | V15: 1,9 | W15: < 0,1 | X15: 1,72 | Y15: < 0,1 | Z15: 9,9 | AA15: 3,3 | AB15: traces | AC15: 1,32 | AD15: 0 | AE15: 0,35 | AF15: 0,92 | AG15: 3,95 | AH15: 3,04 | AI15: < 0,01 | AJ15: < 0,01 | AK15: < 0,01 | AL15: < 0,01 | AM15: < 0,01 | AN15: 0,01 | AO15: 0,58 | AP15: 0,24 | AQ15: 3,71 | AR15: 2,79 | AS15: 0,25 | AT15: < 0,01 | AU15: < 0,01 | AV15: < 0,01 | AW15: - | AX15: 0,77 | AY15: 37 | AZ15: 484 | BA15: 0,16 | BB15: 1,2 | BC15: < 20 | BD15: 46 | BE15: 0,62 | BF15: 110 | BG15: 140 | BH15: < 20 | BI15: 309 | BJ15: 0,77 | BK15: - | BL15: 611 | BM15: < 0,25 | BN15: 2,67 | BO15: 10 | BP15: - | BQ15: < 0,5 | BR15: 0,071 | BS15: < 0,01 | BT15: 0,18 | BU15: 0,27 | BV15: 0,059 | BW15: 22,1 | BX15: -
A16: 01 | B16: 0101 | C16: 000000 | D16: entrées et plats composés | E16: salades composées et crudités | F16: - | G16: 26257 | H16: Carottes râpées, avec sauce, préemballées | J16: - | K16: - | L16: - | M16: - | N16: 84,7 | O16: 0,98 | P16: 0,98 | Q16: 6,01 | R16: 5 | S16: 5,2 | T16: 0,54 | U16: - | V16: 0,77 | W16: < 0,2 | X16: < 0,23 | Y16: 3,2 | Z16: - | AA16: 3,64 | AB16: - | AC16: 1,3 | AD16: 0 | AE16: - | AF16: 0,43 | AG16: 2,53 | AH16: 1,82 | AI16: - | AJ16: - | AK16: - | AL16: - | AM16: - | AN16: - | AO16: - | AP16: - | AQ16: - | AR16: 0,97 | AS16: 0,24 | AT16: - | AU16: - | AV16: - | AW16: - | AX16: 0,67 | AY16: 31 | AZ16: - | BA16: - | BB16: - | BC16: - | BD16: - | BE16: - | BF16: - | BG16: - | BH16: - | BI16: 264 | BJ16: - | BK16: - | BL16: - | BM16: - | BN16: - | BO16: - | BP16: - | BQ16: - | BR16: - | BS16: - | BT16: - | BU16: - | BV16: - | BW16: - | BX16: -
A17: 01 | B17: 0101 | C17: 000000 | D17: entrées et plats composés | E17: salades composées et crudités | F17: - | G17: 26258 | H17: Salade de betterave, avec sauce, préemballée | J17: - | K17: - | L17: - | M17: - | N17: 83,5 | O17: 1,29 | P17: 1,29 | Q17: 7,45 | R17: 4,94 | S17: 5,3 | T17: 0,46 | U17: - | V17: 0,5 | W17: 0,051 | X17: < 0,1 | Y17: 4,29 | Z17: - | AA17: 2,66 | AB17: - | AC17: 1,34 | AD17: 0 | AE17: - | AF17: 0,37 | AG17: 1,79 | AH17: 1,9 | AI17: - | AJ17: - | AK17: - | AL17: 0,12 | AM17: - | AN17: - | AO17: - | AP17: - | AQ17: - | AR17: - | AS17: - | AT17: - | AU17: - | AV17: - | AW17: - | AX17: 0,7 | AY17: 21 | AZ17: - | BA17: - | BB17: 4 | BC17: - | BD17: - | BE17: - | BF17: - | BG17: - | BH17: - | BI17: 280 | BJ17: - | BK17: - | BL17: - | BM17: - | BN17: - | BO17: - | BP17: - | BQ17: 5 | BR17: - | BS17: - | BT17: - | BU17: - | BV17: - | BW17: - | BX17: -
A18: 01 | B18: 0101 | C18: 000000 | D18: entrées et plats composés | E18: salades composées et crudités | F18: - | G18: 26259 | H18: Salade de chou ou Coleslaw, avec sauce, préemballée | J18: 435 | K18: 105 | L18: 435 | M18: 105 | N18: 80,4 | O18: 0,94 | P18: 0,94 | Q18: 5,78 | R18: 8,1 | S18: 4,72 | T18: 0,85 | U18: - | V18: 1,06 | W18: < 0,2 | X18: < 0,2 | Y18: 2,82 | Z18: < 0,35 | AA18: 3 | AB18: 1,06 | AC18: 1,45 | AD18: 0 | AE18: 0,34 | AF18: 0,63 | AG18: 4,83 | AH18: 2,2 | AI18: < 0,01 | AJ18: < 0,01 | AK18: < 0,01 | AL18: < 0,01 | AM18: < 0,01 | AN18: 0,01 | AO18: 0,41 | AP18: 0,13 | AQ18: 4,39 | AR18: 1,54 | AS18: 0,66 | AT18: < 0,01 | AU18: < 0,01 | AV18: < 0,01 | AW18: - | AX18: 0,88 | AY18: 39 | AZ18: 556 | BA18: 0,03 | BB18: 1,3 | BC18: < 20 | BD18: 9,3 | BE18: 0,26 | BF18: 29 | BG18: 210 | BH18: < 20 | BI18: 353 | BJ18: 0,27 | BK18: - | BL18: 1340 | BM18: < 0,25 | BN18: 2,21 | BO18: 23 | BP18: - | BQ18: 21,6 | BR18: 0,026 | BS18: < 0,01 | BT18: < 0,1 | BU18: 0,21 | BV18: 0,093 | BW18: 14,6 | BX18: -
A19: 01 | B19: 0101 | C19: 000000 | D19: entrées et plats composés | E19: salades composées et crudités | F19: - | G19: 26260 | H19: Salade de concombre à la crème/fromage blanc, préemballée | J19: - | K19: - | L19: - | M19: - | N19: - | O19: 1,1 | P19: 1,1 | Q19: 1,97 | R19: 11,3 | S19: 1,39 | T19: - | U19: - | V19: - | W19: - | X19: - | Y19: - | Z19: - | AA19: 1,48 | AB19: - | AC19: 1,07 | AD19: 0 | AE19: - | AF19: 1,35 | AG19: - | AH19: - | AI19: - | AJ19: - | AK19: - | AL19: - | AM19: - | AN19: - | AO19: - | AP19: - | AQ19: - | AR19: - | AS19: - | AT19: - | AU19: - | AV19: - | AW19: - | AX19: 1,07 | AY19: - | AZ19: - | BA19: - | BB19: - | BC19: - | BD19: - | BE19: - | BF19: - | BG19: - | BH19: - | BI19: 411 | BJ19: - | BK19: - | BL19: - | BM19: - | BN19: - | BO19: - | BP19: - | BQ19: - | BR19: - | BS19: - | BT19: - | BU19: - | BV19: - | BW19: - | BX19: -
A20: 01 | B20: 0101 | C20: 000000 | D20: entrées et plats composés | E20: salades composées et crudités | F20: - | G20: 26261 | H20: Salade de lentilles et saucisse fumée, préemballée | J20: - | K20: - | L20: - | M20: - | N20: - | O20: 7 | P20: 7 | Q20: 8,9 | R20: 11,8 | S20: 0,9 | T20: - | U20: - | V20: - | W20: - | X20: - | Y20: - | Z20: - | AA20: 3,6 | AB20: - | AC20: 0,89 | AD20: 0 | AE20: - | AF20: 0,9 | AG20: - | AH20: - | AI20: - | AJ20: - | AK20: - | AL20: - | AM20: - | AN20: - | AO20: - | AP20: - | AQ20: - | AR20: - | AS20: - | AT20: - | AU20: - | AV20: - | AW20: - | AX20: 0,89 | AY20: - | AZ20: - | BA20: - | BB20: - | BC20: - | BD20: - | BE20: - | BF20: - | BG20: - | BH20: - | BI20: 355 | BJ20: - | BK20: - | BL20: - | BM20: - | BN20: - | BO20: - | BP20: - | BQ20: - | BR20: - | BS20: - | BT20: - | BU20: - | BV20: - | BW20: - | BX20: -
A21: 01 | B21: 0101 | C21: 000000 | D21: entrées et plats composés | E21: salades composées et crudités | F21: - | G21: 26262 | H21: Salade grecque, avec sauce, préemballée | J21: - | K21: - | L21: - | M21: - | N21: - | O21: 2 | P21: 2 | Q21: 1,4 | R21: 7,1 | S21: 1,4 | T21: - | U21: - | V21: - | W21: - | X21: - | Y21: - | Z21: - | AA21: 2 | AB21: - | AC21: 1,04 | AD21: 0 | AE21: - | AF21: 2,7 | AG21: - | AH21: - | AI21: - | AJ21: - | AK21: - | AL21: - | AM21: - | AN21: - | AO21: - | AP21: - | AQ21: - | AR21: - | AS21: - | AT21: - | AU21: - | AV21: - | AW21: - | AX21: 1,04 | AY21: - | AZ21: - | BA21: - | BB21: - | BC21: - | BD21: - | BE21: - | BF21: - | BG21: - | BH21: - | BI21: 416 | BJ21: - | BK21: - | BL21: - | BM21: - | BN21: - | BO21: - | BP21: - | BQ21: - | BR21: - | BS21: - | BT21: - | BU21: - | BV21: - | BW21: - | BX21: -
A22: 01 | B22: 0101 | C22: 000000 | D22: entrées et plats composés | E22: salades composées et crudités | F22: - | G22: 26263 | H22: Salade de riz à la niçoise, avec sauce, préemballée | J22: - | K22: - | L22: - | M22: - | N22: 73,7 | O22: 4,45 | P22: 4,45 | Q22: 15,8 | R22: 6,08 | S22: 1,35 | T22: 0,5 | U22: - | V22: 0,48 | W22: - | X22: < 0,3 | Y22: 0,38 | Z22: - | AA22: 1,5 | AB22: - | AC22: 1,46 | AD22: 0 | AE22: - | AF22: 0,63 | AG22: 2,51 | AH22: 0,97 | AI22: - | AJ22: - | AK22: - | AL22: - | AM22: - | AN22: - | AO22: - | AP22: - | AQ22: - | AR22: 0,64 | AS22: 0,3 | AT22: - | AU22: - | AV22: - | AW22: - | AX22: 0,76 | AY22: - | AZ22: - | BA22: - | BB22: - | BC22: - | BD22: - | BE22: - | BF22: - | BG22: - | BH22: - | BI22: 300 | BJ22: - | BK22: - | BL22: - | BM22: - | BN22: - | BO22: - | BP22: - | BQ22: - | BR22: - | BS22: - | BT22: - | BU22: - | BV22: - | BW22: - | BX22: -
A23: 01 | B23: 0101 | C23: 000000 | D23: entrées et plats composés | E23: salades composées et crudités | F23: - | G23: 26269 | H23: Taboulé ou Salade de couscous au poulet, préemballé | J23: - | K23: - | L23: - | M23: - | N23: 62,6 | O23: 6,4 | P23: 6,4 | Q23: 20,6 | R23: 7,45 | S23: 2,48 | T23: 0,8 | U23: - | V23: 0,8 | W23: < 0,2 | X23: 0,7 | Y23: < 0,2 | Z23: 16,6 | AA23: 2,02 | AB23: - | AC23: 1,59 | AD23: 0 | AE23: - | AF23: 0,86 | AG23: 3,78 | AH23: 1,75 | AI23: < 0,01 | AJ23: < 0,01 | AK23: < 0,01 | AL23: < 0,01 | AM23: 0,02 | AN23: 0,02 | AO23: 0,57 | AP23: 0,15 | AQ23: 3,78 | AR23: 1,33 | AS23: 0,42 | AT23: < 0,01 | AU23: < 0,01 | AV23: < 0,01 | AW23: 8,24 | AX23: 1,05 | AY23: 18 | AZ23: 661 | BA23: 0,1 | BB23: 0,8 | BC23: < 20 | BD23: 24 | BE23: 0,32 | BF23: 100 | BG23: 190 | BH23: < 20 | BI23: 424 | BJ23: 0,65 | BK23: < 21 | BL23: 135 | BM23: < 0,25 | BN23: 1,48 | BO23: 3,22 | BP23: - | BQ23: < 0,5 | BR23: 0,14 | BS23: 0,045 | BT23: 1,16 | BU23: 0,4 | BV23: 0,096 | BW23: 96,5 | BX23: 0,1
A24: 01 | B24: 0102 | C24: 000000 | D24: entrées et plats composés | E24: soupes | F24: - | G24: 25900 | H24: Soupe aux lentilles, préemballée à réchauffer | J24: 232 | K24: 55 | L24: 232 | M24: 55 | N24: 85,8 | O24: 3,74 | P24: 3,74 | Q24: 6,6 | R24: 1,12 | S24: 0,7 | T24: - | U24: - | V24: - | W24: - | X24: - | Y24: - | Z24: - | AA24: 1,8 | AB24: 0 | AC24: 1,24 | AD24: 0 | AE24: traces | AF24: 0,45 | AG24: 0,52 | AH24: 0,13 | AI24: - | AJ24: - | AK24: - | AL24: 0 | AM24: 0 | AN24: 0,02 | AO24: 0,27 | AP24: 0,16 | AQ24: - | AR24: - | AS24: - | AT24: - | AU24: - | AV24: - | AW24: 3 | AX24: 0,36 | AY24: 25 | AZ24: - | BA24: 0,17 | BB24: 1,07 | BC24: 4 | BD24: 19 | BE24: 0,24 | BF24: 74 | BG24: 144 | BH24: 16,1 | BI24: 143 | BJ24: 0,61 | BK24: 0 | BL24: 430 | BM24: - | BN24: 0 | BO24: - | BP24: - | BQ24: 1,7 | BR24: 0,07 | BS24: 0,045 | BT24: 0,55 | BU24: 0,14 | BV24: 0,09 | BW24: 20 | BX24: 0,12
A25: 01 | B25: 0102 | C25: 000000 | D25: entrées et plats composés | E25: soupes | F25: - | G25: 25901 | H25: Soupe à la volaille et aux légumes, préemballée à réchauffer | J25: 129 | K25: 30,8 | L25: 129 | M25: 30,8 | N25: - | O25: 3,09 | P25: 3,09 | Q25: 2,6 | R25: 0,8 | S25: 1,2 | T25: - | U25: - | V25: - | W25: - | X25: - | Y25: - | Z25: - | AA25: 0,4 | AB25: 0 | AC25: 1,75 | AD25: 0 | AE25: traces | AF25: 0,3 | AG25: - | AH25: - | AI25: - | AJ25: - | AK25: - | AL25: - | AM25: - | AN25: - | AO25: - | AP25: - | AQ25: - | AR25: - | AS25: - | AT25: - | AU25: - | AV25: - | AW25: - | AX25: 1,75 | AY25: - | AZ25: - | BA25: - | BB25: - | BC25: - | BD25: - | BE25: - | BF25: - | BG25: - | BH25: - | BI25: 700 | BJ25: - | BK25: - | BL25: - | BM25: - | BN25: - | BO25: - | BP25: - | BQ25: - | BR25: - | BS25: - | BT25: 1,9 | BU25: - | BV25: - | BW25: - | BX25: 0,11
A26: 01 | B26: 0102 | C26: 000000 | D26: entrées et plats composés | E26: soupes | F26: - | G26: 25903 | H26: Soupe aux légumes variés, préemballée à réchauffer | J26: 165 | K26: 39,4 | L26: 165 | M26: 39,4 | N26: 90,2 | O26: 0,76 | P26: 0,76 | Q26: 5,05 | R26: 1,56 | S26: 1,72 | T26: 0,29 | U26: - | V26: 0,29 | W26: < 0,2 | X26: < 0,2 | Y26: 1,15 | Z26: 2,2 | AA26: 1,1 | AB26: 0 | AC26: 1 | AD26: 0 | AE26: traces | AF26: 0,55 | AG26: 0,5 | AH26: 0,11 | AI26: 0,026 | AJ26: 0,017 | AK26: 0,0086 | AL26: 0,017 | AM26: 0,026 | AN26: 0,077 | AO26: 0,28 | AP26: 0,094 | AQ26: 0,44 | AR26: 0,1 | AS26: 0,0063 | AT26: < 0,01 | AU26: < 0,01 | AV26: < 0,01 | AW26: 3,7 | AX26: 0,69 | AY26: 14 | AZ26: 442 | BA26: 0,02 | BB26: 0,14 | BC26: < 20 | BD26: 5,3 | BE26: 0,04 | BF26: 19 | BG26: 110 | BH26: < 20 | BI26: 275 | BJ26: 0,11 | BK26: < 21 | BL26: 1710 | BM26: 0 | BN26: 0,62 | BO26: 2,53 | BP26: - | BQ26: 5,75 | BR26: 0,29 | BS26: 0,062 | BT26: 0,31 | BU26: 0,33 | BV26: 0,16 | BW26: 39,8 | BX26: 0,052
A27: 01 | B27: 0102 | C27: 000000 | D27: entrées et plats composés | E27: soupes | F27: - | G27: 25904 | H27: Soupe de poissons et / ou crustacés, préemballée à réchauffer | J27: 179 | K27: 42,8 | L27: 179 | M27: 42,8 | N27: 89,4 | O27: 3,45 | P27: 3,45 | Q27: 2,88 | R27: 1,79 | S27: 0,9 | T27: 0,3 | U27: - | V27: 0,3 | W27: 0,3 | X27: < 0,2 | Y27: < 0,2 | Z27: 1,7 | AA27: 0,69 | AB27: 0 | AC27: 1,66 | AD27: 0 | AE27: traces | AF27: 0,58 | AG27: 0,93 | AH27: 0,25 | AI27: 0,01 | AJ27: < 0,01 | AK27: < 0,01 | AL27: 0,01 | AM27: 0,01 | AN27: 0,07 | AO27: 0,29 | AP27: 0,08 | AQ27: 0,71 | AR27: 0,13 | AS27: 0,035 | AT27: < 0,01 | AU27: 0,035 | AV27: 0,053 | AW27: 30 | AX27: 0,86 | AY27: 130 | AZ27: 611 | BA27: 0,07 | BB27: 0,61 | BC27: 70 | BD27: 11 | BE27: 0,05 | BF27: 80 | BG27: 110 | BH27: < 20 | BI27: 343 | BJ27: 0,25 | BK27: 59,8 | BL27: 446 | BM27: < 0,2 | BN27: 0,32 | BO27: 0,93 | BP27: - | BQ27: < 0,5 | BR27: 0,03 | BS27: 0,039 | BT27: 0,63 | BU27: 0,18 | BV27: 0,032 | BW27: < 5 | BX27: 1,35
A28: 01 | B28: 0102 | C28: 000000 | D28: entrées et plats composés | E28: soupes | F28: - | G28: 25905 | H28: Soupe aux légumes variés, déshydratée reconstituée | J28: 144 | K28: 34,5 | L28: 144 | M28: 34,5 | N28: 90,9 | O28: 0,86 | P28: 0,86 | Q28: 4,43 | R28: 1,22 | S28: 1,07 | T28: < 0,2 | U28: - | V28: < 0,2 | W28: 0,2 | X28: < 0,2 | Y28: 0,7 | Z28: 2,6 | AA28: 1,16 | AB28: 0 | AC28: 1,02 | AD28: 0 | AE28: traces | AF28: 0,39 | AG28: 0,45 | AH28: 0,091 | AI28: 0,0045 | AJ28: < 0,01 | AK28: < 0,01 | AL28: < 0,01 | AM28: 0,009 | AN28: 0,023 | AO28: 0,3 | AP28: 0,05 | AQ28: 0,45 | AR28: 0,081 | AS28: 0,01 | AT28: < 0,01 | AU28: < 0,01 | AV28: < 0,01 | AW28: 2,12 | AX28: 0,69 | AY28: 21 | AZ28: 426 | BA28: 0,03 | BB28: 0,19 | BC28: 1 | BD28: 7 | BE28: 0,05 | BF28: 12,5 | BG28: 60 | BH28: < 20 | BI28: 276 | BJ28: 0,12 | BK28: < 21 | BL28: 261 | BM28: 0 | BN28: 0,19 | BO28: 2,42 | BP28: - | BQ28: 3,28 | BR28: 0,05 | BS28: 0,24 | BT28: 0,13 | BU28: 0,12 | BV28: 0,044 | BW28: 8,4 | BX28: 0,029
A29: 01 | B29: 0102 | C29: 000000 | D29: entrées et plats composés | E29: soupes | F29: - | G29: 25907 | H29: Soupe aux poireaux et pommes de terre, préemballée à réchauffer | J29: 155 | K29: 37,1 | L29: 155 | M29: 37,1 | N29: 90,8 | O29: 0,79 | P29: 0,79 | Q29: 4,46 | R29: 1,51 | S29: 0,81 | T29: 0,2 | U29: - | V29: 0,3 | W29: 0,2 | X29: < 0,2 | Y29: < 0,2 | Z29: 3,2 | AA29: 1,28 | AB29: 0 | AC29: 0,97 | AD29: 0 | AE29: traces | AF29: 0,6 | AG29: 0,53 | AH29: 0,27 | AI29: 0,032 | AJ29: 0,019 | AK29: 0,013 | AL29: 0,025 | AM29: 0,032 | AN29: 0,089 | AO29: 0,28 | AP29: 0,1 | AQ29: 0,53 | AR29: 0,18 | AS29: 0,09 | AT29: < 0,01 | AU29: < 0,01 | AV29: < 0,01 | AW29: 4,73 | AX29: 0,73 | AY29: 16 | AZ29: 450 | BA29: 0,02 | BB29: 0,17 | BC29: < 20 | BD29: 5,6 | BE29: 0,04 | BF29: 16 | BG29: 94 | BH29: < 20 | BI29: 290 | BJ29: 0,13 | BK29: < 21 | BL29: 120 | BM29: - | BN29: 0,28 | BO29: 9,13 | BP29: - | BQ29: 7,95 | BR29: 0,01 | BS29: 0,03 | BT29: 0,23 | BU29: 0,14 | BV29: 0,23 | BW29: 29,3 | BX29: 0,045
A30: 01 | B30: 0102 | C30: 000000 | D30: entrées et plats composés | E30: soupes | F30: - | G30: 25908 | H30: Soupe à la volaille et aux vermicelles, préemballée à réchauffer | J30: 129 | K30: 30,8 | L30: 129 | M30: 30,8 | N30: 93,8 | O30: 1,3 | P30: 1,3 | Q30: 3,86 | R30: 1 | S30: 0,77 | T30: - | U30: - | V30: - | W30: - | X30: - | Y30: - | Z30: - | AA30: 0,56 | AB30: 0 | AC30: 1,01 | AD30: 0 | AE30: traces | AF30: 0,49 | AG30: 0,29 | AH30: 0,18 | AI30: 0 | AJ30: 0 | AK30: 0 | AL30: 0 | AM30: 0,001 | AN30: 0,005 | AO30: 0,2 | AP30: 0,053 | AQ30: - | AR30: - | AS30: - | AT30: - | AU30: 0 | AV30: 0 | AW30: 5 | AX30: 0,82 | AY30: 7,96 | AZ30: - | BA30: 0,069 | BB30: 0,14 | BC30: 0,5 | BD30: 7,93 | BE30: 0,057 | BF30: 17 | BG30: 30,5 | BH30: < 10 | BI30: 326 | BJ30: 0,1 | BK30: 1 | BL30: 119 | BM30: 0 | BN30: 0,03 | BO30: 0 | BP30: - | BQ30: - | BR30: 0,055 | BS30: 0,045 | BT30: 0,54 | BU30: 0,074 | BV30: 0,02 | BW30: 2 | BX30: 0,02
A31: 01 | B31: 0102 | C31: 000000 | D31: entrées et plats composés | E31: soupes | F31: - | G31: 25909 | H31: Bouillon de viande et légumes type pot-au-feu, prêt à consommer | J31: 19,9 | K31: 4,8 | L31: 19,9 | M31: 4,8 | N31: 98,1 | O31: 0,2 | P31: 0,2 | Q31: 0,1 | R31: 0,4 | S31: 0 | T31: - | U31: - | V31: - | W31: - | X31: - | Y31: - | Z31: 0,1 | AA31: 0 | AB31: 0 | AC31: 1,09 | AD31: 0 | AE31: traces | AF31: 0,2 | AG31: 0,09 | AH31: 0,05 | AI31: - | AJ31: - | AK31: - | AL31: - | AM31: - | AN31: - | AO31: - | AP31: - | AQ31: - | AR31: - | AS31: - | AT31: - | AU31: - | AV31: - | AW31: 0 | AX31: 1,08 | AY31: 1 | AZ31: - | BA31: 0 | BB31: 0,1 | BC31: - | BD31: 2 | BE31: 0,01 | BF31: 1 | BG31: 15 | BH31: 0 | BI31: 430 | BJ31: - | BK31: 0 | BL31: - | BM31: - | BN31: - | BO31: - | BP31: - | BQ31: 0 | BR31: 0,06 | BS31: 0,01 | BT31: 0 | BU31: 0,02 | BV31: 0,01 | BW31: 12 | BX31: 0,05
A32: 01 | B32: 0102 | C32: 000000 | D32: entrées et plats composés | E32: soupes | F32: - | G32: 25910 | H32: Soupe à l'oignon, préemballée à réchauffer | J32: 169 | K32: 40,4 | L32: 169 | M32: 40,4 | N32: 92,7 | O32: 1,35 | P32: 1,35 | Q32: 4,93 | R32: 1,4 | S32: 1,5 | T32: - | U32: - | V32: - | W32: - | X32: - | Y32: - | Z32: - | AA32: 1,34 | AB32: 0 | AC32: 1,27 | AD32: 0 | AE32: traces | AF32: 0,55 | AG32: - | AH32: 0,26 | AI32: 0 | AJ32: 0 | AK32: 0 | AL32: - | AM32: 0 | AN32: 0 | AO32: 0,069 | AP32: 0,034 | AQ32: - | AR32: - | AS32: - | AT32: - | AU32: 0 | AV32: 0 | AW32: 0 | AX32: 0,79 | AY32: 12 | AZ32: - | BA32: 0,054 | BB32: 0,27 | BC32: - | BD32: 1 | BE32: 0,098 | BF32: 4 | BG32: 28 | BH32: - | BI32: 315 | BJ32: 0,25 | BK32: 1 | BL32: 1 | BM32: 0 | BN32: 0,11 | BO32: 0,2 | BP32: - | BQ32: 0,5 | BR32: 0,013 | BS32: 0,01 | BT32: 0,24 | BU32: 0 | BV32: 0,02 | BW32: 6 | BX32: 0
A33: 01 | B33: 0102 | C33: 000000 | D33: entrées et plats composés | E33: soupes | F33: - | G33: 25912 | H33: Soupe aux champignons, préemballée à réchauffer | J33: 201 | K33: 48,2 | L33: 201 | M33: 48,2 | N33: 92 | O33: 0,81 | P33: 0,81 | Q33: 4,09 | R33: 3,07 | S33: 0,91 | T33: - | U33: - | V33: - | W33: - | X33: - | Y33: - | Z33: - | AA33: 0,52 | AB33: 0 | AC33: 1 | AD33: 0 | AE33: traces | AF33: 1,58 | AG33: 0,4 | AH33: 0,96 | AI33: 0,014 | AJ33: 0,011 | AK33: 0,0087 | AL33: 0,022 | AM33: 0,024 | AN33: 0,092 | AO33: 0,68 | AP33: 0,15 | AQ33: 0,4 | AR33: 0,31 | AS33: 0,01 | AT33: - | AU33: 0 | AV33: 0 | AW33: 3,3 | AX33: 0,78 | AY33: 7 | AZ33: 490 | BA33: 0,016 | BB33: 0,09 | BC33: 8,4 | BD33: 2 | BE33: 0,018 | BF33: 12 | BG33: 62 | BH33: - | BI33: 312 | BJ33: 0,06 | BK33: 5,5 | BL33: 0 | BM33: 0,1 | BN33: 0,24 | BO33: 9,6 | BP33: - | BQ33: - | BR33: 0,006 | BS33: 0,008 | BT33: 0,17 | BU33: 0,072 | BV33: 0,007 | BW33: 1 | BX33: 0
A34: 01 | B34: 0102 | C34: 000000 | D34: entrées et plats composés | E34: soupes | F34: - | G34: 25913 | H34: Soupe à la carotte, préemballée à réchauffer | J34: 139 | K34: 33,2 | L34: 139 | M34: 33,2 | N34: 91,2 | O34: 0,61 | P34: 0,61 | Q34: 3,89 | R34: 1,41 | S34: 1,82 | T34: - | U34: - | V34: - | W34: - | X34: - | Y34: - | Z34: 2,08 | AA34: 1,22 | AB34: 0 | AC34: 1,05 | AD34: 0 | AE34: traces | AF34: 0,96 | AG34: 0,36 | AH34: 0,029 | AI34: - | AJ34: - | AK34: - | AL34: - | AM34: - | AN34: - | AO34: - | AP34: - | AQ34: - | AR34: - | AS34: - | AT34: - | AU34: - | AV34: - | AW34: - | AX34: 0,65 | AY34: 15 | AZ34: - | BA34: - | BB34: 0,3 | BC34: - | BD34: 7 | BE34: - | BF34: 20 | BG34: 140 | BH34: - | BI34: 259 | BJ34: - | BK34: 4 | BL34: 3500 | BM34: - | BN34: - | BO34: - | BP34: - | BQ34: 11 | BR34: 0,05 | BS34: - | BT34: 0,65 | BU34: - | BV34: 0,08 | BW34: 9 | BX34: -
A35: 01 | B35: 0102 | C35: 000000 | D35: entrées et plats composés | E35: soupes | F35: - | G35: 25914 | H35: Soupe à la tomate, préemballée à réchauffer | J35: 163 | K35: 38,7 | L35: 163 | M35: 38,7 | N35: 90,3 | O35: 0,74 | P35: 0,74 | Q35: 6,27 | R35: 0,99 | S35: 2,95 | T35: 0,9 | U35: - | V35: 0,8 | W35: < 0,2 | X35: < 0,2 | Y35: 1,2 | Z35: 1,8 | AA35: 0,88 | AB35: 0 | AC35: 0,98 | AD35: 0 | AE35: traces | AF35: 0,36 | AG35: 0,29 | AH35: 0,3 | AI35: 0,016 | AJ35: 0,0079 | AK35: < 0,01 | AL35: 0,0079 | AM35: 0,016 | AN35: 0,055 | AO35: 0,2 | AP35: 0,063 | AQ35: 0,28 | AR35: 0,15 | AS35: 0,02 | AT35: < 0,01 | AU35: < 0,01 | AV35: < 0,01 | AW35: 2,9 | AX35: 0,64 | AY35: 11 | AZ35: 416 | BA35: 0,03 | BB35: 0,14 | BC35: < 20 | BD35: 5,9 | BE35: 0,04 | BF35: 15 | BG35: 130 | BH35: < 20 | BI35: 259 | BJ35: 0,08 | BK35: < 21 | BL35: 1680 | BM35: 0,6 | BN35: 0,69 | BO35: 1,01 | BP35: - | BQ35: 6,4 | BR35: 0,01 | BS35: 0,056 | BT35: 0,58 | BU35: 0,2 | BV35: 0,2 | BW35: 23,8 | BX35: 0,01
A36: 01 | B36: 0102 | C36: 000000 | D36: entrées et plats composés | E36: soupes | F36: - | G36: 25915 | H36: Soupe chorba frik, à base de viande et de frik | J36: 263 | K36: 62,9 | L36: 263 | M36: 62,9 | N36: 85,1 | O36: 3,75 | P36: 3,75 | Q36: 5,4 | R36: 2,5 | S36: 0,9 | T36: - | U36: - | V36: - | W36: - | X36: - | Y36: - | Z36: 3,9 | AA36: 1,9 | AB36: 0 | AC36: 1,2 | AD36: 0 | AE36: traces | AF36: - | AG36: - | AH36: - | AI36: - | AJ36: - | AK36: - | AL36: - | AM36: - | AN36: - | AO36: - | AP36: - | AQ36: - | AR36: - | AS36: - | AT36: - | AU36: - | AV36: - | AW36: 11 | AX36: 0,84 | AY36: 19 | AZ36: - | BA36: 0,07 | BB36: 0,97 | BC36: 2 | BD36: 17 | BE36: 0,31 | BF36: 54 | BG36: 157 | BH36: 1,4 | BI36: 337 | BJ36: 0,84 | BK36: 4,4 | BL36: 172 | BM36: 0,02 | BN36: 0,6 | BO36: - | BP36: - | BQ36: 3,2 | BR36: 0,03 | BS36: 0,04 | BT36: 0,96 | BU36: 0,18 | BV36: 0,07 | BW36: 16 | BX36: 0,11
A37: 01 | B37: 0102 | C37: 000000 | D37: entrées et plats composés | E37: soupes | F37: - | G37: 25916 | H37: Soupe minestrone, préemballée à réchauffer | J37: 204 | K37: 48,8 | L37: 204 | M37: 48,8 | N37: 89,4 | O37: 1,2 | P37: 1,2 | Q37: 5,6 | R37: 2 | S37: 1,7 | T37: - | U37: - | V37: - | W37: - | X37: - | Y37: - | Z37: - | AA37: 1,8 | AB37: 0 | AC37: 1 | AD37: 0 | AE37: traces | AF37: 0,6 | AG37: 0,34 | AH37: 0,29 | AI37: 0,03 | AJ37: 0,02 | AK37: 0,01 | AL37: 0,02 | AM37: 0,03 | AN37: 0,05 | AO37: 0,2 | AP37: 0,095 | AQ37: - | AR37: - | AS37: - | AT37: - | AU37: 0 | AV37: 0 | AW37: 1,5 | AX37: 0,75 | AY37: 33,3 | AZ37: 460 | BA37: 0,11 | BB37: 0,56 | BC37: 1 | BD37: 12,5 | BE37: 0,11 | BF37: 34,5 | BG37: 106 | BH37: < 2,2 | BI37: 300 | BJ37: 0,19 | BK37: 0 | BL37: 885 | BM37: 0 | BN37: 0,67 | BO37: 3,2 | BP37: - | BQ37: 1,25 | BR37: 0,023 | BS37: 0,034 | BT37: 0,44 | BU37: 0,22 | BV37: 0,071 | BW37: 10 | BX37: 0
A38: 01 | B38: 0102 | C38: 000000 | D38: entrées et plats composés | E38: soupes | F38: - | G38: 25917 | H38: Soupe au pistou, déshydratée reconstituée | J38: 128 | K38: 30,4 | L38: 128 | M38: 30,4 | N38: 89,4 | O38: 1,2 | P38: 1,2 | Q38: 5,2 | R38: 0,35 | S38: 1,2 | T38: - | U38: - | V38: - | W38: - | X38: - | Y38: - | Z38: 4 | AA38: 0,8 | AB38: 0 | AC38: 1,08 | AD38: 0 | AE38: traces | AF38: < 0,2 | AG38: 0,23 | AH38: 0,06 | AI38: - | AJ38: - | AK38: - | AL38: - | AM38: - | AN38: - | AO38: - | AP38: - | AQ38: - | AR38: - | AS38: - | AT38: - | AU38: - | AV38: - | AW38: 1 | AX38: 0,64 | AY38: 19 | AZ38: - | BA38: 0,1 | BB38: 0,4 | BC38: 1 | BD38: 14 | BE38: 0,1 | BF38: 24 | BG38: 132 | BH38: 2,2 | BI38: 256 | BJ38: 0,19 | BK38: 0 | BL38: 900 | BM38: - | BN38: 0,2 | BO38: - | BP38: - | BQ38: 7 | BR38: - | BS38: - | BT38: - | BU38: - | BV38: 0,07 | BW38: 18 | BX38: -
A39: 01 | B39: 0102 | C39: 000000 | D39: entrées et plats composés | E39: soupes | F39: - | G39: 25919 | H39: Soupe de poissons et / ou crustacés, déshydratée reconstituée | J39: 122 | K39: 29 | L39: 122 | M39: 29 | N39: 90,6 | O39: 0,91 | P39: 0,91 | Q39: 5,09 | R39: 0,5 | S39: 1,06 | T39: - | U39: - | V39: - | W39: - | X39: - | Y39: - | Z39: - | AA39: 0,21 | AB39: 0 | AC39: 1,15 | AD39: 0 | AE39: traces | AF39: 0,14 | AG39: - | AH39: - | AI39: - | AJ39: - | AK39: - | AL39: - | AM39: - | AN39: - | AO39: - | AP39: - | AQ39: - | AR39: - | AS39: - | AT39: - | AU39: - | AV39: - | AW39: - | AX39: 0,63 | AY39: - | AZ39: - | BA39: - | BB39: - | BC39: - | BD39: - | BE39: - | BF39: 0 | BG39: 0,01 | BH39: - | BI39: 253 | BJ39: - | BK39: - | BL39: - | BM39: - | BN39: - | BO39: - | BP39: - | BQ39: - | BR39: - | BS39: - | BT39: - | BU39: - | BV39: - | BW39: - | BX39: -
A40: 01 | B40: 0102 | C40: 000000 | D40: entrées et plats composés | E40: soupes | F40: - | G40: 25923 | H40: Soupe asiatique, avec pâtes, déshydratée reconstituée | J40: 126 | K40: 29,8 | L40: 126 | M40: 29,8 | N40: 93,3 | O40: 0,97 | P40: 0,97 | Q40: 5,25 | R40: 0,44 | S40: 1,21 | T40: - | U40: - | V40: - | W40: - | X40: - | Y40: - | Z40: - | AA40: 0,49 | AB40: 0 | AC40: 0,96 | AD40: 0 | AE40: traces | AF40: 0,17 | AG40: - | AH40: - | AI40: - | AJ40: - | AK40: - | AL40: - | AM40: - | AN40: - | AO40: - | AP40: - | AQ40: - | AR40: - | AS40: - | AT40: - | AU40: - | AV40: - | AW40: - | AX40: 0,84 | AY40: - | AZ40: - | BA40: - | BB40: - | BC40: - | BD40: - | BE40: - | BF40: - | BG40: 37,8 | BH40: - | BI40: 334 | BJ40: - | BK40: - | BL40: - | BM40: - | BN40: - | BO40: - | BP40: - | BQ40: - | BR40: - | BS40: - | BT40: - | BU40: - | BV40: - | BW40: - | BX40: -
A41: 01 | B41: 0102 | C41: 000000 | D41: entrées et plats composés | E41: soupes | F41: - | G41: 25924 | H41: Soupe marocaine, déshydratée reconstituée | J41: 145 | K41: 34,3 | L41: 145 | M41: 34,3 | N41: 90 | O41: 1,2 | P41: 1,2 | Q41: 5,77 | R41: 0,55 | S41: 1,49 | T41: - | U41: - | V41: - | W41: - | X41: - | Y41: - | Z41: - | AA41: 0,72 | AB41: 0 | AC41: 1,08 | AD41: 0 | AE41: traces | AF41: 0,23 | AG41: - | AH41: - | AI41: - | AJ41: - | AK41: - | AL41: - | AM41: - | AN41: - | AO41: - | AP41: - | AQ41: - | AR41: - | AS41: - | AT41: - | AU41: - | AV41: - | AW41: - | AX41: 0,8 | AY41: - | AZ41: - | BA41: - | BB41: - | BC41: - | BD41: - | BE41: - | BF41: - | BG41: 80,5 | BH41: - | BI41: 318 | BJ41: - | BK41: - | BL41: - | BM41: - | BN41: - | BO41: - | BP41: - | BQ41: - | BR41: - | BS41: - | BT41: - | BU41: - | BV41: - | BW41: - | BX41: -
A42: 01 | B42: 0102 | C42: 000000 | D42: entrées et plats composés | E42: soupes | F42: - | G42: 25925 | H42: Soupe aux poireaux et pommes de terre, déshydratée reconstituée | J42: 110 | K42: 26,1 | L42: 110 | M42: 26,1 | N42: 92,8 | O42: 0,63 | P42: 0,63 | Q42: 4,84 | R42: 0,41 | S42: 0,91 | T42: - | U42: - | V42: - | W42: - | X42: - | Y42: - | Z42: - | AA42: 0,28 | AB42: 0 | AC42: 0,8 | AD42: 0 | AE42: traces | AF42: 0,2 | AG42: - | AH42: - | AI42: - | AJ42: - | AK42: - | AL42: - | AM42: - | AN42: - | AO42: - | AP42: - | AQ42: - | AR42: - | AS42: - | AT42: - | AU42: - | AV42: - | AW42: - | AX42: 0,72 | AY42: - | AZ42: 417 | BA42: - | BB42: - | BC42: - | BD42: - | BE42: - | BF42: 0,013 | BG42: 0,023 | BH42: - | BI42: 292 | BJ42: - | BK42: 10 | BL42: 90 | BM42: - | BN42: - | BO42: - | BP42: - | BQ42: 30 | BR42: 0,07 | BS42: - | BT42: 0,8 | BU42: 0,27 | BV42: - | BW42: - | BX42: -
A43: 01 | B43: 0102 | C43: 000000 | D43: entrées et plats composés | E43: soupes | F43: - | G43: 25928 | H43: Soupe à la volaille et aux légumes, déshydratée reconstituée | J43: 115 | K43: 27,3 | L43: 115 | M43: 27,3 | N43: - | O43: 0,99 | P43: 0,99 | Q43: 4,58 | R43: 0,44 | S43: 0,55 | T43: - | U43: - | V43: - | W43: - | X43: - | Y43: - | Z43: - | AA43: 0,51 | AB43: 0 | AC43: 0,73 | AD43: 0 | AE43: traces | AF43: 0,17 | AG43: - | AH43: - | AI43: - | AJ43: - | AK43: - | AL43: - | AM43: - | AN43: - | AO43: - | AP43: - | AQ43: - | AR43: - | AS43: - | AT43: - | AU43: - | AV43: - | AW43: - | AX43: 0,73 | AY43: - | AZ43: - | BA43: - | BB43: - | BC43: - | BD43: - | BE43: - | BF43: - | BG43: - | BH43: - | BI43: 292 | BJ43: - | BK43: - | BL43: - | BM43: - | BN43: - | BO43: - | BP43: - | BQ43: 3 | BR43: - | BS43: - | BT43: - | BU43: - | BV43: 0,03 | BW43: 8 | BX43: -
A44: 01 | B44: 0102 | C44: 000000 | D44: entrées et plats composés | E44: soupes | F44: - | G44: 25930 | H44: Bouillon de boeuf, déshydraté reconstitué | J44: 38,3 | K44: 9,05 | L44: 38,3 | M44: 9,05 | N44: 97,6 | O44: 0,6 | P44: 0,6 | Q44: 1,33 | R44: 0,15 | S44: 0,33 | T44: - | U44: - | V44: - | W44: - | X44: - | Y44: - | Z44: 0 | AA44: 0 | AB44: 0 | AC44: 1,03 | AD44: 0 | AE44: traces | AF44: 0,057 | AG44: 0,068 | AH44: 0,0072 | AI44: 0 | AJ44: 0 | AK44: 0 | AL44: - | AM44: 0,00067 | AN44: 0,0048 | AO44: 0,03 | AP44: 0,021 | AQ44: 0,068 | AR44: 0,0072 | AS44: 0 | AT44: - | AU44: 0 | AV44: 0 | AW44: 0 | AX44: 0,74 | AY44: 5,25 | AZ44: - | BA44: 0,041 | BB44: 0,15 | BC44: - | BD44: 2 | BE44: 0,027 | BF44: 0,01 | BG44: 0,01 | BH44: 0 | BI44: 290 | BJ44: 0,048 | BK44: 0 | BL44: 0 | BM44: 0 | BN44: 0,01 | BO44: 0 | BP44: - | BQ44: 0 | BR44: 0,0029 | BS44: 0,015 | BT44: 0,55 | BU44: 0,016 | BV44: 0,0083 | BW44: 1,75 | BX44: 0,065
A45: 01 | B45: 0102 | C45: 000000 | D45: entrées et plats composés | E45: soupes | F45: - | G45: 25932 | H45: Soupe aux asperges, déshydratée reconstituée | J45: 148 | K45: 35,3 | L45: 148 | M45: 35,3 | N45: 90,8 | O45: 0,6 | P45: 0,6 | Q45: 5,14 | R45: 1,31 | S45: 0,99 | T45: - | U45: - | V45: - | W45: - | X45: - | Y45: - | Z45: 2,8 | AA45: 0,28 | AB45: 0 | AC45: 0,91 | AD45: 0 | AE45: traces | AF45: 0,73 | AG45: - | AH45: - | AI45: - | AJ45: - | AK45: - | AL45: - | AM45: - | AN45: - | AO45: - | AP45: - | AQ45: - | AR45: - | AS45: - | AT45: - | AU45: - | AV45: - | AW45: - | AX45: 0,76 | AY45: - | AZ45: - | BA45: - | BB45: - | BC45: - | BD45: - | BE45: - | BF45: 0,015 | BG45: 0,035 | BH45: - | BI45: 303 | BJ45: - | BK45: - | BL45: - | BM45: - | BN45: - | BO45: - | BP45: - | BQ45: - | BR45: - | BS45: - | BT45: - | BU45: - | BV45: - | BW45: 10 | BX45: -
A46: 01 | B46: 0102 | C46: 000000 | D46: entrées et plats composés | E46: soupes | F46: - | G46: 25933 | H46: Soupe à la tomate et aux vermicelles, préemballée à réchauffer | J46: 158 | K46: 37,7 | L46: 158 | M46: 37,7 | N46: - | O46: 1,1 | P46: 1,1 | Q46: 5,87 | R46: 0,8 | S46: 3,43 | T46: - | U46: - | V46: - | W46: - | X46: - | Y46: - | Z46: - | AA46: 1,3 | AB46: 0 | AC46: 0,77 | AD46: 0 | AE46: traces | AF46: 0,5 | AG46: - | AH46: - | AI46: - | AJ46: - | AK46: - | AL46: - | AM46: - | AN46: - | AO46: - | AP46: - | AQ46: - | AR46: - | AS46: - | AT46: - | AU46: - | AV46: - | AW46: - | AX46: 0,77 | AY46: - | AZ46: - | BA46: - | BB46: - | BC46: - | BD46: - | BE46: - | BF46: - | BG46: - | BH46: - | BI46: 307 | BJ46: - | BK46: - | BL46: - | BM46: - | BN46: - | BO46: - | BP46: - | BQ46: 20 | BR46: - | BS46: - | BT46: - | BU46: - | BV46: - | BW46: - | BX46: -
A47: 01 | B47: 0102 | C47: 000000 | D47: entrées et plats composés | E47: soupes | F47: - | G47: 25934 | H47: Soupe aux céréales et aux légumes, déshydratée reconstituée | J47: 201 | K47: 47,8 | L47: 201 | M47: 47,8 | N47: 90 | O47: 1,4 | P47: 1,4 | Q47: 6,8 | R47: 1,4 | S47: 1,2 | T47: - | U47: - | V47: - | W47: - | X47: - | Y47: - | Z47: - | AA47: 1,2 | AB47: 0 | AC47: 1,04 | AD47: 0 | AE47: traces | AF47: 0,8 | AG47: - | AH47: - | AI47: - | AJ47: - | AK47: - | AL47: - | AM47: - | AN47: - | AO47: - | AP47: - | AQ47: - | AR47: - | AS47: - | AT47: - | AU47: - | AV47: - | AW47: - | AX47: 0,78 | AY47: 12,5 | AZ47: - | BA47: - | BB47: 0,29 | BC47: - | BD47: 9,35 | BE47: - | BF47: - | BG47: 94 | BH47: - | BI47: 312 | BJ47: - | BK47: - | BL47: - | BM47: - | BN47: - | BO47: - | BP47: - | BQ47: 3,84 | BR47: 0,04 | BS47: - | BT47: 0,47 | BU47: - | BV47: 0,07 | BW47: 16,8 | BX47: -
A48: 01 | B48: 0102 | C48: 000000 | D48: entrées et plats composés | E48: soupes | F48: - | G48: 25935 | H48: Soupe à la tomate, déshydratée reconstituée | J48: 152 | K48: 36,2 | L48: 152 | M48: 36,2 | N48: 90,4 | O48: 0,76 | P48: 0,76 | Q48: 5,79 | R48: 0,97 | S48: 2,44 | T48: 0,49 | U48: - | V48: 0,68 | W48: < 0,2 | X48: 0,29 | Y48: 0,98 | Z48: 2,4 | AA48: 0,64 | AB48: 0 | AC48: 1,03 | AD48: 0 | AE48: traces | AF48: 0,32 | AG48: 0,41 | AH48: 0,16 | AI48: < 0,01 | AJ48: < 0,01 | AK48: < 0,01 | AL48: 0,0041 | AM48: 0,0041 | AN48: 0,017 | AO48: 0,26 | AP48: 0,033 | AQ48: 0,41 | AR48: 0,15 | AS48: 0,01 | AT48: < 0,01 | AU48: < 0,01 | AV48: < 0,01 | AW48: 2,02 | AX48: 0,69 | AY48: 11 | AZ48: 417 | BA48: 0,03 | BB48: 0,14 | BC48: < 20 | BD48: 5 | BE48: 0,04 | BF48: 10 | BG48: 65 | BH48: < 20 | BI48: 278 | BJ48: 0,1 | BK48: < 21 | BL48: 147 | BM48: - | BN48: 0,25 | BO48: 1,33 | BP48: - | BQ48: < 0,5 | BR48: 0,02 | BS48: 0,017 | BT48: 0,46 | BU48: 0,064 | BV48: 0,027 | BW48: 6,85 | BX48: 0,14
A49: 01 | B49: 0102 | C49: 000000 | D49: entrées et plats composés | E49: soupes | F49: - | G49: 25936 | H49: Soupe aux champignons, déshydratée reconstituée | J49: 158 | K49: 37,8 | L49: 158 | M49: 37,8 | N49: 91,3 | O49: 0,65 | P49: 0,65 | Q49: 4,37 | R49: 1,79 | S49: 0,63 | T49: < 0,2 | U49: - | V49: < 0,2 | W49: 0,2 | X49: < 0,2 | Y49: < 0,2 | Z49: 2,3 | AA49: 0,82 | AB49: 0 | AC49: 1,06 | AD49: 0 | AE49: traces | AF49: 0,73 | AG49: 0,6 | AH49: 0,15 | AI49: < 0,01 | AJ49: < 0,01 | AK49: < 0,01 | AL49: < 0,01 | AM49: < 0,01 | AN49: 0,017 | AO49: 0,66 | AP49: 0,058 | AQ49: 0,6 | AR49: 0,15 | AS49: < 0,01 | AT49: < 0,01 | AU49: < 0,01 | AV49: < 0,01 | AW49: 0,87 | AX49: 0,79 | AY49: 10 | AZ49: 512 | BA49: 0,02 | BB49: 0,02 | BC49: < 20 | BD49: 2,5 | BE49: 0,03 | BF49: 9,51 | BG49: 48 | BH49: < 20 | BI49: 311 | BJ49: 0,07 | BK49: < 21 | BL49: 14,7 | BM49: < 0,25 | BN49: 0,24 | BO49: < 0,8 | BP49: - | BQ49: < 0,5 | BR49: 0,03 | BS49: 0,034 | BT49: 0,37 | BU49: 0,16 | BV49: 0,033 | BW49: 8,25 | BX49: 0,028
A50: 01 | B50: 0102 | C50: 000000 | D50: entrées et plats composés | E50: soupes | F50: - | G50: 25942 | H50: Soupe à l'oignon, déshydratée reconstituée | J50: 101 | K50: 24 | L50: 101 | M50: 24 | N50: 94,1 | O50: 0,58 | P50: 0,58 | Q50: 4,37 | R50: 0,4 | S50: 1,3 | T50: - | U50: - | V50: - | W50: - | X50: - | Y50: - | Z50: - | AA50: 0,31 | AB50: 0 | AC50: 1,03 | AD50: 0 | AE50: traces | AF50: 0,23 | AG50: - | AH50: - | AI50: - | AJ50: - | AK50: - | AL50: - | AM50: - | AN50: - | AO50: - | AP50: - | AQ50: - | AR50: - | AS50: - | AT50: - | AU50: - | AV50: - | AW50: - | AX50: 0,79 | AY50: 20 | AZ50: 517 | BA50: 0,043 | BB50: - | BC50: 1 | BD50: 5,26 | BE50: 0,043 | BF50: 0,01 | BG50: 56,7 | BH50: < 3,35 | BI50: 318 | BJ50: 0,083 | BK50: - | BL50: - | BM50: - | BN50: - | BO50: - | BP50: - | BQ50: - | BR50: - | BS50: - | BT50: - | BU50: - | BV50: - | BW50: - | BX50: -
A51: 01 | B51: 0102 | C51: 000000 | D51: entrées et plats composés | E51: soupes | F51: - | G51: 25945 | H51: Soupe au potiron, préemballée à réchauffer | J51: 150 | K51: 35,9 | L51: 150 | M51: 35,9 | N51: 91,8 | O51: 0,67 | P51: 0,67 | Q51: 4,13 | R51: 1,56 | S51: 2,37 | T51: 0,39 | U51: - | V51: 0,3 | W51: < 0,2 | X51: < 0,2 | Y51: 1,68 | Z51: 1,1 | AA51: 1,31 | AB51: 0 | AC51: 0,95 | AD51: 0 | AE51: traces | AF51: 0,88 | AG51: 0,56 | AH51: 0,069 | AI51: 0,045 | AJ51: 0,027 | AK51: 0,018 | AL51: 0,036 | AM51: 0,045 | AN51: 0,14 | AO51: 0,44 | AP51: 0,13 | AQ51: 0,38 | AR51: 0,051 | AS51: 0,018 | AT51: < 0,01 | AU51: < 0,01 | AV51: < 0,01 | AW51: 4,95 | AX51: 0,65 | AY51: 15 | AZ51: 421 | BA51: 0,03 | BB51: 0,14 | BC51: < 20 | BD51: 5,8 | BE51: 0,04 | BF51: 17 | BG51: 130 | BH51: < 20 | BI51: 256 | BJ51: 0,13 | BK51: < 21 | BL51: 2530 | BM51: 0 | BN51: 0,51 | BO51: 1,03 | BP51: - | BQ51: < 0,5 | BR51: 0,018 | BS51: 0,014 | BT51: < 0,1 | BU51: 0,13 | BV51: 0,065 | BW51: 9,35 | BX51: 0,036
A52: 01 | B52: 0102 | C52: 000000 | D52: entrées et plats composés | E52: soupes | F52: - | G52: 25947 | H52: Bouillon de volaille, déshydraté reconstitué | J52: 23,5 | K52: 5,58 | L52: 23,5 | M52: 5,58 | N52: 97,4 | O52: 0,6 | P52: 0,6 | Q52: 0,5 | R52: 0,13 | S52: 0,18 | T52: - | U52: - | V52: - | W52: - | X52: - | Y52: - | Z52: 0 | AA52: < 0,0001 | AB52: 0 | AC52: 1,44 | AD52: 0 | AE52: traces | AF52: 0,083 | AG52: 0,022 | AH52: 0,018 | AI52: - | AJ52: - | AK52: - | AL52: - | AM52: 0 | AN52: 0 | AO52: 0,02 | AP52: 0,01 | AQ52: - | AR52: - | AS52: - | AT52: - | AU52: - | AV52: - | AW52: 0 | AX52: 0,78 | AY52: 5 | AZ52: - | BA52: 0 | BB52: 0,05 | BC52: - | BD52: 1 | BE52: 0,01 | BF52: 0 | BG52: 10 | BH52: 0 | BI52: 312 | BJ52: 0,01 | BK52: 1 | BL52: 0 | BM52: - | BN52: - | BO52: - | BP52: - | BQ52: 0 | BR52: 0,005 | BS52: 0,01 | BT52: 0,1 | BU52: 0,02 | BV52: 0 | BW52: 1 | BX52: 0,01
A53: 01 | B53: 0102 | C53: 000000 | D53: entrées et plats composés | E53: soupes | F53: - | G53: 25948 | H53: Bouillon de légumes, déshydraté reconstitué | J53: 22,7 | K53: 5,38 | L53: 22,7 | M53: 5,38 | N53: 98 | O53: 0,34 | P53: 0,34 | Q53: 0,65 | R53: 0,16 | S53: 0,19 | T53: - | U53: - | V53: - | W53: - | X53: - | Y53: - | Z53: 0,2 | AA53: 0 | AB53: 0 | AC53: 1 | AD53: 0 | AE53: traces | AF53: 0,14 | AG53: 0,011 | AH53: 0,0067 | AI53: - | AJ53: - | AK53: - | AL53: - | AM53: - | AN53: - | AO53: - | AP53: - | AQ53: - | AR53: - | AS53: - | AT53: - | AU53: - | AV53: - | AW53: 0 | AX53: 0,61 | AY53: 1 | AZ53: - | BA53: 0 | BB53: 0,1 | BC53: - | BD53: 2 | BE53: 0,01 | BF53: 0 | BG53: 8 | BH53: - | BI53: 240 | BJ53: - | BK53: 0 | BL53: 2 | BM53: - | BN53: - | BO53: - | BP53: - | BQ53: 0 | BR53: 0,11 | BS53: 0,01 | BT53: 0,1 | BU53: - | BV53: 0 | BW53: 1 | BX53: 0
A54: 01 | B54: 0102 | C54: 000000 | D54: entrées et plats composés | E54: soupes | F54: - | G54: 25949 | H54: Soupe à la tomate et aux vermicelles, déshydratée reconstituée | J54: 91,5 | K54: 21,6 | L54: 91,5 | M54: 21,6 | N54: 92,2 | O54: 0,63 | P54: 0,63 | Q54: 4,21 | R54: 0,18 | S54: 0,72 | T54: 0,24 | U54: - | V54: 0,24 | W54: < 0,2 | X54: 0,24 | Y54: < 0,4 | Z54: 3,5 | AA54: 0,32 | AB54: 0 | AC54: 0,88 | AD54: 0 | AE54: traces | AF54: 0,099 | AG54: - | AH54: - | AI54: < 0,01 | AJ54: < 0,01 | AK54: < 0,01 | AL54: < 0,01 | AM54: < 0,01 | AN54: < 0,01 | AO54: < 0,01 | AP54: < 0,01 | AQ54: < 0,01 | AR54: < 0,01 | AS54: < 0,01 | AT54: < 0,01 | AU54: < 0,01 | AV54: < 0,01 | AW54: < 0,7 | AX54: 0,68 | AY54: 9,1 | AZ54: 343 | BA54: 0,05 | BB54: 0,18 | BC54: < 20 | BD54: 4,8 | BE54: 0,06 | BF54: 0 | BG54: 62 | BH54: < 20 | BI54: 271 | BJ54: 0,08 | BK54: < 21 | BL54: 162 | BM54: < 0,25 | BN54: 0,34 | BO54: < 0,8 | BP54: - | BQ54: < 0,5 | BR54: 0,02 | BS54: 0,04 | BT54: 1,44 | BU54: 1,04 | BV54: 0,018 | BW54: 11 | BX54: -
A55: 01 | B55: 0102 | C55: 000000 | D55: entrées et plats composés | E55: soupes | F55: - | G55: 25950 | H55: Soupe à la volaille et aux vermicelles, déshydratée reconstituée | J55: 90 | K55: 21,3 | L55: 90 | M55: 21,3 | N55: 94,2 | O55: 0,75 | P55: 0,75 | Q55: 3,87 | R55: 0,25 | S55: 0,31 | T55: < 0,2 | U55: - | V55: < 0,2 | W55: < 0,2 | X55: < 0,2 | Y55: < 0,2 | Z55: 3,4 | AA55: 0,26 | AB55: 0 | AC55: 0,74 | AD55: 0 | AE55: traces | AF55: 0,081 | AG55: - | AH55: - | AI55: < 0,01 | AJ55: < 0,01 | AK55: < 0,01 | AL55: < 0,01 | AM55: < 0,01 | AN55: < 0,01 | AO55: < 0,01 | AP55: < 0,01 | AQ55: < 0,01 | AR55: < 0,01 | AS55: < 0,01 | AT55: < 0,01 | AU55: < 0,01 | AV55: < 0,01 | AW55: 0,72 | AX55: 0,68 | AY55: 7,2 | AZ55: 379 | BA55: 0,02 | BB55: 0,1 | BC55: < 20 | BD55: 3,5 | BE55: 0,05 | BF55: 14 | BG55: 36 | BH55: < 20 | BI55: 272 | BJ55: 0,1 | BK55: < 21 | BL55: 20,7 | BM55: - | BN55: < 0,08 | BO55: < 0,8 | BP55: - | BQ55: < 0,5 | BR55: 0,28 | BS55: < 0,01 | BT55: < 0,1 | BU55: 0,041 | BV55: 0,025 | BW55: - | BX55: 0,026
A56: 01 | B56: 0102 | C56: 000000 | D56: entrées et plats composés | E56: soupes | F56: - | G56: 25953 | H56: Soupe au pistou, préemballée à réchauffer | J56: 134 | K56: 31,9 | L56: 134 | M56: 31,9 | N56: - | O56: 2 | P56: 2 | Q56: 4,1 | R56: 0,5 | S56: < 0,25 | T56: - | U56: - | V56: < 0,2 | W56: - | X56: < 0,2 | Y56: < 0,25 | Z56: - | AA56: 1,5 | AB56: 0 | AC56: 0,9 | AD56: 0 | AE56: traces | AF56: 0,2 | AG56: 0,2 | AH56: < 0,1 | AI56: - | AJ56: - | AK56: - | AL56: - | AM56: - | AN56: - | AO56: - | AP56: - | AQ56: - | AR56: - | AS56: < 0,1 | AT56: - | AU56: - | AV56: - | AW56: - | AX56: 0,65 | AY56: - | AZ56: - | BA56: - | BB56: - | BC56: - | BD56: - | BE56: - | BF56: - | BG56: - | BH56: - | BI56: 260 | BJ56: - | BK56: - | BL56: - | BM56: - | BN56: - | BO56: - | BP56: - | BQ56: - | BR56: - | BS56: - | BT56: - | BU56: - | BV56: - | BW56: - | BX56: -
A57: 01 | B57: 0102 | C57: 000000 | D57: entrées et plats composés | E57: soupes | F57: - | G57: 25954 | H57: Soupe au potiron, déshydratée reconstituée | J57: 161 | K57: 38,3 | L57: 161 | M57: 38,3 | N57: - | O57: 0,79 | P57: 0,79 | Q57: 5,61 | R57: 1,24 | S57: 2,64 | T57: - | U57: - | V57: - | W57: - | X57: - | Y57: - | Z57: - | AA57: 0,76 | AB57: 0 | AC57: 0,7 | AD57: 0 | AE57: traces | AF57: 0,61 | AG57: - | AH57: - | AI57: - | AJ57: - | AK57: - | AL57: - | AM57: - | AN57: - | AO57: - | AP57: - | AQ57: - | AR57: - | AS57: - | AT57: - | AU57: - | AV57: - | AW57: - | AX57: 0,7 | AY57: - | AZ57: - | BA57: - | BB57: - | BC57: - | BD57: - | BE57: - | BF57: 0,01 | BG57: 0,01 | BH57: - | BI57: 279 | BJ57: - | BK57: - | BL57: - | BM57: - | BN57: - | BO57: - | BP57: - | BQ57: - | BR57: - | BS57: - | BT57: - | BU57: - | BV57: - | BW57: - | BX57: -
A58: 01 | B58: 0102 | C58: 000000 | D58: entrées et plats composés | E58: soupes | F58: - | G58: 25955 | H58: Soupe asiatique, avec pâtes, préemballée à réchauffer | J58: 93,8 | K58: 22,3 | L58: 93,8 | M58: 22,3 | N58: - | O58: 0,7 | P58: 0,7 | Q58: 3,4 | R58: 0,5 | S58: 0,5 | T58: - | U58: - | V58: - | W58: - | X58: - | Y58: - | Z58: - | AA58: 0,7 | AB58: 0 | AC58: 0,9 | AD58: 0 | AE58: traces | AF58: 0,2 | AG58: - | AH58: - | AI58: - | AJ58: - | AK58: - | AL58: - | AM58: - | AN58: - | AO58: - | AP58: - | AQ58: - | AR58: - | AS58: - | AT58: - | AU58: - | AV58: - | AW58: - | AX58: 0,9 | AY58: - | AZ58: - | BA58: - | BB58: - | BC58: - | BD58: - | BE58: - | BF58: - | BG58: - | BH58: - | BI58: 360 | BJ58: - | BK58: - | BL58: - | BM58: - | BN58: - | BO58: - | BP58: - | BQ58: - | BR58: - | BS58: - | BT58: - | BU58: - | BV58: - | BW58: - | BX58: -
A59: 01 | B59: 0102 | C59: 000000 | D59: entrées et plats composés | E59: soupes | F59: - | G59: 25956 | H59: Soupe minestrone, déshydratée reconstituée | J59: 132 | K59: 31,3 | L59: 132 | M59: 31,3 | N59: 91,3 | O59: 1,14 | P59: 1,14 | Q59: 5,53 | R59: 0,34 | S59: 1,07 | T59: - | U59: - | V59: - | W59: - | X59: - | Y59: - | Z59: - | AA59: 0,79 | AB59: 0 | AC59: 0,97 | AD59: 0 | AE59: traces | AF59: 0,02 | AG59: - | AH59: - | AI59: - | AJ59: - | AK59: - | AL59: - | AM59: - | AN59: - | AO59: - | AP59: - | AQ59: - | AR59: - | AS59: - | AT59: - | AU59: - | AV59: - | AW59: - | AX59: 0,7 | AY59: - | AZ59: 427 | BA59: - | BB59: - | BC59: - | BD59: - | BE59: - | BF59: - | BG59: 122 | BH59: - | BI59: 281 | BJ59: - | BK59: - | BL59: - | BM59: - | BN59: - | BO59: - | BP59: - | BQ59: 5 | BR59: - | BS59: - | BT59: - | BU59: - | BV59: 0,06 | BW59: 18 | BX59: -
A60: 01 | B60: 0102 | C60: 000000 | D60: entrées et plats composés | E60: soupes | F60: - | G60: 25957 | H60: Soupe au cresson, déshydratée reconstituée | J60: 105 | K60: 25,1 | L60: 105 | M60: 25,1 | N60: - | O60: 0,42 | P60: 0,42 | Q60: 3,95 | R60: 0,8 | S60: 0,31 | T60: - | U60: - | V60: - | W60: - | X60: - | Y60: - | Z60: - | AA60: 0,19 | AB60: 0 | AC60: 0,77 | AD60: 0 | AE60: traces | AF60: 0,42 | AG60: - | AH60: - | AI60: - | AJ60: - | AK60: - | AL60: - | AM60: - | AN60: - | AO60: - | AP60: - | AQ60: - | AR60: - | AS60: - | AT60: - | AU60: - | AV60: - | AW60: - | AX60: 0,77 | AY60: - | AZ60: - | BA60: - | BB60: - | BC60: - | BD60: - | BE60: - | BF60: - | BG60: - | BH60: - | BI60: 308 | BJ60: - | BK60: - | BL60: - | BM60: - | BN60: - | BO60: - | BP60: - | BQ60: - | BR60: - | BS60: - | BT60: - | BU60: - | BV60: - | BW60: - | BX60: -
A61: 01 | B61: 0102 | C61: 000000 | D61: entrées et plats composés | E61: soupes | F61: - | G61: 25958 | H61: Soupe au cresson, préemballée à réchauffer | J61: 143 | K61: 34 | L61: 143 | M61: 34 | N61: - | O61: 1 | P61: 1 | Q61: 5,4 | R61: 0,8 | S61: 0,9 | T61: - | U61: - | V61: - | W61: - | X61: - | Y61: - | Z61: - | AA61: 0,6 | AB61: 0 | AC61: 0,78 | AD61: 0 | AE61: traces | AF61: 0,5 | AG61: - | AH61: - | AI61: - | AJ61: - | AK61: - | AL61: - | AM61: - | AN61: - | AO61: - | AP61: - | AQ61: - | AR61: - | AS61: - | AT61: - | AU61: - | AV61: - | AW61: - | AX61: 0,78 | AY61: - | AZ61: - | BA61: - | BB61: - | BC61: - | BD61: - | BE61: - | BF61: - | BG61: - | BH61: - | BI61: 310 | BJ61: - | BK61: - | BL61: - | BM61: - | BN61: - | BO61: - | BP61: - | BQ61: - | BR61: - | BS61: - | BT61: - | BU61: - | BV61: 0,25 | BW61: 30 | BX61: -
A62: 01 | B62: 0102 | C62: 000000 | D62: entrées et plats composés | E62: soupes | F62: - | G62: 25962 | H62: Soupe aux légumes avec fromage, préemballée à réchauffer | J62: 210 | K62: 50,2 | L62: 210 | M62: 50,2 | N62: - | O62: 1,34 | P62: 1,34 | Q62: 5,09 | R62: 2,51 | S62: 1,62 | T62: - | U62: - | V62: - | W62: - | X62: - | Y62: - | Z62: - | AA62: 0,93 | AB62: 0 | AC62: 0,67 | AD62: 0 | AE62: traces | AF62: 1,58 | AG62: - | AH62: - | AI62: - | AJ62: - | AK62: - | AL62: - | AM62: - | AN62: - | AO62: - | AP62: - | AQ62: - | AR62: - | AS62: - | AT62: - | AU62: - | AV62: - | AW62: - | AX62: 0,67 | AY62: - | AZ62: - | BA62: - | BB62: - | BC62: - | BD62: - | BE62: - | BF62: - | BG62: - | BH62: - | BI62: 268 | BJ62: - | BK62: - | BL62: - | BM62: - | BN62: - | BO62: - | BP62: - | BQ62: 11 | BR62: - | BS62: - | BT62: - | BU62: - | BV62: 0,3 | BW62: 30 | BX62: -
A63: 01 | B63: 0102 | C63: 000000 | D63: entrées et plats composés | E63: soupes | F63: - | G63: 25963 | H63: Soupe aux légumes verts, préemballée à réchauffer | J63: 140 | K63: 33,4 | L63: 140 | M63: 33,4 | N63: 90,9 | O63: 1 | P63: 1 | Q63: 3,84 | R63: 1,32 | S63: 0,81 | T63: < 0,2 | U63: - | V63: < 0,2 | W63: 0,2 | X63: < 0,2 | Y63: < 0,4 | Z63: 3,03 | AA63: 1,05 | AB63: 0 | AC63: 0,95 | AD63: 0 | AE63: traces | AF63: 0,64 | AG63: 0,51 | AH63: 0,16 | AI63: 0,026 | AJ63: 0,02 | AK63: 0,013 | AL63: 0,026 | AM63: 0,033 | AN63: 0,099 | AO63: 0,33 | AP63: 0,092 | AQ63: 0,44 | AR63: 0,13 | AS63: 0,03 | AT63: < 0,01 | AU63: < 0,01 | AV63: < 0,01 | AW63: 3,52 | AX63: 0,7 | AY63: 24 | AZ63: 423 | BA63: 0,02 | BB63: 0,27 | BC63: < 20 | BD63: 7,1 | BE63: 0,06 | BF63: 24 | BG63: 120 | BH63: < 20 | BI63: 280 | BJ63: 0,18 | BK63: < 21 | BL63: 177 | BM63: < 0,25 | BN63: 0,28 | BO63: 16,5 | BP63: - | BQ63: 9 | BR63: 0,17 | BS63: 0,042 | BT63: 0,53 | BU63: 0,22 | BV63: 0,25 | BW63: 27,5 | BX63: -
A64: 01 | B64: 0102 | C64: 000000 | D64: entrées et plats composés | E64: soupes | F64: - | G64: 25964 | H64: Soupe aux légumes verts, déshydratée reconstituée | J64: 146 | K64: 34,8 | L64: 146 | M64: 34,8 | N64: 91,8 | O64: 0,72 | P64: 0,72 | Q64: 5,31 | R64: 1,07 | S64: 1,07 | T64: < 0,2 | U64: - | V64: < 0,2 | W64: < 0,2 | X64: < 0,2 | Y64: < 0,4 | Z64: 3,3 | AA64: 0,54 | AB64: 0 | AC64: 0,85 | AD64: 0 | AE64: traces | AF64: 0,71 | AG64: 0,23 | AH64: 0,075 | AI64: < 0,01 | AJ64: < 0,01 | AK64: < 0,01 | AL64: < 0,01 | AM64: 0,057 | AN64: 0,036 | AO64: 0,56 | AP64: 0,057 | AQ64: 0,23 | AR64: 0,075 | AS64: < 0,01 | AT64: < 0,01 | AU64: < 0,01 | AV64: < 0,01 | AW64: < 0,7 | AX64: 0,66 | AY64: 12 | AZ64: 446 | BA64: 0,02 | BB64: 0,11 | BC64: < 20 | BD64: 3 | BE64: 0,03 | BF64: 15 | BG64: 50 | BH64: < 20 | BI64: 264 | BJ64: 0,09 | BK64: < 21 | BL64: 10,5 | BM64: < 0,25 | BN64: 0,18 | BO64: 2,82 | BP64: - | BQ64: 6,15 | BR64: 0,05 | BS64: 0,014 | BT64: 0,15 | BU64: 0,072 | BV64: 0,033 | BW64: 7,6 | BX64: -
A65: 01 | B65: 0102 | C65: 000000 | D65: entrées et plats composés | E65: soupes | F65: - | G65: 25965 | H65: Soupe aux pois cassés, préemballée à réchauffer | J65: 238 | K65: 56,7 | L65: 238 | M65: 56,7 | N65: - | O65: 2,68 | P65: 2,68 | Q65: 6,25 | R65: 1,98 | S65: 1,02 | T65: - | U65: - | V65: - | W65: - | X65: - | Y65: - | Z65: - | AA65: 1,6 | AB65: 0 | AC65: 0,7 | AD65: 0 | AE65: traces | AF65: 0,67 | AG65: - | AH65: - | AI65: - | AJ65: - | AK65: - | AL65: - | AM65: - | AN65: - | AO65: - | AP65: - | AQ65: - | AR65: - | AS65: - | AT65: - | AU65: - | AV65: - | AW65: - | AX65: 0,7 | AY65: - | AZ65: - | BA65: - | BB65: - | BC65: - | BD65: - | BE65: - | BF65: - | BG65: - | BH65: - | BI65: 279 | BJ65: - | BK65: - | BL65: - | BM65: - | BN65: - | BO65: - | BP65: - | BQ65: - | BR65: - | BS65: - | BT65: - | BU65: - | BV65: - | BW65: - | BX65: -
A66: 01 | B66: 0102 | C66: 000000 | D66: entrées et plats composés | E66: soupes | F66: - | G66: 25967 | H66: Soupe froide type Gaspacho ou Gazpacho, préemballée | J66: 137 | K66: 32,8 | L66: 137 | M66: 32,8 | N66: 91,1 | O66: 0,65 | P66: 0,65 | Q66: 3,38 | R66: 1,62 | S66: 2,32 | T66: 1,2 | U66: - | V66: 1,12 | W66: < 0,2 | X66: < 0,2 | Y66: < 0,2 | Z66: < 0,35 | AA66: 1,04 | AB66: 0 | AC66: 1,13 | AD66: 0 | AE66: traces | AF66: 0,27 | AG66: - | AH66: 0,16 | AI66: < 0,003 | AJ66: < 0,01 | AK66: < 0,01 | AL66: < 0,01 | AM66: < 0,01 | AN66: < 0,01 | AO66: 0,21 | AP66: 0,059 | AQ66: < 0,01 | AR66: 0,14 | AS66: 0,02 | AT66: < 0,01 | AU66: < 0,01 | AV66: < 0,01 | AW66: - | AX66: 0,75 | AY66: 11 | AZ66: 468 | BA66: 0,04 | BB66: 0,11 | BC66: < 20 | BD66: 8,9 | BE66: 0,06 | BF66: 25 | BG66: 210 | BH66: < 20 | BI66: 293 | BJ66: 0,1 | BK66: - | BL66: 291 | BM66: < 0,25 | BN66: 1,31 | BO66: 52,6 | BP66: - | BQ66: 1,98 | BR66: < 0,01 | BS66: 0,02 | BT66: 0,56 | BU66: 0,093 | BV66: 0,041 | BW66: < 5 | BX66: -
A67: 01 | B67: 0102 | C67: 000000 | D67: entrées et plats composés | E67: soupes | F67: - | G67: 25968 | H67: Soupe aux asperges, préemballée à réchauffer | J67: 551 | K67: 133 | L67: 551 | M67: 133 | N67: - | O67: 4,6 | P67: 4,6 | Q67: 4,7 | R67: 10,4 | S67: 2,9 | T67: - | U67: - | V67: - | W67: - | X67: - | Y67: - | Z67: - | AA67: 1 | AB67: 0 | AC67: 0,98 | AD67: 0 | AE67: traces | AF67: 5,1 | AG67: - | AH67: - | AI67: - | AJ67: - | AK67: - | AL67: - | AM67: - | AN67: - | AO67: - | AP67: - | AQ67: - | AR67: - | AS67: - | AT67: - | AU67: - | AV67: - | AW67: - | AX67: 0,98 | AY67: - | AZ67: - | BA67: - | BB67: - | BC67: - | BD67: - | BE67: - | BF67: - | BG67: - | BH67: - | BI67: - | BJ67: - | BK67: - | BL67: - | BM67: - | BN67: - | BO67: - | BP67: - | BQ67: - | BR67: - | BS67: - | BT67: - | BU67: - | BV67: - | BW67: - | BX67: -
A68: 01 | B68: 0102 | C68: 000000 | D68: entrées et plats composés | E68: soupes | F68: - | G68: 25969 | H68: Soupe (aliment moyen) | J68: 157 | K68: 37,4 | L68: 157 | M68: 37,4 | N68: 90,7 | O68: 1,27 | P68: 1,27 | Q68: 4,5 | R68: 1,37 | S68: 1,6 | T68: 0,42 | V68: 0,4 | W68: 0,15 | X68: 0,11 | Y68: 0,72 | Z68: 2,1 | AA68: 1,02 | AB68: 0 | AC68: 1,05 | AD68: 0 | AE68: 0 | AF68: 0,57 | AG68: 0,54 | AH68: 0,18 | AI68: 0,022 | AJ68: 0,014 | AK68: 0,0096 | AL68: 0,018 | AM68: 0,023 | AN68: 0,074 | AO68: 0,29 | AP68: 0,085 | AQ68: 0,39 | AR68: 0,11 | AS68: 0,03 | AT68: 0,005 | AU68: 0,0087 | AV68: 0,011 | AW68: 7,47 | AX68: 0,75 | AY68: 27,8 | AZ68: 454 | BA68: 0,04 | BB68: 0,27 | BC68: 16,5 | BD68: 7,19 | BE68: 0,064 | BF68: 24,9 | BG68: 108 | BH68: 9,35 | BI68: 296 | BJ68: 0,18 | BK68: 15,2 | BL68: 1090 | BN68: 0,48 | BO68: 6,98 | BQ68: 5,04 | BR68: 0,05 | BS68: 0,036 | BT68: 0,49 | BU68: 0,23 | BV68: 0,1 | BW68: 15,8 | BX68: 0,24
A69: 01 | B69: 0102 | C69: 000000 | D69: entrées et plats composés | E69: soupes | F69: - | G69: 25972 | H69: Soupe miso, déshydratée reconstituée | J69: 72,4 | K69: 17,1 | L69: 72,4 | M69: 17,1 | N69: 94,6 | O69: 1,38 | P69: 1,38 | Q69: 2,18 | R69: < 0,5 | S69: 0,69 | T69: < 0,2 | U69: - | V69: 0,69 | W69: < 0,2 | X69: < 0,2 | Y69: < 0,2 | Z69: - | AA69: < 0,5 | AB69: 0 | AC69: 1,29 | AD69: 0 | AE69: 0,058 | AF69: < 0,0098 | AG69: < 0,0098 | AH69: < 0,0098 | AI69: < 0,0098 | AJ69: < 0,0098 | AK69: < 0,0098 | AL69: < 0,0098 | AM69: < 0,0098 | AN69: < 0,0098 | AO69: < 0,0098 | AP69: < 0,0098 | AQ69: < 0,0098 | AR69: < 0,0098 | AS69: < 0,0098 | AT69: < 0,0098 | AU69: < 0,0098 | AV69: < 0,0098 | AW69: - | AX69: 1,1 | AY69: 18 | AZ69: 661 | BA69: 0,06 | BB69: 0,19 | BC69: 70 | BD69: 6,9 | BE69: 0,08 | BF69: 19 | BG69: 49 | BH69: < 20 | BI69: 438 | BJ69: 0,11 | BK69: - | BL69: - | BM69: < 0,25 | BN69: 0,26 | BO69: 1,15 | BP69: - | BQ69: - | BR69: < 0,015 | BS69: < 0,01 | BT69: < 0,1 | BU69: 0,068 | BV69: < 0,01 | BW69: 16,5 | BX69: 1,98
A70: 01 | B70: 0103 | C70: 010301 | D70: entrées et plats composés | E70: plats composés | F70: plats de viande sans garniture | G70: 8601 | H70: Tripes à la mode de Caen | J70: 487 | K70: 116 | L70: 487 | M70: 116 | N70: 74 | O70: 20,4 | P70: 20,4 | Q70: 0,3 | R70: 3,68 | S70: traces | T70: < 0,2 | U70: - | V70: < 0,2 | W70: < 0,2 | X70: < 0,2 | Y70: < 0,2 | Z70: 0,3 | AA70: 0 | AB70: 0 | AC70: 1,5 | AD70: 0 | AE70: traces | AF70: 1,29 | AG70: 1,12 | AH70: 0,18 | AI70: 0,0032 | AJ70: 0,0032 | AK70: < 0,0034 | AL70: 0,0032 | AM70: 0,0052 | AN70: 0,071 | AO70: 0,63 | AP70: 0,57 | AQ70: 1 | AR70: 0,086 | AS70: 0,011 | AT70: - | AU70: - | AV70: - | AW70: 119 | AX70: 1,06 | AY70: 23 | AZ70: - | BA70: - | BB70: 1,1 | BC70: 6 | BD70: 6,4 | BE70: - | BF70: - | BG70: 42,5 | BH70: - | BI70: 423 | BJ70: 0,64 | BK70: - | BL70: - | BM70: - | BN70: 0,47 | BO70: - | BP70: - | BQ70: 0 | BR70: 0,02 | BS70: - | BT70: 0,37 | BU70: 0,42 | BV70: 0,023 | BW70: - | BX70: 1,2
A71: 01 | B71: 0103 | C71: 010301 | D71: entrées et plats composés | E71: plats composés | F71: plats de viande sans garniture | G71: 8602 | H71: Tripes à la mode de Caen, préemballées | J71: 469 | K71: 112 | L71: 469 | M71: 112 | N71: 77,9 | O71: 18,4 | P71: 18,4 | Q71: 0,7 | R71: 3,62 | S71: 0,5 | T71: - | U71: - | V71: - | W71: - | X71: - | Y71: - | Z71: - | AA71: 1,25 | AB71: 0 | AC71: 1,1 | AD71: 0 | AE71: traces | AF71: 2,1 | AG71: - | AH71: - | AI71: - | AJ71: - | AK71: - | AL71: - | AM71: - | AN71: - | AO71: - | AP71: - | AQ71: - | AR71: - | AS71: - | AT71: - | AU71: - | AV71: - | AW71: - | AX71: 1,03 | AY71: 23,6 | AZ71: - | BA71: - | BB71: 0,9 | BC71: - | BD71: 6,6 | BE71: - | BF71: - | BG71: 34,6 | BH71: - | BI71: 421 | BJ71: 2,1 | BK71: - | BL71: - | BM71: - | BN71: - | BO71: - | BP71: - | BQ71: - | BR71: - | BS71: - | BT71: - | BU71: - | BV71: - | BW71: - | BX71: -
A72: 01 | B72: 0103 | C72: 010301 | D72: entrées et plats composés | E72: plats composés | F72: plats de viande sans garniture | G72: 8612 | H72: Tripes à la tomate ou à la provençale | J72: 396 | K72: 94,1 | L72: 396 | M72: 94,1 | N72: 76,6 | O72: 15,7 | P72: 15,7 | Q72: 0,6 | R72: 3,2 | S72: < 0,4 | T72: - | U72: - | V72: < 0,2 | W72: - | X72: < 0,2 | Y72: < 0,4 | Z72: - | AA72: 0 | AB72: 0 | AC72: 1,43 | AD72: 0 | AE72: traces | AF72: 1,64 | AG72: 1,28 | AH72: 0,14 | AI72: < 0,01 | AJ72: < 0,01 | AK72: < 0,01 | AL72: < 0,01 | AM72: < 0,01 | AN72: 0,1 | AO72: 0,89 | AP72: 0,65 | AQ72: 1,28 | AR72: 0,1 | AS72: 0,02 | AT72: - | AU72: - | AV72: < 0,01 | AW72: - | AX72: 1,23 | AY72: - | AZ72: 751 | BA72: - | BB72: - | BC72: - | BD72: - | BE72: - | BF72: - | BG72: - | BH72: - | BI72: 492 | BJ72: - | BK72: - | BL72: - | BM72: - | BN72: - | BO72: - | BP72: - | BQ72: - | BR72: - | BS72: - | BT72: - | BU72: - | BV72: - | BW72: - | BX72: -
A73: 01 | B73: 0103 | C73: 010301 | D73: entrées et plats composés | E73: plats composés | F73: plats de viande sans garniture | G73: 25001 | H73: Blanquette de veau | J73: 474 | K73: 113 | L73: 474 | M73: 113 | N73: 75,1 | O73: 15,4 | P73: 15,4 | Q73: 3,1 | R73: 4 | S73: 0,3 | T73: < 0,2 | U73: - | V73: < 0,2 | W73: < 0,2 | X73: < 0,2 | Y73: 0,3 | Z73: 1,9 | AA73: 0,8 | AB73: 0 | AC73: 1,25 | AD73: 0 | AE73: 0,32 | AF73: 2,03 | AG73: 1,36 | AH73: 0,26 | AI73: 0,06 | AJ73: 0,04 | AK73: 0,02 | AL73: 0,04 | AM73: 0,06 | AN73: 0,25 | AO73: 1 | AP73: 0,5 | AQ73: 1,18 | AR73: 0,21 | AS73: 0,02 | AT73: 0,03 | AU73: < 0,01 | AV73: < 0,01 | AW73: 56,6 | AX73: 0,74 | AY73: 15 | AZ73: 432 | BA73: 0,07 | BB73: 0,92 | BC73: < 20 | BD73: 12 | BE73: 0,04 | BF73: 110 | BG73: 190 | BH73: < 20 | BI73: 295 | BJ73: 3,2 | BK73: < 21 | BL73: 736 | BM73: < 0,25 | BN73: 0,37 | BO73: 2,55 | BP73: - | BQ73: < 0,5 | BR73: 0,062 | BS73: 0,047 | BT73: 1,77 | BU73: 0,33 | BV73: 0,074 | BW73: 23,3 | BX73: 1,59
A74: 01 | B74: 0103 | C74: 010301 | D74: entrées et plats composés | E74: plats composés | F74: plats de viande sans garniture | G74: 25033 | H74: Boeuf bourguignon | J74: 355 | K74: 84,6 | L74: 355 | M74: 84,6 | N74: 78,4 | O74: 8,93 | P74: 8,93 | Q74: 4,17 | R74: 3,3 | S74: 1,57 | T74: - | U74: - | V74: - | W74: - | X74: - | Y74: - | Z74: 1,3 | AA74: 1,25 | AB74: 0 | AC74: 1,36 | AD74: 0 | AE74: traces | AF74: 0,88 | AG74: 1,18 | AH74: 0,44 | AI74: < 0,05 | AJ74: 0,0025 | AK74: 0,0025 | AL74: 0,004 | AM74: 0,006 | AN74: 0,044 | AO74: 0,52 | AP74: 0,27 | AQ74: 0,71 | AR74: 0,22 | AS74: 0,022 | AT74: - | AU74: - | AV74: < 0,01 | AW74: 64 | AX74: 0,88 | AY74: 16,9 | AZ74: 409 | BA74: 0,053 | BB74: 1,75 | BC74: 3,8 | BD74: 13,3 | BE74: 0,054 | BF74: 215 | BG74: 230 | BH74: < 2,58 | BI74: 354 | BJ74: 2,91 | BK74: 10 | BL74: - | BM74: 0,5 | BN74: 0,6 | BO74: - | BP74: - | BQ74: 0,8 | BR74: 0,07 | BS74: 0,1 | BT74: 2,3 | BU74: 0,3 | BV74: 0,23 | BW74: 11 | BX74: 0,6
A75: 01 | B75: 0103 | C75: 010301 | D75: entrées et plats composés | E75: plats composés | F75: plats de viande sans garniture | G75: 25035 | H75: Sauté d'agneau au curry, préemballé | J75: - | K75: - | L75: - | M75: - | N75: 73,5 | O75: 10,5 | P75: 10,5 | Q75: - | R75: 13,9 | S75: - | T75: - | U75: - | V75: - | W75: - | X75: - | Y75: - | Z75: - | AA75: 1 | AB75: 0 | AC75: 1,7 | AD75: 0 | AE75: traces | AF75: 6,7 | AG75: - | AH75: - | AI75: - | AJ75: - | AK75: - | AL75: - | AM75: - | AN75: - | AO75: - | AP75: - | AQ75: - | AR75: - | AS75: - | AT75: - | AU75: - | AV75: - | AW75: - | AX75: 1,29 | AY75: 17,5 | AZ75: - | BA75: 0,07 | BB75: 2,15 | BC75: - | BD75: 13,3 | BE75: 0,04 | BF75: 181 | BG75: 200 | BH75: - | BI75: 514 | BJ75: 2,77 | BK75: - | BL75: - | BM75: - | BN75: - | BO75: - | BP75: - | BQ75: - | BR75: - | BS75: - | BT75: - | BU75: - | BV75: - | BW75: - | BX75: -
A76: 01 | B76: 0103 | C76: 010301 | D76: entrées et plats composés | E76: plats composés | F76: plats de viande sans garniture | G76: 25058 | H76: Canard en sauce (poivre vert, chasseur, etc.), préemballé | J76: 605 | K76: 145 | L76: 605 | M76: 145 | N76: - | O76: 9,55 | P76: 9,55 | Q76: 10,2 | R76: 7,3 | S76: - | T76: - | U76: - | V76: - | W76: - | X76: - | Y76: - | Z76: - | AA76: traces | AB76: 0 | AC76: - | AD76: 0 | AE76: traces | AF76: - | AG76: - | AH76: - | AI76: - | AJ76: - | AK76: - | AL76: - | AM76: - | AN76: - | AO76: - | AP76: - | AQ76: - | AR76: - | AS76: - | AT76: - | AU76: - | AV76: - | AW76: - | AX76: - | AY76: - | AZ76: - | BA76: - | BB76: - | BC76: - | BD76: - | BE76: - | BF76: - | BG76: - | BH76: - | BI76: - | BJ76: - | BK76: - | BL76: - | BM76: - | BN76: - | BO76: - | BP76: - | BQ76: - | BR76: - | BS76: - | BT76: - | BU76: - | BV76: - | BW76: - | BX76: -
A77: 01 | B77: 0103 | C77: 010301 | D77: entrées et plats composés | E77: plats composés | F77: plats de viande sans garniture | G77: 25063 | H77: Lapin à la moutarde, préemballé | J77: 453 | K77: 108 | L77: 453 | M77: 108 | N77: - | O77: 14,9 | P77: 14,9 | Q77: 0,5 | R77: 5 | S77: 0,5 | T77: - | U77: - | V77: - | W77: - | X77: - | Y77: - | Z77: - | AA77: 0,8 | AB77: 0 | AC77: 1,2 | AD77: 0 | AE77: traces | AF77: 2,1 | AG77: - | AH77: - | AI77: - | AJ77: - | AK77: - | AL77: - | AM77: - | AN77: - | AO77: - | AP77: - | AQ77: - | AR77: - | AS77: - | AT77: - | AU77: - | AV77: - | AW77: - | AX77: 1,2 | AY77: - | AZ77: - | BA77: - | BB77: - | BC77: - | BD77: - | BE77: - | BF77: - | BG77: - | BH77: - | BI77: 480 | BJ77: - | BK77: - | BL77: - | BM77: - | BN77: - | BO77: - | BP77: - | BQ77: - | BR77: - | BS77: - | BT77: - | BU77: - | BV77: - | BW77: - | BX77: -
A78: 01 | B78: 0103 | C78: 010301 | D78: entrées et plats composés | E78: plats composés | F78: plats de viande sans garniture | G78: 25121 | H78: Coq au vin | J78: 555 | K78: 133 | L78: 555 | M78: 133 | N78: - | O78: 13 | P78: 13 | Q78: 4 | R78: 7 | S78: 1 | T78: - | U78: - | V78: - | W78: - | X78: - | Y78: - | Z78: - | AA78: 0,9 | AB78: 0 | AC78: 1,35 | AD78: 0 | AE78: traces | AF78: 1 | AG78: 3,87 | AH78: 1,75 | AI78: - | AJ78: - | AK78: - | AL78: - | AM78: - | AN78: - | AO78: - | AP78: - | AQ78: - | AR78: - | AS78: - | AT78: - | AU78: - | AV78: - | AW78: 65 | AX78: 1,05 | AY78: 14 | AZ78: - | BA78: 0,03 | BB78: 1,3 | BC78: 3,3 | BD78: 16 | BE78: 0,14 | BF78: 128 | BG78: 145 | BH78: 0,11 | BI78: 420 | BJ78: 0,21 | BK78: - | BL78: 0 | BM78: 0,04 | BN78: 0,48 | BO78: - | BP78: - | BQ78: 1,5 | BR78: 0,07 | BS78: 0,19 | BT78: 3,7 | BU78: 0,74 | BV78: 0,17 | BW78: 31 | BX78: 1,4
A79: 01 | B79: 0103 | C79: 010301 | D79: entrées et plats composés | E79: plats composés | F79: plats de viande sans garniture | G79: 25125 | H79: Paupiette de veau | J79: 801 | K79: 193 | L79: 801 | M79: 193 | N79: 64,1 | O79: 14,5 | P79: 14,5 | Q79: 2,6 | R79: 13,8 | S79: 0,41 | T79: - | U79: - | V79: - | W79: - | X79: - | Y79: - | Z79: 2,19 | AA79: 0,2 | AB79: 0 | AC79: 1,74 | AD79: 0 | AE79: traces | AF79: 5,45 | AG79: 3,05 | AH79: 1,28 | AI79: - | AJ79: - | AK79: - | AL79: - | AM79: - | AN79: - | AO79: - | AP79: - | AQ79: - | AR79: - | AS79: - | AT79: - | AU79: - | AV79: - | AW79: 63,3 | AX79: 1,26 | AY79: 27,6 | AZ79: - | BA79: 0,088 | BB79: 1 | BC79: 5,54 | BD79: 37,2 | BE79: 0,18 | BF79: 133 | BG79: 272 | BH79: 3,26 | BI79: 510 | BJ79: 1,25 | BK79: 24,9 | BL79: 1160 | BM79: 0,1 | BN79: 0,68 | BO79: - | BP79: - | BQ79: 1,34 | BR79: 0,084 | BS79: 0,14 | BT79: 3,51 | BU79: 0,59 | BV79: 0,28 | BW79: 14,3 | BX79: 0,41
A80: 01 | B80: 0103 | C80: 010301 | D80: entrées et plats composés | E80: plats composés | F80: plats de viande sans garniture | G80: 25126 | H80: Paupiette de volaille | J80: 691 | K80: 164 | L80: 691 | M80: 164 | N80: 64,2 | O80: 23,9 | P80: 23,9 | Q80: 8,8 | R80: 3,4 | S80: - | T80: - | U80: - | V80: - | W80: - | X80: - | Y80: - | Z80: 2,97 | AA80: 1,17 | AB80: 0 | AC80: 1,51 | AD80: 0 | AE80: traces | AF80: 0,65 | AG80: 1,63 | AH80: 0,81 | AI80: - | AJ80: - | AK80: - | AL80: - | AM80: - | AN80: - | AO80: - | AP80: - | AQ80: - | AR80: - | AS80: - | AT80: - | AU80: - | AV80: - | AW80: 59,6 | AX80: 1,05 | AY80: 27,6 | AZ80: - | BA80: 0,083 | BB80: 1,03 | BC80: 5,4 | BD80: 38,6 | BE80: 0,18 | BF80: 130 | BG80: 264 | BH80: 6,08 | BI80: 251 | BJ80: 1,09 | BK80: 26,1 | BL80: 1160 | BM80: 0,14 | BN80: 0,69 | BO80: - | BP80: - | BQ80: 1,33 | BR80: 0,082 | BS80: 0,11 | BT80: 3,97 | BU80: 0,56 | BV80: 0,31 | BW80: 13,8 | BX80: 0,28
A81: 01 | B81: 0103 | C81: 010301 | D81: entrées et plats composés | E81: plats composés | F81: plats de viande sans garniture | G81: 25172 | H81: Viande en sauce (aliment moyen) | J81: 436 | K81: 104 | L81: 436 | M81: 104 | N81: 77,1 | O81: 11,3 | P81: 11,3 | Q81: 3,65 | R81: 4,6 | S81: 1,34 | Z81: 1,71 | AA81: 1,08 | AB81: 0 | AC81: 1,3 | AD81: 0 | AE81: 0,39 | AF81: 1,8 | AG81: 1,51 | AH81: 0,63 | AI81: 0,047 | AJ81: 0,029 | AK81: 0,044 | AL81: 0,041 | AM81: 0,16 | AN81: 0,19 | AO81: 0,83 | AP81: 0,35 | AQ81: 1,24 | AR81: 0,52 | AS81: 0,028 | AT81: 0,02 | AV81: 0,005 | AW81: 49,8 | AX81: 0,85 | AY81: 17,1 | AZ81: 471 | BA81: 0,064 | BB81: 1,13 | BC81: 7,06 | BD81: 14,2 | BE81: 0,07 | BF81: 142 | BG81: 198 | BH81: 6,17 | BI81: 341 | BJ81: 2,4 | BK81: 12,1 | BL81: 542 | BM81: 0,23 | BN81: 0,81 | BQ81: 1,27 | BR81: 0,061 | BS81: 0,067 | BT81: 2,61 | BU81: 0,42 | BV81: 0,16 | BW81: 14,8 | BX81: 0,74
A82: 01 | B82: 0103 | C82: 010301 | D82: entrées et plats composés | E82: plats composés | F82: plats de viande sans garniture | G82: 25174 | H82: Poulet au curry et au lait de coco | J82: 517 | K82: 124 | L82: 517 | M82: 124 | N82: 75,2 | O82: 10,6 | P82: 10,6 | Q82: 3,15 | R82: 6,9 | S82: 1,49 | T82: 0,37 | U82: - | V82: 0,45 | W82: 0,22 | X82: < 0,2 | Y82: 0,45 | Z82: 1,65 | AA82: 1,1 | AB82: 0 | AC82: 1,56 | AD82: 0 | AE82: - | AF82: 3,03 | AG82: 2,06 | AH82: 1,37 | AI82: 0,08 | AJ82: 0,06 | AK82: 0,13 | AL82: 0,12 | AM82: 0,56 | AN82: 0,44 | AO82: 1,19 | AP82: 0,38 | AQ82: 1,86 | AR82: 1,3 | AS82: 0,05 | AT82: 0,02 | AU82: < 0,01 | AV82: < 0,01 | AW82: 37,3 | AX82: 1,07 | AY82: 18 | AZ82: 625 | BA82: 0,05 | BB82: 0,51 | BC82: < 20 | BD82: 18 | BE82: 0,12 | BF82: 110 | BG82: 210 | BH82: < 20 | BI82: 427 | BJ82: 0,44 | BK82: 21,3 | BL82: 412 | BM82: < 0,25 | BN82: 1,65 | BO82: 3,22 | BP82: - | BQ82: 2,51 | BR82: 0,032 | BS82: < 0,01 | BT82: 4,08 | BU82: 0,62 | BV82: 0,17 | BW82: 17,5 | BX82: 0,15
A83: 01 | B83: 0103 | C83: 010301 | D83: entrées et plats composés | E83: plats composés | F83: plats de viande sans garniture | G83: 25175 | H83: Meloukhia, plat à base de boeuf et corete, fait maison | J83: 783 | K83: 189 | L83: 783 | M83: 189 | N83: 67,7 | O83: 10,6 | P83: 10,6 | Q83: 1,2 | R83: 14,7 | S83: 1,2 | T83: - | U83: - | V83: - | W83: - | X83: - | Y83: - | Z83: 0 | AA83: 4,7 | AB83: 0 | AC83: 1,6 | AD83: 0 | AE83: traces | AF83: - | AG83: - | AH83: - | AI83: - | AJ83: - | AK83: - | AL83: - | AM83: - | AN83: - | AO83: - | AP83: - | AQ83: - | AR83: - | AS83: - | AT83: - | AU83: - | AV83: - | AW83: 23 | AX83: 0,93 | AY83: 51,3 | AZ83: - | BA83: 0,04 | BB83: 2,4 | BC83: 2,8 | BD83: 30,6 | BE83: 0,05 | BF83: 88 | BG83: 228 | BH83: 2,1 | BI83: 373 | BJ83: 2 | BK83: 0 | BL83: 143 | BM83: 0 | BN83: 5,1 | BO83: - | BP83: - | BQ83: 1,5 | BR83: 0,03 | BS83: 0,14 | BT83: 1,36 | BU83: 0,32 | BV83: 0,12 | BW83: 20 | BX83: 0,66
A84: 01 | B84: 0103 | C84: 010301 | D84: entrées et plats composés | E84: plats composés | F84: plats de viande sans garniture | G84: 25200 | H84: Palette à la diable, préemballée | J84: 501 | K84: 120 | L84: 501 | M84: 120 | N84: - | O84: 13,5 | P84: 13,5 | Q84: 2,08 | R84: 6,07 | S84: 1,38 | T84: - | U84: - | V84: - | W84: - | X84: - | Y84: - | Z84: - | AA84: 1,45 | AB84: 0 | AC84: 2,25 | AD84: 0 | AE84: traces | AF84: 2,2 | AG84: - | AH84: - | AI84: - | AJ84: - | AK84: - | AL84: - | AM84: - | AN84: - | AO84: - | AP84: - | AQ84: - | AR84: - | AS84: - | AT84: - | AU84: - | AV84: - | AW84: - | AX84: 2,25 | AY84: - | AZ84: - | BA84: - | BB84: 1 | BC84: - | BD84: - | BE84: - | BF84: - | BG84: - | BH84: - | BI84: 901 | BJ84: - | BK84: - | BL84: - | BM84: - | BN84: - | BO84: - | BP84: - | BQ84: - | BR84: - | BS84: - | BT84: - | BU84: - | BV84: - | BW84: - | BX84: -
A85: 01 | B85: 0103 | C85: 010301 | D85: entrées et plats composés | E85: plats composés | F85: plats de viande sans garniture | G85: 25201 | H85: Langue de boeuf sauce madère, préemballée | J85: 746 | K85: 180 | L85: 746 | M85: 180 | N85: - | O85: 9,5 | P85: 9,5 | Q85: 4,5 | R85: 13,5 | S85: 2,5 | T85: - | U85: - | V85: - | W85: - | X85: - | Y85: - | Z85: - | AA85: 1 | AB85: 0 | AC85: 1,08 | AD85: 0 | AE85: traces | AF85: 6 | AG85: - | AH85: - | AI85: - | AJ85: - | AK85: - | AL85: - | AM85: - | AN85: - | AO85: - | AP85: - | AQ85: - | AR85: - | AS85: - | AT85: - | AU85: - | AV85: - | AW85: - | AX85: 1,08 | AY85: - | AZ85: - | BA85: - | BB85: - | BC85: - | BD85: - | BE85: - | BF85: - | BG85: - | BH85: - | BI85: 430 | BJ85: - | BK85: - | BL85: - | BM85: - | BN85: - | BO85: - | BP85: - | BQ85: - | BR85: - | BS85: - | BT85: - | BU85: - | BV85: - | BW85: - | BX85: -
A86: 01 | B86: 0103 | C86: 010301 | D86: entrées et plats composés | E86: plats composés | F86: plats de viande sans garniture | G86: 25207 | H86: Porc au caramel, préemballé | J86: 569 | K86: 136 | L86: 569 | M86: 136 | N86: 70,7 | O86: 10 | P86: 10 | Q86: 11,4 | R86: 5,4 | S86: 7,9 | T86: 1,8 | U86: - | V86: 2,7 | W86: < 0,2 | X86: 0,7 | Y86: 2,7 | Z86: 1,3 | AA86: 0,7 | AB86: 0 | AC86: 1,84 | AD86: 0 | AE86: traces | AF86: 1,44 | AG86: 2,2 | AH86: 1,27 | AI86: < 0,01 | AJ86: < 0,01 | AK86: < 0,01 | AL86: < 0,01 | AM86: < 0,01 | AN86: 0,048 | AO86: 0,94 | AP86: 0,45 | AQ86: 1,97 | AR86: 1,21 | AS86: 0,056 | AT86: 0,0094 | AU86: < 0,01 | AV86: < 0,01 | AW86: 29 | AX86: 1,34 | AY86: 9,9 | AZ86: 805 | BA86: 0,04 | BB86: 0,49 | BC86: < 20 | BD86: 12 | BE86: 0,11 | BF86: 94 | BG86: 160 | BH86: < 20 | BI86: 536 | BJ86: 1,1 | BK86: < 21 | BL86: 64,5 | BM86: < 0,25 | BN86: 0,62 | BO86: 1,5 | BP86: - | BQ86: < 0,5 | BR86: 0,19 | BS86: 0,034 | BT86: 1,93 | BU86: 0,31 | BV86: 0,094 | BW86: 9,1 | BX86: 0,27
A87: 01 | B87: 0103 | C87: 010301 | D87: entrées et plats composés | E87: plats composés | F87: plats de viande sans garniture | G87: 25211 | H87: Boulettes au boeuf, à la sauce tomate, préemballées | J87: 487 | K87: 117 | L87: 487 | M87: 117 | N87: - | O87: 9 | P87: 9 | Q87: 5,5 | R87: 6,5 | S87: - | T87: - | U87: - | V87: - | W87: - | X87: - | Y87: - | Z87: - | AA87: traces | AB87: 0 | AC87: - | AD87: 0 | AE87: traces | AF87: - | AG87: - | AH87: - | AI87: - | AJ87: - | AK87: - | AL87: - | AM87: - | AN87: - | AO87: - | AP87: - | AQ87: - | AR87: - | AS87: - | AT87: - | AU87: - | AV87: - | AW87: - | AX87: - | AY87: - | AZ87: - | BA87: - | BB87: - | BC87: - | BD87: - | BE87: - | BF87: - | BG87: - | BH87: - | BI87: - | BJ87: - | BK87: - | BL87: - | BM87: - | BN87: - | BO87: - | BP87: - | BQ87: - | BR87: - | BS87: - | BT87: - | BU87: - | BV87: - | BW87: - | BX87: -
A88: 01 | B88: 0103 | C88: 010301 | D88: entrées et plats composés | E88: plats composés | F88: plats de viande sans garniture | G88: 25213 | H88: Paupiette de veau, préemballée, cuite au four | J88: 1150 | K88: 276 | L88: 1150 | M88: 276 | N88: 54,8 | O88: 22 | P88: 22 | Q88: 0,48 | R88: 20,5 | S88: 0,3 | T88: < 0,2 | U88: - | V88: 0,3 | W88: < 0,2 | X88: < 0,2 | Y88: < 0,2 | Z88: < 0,35 | AA88: 0,9 | AB88: 0 | AC88: 1,81 | AD88: 0 | AE88: traces | AF88: 8,19 | AG88: 8,77 | AH88: 2,51 | AI88: < 0,01 | AJ88: < 0,01 | AK88: < 0,01 | AL88: < 0,01 | AM88: 0,03 | AN88: 0,4 | AO88: 4,71 | AP88: 2,88 | AQ88: 7,77 | AR88: 2,07 | AS88: 0,23 | AT88: 0,07 | AU88: < 0,01 | AV88: < 0,01 | AW88: 89,5 | AX88: 1,07 | AY88: 24 | AZ88: 558 | BA88: 0,07 | BB88: 0,94 | BC88: < 20 | BD88: 18 | BE88: 0,03 | BF88: 180 | BG88: 260 | BH88: < 20 | BI88: 428 | BJ88: 2,3 | BK88: < 21 | BL88: - | BM88: < 0,25 | BN88: < 0,08 | BO88: 0,87 | BP88: - | BQ88: 1,62 | BR88: 0,16 | BS88: 0,071 | BT88: 3,83 | BU88: 0,59 | BV88: 0,22 | BW88: 11,9 | BX88: 1,61
A89: 01 | B89: 0103 | C89: 010301 | D89: entrées et plats composés | E89: plats composés | F89: plats de viande sans garniture | G89: 25538 | H89: Carpaccio de boeuf, avec marinade | J89: 1120 | K89: 271 | L89: 1120 | M89: 271 | N89: 57 | O89: 15,2 | P89: 15,2 | Q89: 0,55 | R89: 23 | S89: 0,5 | T89: - | U89: - | V89: - | W89: - | X89: - | Y89: - | Z89: 0,0024 | AA89: 0,36 | AB89: 0 | AC89: 2,04 | AD89: 0 | AE89: traces | AF89: 7,38 | AG89: 10 | AH89: 4 | AI89: - | AJ89: - | AK89: - | AL89: - | AM89: - | AN89: - | AO89: - | AP89: - | AQ89: - | AR89: - | AS89: - | AT89: - | AU89: - | AV89: - | AW89: 55,6 | AX89: 1,12 | AY89: 112 | AZ89: - | BA89: 0,1 | BB89: 1,84 | BC89: 9,12 | BD89: 22,6 | BE89: 0,064 | BF89: 187 | BG89: 242 | BH89: 5,84 | BI89: 437 | BJ89: 2,79 | BK89: 23,6 | BL89: 98,3 | BM89: 0,38 | BN89: 3,18 | BO89: - | BP89: - | BQ89: 5,87 | BR89: 0,088 | BS89: 0,17 | BT89: 2,11 | BU89: 0,28 | BV89: 0,27 | BW89: 12 | BX89: 2,04
A90: 01 | B90: 0103 | C90: 010301 | D90: entrées et plats composés | E90: plats composés | F90: plats de viande sans garniture | G90: 25565 | H90: Yakitori (brochettes japonaises grillées en sauce) | J90: 727 | K90: 172 | L90: 727 | M90: 172 | N90: 58,8 | O90: 26 | P90: 26 | Q90: 9,3 | R90: 3,3 | S90: 6,6 | T90: 1,1 | U90: - | V90: 1,4 | W90: < 0,2 | X90: 0,2 | Y90: 3,9 | Z90: 1,3 | AA90: 0,6 | AB90: 0 | AC90: 2,02 | AD90: 0 | AE90: traces | AF90: 1,2 | AG90: 1,18 | AH90: 0,78 | AI90: < 0,01 | AJ90: < 0,01 | AK90: 0,01 | AL90: < 0,01 | AM90: 0,07 | AN90: 0,04 | AO90: 0,64 | AP90: 0,16 | AQ90: 1,18 | AR90: 0,68 | AS90: 0,07 | AT90: 0,03 | AU90: < 0,01 | AV90: < 0,01 | AW90: 86,6 | AX90: 1,19 | AY90: 9,8 | AZ90: 706 | BA90: 0,06 | BB90: 0,61 | BC90: < 20 | BD90: 31 | BE90: 0,15 | BF90: 220 | BG90: 340 | BH90: < 20 | BI90: 475 | BJ90: 1,5 | BK90: < 21 | BL90: 10,5 | BM90: < 0,25 | BN90: 0,5 | BO90: < 0,8 | BP90: - | BQ90: - | BR90: 0,09 | BS90: 0,042 | BT90: 7,69 | BU90: 1,36 | BV90: 0,25 | BW90: 31,8 | BX90: 0,41
A91: 01 | B91: 0103 | C91: 010301 | D91: entrées et plats composés | E91: plats composés | F91: plats de viande sans garniture | G91: 25585 | H91: Brochette de boeuf, cuite | J91: 583 | K91: 139 | L91: 583 | M91: 139 | N91: 69,2 | O91: 21,9 | P91: 21,9 | Q91: 0,33 | R91: 5,2 | S91: - | T91: - | U91: - | V91: - | W91: - | X91: - | Y91: - | Z91: - | AA91: < 3 | AB91: 0 | AC91: 1,83 | AD91: 0 | AE91: traces | AF91: 1,8 | AG91: 2,35 | AH91: 0,71 | AI91: < 0,01 | AJ91: < 0,01 | AK91: < 0,01 | AL91: < 0,01 | AM91: < 0,01 | AN91: 0,08 | AO91: 1,03 | AP91: 0,64 | AQ91: 2,03 | AR91: 0,51 | AS91: 0,12 | AT91: 0,04 | AU91: < 0,01 | AV91: < 0,01 | AW91: 60,2 | AX91: 0,86 | AY91: 23 | AZ91: 445 | BA91: 0,1 | BB91: 2,4 | BC91: < 20 | BD91: 25 | BE91: 0,08 | BF91: 200 | BG91: 430 | BH91: < 20 | BI91: 345 | BJ91: 4,4 | BK91: < 21 | BL91: - | BM91: < 0,25 | BN91: 0,65 | BO91: 3,71 | BP91: - | BQ91: 10,8 | BR91: 0,041 | BS91: 0,14 | BT91: 4,72 | BU91: 0,54 | BV91: 0,31 | BW91: 19,8 | BX91: 1,94
A92: 01 | B92: 0103 | C92: 010301 | D92: entrées et plats composés | E92: plats composés | F92: plats de viande sans garniture | G92: 25586 | H92: Brochette de volaille, cuite | J92: 576 | K92: 137 | L92: 576 | M92: 137 | N92: 68 | O92: 23,1 | P92: 23,1 | Q92: 1,39 | R92: 4 | S92: - | T92: - | U92: - | V92: - | W92: - | X92: - | Y92: - | Z92: - | AA92: < 3 | AB92: 0 | AC92: 2,05 | AD92: 0 | AE92: traces | AF92: 1,02 | AG92: 1,69 | AH92: 0,99 | AI92: < 0,01 | AJ92: < 0,01 | AK92: < 0,01 | AL92: < 0,01 | AM92: 0,02 | AN92: 0,03 | AO92: 0,73 | AP92: 0,24 | AQ92: 1,48 | AR92: 0,87 | AS92: 0,09 | AT92: 0,03 | AU92: < 0,01 | AV92: < 0,01 | AW92: 76,9 | AX92: 0,75 | AY92: 13 | AZ92: 465 | BA92: 0,05 | BB92: 0,61 | BC92: < 20 | BD92: 33 | BE92: 0,1 | BF92: 230 | BG92: 520 | BH92: < 20 | BI92: 299 | BJ92: 1,1 | BK92: < 21 | BL92: - | BM92: < 0,25 | BN92: 0,74 | BO92: 2,41 | BP92: - | BQ92: 8,49 | BR92: 0,071 | BS92: 0,07 | BT92: 8,91 | BU92: 1,71 | BV92: 0,47 | BW92: 88,3 | BX92: 0,7
A93: 01 | B93: 0103 | C93: 010302 | D93: entrées et plats composés | E93: plats composés | F93: plats de viande et féculents | G93: 25009 | H93: Hachis parmentier à la viande, préemballé | J93: 577 | K93: 138 | L93: 577 | M93: 138 | N93: 73,6 | O93: 5,99 | P93: 5,99 | Q93: 9,39 | R93: 8,22 | S93: 1,47 | T93: 0,18 | U93: - | V93: 0,18 | W93: 0,94 | X93: < 0,2 | Y93: 0,16 | Z93: - | AA93: 1,43 | AB93: 0 | AC93: 1,39 | AD93: 0 | AE93: traces | AF93: 4,7 | AG93: 2,75 | AH93: 0,41 | AI93: 0,1 | AJ93: 0,059 | AK93: 0,045 | AL93: 0,096 | AM93: 0,14 | AN93: 0,54 | AO93: 2,29 | AP93: 0,8 | AQ93: 2,44 | AR93: 0,38 | AS93: 0,025 | AT93: 0,0033 | AU93: 0,00089 | AV93: 0,000082 | AW93: 20 | AX93: 0,83 | AY93: 59,6 | AZ93: 482 | BA93: 0,079 | BB93: 0,71 | BC93: 4,55 | BD93: 17,5 | BE93: 0,087 | BF93: 45,5 | BG93: 184 | BH93: < 10 | BI93: 322 | BJ93: 1,2 | BK93: 45,9 | BL93: 0 | BM93: 0,1 | BN93: 0,2 | BO93: - | BP93: - | BQ93: 0,65 | BR93: 0,02 | BS93: 0,07 | BT93: - | BU93: - | BV93: 0,08 | BW93: 5,71 | BX93: 0,42
A94: 01 | B94: 0103 | C94: 010302 | D94: entrées et plats composés | E94: plats composés | F94: plats de viande et féculents | G94: 25029 | H94: Couscous au mouton | J94: 626 | K94: 149 | L94: 626 | M94: 149 | N94: 68,9 | O94: 8,31 | P94: 8,31 | Q94: 12,2 | R94: 7,2 | S94: 1,38 | T94: - | U94: - | V94: - | W94: - | X94: - | Y94: - | Z94: 10,8 | AA94: 1,3 | AB94: 0 | AC94: 1,4 | AD94: 0 | AE94: traces | AF94: - | AG94: - | AH94: - | AI94: - | AJ94: - | AK94: - | AL94: - | AM94: - | AN94: - | AO94: - | AP94: - | AQ94: - | AR94: - | AS94: - | AT94: - | AU94: - | AV94: - | AW94: 17,5 | AX94: 0,81 | AY94: 31,6 | AZ94: 607 | BA94: 0,1 | BB94: 1,24 | BC94: 3 | BD94: 23,2 | BE94: 0,19 | BF94: 95,4 | BG94: 187 | BH94: - | BI94: 322 | BJ94: 1,22 | BK94: 0 | BL94: 724 | BM94: 0,14 | BN94: 0,4 | BO94: - | BP94: - | BQ94: 5 | BR94: 0,075 | BS94: 0,075 | BT94: 1,7 | BU94: 0,3 | BV94: 0,11 | BW94: 18 | BX94: 0,5
A95: 01 | B95: 0103 | C95: 010302 | D95: entrées et plats composés | E95: plats composés | F95: plats de viande et féculents | G95: 25043 | H95: Couscous à la viande ou au poulet, préemballé, allégé | J95: 382 | K95: 90,7 | L95: 382 | M95: 90,7 | N95: 72,9 | O95: 5,9 | P95: 5,9 | Q95: 11,5 | R95: 1,9 | S95: 2,1 | T95: - | U95: - | V95: - | W95: - | X95: - | Y95: - | Z95: 9,4 | AA95: 2 | AB95: 0 | AC95: 1,65 | AD95: 0 | AE95: traces | AF95: 0,4 | AG95: 0,75 | AH95: 0,59 | AI95: - | AJ95: - | AK95: - | AL95: - | AM95: - | AN95: - | AO95: - | AP95: - | AQ95: - | AR95: - | AS95: - | AT95: - | AU95: - | AV95: - | AW95: 16 | AX95: 0,7 | AY95: 22 | AZ95: - | BA95: - | BB95: 0,78 | BC95: 2,3 | BD95: 17 | BE95: 0,16 | BF95: 88 | BG95: 148 | BH95: - | BI95: 300 | BJ95: - | BK95: 34 | BL95: 779 | BM95: 0,04 | BN95: 0,97 | BO95: - | BP95: - | BQ95: 7 | BR95: 0,07 | BS95: 0,07 | BT95: 2 | BU95: 0,3 | BV95: 0,13 | BW95: 18 | BX95: 0,04
A96: 01 | B96: 0103 | C96: 010302 | D96: entrées et plats composés | E96: plats composés | F96: plats de viande et féculents | G96: 25057 | H96: Poêlée de pommes de terre préfrites, lardons ou poulet, et autres, sans légumes verts, préemballée | J96: 702 | K96: 168 | L96: 702 | M96: 168 | N96: 65 | O96: 3,2 | P96: 3,2 | Q96: 16,2 | R96: 9,6 | S96: 1,7 | T96: 0,2 | U96: - | V96: 0,6 | W96: < 0,2 | X96: < 0,2 | Y96: 0,3 | Z96: 14,5 | AA96: 2,1 | AB96: 0 | AC96: 1,55 | AD96: 0 | AE96: traces | AF96: 2,9 | AG96: 3,67 | AH96: 2,64 | AI96: 0,02 | AJ96: 0,02 | AK96: 0,02 | AL96: 0,03 | AM96: 0,03 | AN96: 0,13 | AO96: 1,47 | AP96: 0,54 | AQ96: 3,46 | AR96: 2,52 | AS96: 0,12 | AT96: < 0,01 | AU96: < 0,01 | AV96: < 0,01 | AW96: 10,5 | AX96: 0,6 | AY96: 26 | AZ96: 465 | BA96: 0,08 | BB96: 0,49 | BC96: < 20 | BD96: 20 | BE96: 0,1 | BF96: 88 | BG96: 390 | BH96: < 20 | BI96: 260 | BJ96: 0,45 | BK96: < 21 | BL96: 22,6 | BM96: < 0,25 | BN96: 1,49 | BO96: 3,13 | BP96: - | BQ96: 3,04 | BR96: 0,086 | BS96: 0,056 | BT96: 1,28 | BU96: 0,41 | BV96: 0,15 | BW96: 23,8 | BX96: 0,15
A97: 01 | B97: 0103 | C97: 010302 | D97: entrées et plats composés | E97: plats composés | F97: plats de viande et féculents | G97: 25127 | H97: Couscous royal (avec plusieurs viandes), préemballé | J97: 553 | K97: 132 | L97: 553 | M97: 132 | N97: 69,2 | O97: 7,69 | P97: 7,69 | Q97: 14 | R97: 4,53 | S97: 1,57 | T97: 0,46 | U97: - | V97: 0,48 | W97: < 0,1 | X97: 0,31 | Y97: 0,28 | Z97: 12,5 | AA97: 2,1 | AB97: 0 | AC97: 1,33 | AD97: 0 | AE97: traces | AF97: 1,54 | AG97: 2,14 | AH97: 0,6 | AI97: < 0,01 | AJ97: < 0,01 | AK97: 0,0036 | AL97: 0,0036 | AM97: 0,014 | AN97: 0,067 | AO97: 0,84 | AP97: 0,31 | AQ97: 1,93 | AR97: 0,52 | AS97: 0,07 | AT97: 0,0086 | AU97: - | AV97: < 0,01 | AW97: 20 | AX97: 0,88 | AY97: 25,2 | AZ97: 474 | BA97: 0,098 | BB97: 0,93 | BC97: 5,8 | BD97: 18,8 | BE97: 0,21 | BF97: 72,3 | BG97: 179 | BH97: < 2,58 | BI97: 345 | BJ97: 1,02 | BK97: 10,6 | BL97: 700 | BM97: 0 | BN97: 0,4 | BO97: - | BP97: - | BQ97: 1,69 | BR97: 0,07 | BS97: 0,09 | BT97: 1,9 | BU97: 0,3 | BV97: 0,15 | BW97: 17,2 | BX97: 0,28
A98: 01 | B98: 0103 | C98: 010302 | D98: entrées et plats composés | E98: plats composés | F98: plats de viande et féculents | G98: 25138 | H98: Couscous au poulet | J98: 547 | K98: 130 | L98: 547 | M98: 130 | N98: 66,9 | O98: 7,5 | P98: 7,5 | Q98: 15,6 | R98: 3,85 | S98: 2,87 | T98: - | U98: - | V98: - | W98: - | X98: - | Y98: - | Z98: 12,8 | AA98: 1,47 | AB98: 0 | AC98: 1,24 | AD98: 0 | AE98: traces | AF98: 1,17 | AG98: 1,61 | AH98: 0,86 | AI98: - | AJ98: - | AK98: - | AL98: - | AM98: - | AN98: - | AO98: - | AP98: - | AQ98: - | AR98: - | AS98: - | AT98: - | AU98: - | AV98: - | AW98: 26,6 | AX98: 0,79 | AY98: 18,4 | AZ98: 674 | BA98: - | BB98: 0,86 | BC98: 3 | BD98: 18,4 | BE98: - | BF98: 69 | BG98: 153 | BH98: - | BI98: 307 | BJ98: - | BK98: 14 | BL98: 700 | BM98: 0,01 | BN98: 0,48 | BO98: - | BP98: - | BQ98: 4,05 | BR98: 0,08 | BS98: 0,09 | BT98: 1,9 | BU98: 0,3 | BV98: 0,14 | BW98: 19,1 | BX98: 0,13
A99: 01 | B99: 0103 | C99: 010302 | D99: entrées et plats composés | E99: plats composés | F99: plats de viande et féculents | G99: 25152 | H99: Couscous à la viande, préemballé | J99: 537 | K99: 128 | L99: 537 | M99: 128 | N99: 69,2 | O99: 7,59 | P99: 7,59 | Q99: 12,5 | R99: 4,73 | S99: 1,97 | T99: 0,5 | U99: - | V99: 0,6 | W99: < 0,1 | X99: 0,55 | Y99: 0,25 | Z99: - | AA99: 2,53 | AB99: 0 | AC99: 1,33 | AD99: 0 | AE99: traces | AF99: 1,24 | AG99: 1,54 | AH99: 0,63 | AI99: < 0,05 | AJ99: < 0,05 | AK99: < 0,05 | AL99: 0,003 | AM99: 0,007 | AN99: 0,059 | AO99: 0,7 | AP99: 0,35 | AQ99: - | AR99: - | AS99: 0,067 | AT99: - | AU99: - | AV99: - | AW99: - | AX99: 0,78 | AY99: 25,2 | AZ99: 474 | BA99: 0,098 | BB99: - | BC99: - | BD99: 18,8 | BE99: 0,21 | BF99: - | BG99: 179 | BH99: < 2,58 | BI99: 313 | BJ99: 1,02 | BK99: - | BL99: - | BM99: - | BN99: - | BO99: - | BP99: - | BQ99: - | BR99: - | BS99: - | BT99: - | BU99: - | BV99: - | BW99: - | BX99: -
A100: 01 | B100: 0103 | C100: 010302 | D100: entrées et plats composés | E100: plats composés | F100: plats de viande et féculents | G100: 25195 | H100: Parmentier de canard, préemballé | J100: 608 | K100: 146 | L100: 608 | M100: 146 | N100: 69,9 | O100: 6,82 | P100: 6,82 | Q100: 8,51 | R100: 9,06 | S100: 1,96 | T100: < 0,3 | U100: - | V100: < 0,3 | W100: - | X100: < 0,3 | Y100: 0,2 | Z100: - | AA100: 1,55 | AB100: 0 | AC100: 1,32 | AD100: 0 | AE100: traces | AF100: 4,5 | AG100: 3,56 | AH100: 0,65 | AI100: - | AJ100: - | AK100: - | AL100: - | AM100: - | AN100: - | AO100: - | AP100: - | AQ100: - | AR100: 0,53 | AS100: 0,06 | AT100: - | AU100: - | AV100: - | AW100: - | AX100: 0,81 | AY100: - | AZ100: - | BA100: - | BB100: - | BC100: - | BD100: - | BE100: - | BF100: - | BG100: - | BH100: - | BI100: 310 | BJ100: - | BK100: - | BL100: - | BM100: - | BN100: - | BO100: - | BP100: - | BQ100: - | BR100: - | BS100: - | BT100: - | BU100: - | BV100: - | BW100: - | BX100: -
A101: 01 | B101: 0103 | C101: 010302 | D101: entrées et plats composés | E101: plats composés | F101: plats de viande et féculents | G101: 25587 | H101: Parmentier de canard, préemballé, cuit | J101: 699 | K101: 168 | L101: 699 | M101: 168 | N101: 68,5 | O101: 7 | P101: 7 | Q101: 10,5 | R101: 10,2 | S101: 1,7 | T101: < 0,2 | U101: - | V101: < 0,2 | W101: 1,7 | X101: < 0,2 | Y101: < 0,2 | Z101: 8,4 | AA101: 1,2 | AB101: 0 | AC101: 1,47 | AD101: 0 | AE101: 1,16 | AF101: 4,7 | AG101: 3,89 | AH101: 1,02 | AI101: 0,11 | AJ101: 0,07 | AK101: 0,05 | AL101: 0,09 | AM101: 0,14 | AN101: 0,4 | AO101: 3,04 | AP101: 0,72 | AQ101: 3,51 | AR101: 0,92 | AS101: 0,069 | AT101: 0,03 | AU101: < 0,01 | AV101: < 0,01 | AW101: 37,9 | AX101: 0,74 | AY101: 39 | AZ101: 498 | BA101: 0,07 | BB101: 0,68 | BC101: < 20 | BD101: 14 | BE101: 0,06 | BF101: 74 | BG101: 290 | BH101: < 20 | BI101: 296 | BJ101: 0,89 | BK101: 37,7 | BL101: - | BM101: < 0,25 | BN101: < 0,08 | BO101: 1,59 | BP101: - | BQ101: < 0,5 | BR101: 0,08 | BS101: 0,071 | BT101: 1,4 | BU101: 0,55 | BV101: 0,11 | BW101: 45,9 | BX101: 0,61
A102: 01 | B102: 0103 | C102: 010303 | D102: entrées et plats composés | E102: plats composés | F102: plats de viande et légumes/légumineuses | G102: 25002 | H102: Cassoulet, appertisé | J102: 539 | K102: 129 | L102: 539 | M102: 129 | N102: 70,6 | O102: 8,06 | P102: 8,06 | Q102: 9,41 | R102: 5,77 | S102: 1,06 | T102: < 0,3 | U102: - | V102: 0,2 | W102: - | X102: < 0,28 | Y102: 0,29 | Z102: 7,3 | AA102: 3,55 | AB102: 0 | AC102: 1,63 | AD102: 0 | AE102: traces | AF102: 2,07 | AG102: 2,63 | AH102: 0,8 | AI102: < 0,05 | AJ102: < 0,05 | AK102: < 0,05 | AL102: 0,0055 | AM102: 0,0055 | AN102: 0,063 | AO102: 1,37 | AP102: 0,63 | AQ102: - | AR102: 0,53 | AS102: 0,14 | AT102: - | AU102: - | AV102: - | AW102: 21,3 | AX102: 0,97 | AY102: 45,7 | AZ102: 495 | BA102: 0,14 | BB102: 1,23 | BC102: 6 | BD102: 34,8 | BE102: 0,22 | BF102: 107 | BG102: 289 | BH102: < 10 | BI102: 388 | BJ102: 0,88 | BK102: 3,5 | BL102: 0 | BM102: < 0,5 | BN102: 0,18 | BO102: - | BP102: - | BQ102: 2,94 | BR102: 0,083 | BS102: 0,057 | BT102: 1,25 | BU102: 0,16 | BV102: 0,091 | BW102: 30 | BX102: 0,12
A103: 01 | B103: 0103 | C103: 010303 | D103: entrées et plats composés | E103: plats composés | F103: plats de viande et légumes/légumineuses | G103: 25003 | H103: Choucroute garnie, préemballée | J103: 454 | K103: 109 | L103: 454 | M103: 109 | N103: 82,4 | O103: 5,06 | P103: 5,06 | Q103: 2,8 | R103: 8,06 | S103: 0,66 | T103: < 0,3 | U103: - | V103: 0,28 | W103: - | X103: < 0,28 | Y103: < 0,29 | Z103: - | AA103: 2,71 | AB103: 0 | AC103: 1,6 | AD103: 0 | AE103: traces | AF103: 3,22 | AG103: 3,45 | AH103: 0,96 | AI103: < 0,05 | AJ103: < 0,05 | AK103: < 0,05 | AL103: 0,0075 | AM103: 0,0075 | AN103: 0,1 | AO103: 1,86 | AP103: 0,98 | AQ103: - | AR103: 0,82 | AS103: 0,074 | AT103: - | AU103: - | AV103: - | AW103: 34,7 | AX103: 1,39 | AY103: 27,1 | AZ103: 633 | BA103: 0,076 | BB103: 0,83 | BC103: 17,8 | BD103: 18 | BE103: 0,067 | BF103: 60,6 | BG103: 97,5 | BH103: < 10 | BI103: 552 | BJ103: 0,84 | BK103: 0 | BL103: 0 | BM103: 0 | BN103: 0,25 | BO103: - | BP103: - | BQ103: 9,09 | BR103: 0,14 | BS103: 0,11 | BT103: 0,68 | BU103: - | BV103: 0,02 | BW103: 10 | BX103: -
A104: 01 | B104: 0103 | C104: 010303 | D104: entrées et plats composés | E104: plats composés | F104: plats de viande et légumes/légumineuses | G104: 25010 | H104: Petit salé ou saucisse aux lentilles, préemballé | J104: 494 | K104: 118 | L104: 494 | M104: 118 | N104: 73,5 | O104: 8,24 | P104: 8,24 | Q104: 8,89 | R104: 4,87 | S104: 1,51 | T104: < 0,3 | U104: - | V104: 0,22 | W104: - | X104: < 0,28 | Y104: 0,3 | Z104: 6,3 | AA104: 2,83 | AB104: 0 | AC104: 1,64 | AD104: 0 | AE104: traces | AF104: 1,89 | AG104: 1,97 | AH104: 0,6 | AI104: < 0,05 | AJ104: < 0,05 | AK104: < 0,05 | AL104: 0,004 | AM104: 0,004 | AN104: 0,056 | AO104: 1 | AP104: 0,48 | AQ104: - | AR104: 0,56 | AS104: 0,043 | AT104: - | AU104: - | AV104: < 0,01 | AW104: 27 | AX104: 0,98 | AY104: 20 | AZ104: 610 | BA104: 0,2 | BB104: 1,8 | BC104: 2 | BD104: 19,4 | BE104: 0,3 | BF104: 145 | BG104: 167 | BH104: 2,8 | BI104: 384 | BJ104: 1,2 | BK104: < 2 | BL104: 280 | BM104: < 0,5 | BN104: 0,39 | BO104: - | BP104: - | BQ104: < 0,5 | BR104: 0,24 | BS104: 0,075 | BT104: 1,5 | BU104: 0,23 | BV104: 0,14 | BW104: 22,9 | BX104: 0,13
A105: 01 | B105: 0103 | C105: 010303 | D105: entrées et plats composés | E105: plats composés | F105: plats de viande et légumes/légumineuses | G105: 25013 | H105: Pot-au-feu, préemballé | J105: 326 | K105: 77,5 | L105: 326 | M105: 77,5 | N105: 82,9 | O105: 10,9 | P105: 10,9 | Q105: 3,2 | R105: 2,02 | S105: 1,5 | T105: - | U105: - | V105: 0,4 | W105: - | X105: < 0,2 | Y105: 0,7 | Z105: 1,7 | AA105: 1,5 | AB105: 0 | AC105: 0,78 | AD105: 0 | AE105: traces | AF105: 0,82 | AG105: 0,97 | AH105: 0,05 | AI105: < 0,01 | AJ105: < 0,01 | AK105: < 0,01 | AL105: 0,0014 | AM105: 0,0015 | AN105: 0,053 | AO105: 0,57 | AP105: 0,2 | AQ105: 0,97 | AR105: 0,04 | AS105: 0,0079 | AT105: 0,002 | AU105: - | AV105: < 0,01 | AW105: 28,8 | AX105: 0,32 | AY105: 23,5 | AZ105: 304 | BA105: 0,15 | BB105: 1,69 | BC105: 6 | BD105: 16,2 | BE105: 0,069 | BF105: - | BG105: 189 | BH105: < 10 | BI105: 130 | BJ105: 3,48 | BK105: - | BL105: 718 | BM105: - | BN105: - | BO105: - | BP105: - | BQ105: - | BR105: - | BS105: - | BT105: - | BU105: - | BV105: - | BW105: 4,6 | BX105: -
A106: 01 | B106: 0103 | C106: 010303 | D106: entrées et plats composés | E106: plats composés | F106: plats de viande et légumes/légumineuses | G106: 25065 | H106: Boeuf aux carottes | J106: 406 | K106: 96,6 | L106: 406 | M106: 96,6 | N106: 78,5 | O106: 13,2 | P106: 13,2 | Q106: 3,3 | R106: 3,15 | S106: 0,6 | T106: - | U106: - | V106: - | W106: - | X106: - | Y106: - | Z106: 2,7 | AA106: 1,1 | AB106: 0 | AC106: 1,15 | AD106: 0 | AE106: traces | AF106: 1,21 | AG106: 1,47 | AH106: 0,44 | AI106: - | AJ106: - | AK106: - | AL106: 0,003 | AM106: 0,0033 | AN106: 0,059 | AO106: 0,71 | AP106: 0,31 | AQ106: 1,47 | AR106: 0,39 | AS106: 0,02 | AT106: 0,018 | AU106: - | AV106: - | AW106: 47 | AX106: 0,58 | AY106: 15,9 | AZ106: 425 | BA106: < 0,1 | BB106: 0,9 | BC106: 3,5 | BD106: 11,3 | BE106: < 0,1 | BF106: 95 | BG106: 119 | BH106: 3,2 | BI106: 231 | BJ106: 3,5 | BK106: 0 | BL106: 456 | BM106: 0 | BN106: 0,4 | BO106: - | BP106: - | BQ106: 2 | BR106: 0,07 | BS106: 0,16 | BT106: 1,77 | BU106: 0,44 | BV106: 0,16 | BW106: 9,5 | BX106: 0,8
A107: 01 | B107: 0103 | C107: 010303 | D107: entrées et plats composés | E107: plats composés | F107: plats de viande et légumes/légumineuses | G107: 25071 | H107: Potée auvergnate (chou et porc) | J107: 342 | K107: 82,1 | L107: 342 | M107: 82,1 | N107: 82,5 | O107: 6 | P107: 6 | Q107: 3,7 | R107: 4,3 | S107: 0,86 | T107: 0,31 | U107: - | V107: 0,37 | W107: - | X107: < 0,3 | Y107: 0,19 | Z107: 2,84 | AA107: 2,3 | AB107: 0 | AC107: 1,26 | AD107: 0 | AE107: traces | AF107: 1,57 | AG107: 2,11 | AH107: 0,58 | AI107: - | AJ107: - | AK107: - | AL107: - | AM107: - | AN107: - | AO107: - | AP107: - | AQ107: - | AR107: 0,49 | AS107: 0,05 | AT107: - | AU107: - | AV107: - | AW107: 28 | AX107: 0,84 | AY107: 30,5 | AZ107: - | BA107: 0,09 | BB107: 1,05 | BC107: 4 | BD107: 14,3 | BE107: 0,15 | BF107: 78 | BG107: 221 | BH107: 2,4 | BI107: 356 | BJ107: 0,6 | BK107: 0 | BL107: 587 | BM107: 0 | BN107: 0,5 | BO107: - | BP107: - | BQ107: 10,5 | BR107: 0,18 | BS107: 0,09 | BT107: 1,23 | BU107: 0,31 | BV107: 0,16 | BW107: 19,9 | BX107: 0,2
A108: 01 | B108: 0103 | C108: 010303 | D108: entrées et plats composés | E108: plats composés | F108: plats de viande et légumes/légumineuses | G108: 25098 | H108: Cassoulet au porc, appertisé | J108: 552 | K108: 132 | L108: 552 | M108: 132 | N108: 71,1 | O108: 8,3 | P108: 8,3 | Q108: 8,6 | R108: 6,3 | S108: 1,8 | T108: - | U108: - | V108: - | W108: - | X108: - | Y108: - | Z108: - | AA108: 4 | AB108: 0 | AC108: 1,67 | AD108: 0 | AE108: traces | AF108: 2,2 | AG108: - | AH108: - | AI108: - | AJ108: - | AK108: - | AL108: - | AM108: - | AN108: - | AO108: - | AP108: - | AQ108: - | AR108: - | AS108: - | AT108: - | AU108: - | AV108: - | AW108: - | AX108: 1,1 | AY108: - | AZ108: 474 | BA108: - | BB108: - | BC108: - | BD108: - | BE108: - | BF108: - | BG108: 293 | BH108: - | BI108: 500 | BJ108: - | BK108: - | BL108: - | BM108: - | BN108: - | BO108: - | BP108: - | BQ108: - | BR108: - | BS108: - | BT108: - | BU108: - | BV108: - | BW108: - | BX108: -
A109: 01 | B109: 0103 | C109: 010303 | D109: entrées et plats composés | E109: plats composés | F109: plats de viande et légumes/légumineuses | G109: 25099 | H109: Cassoulet au canard ou oie, appertisé | J109: 672 | K109: 161 | L109: 672 | M109: 161 | N109: 68,6 | O109: 10,5 | P109: 10,5 | Q109: 10,1 | R109: 7,86 | S109: 1,09 | T109: - | U109: - | V109: < 0,2 | W109: - | X109: < 0,2 | Y109: < 0,4 | Z109: - | AA109: 3,86 | AB109: 0 | AC109: 1,6 | AD109: 0 | AE109: traces | AF109: 2,43 | AG109: 2,61 | AH109: 0,88 | AI109: < 0,01 | AJ109: < 0,01 | AK109: < 0,01 | AL109: < 0,01 | AM109: < 0,01 | AN109: 0,06 | AO109: 1,31 | AP109: 0,53 | AQ109: 2,26 | AR109: 0,73 | AS109: 0,11 | AT109: - | AU109: - | AV109: < 0,01 | AW109: - | AX109: 1,05 | AY109: - | AZ109: 570 | BA109: - | BB109: - | BC109: - | BD109: - | BE109: - | BF109: - | BG109: 307 | BH109: - | BI109: 416 | BJ109: - | BK109: - | BL109: - | BM109: - | BN109: - | BO109: - | BP109: - | BQ109: - | BR109: - | BS109: - | BT109: - | BU109: - | BV109: - | BW109: - | BX109: -
A110: 01 | B110: 0103 | C110: 010303 | D110: entrées et plats composés | E110: plats composés | F110: plats de viande et légumes/légumineuses | G110: 25103 | H110: Tomate farcie | J110: 503 | K110: 122 | L110: 503 | M110: 122 | N110: 78,5 | O110: 5,49 | P110: 5,49 | Q110: 2 | R110: 9,67 | S110: 0,88 | T110: 0,47 | U110: - | V110: 0,41 | W110: < 0,3 | X110: < 0,3 | Y110: < 0,3 | Z110: 1,12 | AA110: 2,31 | AB110: 0 | AC110: 1,33 | AD110: 0 | AE110: traces | AF110: 3,24 | AG110: 4,16 | AH110: 1,08 | AI110: < 0,05 | AJ110: < 0,05 | AK110: < 0,05 | AL110: 0,0085 | AM110: 0,0085 | AN110: 0,13 | AO110: 2,01 | AP110: 1,05 | AQ110: - | AR110: - | AS110: 0,086 | AT110: - | AU110: - | AV110: - | AW110: 42 | AX110: 0,7 | AY110: 18,4 | AZ110: - | BA110: 0,066 | BB110: 0,87 | BC110: 4 | BD110: 12,8 | BE110: 0,12 | BF110: 62 | BG110: 199 | BH110: < 2,2 | BI110: 280 | BJ110: 0,75 | BK110: 10 | BL110: - | BM110: 0,1 | BN110: 1,1 | BO110: - | BP110: - | BQ110: 7 | BR110: 0,06 | BS110: 0,06 | BT110: 0,9 | BU110: - | BV110: 0,07 | BW110: - | BX110: -
A111: 01 | B111: 0103 | C111: 010303 | D111: entrées et plats composés | E111: plats composés | F111: plats de viande et légumes/légumineuses | G111: 25106 | H111: Chou farci, préemballé | J111: 393 | K111: 94,9 | L111: 393 | M111: 94,9 | N111: 81,2 | O111: 5,3 | P111: 5,3 | Q111: 2 | R111: 6,6 | S111: 2 | T111: 0,72 | U111: - | V111: 0,88 | W111: < 0,3 | X111: < 0,3 | Y111: 0,4 | Z111: - | AA111: 3,13 | AB111: 0 | AC111: 1,44 | AD111: 0 | AE111: traces | AF111: - | AG111: - | AH111: - | AI111: - | AJ111: - | AK111: - | AL111: - | AM111: - | AN111: - | AO111: - | AP111: - | AQ111: - | AR111: - | AS111: - | AT111: - | AU111: - | AV111: - | AW111: - | AX111: 0,87 | AY111: 145 | AZ111: - | BA111: 0,23 | BB111: - | BC111: - | BD111: 41,4 | BE111: 0,65 | BF111: - | BG111: - | BH111: 5,33 | BI111: 350 | BJ111: 0,8 | BK111: - | BL111: - | BM111: - | BN111: - | BO111: - | BP111: - | BQ111: - | BR111: - | BS111: - | BT111: - | BU111: - | BV111: - | BW111: - | BX111: -
A112: 01 | B112: 0103 | C112: 010303 | D112: entrées et plats composés | E112: plats composés | F112: plats de viande et légumes/légumineuses | G112: 25111 | H112: Chili con carne, préemballé | J112: 494 | K112: 118 | L112: 494 | M112: 118 | N112: 74,2 | O112: 7,13 | P112: 7,13 | Q112: 13 | R112: 3,35 | S112: 2,58 | T112: 0,49 | U112: 0 | V112: 0,42 | W112: 0 | X112: < 0,1 | Y112: 0,77 | Z112: 4,6 | AA112: 3,56 | AB112: 0 | AC112: 1,8 | AD112: 0 | AE112: traces | AF112: 1,13 | AG112: 1,39 | AH112: 0,32 | AI112: 0,0028 | AJ112: < 0,005 | AK112: 0,0018 | AL112: 0,00092 | AM112: 0,0028 | AN112: 0,081 | AO112: 0,68 | AP112: 0,37 | AQ112: 1,1 | AR112: 0,18 | AS112: 0,1 | AT112: - | AU112: 0 | AV112: < 0,005 | AW112: 14,6 | AX112: 0,93 | AY112: 32,8 | AZ112: 631 | BA112: 0,15 | BB112: 1,6 | BC112: 2 | BD112: 27,3 | BE112: 0,2 | BF112: 78,5 | BG112: 282 | BH112: - | BI112: 371 | BJ112: 1,2 | BK112: < 2 | BL112: 233 | BM112: < 0,5 | BN112: 0,88 | BO112: 4,6 | BP112: - | BQ112: 2,25 | BR112: 0,088 | BS112: 0,068 | BT112: 1,25 | BU112: < 0,16 | BV112: 0,15 | BW112: 44 | BX112: 0,35
A113: 01 | B113: 0103 | C113: 010303 | D113: entrées et plats composés | E113: plats composés | F113: plats de viande et légumes/légumineuses | G113: 25123 | H113: Moussaka | J113: 610 | K113: 147 | L113: 610 | M113: 147 | N113: 76 | O113: 5,82 | P113: 5,82 | Q113: 5,16 | R113: 10,8 | S113: 3,01 | T113: 0,88 | U113: - | V113: 0,91 | W113: 0,29 | X113: 0,084 | Y113: 0,85 | Z113: 0,9 | AA113: 2,84 | AB113: 0 | AC113: 1,74 | AD113: 0 | AE113: traces | AF113: 3,37 | AG113: 3,25 | AH113: 2,27 | AI113: 0,017 | AJ113: 0,017 | AK113: 0,017 | AL113: 0,034 | AM113: 0,051 | AN113: 0,21 | AO113: 1,77 | AP113: 0,64 | AQ113: - | AR113: - | AS113: 0,03 | AT113: - | AU113: - | AV113: - | AW113: 31 | AX113: 0,97 | AY113: 16 | AZ113: - | BA113: 0,06 | BB113: 0,62 | BC113: 5,2 | BD113: 22 | BE113: 0,06 | BF113: 150 | BG113: 576 | BH113: 1,4 | BI113: 393 | BJ113: 0,47 | BK113: 37 | BL113: 150 | BM113: 0,2 | BN113: 0,46 | BO113: - | BP113: - | BQ113: 3,1 | BR113: 0,06 | BS113: 0,11 | BT113: 1,3 | BU113: 0,33 | BV113: 0,09 | BW113: 10 | BX113: 0,6
A114: 01 | B114: 0103 | C114: 010303 | D114: entrées et plats composés | E114: plats composés | F114: plats de viande et légumes/légumineuses | G114: 25124 | H114: Navarin d'agneau aux légumes | J114: 554 | K114: 133 | L114: 554 | M114: 133 | N114: 73,7 | O114: 8,05 | P114: 8,05 | Q114: 5 | R114: 8,61 | S114: 0,9 | T114: - | U114: - | V114: - | W114: - | X114: - | Y114: - | Z114: 1,61 | AA114: 1,65 | AB114: 0 | AC114: 1,01 | AD114: 0 | AE114: traces | AF114: 1,4 | AG114: 2,54 | AH114: 0,95 | AI114: - | AJ114: - | AK114: - | AL114: - | AM114: - | AN114: - | AO114: - | AP114: - | AQ114: - | AR114: - | AS114: - | AT114: - | AU114: - | AV114: - | AW114: 40,3 | AX114: 0,63 | AY114: 22,1 | AZ114: - | BA114: 0,065 | BB114: 1,31 | BC114: 5,16 | BD114: 17,9 | BE114: 0,16 | BF114: 107 | BG114: 230 | BH114: 1,8 | BI114: 260 | BJ114: 0,85 | BK114: 20,7 | BL114: 846 | BM114: 0,039 | BN114: 0,84 | BO114: - | BP114: - | BQ114: 4,76 | BR114: 0,1 | BS114: 0,14 | BT114: 3,15 | BU114: 0,4 | BV114: 0,14 | BW114: 18,4 | BX114: 1,19
A115: 01 | B115: 0103 | C115: 010303 | D115: entrées et plats composés | E115: plats composés | F115: plats de viande et légumes/légumineuses | G115: 25159 | H115: Tajine de mouton | J115: 550 | K115: 132 | L115: 550 | M115: 132 | N115: 73 | O115: 12,8 | P115: 12,8 | Q115: 4,5 | R115: 6,83 | S115: 2,4 | T115: - | U115: - | V115: - | W115: - | X115: - | Y115: - | Z115: 2,1 | AA115: < 1 | AB115: 0 | AC115: 1,5 | AD115: 0 | AE115: traces | AF115: 2,73 | AG115: 3,25 | AH115: 0,52 | AI115: - | AJ115: - | AK115: - | AL115: - | AM115: - | AN115: - | AO115: - | AP115: - | AQ115: - | AR115: - | AS115: - | AT115: - | AU115: - | AV115: - | AW115: 57,8 | AX115: 0,99 | AY115: 5,1 | AZ115: 583 | BA115: 0,1 | BB115: 1,6 | BC115: 2 | BD115: 14,7 | BE115: < 0,1 | BF115: 102 | BG115: 211 | BH115: 1 | BI115: 394 | BJ115: 3 | BK115: 4 | BL115: 700 | BM115: < 0,5 | BN115: 0,71 | BO115: - | BP115: - | BQ115: < 0,5 | BR115: 0,07 | BS115: 0,16 | BT115: 2,95 | BU115: 0,23 | BV115: 0,19 | BW115: 24 | BX115: 1,65
A116: 01 | B116: 0103 | C116: 010303 | D116: entrées et plats composés | E116: plats composés | F116: plats de viande et légumes/légumineuses | G116: 25164 | H116: Osso buco | J116: 406 | K116: 96,7 | L116: 406 | M116: 96,7 | N116: 77,4 | O116: 11,2 | P116: 11,2 | Q116: 3,5 | R116: 4,08 | S116: 1,1 | T116: - | U116: - | V116: - | W116: - | X116: - | Y116: - | Z116: 2,3 | AA116: 0,6 | AB116: 0 | AC116: 1,9 | AD116: 0 | AE116: traces | AF116: 0,8 | AG116: 2,62 | AH116: 0,39 | AI116: - | AJ116: - | AK116: - | AL116: - | AM116: - | AN116: - | AO116: - | AP116: - | AQ116: - | AR116: - | AS116: - | AT116: - | AU116: - | AV116: - | AW116: 26 | AX116: 1,47 | AY116: 13,7 | AZ116: - | BA116: 0,057 | BB116: 0,6 | BC116: 3,3 | BD116: 18,4 | BE116: 0,066 | BF116: 97,4 | BG116: 234 | BH116: 3,24 | BI116: 586 | BJ116: 1,26 | BK116: 0 | BL116: 481 | BM116: 0 | BN116: 0,53 | BO116: - | BP116: - | BQ116: 2,4 | BR116: 0,083 | BS116: 0,12 | BT116: 3,48 | BU116: 0,25 | BV116: 0,19 | BW116: 11 | BX116: 0,38
A117: 01 | B117: 0103 | C117: 010303 | D117: entrées et plats composés | E117: plats composés | F117: plats de viande et légumes/légumineuses | G117: 25190 | H117: Poulet basquaise, préemballé | J117: 448 | K117: 107 | L117: 448 | M117: 107 | N117: - | O117: 9,3 | P117: 9,3 | Q117: 2,5 | R117: 6,4 | S117: 2 | T117: - | U117: - | V117: - | W117: - | X117: - | Y117: - | Z117: - | AA117: 1,3 | AB117: 0 | AC117: 0,89 | AD117: 0 | AE117: traces | AF117: 1,7 | AG117: - | AH117: - | AI117: - | AJ117: - | AK117: - | AL117: - | AM117: - | AN117: - | AO117: - | AP117: - | AQ117: - | AR117: - | AS117: - | AT117: - | AU117: - | AV117: - | AW117: - | AX117: 0,89 | AY117: - | AZ117: - | BA117: - | BB117: - | BC117: - | BD117: - | BE117: - | BF117: - | BG117: - | BH117: - | BI117: 355 | BJ117: - | BK117: - | BL117: - | BM117: - | BN117: - | BO117: - | BP117: - | BQ117: - | BR117: - | BS117: - | BT117: - | BU117: - | BV117: - | BW117: - | BX117: -
A118: 01 | B118: 0103 | C118: 010303 | D118: entrées et plats composés | E118: plats composés | F118: plats de viande et légumes/légumineuses | G118: 25204 | H118: Tajine de poulet, préemballé | J118: 534 | K118: 127 | L118: 534 | M118: 127 | N118: 72,7 | O118: 7,54 | P118: 7,54 | Q118: 14,4 | R118: 3,7 | S118: 6,8 | T118: 3,1 | U118: - | V118: 3,2 | W118: < 0,2 | X118: < 0,2 | Y118: 0,5 | Z118: 2,3 | AA118: 3 | AB118: 0 | AC118: 1,7 | AD118: 0 | AE118: traces | AF118: 0,4 | AG118: 2,14 | AH118: 1 | AI118: < 0,01 | AJ118: < 0,01 | AK118: < 0,01 | AL118: < 0,01 | AM118: 0,011 | AN118: 0,016 | AO118: 0,29 | AP118: 0,082 | AQ118: 2,14 | AR118: 0,85 | AS118: 0,15 | AT118: < 0,01 | AU118: < 0,01 | AV118: < 0,01 | AW118: 27,7 | AX118: 1,17 | AY118: 18 | AZ118: 621 | BA118: 0,06 | BB118: 0,45 | BC118: < 20 | BD118: 17 | BE118: 0,13 | BF118: 82 | BG118: 220 | BH118: < 20 | BI118: 466 | BJ118: 0,46 | BK118: < 21 | BL118: 152 | BM118: < 0,25 | BN118: 1,27 | BO118: 7,32 | BP118: - | BQ118: < 0,5 | BR118: 0,14 | BS118: 0,037 | BT118: 2,3 | BU118: 0,39 | BV118: 0,096 | BW118: 30,2 | BX118: 0,075
A119: 01 | B119: 0103 | C119: 010303 | D119: entrées et plats composés | E119: plats composés | F119: plats de viande et légumes/légumineuses | G119: 25205 | H119: Chop suey (porc ou poulet), préemballé | J119: 329 | K119: 78,2 | L119: 329 | M119: 78,2 | N119: - | O119: 5 | P119: 5 | Q119: 7,8 | R119: 3 | S119: - | T119: - | U119: - | V119: - | W119: - | X119: - | Y119: - | Z119: - | AA119: traces | AB119: 0 | AC119: - | AD119: 0 | AE119: traces | AF119: - | AG119: - | AH119: - | AI119: - | AJ119: - | AK119: - | AL119: - | AM119: - | AN119: - | AO119: - | AP119: - | AQ119: - | AR119: - | AS119: - | AT119: - | AU119: - | AV119: - | AW119: - | AX119: - | AY119: - | AZ119: - | BA119: - | BB119: - | BC119: - | BD119: - | BE119: - | BF119: - | BG119: - | BH119: - | BI119: - | BJ119: - | BK119: - | BL119: - | BM119: - | BN119: - | BO119: - | BP119: - | BQ119: - | BR119: - | BS119: - | BT119: - | BU119: - | BV119: - | BW119: - | BX119: -
A120: 01 | B120: 0103 | C120: 010303 | D120: entrées et plats composés | E120: plats composés | F120: plats de viande et légumes/légumineuses | G120: 25511 | H120: Légumes farcis (sauf tomate) | J120: 292 | K120: 69,8 | L120: 292 | M120: 69,8 | N120: 81,1 | O120: 6,4 | P120: 6,4 | Q120: 3,6 | R120: 3 | S120: 2,59 | T120: - | U120: - | V120: - | W120: - | X120: - | Y120: - | Z120: 1,01 | AA120: 1,4 | AB120: 0 | AC120: 1,2 | AD120: 0 | AE120: traces | AF120: 0,46 | AG120: 1,73 | AH120: 0,68 | AI120: - | AJ120: - | AK120: - | AL120: - | AM120: - | AN120: - | AO120: - | AP120: - | AQ120: - | AR120: - | AS120: - | AT120: - | AU120: - | AV120: - | AW120: 30,8 | AX120: 0,69 | AY120: 27,1 | AZ120: - | BA120: 0,1 | BB120: 0,56 | BC120: 6,4 | BD120: 14,1 | BE120: 0,096 | BF120: 77,6 | BG120: 184 | BH120: 2,58 | BI120: 277 | BJ120: 0,63 | BK120: 10,3 | BL120: 93,2 | BM120: 0,088 | BN120: 0,55 | BO120: - | BP120: - | BQ120: 4,86 | BR120: 0,1 | BS120: 0,13 | BT120: 1,24 | BU120: 0,46 | BV120: 0,11 | BW120: 21,2 | BX120: 0,18
A121: 01 | B121: 0103 | C121: 010304 | D121: entrées et plats composés | E121: plats composés | F121: plats de poisson sans garniture | G121: 10082 | H121: Moules marinières (oignons et vin blanc) | J121: 388 | K121: 92 | L121: 388 | M121: 92 | N121: 76,5 | O121: 10,3 | P121: 10,3 | Q121: 7,43 | R121: 2,24 | S121: 1,05 | T121: < 0,3 | U121: - | V121: < 0,3 | W121: - | X121: 0,21 | Y121: < 0,3 | Z121: - | AA121: 0,53 | AB121: 0,004 | AC121: 1,6 | AD121: 0 | AE121: traces | AF121: 0,99 | AG121: 0,59 | AH121: 0,61 | AI121: - | AJ121: - | AK121: - | AL121: - | AM121: - | AN121: - | AO121: - | AP121: - | AQ121: - | AR121: 0,17 | AS121: 0,01 | AT121: - | AU121: - | AV121: - | AW121: - | AX121: 0,69 | AY121: - | AZ121: - | BA121: - | BB121: - | BC121: - | BD121: - | BE121: - | BF121: - | BG121: - | BH121: - | BI121: 345 | BJ121: - | BK121: - | BL121: - | BM121: - | BN121: - | BO121: - | BP121: - | BQ121: - | BR121: - | BS121: - | BT121: - | BU121: - | BV121: - | BW121: - | BX121: -
A122: 01 | B122: 0103 | C122: 010304 | D122: entrées et plats composés | E122: plats composés | F122: plats de poisson sans garniture | G122: 10083 | H122: Moules farcies (matière grasse, persillade…), préemballées, crues | J122: 1170 | K122: 284 | L122: 1170 | M122: 284 | N122: 57,5 | O122: 9,56 | P122: 9,56 | Q122: 4,43 | R122: 24,8 | S122: 0,3 | T122: < 0,2 | U122: - | V122: < 0,2 | W122: 0,3 | X122: < 0,2 | Y122: < 0,2 | Z122: - | AA122: 1,26 | AB122: 0 | AC122: 1,74 | AD122: 0 | AE122: 0,7 | AF122: 16,6 | AG122: 5,57 | AH122: 0,95 | AI122: 0,8 | AJ122: 0,53 | AK122: 0,33 | AL122: 0,7 | AM122: 0,9 | AN122: 2,81 | AO122: 7,63 | AP122: 2,29 | AQ122: 4,52 | AR122: 0,35 | AS122: 0,1 | AT122: 0,05 | AU122: 0,25 | AV122: 0,09 | AW122: 88,5 | AX122: 1,08 | AY122: 40 | AZ122: 790 | BA122: 0,11 | BB122: 2,5 | BC122: 100 | BD122: 45 | BE122: 0,16 | BF122: 180 | BG122: 180 | BH122: 30 | BI122: 430 | BJ122: 2 | BK122: 209 | BL122: - | BM122: < 0,25 | BN122: 1,79 | BO122: 11,4 | BP122: - | BQ122: < 0,5 | BR122: < 0,015 | BS122: 0,14 | BT122: 1,09 | BU122: 0,34 | BV122: 0,063 | BW122: 54,2 | BX122: 19,3
A123: 01 | B123: 0103 | C123: 010304 | D123: entrées et plats composés | E123: plats composés | F123: plats de poisson sans garniture | G123: 25037 | H123: Gratin ou cassolette de poisson et / ou fruits de mer, préemballé, cru | J123: 441 | K123: 105 | L123: 441 | M123: 105 | N123: 78,4 | O123: 6,13 | P123: 6,13 | Q123: 8,39 | R123: 5,1 | S123: 2,48 | T123: 0,21 | U123: < 0,1 | V123: 0,34 | W123: 1,64 | X123: 0,17 | Y123: 0,12 | Z123: - | AA123: 0,5 | AB123: 0 | AC123: 1,39 | AD123: 0 | AE123: 0,097 | AF123: 3,18 | AG123: 1,25 | AH123: 0,27 | AI123: 0,15 | AJ123: 0,1 | AK123: 0,06 | AL123: 0,11 | AM123: 0,14 | AN123: 0,47 | AO123: 1,66 | AP123: 0,43 | AQ123: 1,1 | AR123: 0,21 | AS123: 0,02 | AT123: < 0,01 | AU123: 0,02 | AV123: 0,02 | AW123: - | AX123: 0,82 | AY123: 58,2 | AZ123: - | BA123: 0,05 | BB123: 0,41 | BC123: - | BD123: 13,8 | BE123: - | BF123: 37,1 | BG123: 223 | BH123: - | BI123: 328 | BJ123: 0,55 | BK123: - | BL123: - | BM123: - | BN123: - | BO123: - | BP123: - | BQ123: - | BR123: - | BS123: - | BT123: - | BU123: - | BV123: - | BW123: - | BX123: -
A124: 01 | B124: 0103 | C124: 010304 | D124: entrées et plats composés | E124: plats composés | F124: plats de poisson sans garniture | G124: 25038 | H124: Gratin ou cassolette de poisson et / ou fruits de mer, préemballé, cuit | J124: 488 | K124: 117 | L124: 488 | M124: 117 | N124: 78,2 | O124: 6,69 | P124: 6,69 | Q124: 5,28 | R124: 7,5 | S124: 1,6 | T124: 0,38 | U124: - | V124: 0,28 | W124: 0,75 | X124: < 0,2 | Y124: 0,19 | Z124: 2,3 | AA124: 0,7 | AB124: 0 | AC124: 1,52 | AD124: 0 | AE124: 0,11 | AF124: 4,82 | AG124: 1,81 | AH124: 0,26 | AI124: 0,27 | AJ124: 0,17 | AK124: 0,11 | AL124: 0,18 | AM124: 0,23 | AN124: 0,78 | AO124: 2,31 | AP124: 0,66 | AQ124: 1,54 | AR124: 0,15 | AS124: 0,03 | AT124: 0,01 | AU124: 0,03 | AV124: 0,04 | AW124: 35,4 | AX124: 0,92 | AY124: 52 | AZ124: 559 | BA124: 0,03 | BB124: 0,28 | BC124: 20 | BD124: 24 | BE124: 0,05 | BF124: 120 | BG124: 180 | BH124: < 20 | BI124: 366 | BJ124: 0,47 | BK124: 58,7 | BL124: 225 | BM124: < 0,25 | BN124: 0,63 | BO124: 3,6 | BP124: - | BQ124: < 0,5 | BR124: < 0,015 | BS124: 0,043 | BT124: < 0,1 | BU124: 0,28 | BV124: 0,022 | BW124: 19,4 | BX124: 0,95
A125: 01 | B125: 0103 | C125: 010304 | D125: entrées et plats composés | E125: plats composés | F125: plats de poisson sans garniture | G125: 25077 | H125: Saumon à l'oseille, préemballé | J125: 557 | K125: 133 | L125: 557 | M125: 133 | N125: 71,2 | O125: 8,36 | P125: 8,36 | Q125: 7,43 | R125: 7,65 | S125: 0,58 | T125: < 0,3 | U125: - | V125: < 0,3 | W125: - | X125: < 0,3 | Y125: 0,3 | Z125: - | AA125: 0,73 | AB125: 0 | AC125: 1,01 | AD125: 0 | AE125: traces | AF125: 3,19 | AG125: 2,33 | AH125: 1,1 | AI125: - | AJ125: - | AK125: - | AL125: - | AM125: - | AN125: - | AO125: - | AP125: - | AQ125: - | AR125: 0,57 | AS125: 0,18 | AT125: - | AU125: - | AV125: - | AW125: - | AX125: 0,69 | AY125: - | AZ125: - | BA125: - | BB125: - | BC125: - | BD125: - | BE125: - | BF125: - | BG125: - | BH125: - | BI125: 277 | BJ125: - | BK125: - | BL125: - | BM125: - | BN125: - | BO125: - | BP125: - | BQ125: - | BR125: - | BS125: - | BT125: - | BU125: - | BV125: - | BW125: - | BX125: -
A126: 01 | B126: 0103 | C126: 010304 | D126: entrées et plats composés | E126: plats composés | F126: plats de poisson sans garniture | G126: 25086 | H126: Poisson blanc à la bordelaise, préemballé | J126: 735 | K126: 176 | L126: 735 | M126: 176 | N126: 67,5 | O126: 14,8 | P126: 14,8 | Q126: 5,3 | R126: 10,4 | S126: 1,09 | T126: 0,35 | U126: - | V126: 0,26 | W126: 0,17 | X126: 0,058 | Y126: 0,25 | Z126: 3,7 | AA126: 1 | AB126: 0 | AC126: 2 | AD126: 0 | AE126: traces | AF126: 2,3 | AG126: 2,92 | AH126: 2,88 | AI126: 0 | AJ126: 0,013 | AK126: 0,0086 | AL126: 0,018 | AM126: 0,026 | AN126: 0,099 | AO126: 1,67 | AP126: 0,35 | AQ126: 2,77 | AR126: - | AS126: 0,11 | AT126: 0,0035 | AU126: 0,031 | AV126: - | AW126: 51 | AX126: 1,28 | AY126: 21,1 | AZ126: 724 | BA126: < 1 | BB126: 1,2 | BC126: 92 | BD126: 17,5 | BE126: < 1 | BF126: 162 | BG126: 317 | BH126: 4,9 | BI126: 513 | BJ126: < 1 | BK126: < 2 | BL126: - | BM126: 0,9 | BN126: 2,6 | BO126: - | BP126: - | BQ126: 9,7 | BR126: < 0,05 | BS126: < 0,05 | BT126: 9,2 | BU126: 0,18 | BV126: < 0,05 | BW126: < 5 | BX126: 2,2
A127: 01 | B127: 0103 | C127: 010304 | D127: entrées et plats composés | E127: plats composés | F127: plats de poisson sans garniture | G127: 25128 | H127: Poisson blanc à la provençale ou niçoise (sauce tomate), préemballé | J127: 315 | K127: 75,2 | L127: 315 | M127: 75,2 | N127: 83,6 | O127: 9,31 | P127: 9,31 | Q127: 3,1 | R127: 2,3 | S127: 2 | T127: 0,87 | U127: - | V127: 0,79 | W127: < 0,1 | X127: 0,082 | Y127: 0,26 | Z127: - | AA127: 2,4 | AB127: 0 | AC127: 1,5 | AD127: 0 | AE127: traces | AF127: 0,42 | AG127: 1,14 | AH127: 0,63 | AI127: - | AJ127: - | AK127: - | AL127: - | AM127: - | AN127: - | AO127: - | AP127: - | AQ127: - | AR127: 0,6 | AS127: 0,028 | AT127: - | AU127: - | AV127: - | AW127: 28 | AX127: 0,7 | AY127: 16,1 | AZ127: 506 | BA127: - | BB127: < 1 | BC127: 71 | BD127: 24,2 | BE127: - | BF127: 99 | BG127: 348 | BH127: 3,8 | BI127: 280 | BJ127: - | BK127: < 2 | BL127: 449 | BM127: < 0,2 | BN127: 1,1 | BO127: - | BP127: - | BQ127: - | BR127: < 0,05 | BS127: 0,07 | BT127: 1,2 | BU127: 0,25 | BV127: < 0,05 | BW127: < 5 | BX127: 1,1
A128: 01 | B128: 0103 | C128: 010304 | D128: entrées et plats composés | E128: plats composés | F128: plats de poisson sans garniture | G128: 25140 | H128: Poisson blanc à la florentine (sauce aux épinards), préemballé | J128: 420 | K128: 100 | L128: 420 | M128: 100 | N128: - | O128: 11,4 | P128: 11,4 | Q128: 2,9 | R128: 4,35 | S128: 1,95 | T128: - | U128: - | V128: - | W128: - | X128: - | Y128: - | Z128: - | AA128: 2 | AB128: 0 | AC128: 0,56 | AD128: 0 | AE128: traces | AF128: 2,75 | AG128: - | AH128: - | AI128: - | AJ128: - | AK128: - | AL128: - | AM128: - | AN128: - | AO128: - | AP128: - | AQ128: - | AR128: - | AS128: - | AT128: - | AU128: - | AV128: - | AW128: - | AX128: 0,56 | AY128: - | AZ128: - | BA128: - | BB128: - | BC128: - | BD128: - | BE128: - | BF128: - | BG128: - | BH128: - | BI128: 232 | BJ128: - | BK128: - | BL128: - | BM128: - | BN128: - | BO128: - | BP128: - | BQ128: - | BR128: - | BS128: - | BT128: - | BU128: - | BV128: - | BW128: - | BX128: -
A129: 01 | B129: 0103 | C129: 010304 | D129: entrées et plats composés | E129: plats composés | F129: plats de poisson sans garniture | G129: 25141 | H129: Poisson blanc à la marinière (sauce aux oignons, vin blanc, moules), préemballé | J129: 337 | K129: 80 | L129: 337 | M129: 80 | N129: - | O129: 11,5 | P129: 11,5 | Q129: 2,2 | R129: 2,8 | S129: - | T129: - | U129: - | V129: - | W129: - | X129: - | Y129: - | Z129: - | AA129: traces | AB129: 0 | AC129: - | AD129: 0 | AE129: traces | AF129: - | AG129: - | AH129: - | AI129: - | AJ129: - | AK129: - | AL129: - | AM129: - | AN129: - | AO129: - | AP129: - | AQ129: - | AR129: - | AS129: - | AT129: - | AU129: - | AV129: - | AW129: - | AX129: - | AY129: - | AZ129: - | BA129: - | BB129: - | BC129: - | BD129: - | BE129: - | BF129: - | BG129: - | BH129: - | BI129: - | BJ129: - | BK129: - | BL129: - | BM129: - | BN129: - | BO129: - | BP129: - | BQ129: - | BR129: - | BS129: - | BT129: - | BU129: - | BV129: - | BW129: - | BX129: -
A130: 01 | B130: 0103 | C130: 010304 | D130: entrées et plats composés | E130: plats composés | F130: plats de poisson sans garniture | G130: 25142 | H130: Poisson blanc à la sauce moutarde, préemballé | J130: 381 | K130: 90,8 | L130: 381 | M130: 90,8 | N130: - | O130: 9,2 | P130: 9,2 | Q130: 5,4 | R130: 3,6 | S130: - | T130: - | U130: - | V130: - | W130: - | X130: - | Y130: - | Z130: - | AA130: 0 | AB130: 0 | AC130: - | AD130: 0 | AE130: traces | AF130: - | AG130: - | AH130: - | AI130: - | AJ130: - | AK130: - | AL130: - | AM130: - | AN130: - | AO130: - | AP130: - | AQ130: - | AR130: - | AS130: - | AT130: - | AU130: - | AV130: - | AW130: - | AX130: - | AY130: - | AZ130: - | BA130: - | BB130: - | BC130: - | BD130: - | BE130: - | BF130: - | BG130: - | BH130: - | BI130: - | BJ130: - | BK130: - | BL130: - | BM130: - | BN130: - | BO130: - | BP130: - | BQ130: - | BR130: - | BS130: - | BT130: - | BU130: - | BV130: - | BW130: - | BX130: -
A131: 01 | B131: 0103 | C131: 010304 | D131: entrées et plats composés | E131: plats composés | F131: plats de poisson sans garniture | G131: 25143 | H131: Poisson blanc à la parisienne (sauce aux champignons), préemballé | J131: 335 | K131: 79,9 | L131: 335 | M131: 79,9 | N131: 84,2 | O131: 9,16 | P131: 9,16 | Q131: 3 | R131: 3,25 | S131: 0,86 | T131: < 0,1 | U131: - | V131: < 0,1 | W131: < 0,1 | X131: < 0,1 | Y131: 0,13 | Z131: - | AA131: 1 | AB131: 0 | AC131: 1,24 | AD131: 0 | AE131: traces | AF131: 1,56 | AG131: 0,72 | AH131: 0,83 | AI131: - | AJ131: - | AK131: - | AL131: 0,049 | AM131: - | AN131: - | AO131: - | AP131: - | AQ131: - | AR131: - | AS131: - | AT131: - | AU131: - | AV131: - | AW131: - | AX131: 0,55 | AY131: - | AZ131: - | BA131: - | BB131: - | BC131: - | BD131: - | BE131: - | BF131: - | BG131: - | BH131: - | BI131: 220 | BJ131: - | BK131: - | BL131: - | BM131: - | BN131: - | BO131: - | BP131: - | BQ131: - | BR131: - | BS131: - | BT131: - | BU131: - | BV131: - | BW131: - | BX131: -
A132: 01 | B132: 0103 | C132: 010304 | D132: entrées et plats composés | E132: plats composés | F132: plats de poisson sans garniture | G132: 25145 | H132: Poisson blanc à l'estragon, préemballé | J132: 325 | K132: 77,2 | L132: 325 | M132: 77,2 | N132: - | O132: 8,8 | P132: 8,8 | Q132: 4,2 | R132: 2,8 | S132: - | T132: - | U132: - | V132: - | W132: - | X132: - | Y132: - | Z132: - | AA132: 0 | AB132: 0 | AC132: - | AD132: 0 | AE132: traces | AF132: - | AG132: - | AH132: - | AI132: - | AJ132: - | AK132: - | AL132: - | AM132: - | AN132: - | AO132: - | AP132: - | AQ132: - | AR132: - | AS132: - | AT132: - | AU132: - | AV132: - | AW132: - | AX132: - | AY132: - | AZ132: - | BA132: - | BB132: - | BC132: - | BD132: - | BE132: - | BF132: - | BG132: - | BH132: - | BI132: - | BJ132: - | BK132: - | BL132: - | BM132: - | BN132: - | BO132: - | BP132: - | BQ132: - | BR132: - | BS132: - | BT132: - | BU132: - | BV132: - | BW132: - | BX132: -
A133: 01 | B133: 0103 | C133: 010304 | D133: entrées et plats composés | E133: plats composés | F133: plats de poisson sans garniture | G133: 25146 | H133: Poisson blanc sauce oseille, préemballé | J133: 478 | K133: 114 | L133: 478 | M133: 114 | N133: 78,6 | O133: 11,8 | P133: 11,8 | Q133: 3,9 | R133: 5,5 | S133: 1,65 | T133: < 0,1 | U133: - | V133: 0,14 | W133: 0,7 | X133: 0,16 | Y133: 0,1 | Z133: - | AA133: 1 | AB133: 0 | AC133: 1,68 | AD133: 0 | AE133: traces | AF133: 3,31 | AG133: 1,32 | AH133: 0,31 | AI133: 0,18 | AJ133: 0,12 | AK133: 0,064 | AL133: 0,13 | AM133: 0,16 | AN133: 0,52 | AO133: 1,59 | AP133: 0,46 | AQ133: 1,04 | AR133: 0,2 | AS133: 0,025 | AT133: 0,005 | AU133: 0,015 | AV133: 0,035 | AW133: 45,6 | AX133: 0,88 | AY133: 40 | AZ133: 572 | BA133: 0,03 | BB133: 0,24 | BC133: 44 | BD133: 27 | BE133: 0,04 | BF133: 130 | BG133: 260 | BH133: < 50 | BI133: 350 | BJ133: 0,33 | BK133: 38,8 | BL133: 0 | BM133: < 0,5 | BN133: 1,1 | BO133: 3,6 | BP133: - | BQ133: < 0,5 | BR133: 0,075 | BS133: 0,06 | BT133: 0,8 | BU133: 0,2 | BV133: 0,058 | BW133: 18,8 | BX133: 1,87
A134: 01 | B134: 0103 | C134: 010304 | D134: entrées et plats composés | E134: plats composés | F134: plats de poisson sans garniture | G134: 25210 | H134: Saumon farci, préemballé | J134: 945 | K134: 227 | L134: 945 | M134: 227 | N134: - | O134: 18,8 | P134: 18,8 | Q134: 0,4 | R134: 16,2 | S134: 0,4 | T134: - | U134: - | V134: - | W134: - | X134: - | Y134: - | Z134: - | AA134: 2,4 | AB134: 0 | AC134: 0,65 | AD134: 0 | AE134: traces | AF134: 3,8 | AG134: - | AH134: - | AI134: - | AJ134: - | AK134: - | AL134: - | AM134: - | AN134: - | AO134: - | AP134: - | AQ134: - | AR134: - | AS134: - | AT134: - | AU134: - | AV134: - | AW134: - | AX134: 0,65 | AY134: - | AZ134: - | BA134: - | BB134: - | BC134: - | BD134: - | BE134: - | BF134: - | BG134: - | BH134: - | BI134: - | BJ134: - | BK134: - | BL134: - | BM134: - | BN134: - | BO134: - | BP134: - | BQ134: - | BR134: - | BS134: - | BT134: - | BU134: - | BV134: - | BW134: - | BX134: -
A135: 01 | B135: 0103 | C135: 010304 | D135: entrées et plats composés | E135: plats composés | F135: plats de poisson sans garniture | G135: 25539 | H135: Brochette de poisson | J135: 535 | K135: 127 | L135: 535 | M135: 127 | N135: 73,8 | O135: 18 | P135: 18 | Q135: 0,86 | R135: 5,71 | S135: 0,85 | T135: - | U135: - | V135: - | W135: - | X135: - | Y135: - | Z135: 0,012 | AA135: 0,29 | AB135: 0 | AC135: 1,25 | AD135: 0 | AE135: traces | AF135: 0,98 | AG135: 3,14 | AH135: 1 | AI135: - | AJ135: - | AK135: - | AL135: - | AM135: - | AN135: - | AO135: - | AP135: - | AQ135: - | AR135: - | AS135: - | AT135: - | AU135: 0,11 | AV135: 0,23 | AW135: 43,5 | AX135: 0,56 | AY135: 26,5 | AZ135: - | BA135: 0,026 | BB135: 0,72 | BC135: 65,5 | BD135: 28,4 | BE135: 0,049 | BF135: 190 | BG135: 320 | BH135: 11,7 | BI135: 223 | BJ135: 0,25 | BK135: 18,4 | BL135: 59,8 | BM135: 1,41 | BN135: 1,02 | BO135: - | BP135: - | BQ135: 6,33 | BR135: 0,074 | BS135: 0,067 | BT135: 2,84 | BU135: 0,29 | BV135: 0,26 | BW135: 12 | BX135: 2,03
A136: 01 | B136: 0103 | C136: 010304 | D136: entrées et plats composés | E136: plats composés | F136: plats de poisson sans garniture | G136: 25540 | H136: Brochette de crevettes | J136: 396 | K136: 93,5 | L136: 396 | M136: 93,5 | N136: 75 | O136: 18,5 | P136: 18,5 | Q136: 1,5 | R136: 1,5 | S136: 0 | T136: - | U136: - | V136: - | W136: - | X136: - | Y136: - | Z136: 0,13 | AA136: 0 | AB136: 0 | AC136: 2,71 | AD136: 0 | AE136: traces | AF136: 0,1 | AG136: 0,88 | AH136: 0,22 | AI136: - | AJ136: - | AK136: - | AL136: - | AM136: - | AN136: - | AO136: - | AP136: - | AQ136: - | AR136: - | AS136: - | AT136: - | AU136: 0,05 | AV136: 0,084 | AW136: 120 | AX136: 0,35 | AY136: 100 | AZ136: - | BA136: 0,01 | BB136: 1,7 | BC136: 31,5 | BD136: 36,8 | BE136: 0,085 | BF136: 153 | BG136: 169 | BH136: 4,92 | BI136: 140 | BJ136: 0,51 | BK136: 7,22 | BL136: 71,5 | BM136: 0,21 | BN136: 1,96 | BO136: - | BP136: - | BQ136: 8,33 | BR136: 0,034 | BS136: 0,038 | BT136: 1,79 | BU136: 0,25 | BV136: 0,11 | BW136: 10,1 | BX136: 1,14
A137: 01 | B137: 0103 | C137: 010304 | D137: entrées et plats composés | E137: plats composés | F137: plats de poisson sans garniture | G137: 26054 | H137: Poisson en sauce, surgelé | J137: 551 | K137: 132 | L137: 551 | M137: 132 | N137: 75 | O137: 13,3 | P137: 13,3 | Q137: 3,18 | R137: 7,05 | S137: 1,3 | T137: - | U137: - | V137: - | W137: - | X137: - | Y137: - | Z137: - | AA137: 1,25 | AB137: 0 | AC137: 1,75 | AD137: 0 | AE137: traces | AF137: 2,84 | AG137: 1,12 | AH137: 0,2 | AI137: 0,074 | AJ137: 0,049 | AK137: 0,035 | AL137: 0,076 | AM137: 0,097 | AN137: 0,3 | AO137: 1,13 | AP137: 0,37 | AQ137: 1,12 | AR137: 0,17 | AS137: 0,0068 | AT137: 0,0013 | AU137: 0,0096 | AV137: 0,011 | AW137: 28 | AX137: 0,82 | AY137: 18,2 | AZ137: 0,9 | BA137: 0,051 | BB137: 0,4 | BC137: 79,5 | BD137: 19,7 | BE137: 0,042 | BF137: 164 | BG137: 331 | BH137: 4,58 | BI137: 327 | BJ137: 0,26 | BK137: 19 | BL137: 0 | BM137: 1,13 | BN137: 2,31 | BO137: - | BP137: - | BQ137: 0 | BR137: 0,086 | BS137: 0,086 | BT137: 1,77 | BU137: 0,25 | BV137: 0,17 | BW137: 34,5 | BX137: 1,53
A138: 01 | B138: 0103 | C138: 010304 | D138: entrées et plats composés | E138: plats composés | F138: plats de poisson sans garniture | G138: 26140 | H138: Poisson cuit (aliment moyen) | J138: 604 | K138: 144 | L138: 604 | M138: 144 | N138: 69,3 | O138: 23,5 | P138: 23,5 | Q138: 0 | R138: 5,52 | S138: 0 | T138: 0 | V138: 0,0015 | W138: 0,0015 | X138: 0,0015 | Y138: 0,0015 | Z138: 0,021 | AA138: 0 | AB138: 0 | AC138: 1,49 | AD138: 0 | AE138: 0 | AF138: 1,21 | AG138: 1,79 | AH138: 1,55 | AN138: 0,21 | AO138: 0,76 | AP138: 0,17 | AQ138: 0,55 | AU138: 0,25 | AV138: 0,49 | AW138: 57,5 | AX138: 0,54 | AY138: 29,9 | AZ138: 114 | BA138: 0,069 | BB138: 0,69 | BC138: 61,7 | BD138: 30 | BE138: 0,037 | BF138: 228 | BG138: 347 | BH138: 36,2 | BI138: 216 | BJ138: 0,61 | BK138: 10,5 | BL138: 0,82 | BM138: 3,69 | BN138: 0,91 | BQ138: 0,96 | BR138: 0,11 | BS138: 0,12 | BT138: 5,27 | BU138: 0,59 | BV138: 0,33 | BW138: 17,7 | BX138: 3,87
A139: 01 | B139: 0103 | C139: 010304 | D139: entrées et plats composés | E139: plats composés | F139: plats de poisson sans garniture | G139: 26249 | H139: Poisson blanc, cuit (aliment moyen) | J139: 454 | K139: 107 | L139: 454 | M139: 107 | N139: 74 | O139: 22 | P139: 22 | Q139: 0 | R139: 2,18 | S139: 0 | T139: 0 | V139: 0 | W139: 0 | X139: 0 | Y139: 0 | Z139: 0,038 | AA139: 0 | AB139: 0 | AC139: 1,7 | AD139: 0 | AE139: 0 | AF139: 0,44 | AG139: 0,66 | AH139: 0,49 | AM139: 0,0042 | AN139: 0,053 | AO139: 0,28 | AP139: 0,064 | AQ139: 0,36 | AR139: 0,09 | AS139: 0,021 | AT139: 0,021 | AU139: 0,12 | AV139: 0,19 | AW139: 63,6 | AX139: 0,88 | AY139: 30,3 | AZ139: 139 | BA139: 0,051 | BB139: 0,38 | BC139: 63,5 | BD139: 27 | BE139: 0,026 | BF139: 192 | BG139: 296 | BH139: 32,3 | BI139: 354 | BJ139: 0,58 | BK139: 8,18 | BL139: 1,5 | BM139: 1,59 | BN139: 0,71 | BQ139: 0,45 | BR139: 0,061 | BS139: 0,089 | BT139: 2,2 | BU139: 0,25 | BV139: 0,21 | BW139: 15 | BX139: 1,92
A140: 01 | B140: 0103 | C140: 010304 | D140: entrées et plats composés | E140: plats composés | F140: plats de poisson sans garniture | G140: 26250 | H140: Poisson blanc, de mer, cuit (aliment moyen) | J140: 449 | K140: 106 | L140: 449 | M140: 106 | N140: 74 | O140: 22,1 | P140: 22,1 | Q140: 0 | R140: 2 | S140: 0 | T140: 0 | V140: 0 | W140: 0 | X140: 0 | Y140: 0 | Z140: 0,043 | AA140: 0 | AB140: 0 | AC140: 1,77 | AD140: 0 | AE140: 0 | AF140: 0,38 | AG140: 0,64 | AH140: 0,47 | AM140: 0,0042 | AN140: 0,051 | AO140: 0,26 | AP140: 0,06 | AQ140: 0,37 | AR140: 0,091 | AS140: 0,021 | AT140: 0,021 | AU140: 0,12 | AV140: 0,18 | AW140: 61,3 | AX140: 0,98 | AY140: 27,6 | AZ140: 156 | BA140: 0,05 | BB140: 0,37 | BC140: 68,3 | BD140: 26,6 | BE140: 0,014 | BF140: 189 | BG140: 294 | BH140: 33,7 | BI140: 392 | BJ140: 0,56 | BK140: 7,82 | BL140: 1,77 | BM140: 1,19 | BN140: 0,71 | BQ140: 0,37 | BR140: 0,06 | BS140: 0,09 | BT140: 2,14 | BU140: 0,23 | BV140: 0,21 | BW140: 13,6 | BX140: 1,99
A141: 01 | B141: 0103 | C141: 010305 | D141: entrées et plats composés | E141: plats composés | F141: plats de poisson et féculents | G141: 25031 | H141: Paëlla | J141: 621 | K141: 148 | L141: 621 | M141: 148 | N141: 66,9 | O141: 7,86 | P141: 7,86 | Q141: 17,1 | R141: 4,9 | S141: 1,2 | T141: 0,32 | U141: - | V141: 0,43 | W141: < 0,2 | X141: < 0,2 | Y141: 0,23 | Z141: 15,1 | AA141: 1,85 | AB141: 0 | AC141: 1,26 | AD141: 0 | AE141: traces | AF141: 1,28 | AG141: 1,08 | AH141: 0,55 | AI141: < 0,05 | AJ141: < 0,05 | AK141: < 0,05 | AL141: < 0,05 | AM141: 0,002 | AN141: 0,025 | AO141: 0,37 | AP141: 0,17 | AQ141: 1,08 | AR141: 0,47 | AS141: 0,036 | AT141: - | AU141: 0,025 | AV141: 0,023 | AW141: 22,8 | AX141: 0,87 | AY141: 38,7 | AZ141: 482 | BA141: 0,11 | BB141: 0,69 | BC141: 4 | BD141: 25,4 | BE141: 0,13 | BF141: 90 | BG141: 148 | BH141: < 10 | BI141: 343 | BJ141: 0,68 | BK141: 5 | BL141: 125 | BM141: < 0,5 | BN141: 1,3 | BO141: - | BP141: - | BQ141: 1,95 | BR141: 0,073 | BS141: 0,45 | BT141: 2,6 | BU141: 0,42 | BV141: 0,12 | BW141: 18,8 | BX141: 1,1
A142: 01 | B142: 0103 | C142: 010305 | D142: entrées et plats composés | E142: plats composés | F142: plats de poisson et féculents | G142: 25107 | H142: Couscous au poisson | J142: 442 | K142: 105 | L142: 442 | M142: 105 | N142: 75,6 | O142: 7,5 | P142: 7,5 | Q142: 14,2 | R142: 1,6 | S142: 1,7 | T142: - | U142: - | V142: - | W142: - | X142: - | Y142: - | Z142: 12,5 | AA142: 1,7 | AB142: 0 | AC142: 1,4 | AD142: 0 | AE142: traces | AF142: 0,2 | AG142: 0,3 | AH142: 0,9 | AI142: - | AJ142: - | AK142: - | AL142: - | AM142: - | AN142: - | AO142: - | AP142: - | AQ142: - | AR142: - | AS142: - | AT142: - | AU142: - | AV142: - | AW142: 15,6 | AX142: 0,84 | AY142: 24 | AZ142: - | BA142: 0,1 | BB142: 4,1 | BC142: 10 | BD142: 23 | BE142: 0,2 | BF142: 89 | BG142: 192 | BH142: - | BI142: 337 | BJ142: 0,4 | BK142: 0,9 | BL142: 1020 | BM142: 0,1 | BN142: 1,2 | BO142: - | BP142: - | BQ142: 7,6 | BR142: 0,1 | BS142: 0,1 | BT142: - | BU142: 0,2 | BV142: 0,1 | BW142: 24 | BX142: 0,5
A143: 01 | B143: 0103 | C143: 010305 | D143: entrées et plats composés | E143: plats composés | F143: plats de poisson et féculents | G143: 25154 | H143: Gratin de poisson et purée ou brandade aux pommes de terre ou parmentier de poisson, préemballé | J143: 491 | K143: 117 | L143: 491 | M143: 117 | N143: 74,9 | O143: 6,39 | P143: 6,39 | Q143: 8,57 | R143: 6,15 | S143: 1,62 | T143: < 0,23 | U143: - | V143: < 0,23 | W143: 0,73 | X143: < 0,23 | Y143: < 0,23 | Z143: 6,4 | AA143: 1,1 | AB143: 0 | AC143: 1,56 | AD143: 0 | AE143: traces | AF143: 3,68 | AG143: 1,74 | AH143: 0,46 | AI143: 0,068 | AJ143: 0,041 | AK143: 0,026 | AL143: 0,053 | AM143: 0,064 | AN143: 0,21 | AO143: 1,17 | AP143: 0,33 | AQ143: 1,74 | AR143: 0,35 | AS143: 0,099 | AT143: 0,0047 | AU143: 0,0067 | AV143: - | AW143: 31 | AX143: 0,81 | AY143: 46,8 | AZ143: 897 | BA143: < 1 | BB143: < 1 | BC143: 20 | BD143: 17,1 | BE143: < 1 | BF143: 90 | BG143: 190 | BH143: 4,7 | BI143: 323 | BJ143: < 1 | BK143: 16 | BL143: < 50 | BM143: 1,1 | BN143: 1,5 | BO143: - | BP143: - | BQ143: < 1 | BR143: < 0,05 | BS143: 0,09 | BT143: 0,32 | BU143: 0,23 | BV143: < 0,05 | BW143: < 5 | BX143: 0,36
A144: 01 | B144: 0103 | C144: 010305 | D144: entrées et plats composés | E144: plats composés | F144: plats de poisson et féculents | G144: 25456 | H144: Sushi ou Maki aux produits de la mer | J144: 722 | K144: 171 | L144: 722 | M144: 171 | N144: 60,3 | O144: 6,69 | P144: 6,69 | Q144: 26,9 | R144: 3,7 | S144: 4,93 | T144: 1,76 | U144: < 0,1 | V144: 2,28 | W144: < 0,1 | X144: 0,31 | Y144: 0,58 | Z144: 19 | AA144: 0,9 | AB144: traces | AC144: 0,97 | AD144: 0 | AE144: 0,53 | AF144: 0,6 | AG144: 1,72 | AH144: 1,15 | AI144: < 0,01 | AJ144: < 0,01 | AK144: < 0,01 | AL144: < 0,01 | AM144: < 0,01 | AN144: 0,07 | AO144: 0,4 | AP144: 0,12 | AQ144: 1,36 | AR144: 0,73 | AS144: 0,16 | AT144: < 0,01 | AU144: 0,08 | AV144: 0,09 | AW144: 13,1 | AX144: 0,55 | AY144: 16 | AZ144: 366 | BA144: 0,08 | BB144: 0,25 | BC144: < 20 | BD144: 14 | BE144: 0,21 | BF144: 81 | BG144: 130 | BH144: < 20 | BI144: 218 | BJ144: 0,44 | BK144: < 21 | BL144: 66,4 | BM144: 1,14 | BN144: 0,33 | BO144: 2,78 | BP144: - | BQ144: 1,11 | BR144: 0,031 | BS144: 0,018 | BT144: 1,28 | BU144: 0,34 | BV144: 0,15 | BW144: 9,19 | BX144: 1,36
A145: 01 | B145: 0103 | C145: 010306 | D145: entrées et plats composés | E145: plats composés | F145: plats de légumes/légumineuses | G145: 8296 | H145: Terrine ou mousse de légumes | J145: - | K145: - | L145: - | M145: - | N145: 75,9 | O145: 4,05 | P145: 4,05 | Q145: 5,6 | R145: 9,56 | S145: 1,77 | T145: - | U145: - | V145: - | W145: - | X145: - | Y145: - | Z145: 3,83 | AA145: 2,55 | AB145: - | AC145: 1,75 | AD145: 0 | AE145: traces | AF145: 3,43 | AG145: 4,28 | AH145: 1,43 | AI145: - | AJ145: - | AK145: - | AL145: - | AM145: - | AN145: - | AO145: - | AP145: - | AQ145: - | AR145: - | AS145: - | AT145: - | AU145: - | AV145: - | AW145: 1,75 | AX145: 1,31 | AY145: 50,5 | AZ145: - | BA145: - | BB145: 0,78 | BC145: 6 | BD145: 24 | BE145: - | BF145: 132 | BG145: 232 | BH145: - | BI145: 524 | BJ145: 0,7 | BK145: 20 | BL145: - | BM145: 0,2 | BN145: 2,11 | BO145: - | BP145: - | BQ145: 2,16 | BR145: 2,82 | BS145: 1,34 | BT145: 3,98 | BU145: - | BV145: 0,36 | BW145: 110 | BX145: traces
A146: 01 | B146: 0103 | C146: 010306 | D146: entrées et plats composés | E146: plats composés | F146: plats de légumes/légumineuses | G146: 8297 | H146: Flan de légumes | J146: - | K146: - | L146: - | M146: - | N146: 68 | O146: 5,38 | P146: 5,38 | Q146: 4,13 | R146: 18,6 | S146: 2,06 | T146: 0,49 | U146: < 0,1 | V146: 0,46 | W146: 1,01 | X146: 0,1 | Y146: < 0,1 | Z146: 1,5 | AA146: 2,3 | AB146: - | AC146: 1,47 | AD146: 0 | AE146: 0,12 | AF146: 10,8 | AG146: 5,38 | AH146: 1,13 | AI146: 0,62 | AJ146: 0,4 | AK146: 0,25 | AL146: 0,39 | AM146: 0,48 | AN146: 1,61 | AO146: 5,14 | AP146: 1,6 | AQ146: 4,62 | AR146: 0,83 | AS146: 0,1 | AT146: 0,08 | AU146: < 0,01 | AV146: 0,03 | AW146: 153 | AX146: 0,89 | AY146: 72 | AZ146: 722 | BA146: 0,06 | BB146: 0,75 | BC146: < 20 | BD146: 12 | BE146: 0,09 | BF146: 100 | BG146: 200 | BH146: < 20 | BI146: 354 | BJ146: 0,58 | BK146: 156 | BL146: 1790 | BM146: < 0,25 | BN146: 1,36 | BO146: 44,3 | BP146: - | BQ146: < 0,5 | BR146: 0,1 | BS146: 0,18 | BT146: 0,7 | BU146: 0,44 | BV146: 0,073 | BW146: 51,4 | BX146: 0,6
A147: 01 | B147: 0103 | C147: 010306 | D147: entrées et plats composés | E147: plats composés | F147: plats de légumes/légumineuses | G147: 20194 | H147: Haricots blancs à la sauce tomate, appertisés | J147: - | K147: - | L147: - | M147: - | N147: 78,9 | O147: 4,67 | P147: 4,67 | Q147: 10,1 | R147: 0,4 | S147: 1,65 | T147: < 0,3 | U147: - | V147: < 0,3 | W147: - | X147: < 0,3 | Y147: 0,3 | Z147: - | AA147: 5,5 | AB147: - | AC147: 1,7 | AD147: 0 | AE147: traces | AF147: 0,16 | AG147: - | AH147: - | AI147: - | AJ147: - | AK147: - | AL147: - | AM147: - | AN147: - | AO147: - | AP147: - | AQ147: - | AR147: - | AS147: - | AT147: - | AU147: - | AV147: - | AW147: - | AX147: 0,93 | AY147: - | AZ147: - | BA147: - | BB147: - | BC147: - | BD147: - | BE147: - | BF147: - | BG147: - | BH147: - | BI147: 349 | BJ147: - | BK147: - | BL147: - | BM147: - | BN147: - | BO147: - | BP147: - | BQ147: - | BR147: - | BS147: - | BT147: - | BU147: - | BV147: - | BW147: - | BX147: -
A148: 01 | B148: 0103 | C148: 010306 | D148: entrées et plats composés | E148: plats composés | F148: plats de légumes/légumineuses | G148: 20240 | H148: Piperade basquaise, préemballée | J148: - | K148: - | L148: - | M148: - | N148: 84,5 | O148: 1,1 | P148: 1,1 | Q148: 6,5 | R148: 3,8 | S148: 4,9 | T148: 1,98 | U148: - | V148: 1,74 | W148: < 0,2 | X148: < 0,2 | Y148: 1,19 | Z148: - | AA148: 3,4 | AB148: - | AC148: 1,53 | AD148: 0 | AE148: traces | AF148: 2 | AG148: 1,33 | AH148: 0,3 | AI148: < 0,008 | AJ148: < 0,01 | AK148: < 0,01 | AL148: < 0,01 | AM148: < 0,01 | AN148: 0,02 | AO148: 0,87 | AP148: 0,24 | AQ148: 1,33 | AR148: 0,28 | AS148: 0,02 | AT148: < 0,01 | AU148: < 0,01 | AV148: < 0,01 | AW148: 2,09 | AX148: 0,76 | AY148: 7,6 | AZ148: 643 | BA148: 0,05 | BB148: 0,24 | BC148: < 20 | BD148: 7,9 | BE148: 0,08 | BF148: 14 | BG148: 190 | BH148: < 20 | BI148: 300 | BJ148: 0,09 | BK148: - | BL148: 1450 | BM148: - | BN148: 1,3 | BO148: 3,77 | BP148: - | BQ148: 12,2 | BR148: 0,029 | BS148: 0,016 | BT148: 0,62 | BU148: 0,071 | BV148: 0,063 | BW148: 11 | BX148: -
A149: 01 | B149: 0103 | C149: 010306 | D149: entrées et plats composés | E149: plats composés | F149: plats de légumes/légumineuses | G149: 20262 | H149: Poêlée de légumes assaisonnés sans champignon, surgelée, crue | J149: 341 | K149: 81,2 | L149: 341 | M149: 81,2 | N149: 81,7 | O149: 2,6 | P149: 2,6 | Q149: 12,1 | R149: 1,77 | S149: 1,5 | T149: 0,53 | U149: - | V149: 0,34 | W149: - | X149: 0,14 | Y149: 0,49 | Z149: - | AA149: 3,6 | AB149: 0,45 | AC149: 1,28 | AD149: 0 | AE149: traces | AF149: 0,4 | AG149: 0,52 | AH149: 0,14 | AI149: - | AJ149: - | AK149: - | AL149: - | AM149: - | AN149: - | AO149: - | AP149: - | AQ149: - | AR149: 0,08 | AS149: 0,04 | AT149: - | AU149: - | AV149: - | AW149: - | AX149: 1,25 | AY149: 24,5 | AZ149: - | BA149: - | BB149: 6 | BC149: - | BD149: - | BE149: - | BF149: - | BG149: - | BH149: - | BI149: 500 | BJ149: - | BK149: - | BL149: - | BM149: - | BN149: - | BO149: - | BP149: - | BQ149: 30,8 | BR149: - | BS149: - | BT149: - | BU149: - | BV149: - | BW149: - | BX149: -
A150: 01 | B150: 0103 | C150: 010306 | D150: entrées et plats composés | E150: plats composés | F150: plats de légumes/légumineuses | G150: 20273 | H150: Poêlée de légumes assaisonnés à l'asiatiques ou wok de légumes, surgelée, crue | J150: - | K150: - | L150: - | M150: - | N150: - | O150: 3,13 | P150: 3,13 | Q150: 5,83 | R150: 3,93 | S150: 3,1 | T150: - | U150: - | V150: - | W150: - | X150: - | Y150: - | Z150: - | AA150: 2,55 | AB150: - | AC150: 0,44 | AD150: 0 | AE150: traces | AF150: 0,48 | AG150: - | AH150: - | AI150: - | AJ150: - | AK150: - | AL150: - | AM150: - | AN150: - | AO150: - | AP150: - | AQ150: - | AR150: - | AS150: - | AT150: - | AU150: - | AV150: - | AW150: - | AX150: 0,44 | AY150: - | AZ150: - | BA150: - | BB150: - | BC150: - | BD150: - | BE150: - | BF150: - | BG150: - | BH150: - | BI150: 73 | BJ150: - | BK150: - | BL150: - | BM150: - | BN150: - | BO150: - | BP150: - | BQ150: - | BR150: - | BS150: - | BT150: - | BU150: - | BV150: - | BW150: - | BX150: -
A151: 01 | B151: 0103 | C151: 010306 | D151: entrées et plats composés | E151: plats composés | F151: plats de légumes/légumineuses | G151: 20274 | H151: Poêlée de légumes assaisonnés grillée, méridionale ou méditerranéenne, surgelée, crue | J151: - | K151: - | L151: - | M151: - | N151: 86,5 | O151: 1,61 | P151: 1,61 | Q151: 4,33 | R151: 1,77 | S151: 2,66 | T151: 1,13 | U151: - | V151: 1 | W151: < 0,3 | X151: 0,13 | Y151: 0,4 | Z151: - | AA151: 4,14 | AB151: - | AC151: 0,77 | AD151: 0 | AE151: traces | AF151: 0,14 | AG151: 0,66 | AH151: 0,9 | AI151: < 0,01 | AJ151: < 0,01 | AK151: < 0,01 | AL151: < 0,01 | AM151: < 0,01 | AN151: < 0,01 | AO151: 0,11 | AP151: 0,032 | AQ151: 0,66 | AR151: 0,84 | AS151: 0,029 | AT151: - | AU151: - | AV151: < 0,01 | AW151: - | AX151: 0,25 | AY151: - | AZ151: 239 | BA151: - | BB151: - | BC151: - | BD151: - | BE151: - | BF151: - | BG151: - | BH151: - | BI151: 167 | BJ151: - | BK151: - | BL151: - | BM151: - | BN151: - | BO151: - | BP151: - | BQ151: - | BR151: - | BS151: - | BT151: - | BU151: - | BV151: - | BW151: - | BX151: -
A152: 01 | B152: 0103 | C152: 010306 | D152: entrées et plats composés | E152: plats composés | F152: plats de légumes/légumineuses | G152: 20498 | H152: Poêlée de légumes assaisonnés aux champignons ("champêtre"), surgelée | J152: - | K152: - | L152: - | M152: - | N152: 91,4 | O152: 1,89 | P152: 1,89 | Q152: 3,59 | R152: 1,21 | S152: 1,81 | T152: 0,8 | U152: - | V152: 0,82 | W152: - | X152: < 0,3 | Y152: 0,18 | Z152: - | AA152: 2,94 | AB152: - | AC152: 0,79 | AD152: 0 | AE152: traces | AF152: 0,22 | AG152: 0,24 | AH152: 0,098 | AI152: - | AJ152: - | AK152: - | AL152: 0 | AM152: 0,001 | AN152: 0,0043 | AO152: 0,18 | AP152: 0,04 | AQ152: 0,24 | AR152: 0,065 | AS152: 0,03 | AT152: 0,00002 | AU152: 0,00014 | AV152: 0 | AW152: - | AX152: 0,35 | AY152: - | AZ152: 188 | BA152: - | BB152: - | BC152: - | BD152: - | BE152: - | BF152: - | BG152: - | BH152: - | BI152: 134 | BJ152: - | BK152: - | BL152: - | BM152: - | BN152: - | BO152: - | BP152: - | BQ152: - | BR152: - | BS152: - | BT152: - | BU152: - | BV152: - | BW152: - | BX152: -
A153: 01 | B153: 0103 | C153: 010306 | D153: entrées et plats composés | E153: plats composés | F153: plats de légumes/légumineuses | G153: 25018 | H153: Ratatouille cuisinée, préemballée | J153: - | K153: - | L153: - | M153: - | N153: 88 | O153: 1,22 | P153: 1,22 | Q153: 4,97 | R153: 3,15 | S153: 3,91 | T153: 1,4 | U153: - | V153: 1,5 | W153: < 0,2 | X153: < 0,2 | Y153: 0,3 | Z153: - | AA153: 2,03 | AB153: - | AC153: 1,29 | AD153: 0 | AE153: traces | AF153: 0,47 | AG153: 2,08 | AH153: 0,46 | AI153: < 0,05 | AJ153: < 0,05 | AK153: 0,002 | AL153: < 0,05 | AM153: 0,0036 | AN153: 0,0088 | AO153: 0,39 | AP153: 0,061 | AQ153: 0,51 | AR153: 0,2 | AS153: 0,06 | AT153: < 0,01 | AU153: < 0,01 | AV153: < 0,01 | AW153: 0,07 | AX153: 0,94 | AY153: 16,4 | AZ153: - | BA153: 0,074 | BB153: 0,38 | BC153: 3 | BD153: 18,6 | BE153: 0,13 | BF153: 22 | BG153: 295 | BH153: < 10 | BI153: 369 | BJ153: 0,17 | BK153: 10 | BL153: 373 | BM153: 0 | BN153: 1,56 | BO153: - | BP153: - | BQ153: 25,2 | BR153: 0,03 | BS153: 0,03 | BT153: 0,56 | BU153: - | BV153: 0,04 | BW153: 18 | BX153: -
A154: 01 | B154: 0103 | C154: 010306 | D154: entrées et plats composés | E154: plats composés | F154: plats de légumes/légumineuses | G154: 25026 | H154: Épinards à la crème, préemballés | J154: - | K154: - | L154: - | M154: - | N154: 86,9 | O154: 2,5 | P154: 2,5 | Q154: 4,1 | R154: 2,9 | S154: 1,19 | T154: 0,12 | U154: < 0,1 | V154: < 0,1 | W154: 1,07 | X154: < 0,1 | Y154: < 0,1 | Z154: - | AA154: 1,9 | AB154: - | AC154: 1,38 | AD154: 0 | AE154: 0,32 | AF154: 1,82 | AG154: 0,67 | AH154: 0,18 | AI154: 0,11 | AJ154: 0,07 | AK154: 0,04 | AL154: 0,07 | AM154: 0,09 | AN154: 0,3 | AO154: 0,82 | AP154: 0,27 | AQ154: 0,57 | AR154: 0,08 | AS154: 0,1 | AT154: < 0,01 | AU154: < 0,01 | AV154: < 0,01 | AW154: - | AX154: 0,72 | AY154: - | AZ154: - | BA154: - | BB154: - | BC154: - | BD154: - | BE154: - | BF154: - | BG154: - | BH154: - | BI154: 287 | BJ154: - | BK154: - | BL154: - | BM154: - | BN154: - | BO154: - | BP154: - | BQ154: - | BR154: - | BS154: - | BT154: - | BU154: - | BV154: - | BW154: - | BX154: -
A155: 01 | B155: 0103 | C155: 010306 | D155: entrées et plats composés | E155: plats composés | F155: plats de légumes/légumineuses | G155: 25052 | H155: Gratin d'aubergine, préemballé | J155: - | K155: - | L155: - | M155: - | N155: 80,9 | O155: 1,95 | P155: 1,95 | Q155: 5,45 | R155: 8,68 | S155: 3,8 | T155: - | U155: - | V155: - | W155: - | X155: - | Y155: - | Z155: - | AA155: 2,35 | AB155: - | AC155: 0,9 | AD155: 0 | AE155: traces | AF155: 1,3 | AG155: - | AH155: - | AI155: - | AJ155: - | AK155: - | AL155: - | AM155: - | AN155: - | AO155: - | AP155: - | AQ155: - | AR155: - | AS155: - | AT155: - | AU155: - | AV155: - | AW155: - | AX155: 0,45 | AY155: - | AZ155: - | BA155: - | BB155: - | BC155: - | BD155: - | BE155: - | BF155: - | BG155: - | BH155: - | BI155: 172 | BJ155: - | BK155: - | BL155: - | BM155: - | BN155: - | BO155: - | BP155: - | BQ155: - | BR155: - | BS155: - | BT155: - | BU155: - | BV155: - | BW155: - | BX155: -
A156: 01 | B156: 0103 | C156: 010306 | D156: entrées et plats composés | E156: plats composés | F156: plats de légumes/légumineuses | G156: 25056 | H156: Gratin dauphinois | J156: - | K156: - | L156: - | M156: - | N156: 74,7 | O156: 3,38 | P156: 3,38 | Q156: 14,5 | R156: 4,2 | S156: 2,08 | T156: 0,2 | U156: < 0,1 | V156: 0,26 | W156: 0,94 | X156: 0,57 | Y156: 0,11 | Z156: 12 | AA156: 1,5 | AB156: - | AC156: 1,42 | AD156: 0 | AE156: 0,26 | AF156: 2,67 | AG156: 0,99 | AH156: 0,2 | AI156: 0,14 | AJ156: 0,09 | AK156: 0,06 | AL156: 0,11 | AM156: 0,14 | AN156: 0,44 | AO156: 1,26 | AP156: 0,37 | AQ156: 0,85 | AR156: 0,17 | AS156: 0,03 | AT156: < 0,01 | AU156: < 0,01 | AV156: < 0,01 | AW156: 14,3 | AX156: 0,81 | AY156: 38,6 | AZ156: - | BA156: 0,044 | BB156: 0,32 | BC156: 8,2 | BD156: 13,8 | BE156: 0,079 | BF156: 95 | BG156: 219 | BH156: < 2,2 | BI156: 325 | BJ156: 0,29 | BK156: 49 | BL156: 11 | BM156: 0 | BN156: 0,24 | BO156: - | BP156: - | BQ156: 3,1 | BR156: 0,02 | BS156: 0,081 | BT156: 0,94 | BU156: 0,24 | BV156: 0,04 | BW156: 7 | BX156: 0
A157: 01 | B157: 0103 | C157: 010306 | D157: entrées et plats composés | E157: plats composés | F157: plats de légumes/légumineuses | G157: 25073 | H157: Endive au jambon | J157: - | K157: - | L157: - | M157: - | N157: 78,4 | O157: 7,44 | P157: 7,44 | Q157: 4,71 | R157: 6,3 | S157: 1,98 | T157: 0,25 | U157: < 0,1 | V157: 0,66 | W157: 1,08 | X157: < 0,1 | Y157: < 0,1 | Z157: 2,73 | AA157: 1,5 | AB157: - | AC157: 1,32 | AD157: 0 | AE157: 0,33 | AF157: 3,77 | AG157: 1,6 | AH157: 0,38 | AI157: 0,22 | AJ157: 0,14 | AK157: 0,09 | AL157: 0,14 | AM157: 0,18 | AN157: 0,59 | AO157: 1,76 | AP157: 0,58 | AQ157: 1,37 | AR157: 0,33 | AS157: 0,04 | AT157: 0,01 | AU157: < 0,01 | AV157: < 0,01 | AW157: 23,7 | AX157: 0,65 | AY157: 77,2 | AZ157: 486 | BA157: < 0,1 | BB157: 0,38 | BC157: 8,11 | BD157: 18,2 | BE157: < 0,1 | BF157: 146 | BG157: 104 | BH157: 3,13 | BI157: 259 | BJ157: 0,6 | BK157: 44,7 | BL157: 291 | BM157: 0,28 | BN157: 0,23 | BO157: - | BP157: - | BQ157: 3,72 | BR157: 0,24 | BS157: 0,14 | BT157: 1,45 | BU157: 0,28 | BV157: 0,11 | BW157: 14,3 | BX157: 0,3
A158: 01 | B158: 0103 | C158: 010306 | D158: entrées et plats composés | E158: plats composés | F158: plats de légumes/légumineuses | G158: 25101 | H158: Gratin de chou-fleur, préemballé | J158: - | K158: - | L158: - | M158: - | N158: 82,1 | O158: 3 | P158: 3 | Q158: 3,3 | R158: 6,5 | S158: 0,88 | T158: 0,33 | U158: - | V158: 0,38 | W158: - | X158: < 0,3 | Y158: < 0,3 | Z158: 2,42 | AA158: 1,3 | AB158: - | AC158: 1,33 | AD158: 0 | AE158: traces | AF158: 4 | AG158: 1,31 | AH158: 0,16 | AI158: 0,22 | AJ158: 0,088 | AK158: 0,06 | AL158: 0,14 | AM158: 0,17 | AN158: 0,56 | AO158: 1,59 | AP158: 0,5 | AQ158: 1,26 | AR158: 0,14 | AS158: 0,016 | AT158: - | AU158: - | AV158: - | AW158: 15,3 | AX158: 1,07 | AY158: 96,6 | AZ158: 425 | BA158: 0,12 | BB158: 0,27 | BC158: - | BD158: 10,7 | BE158: < 0,1 | BF158: - | BG158: 147 | BH158: - | BI158: 420 | BJ158: 2,3 | BK158: - | BL158: - | BM158: - | BN158: - | BO158: - | BP158: - | BQ158: - | BR158: - | BS158: - | BT158: - | BU158: - | BV158: - | BW158: - | BX158: -
A159: 01 | B159: 0103 | C159: 010306 | D159: entrées et plats composés | E159: plats composés | F159: plats de légumes/légumineuses | G159: 25162 | H159: Gratin de légumes | J159: - | K159: - | L159: - | M159: - | N159: 79,6 | O159: 3,44 | P159: 3,44 | Q159: 6,91 | R159: 6,7 | S159: 3,42 | T159: 0,63 | U159: < 0,1 | V159: 0,66 | W159: 1,58 | X159: 0,1 | Y159: 0,45 | Z159: 1,65 | AA159: 1,7 | AB159: - | AC159: 1,27 | AD159: 0 | AE159: 0,38 | AF159: 3,41 | AG159: 1,81 | AH159: 0,99 | AI159: 0,2 | AJ159: 0,11 | AK159: 0,07 | AL159: 0,13 | AM159: 0,15 | AN159: 0,51 | AO159: 1,62 | AP159: 0,49 | AQ159: 1,6 | AR159: 0,9 | AS159: 0,09 | AT159: < 0,01 | AU159: < 0,01 | AV159: < 0,01 | AW159: 19,7 | AX159: 0,57 | AY159: 83,1 | AZ159: - | BA159: 0,087 | BB159: 0,51 | BC159: 4,03 | BD159: 16,6 | BE159: 0,13 | BF159: 65,5 | BG159: 175 | BH159: 1,8 | BI159: 228 | BJ159: 0,49 | BK159: 26,9 | BL159: 567 | BM159: 0,084 | BN159: 1,84 | BO159: - | BP159: - | BQ159: 12,6 | BR159: 0,051 | BS159: 0,072 | BT159: 0,46 | BU159: 0,27 | BV159: 0,11 | BW159: 41 | BX159: 0,12
A160: 01 | B160: 0103 | C160: 010306 | D160: entrées et plats composés | E160: plats composés | F160: plats de légumes/légumineuses | G160: 25196 | H160: Riste d'aubergines (aubergines, tomates, oignons), préemballée | J160: - | K160: - | L160: - | M160: - | N160: - | O160: 1,05 | P160: 1,05 | Q160: 10,6 | R160: 10,4 | S160: 5,2 | T160: - | U160: - | V160: 1,5 | W160: - | X160: < 0,2 | Y160: 0,8 | Z160: - | AA160: 2,6 | AB160: - | AC160: 1,19 | AD160: 0 | AE160: traces | AF160: 2 | AG160: 2,63 | AH160: 5,26 | AI160: - | AJ160: - | AK160: - | AL160: - | AM160: - | AN160: - | AO160: - | AP160: - | AQ160: - | AR160: - | AS160: < 0,1 | AT160: - | AU160: - | AV160: - | AW160: - | AX160: 1,19 | AY160: - | AZ160: - | BA160: - | BB160: - | BC160: - | BD160: - | BE160: - | BF160: - | BG160: - | BH160: - | BI160: 470 | BJ160: - | BK160: - | BL160: - | BM160: - | BN160: - | BO160: - | BP160: - | BQ160: - | BR160: - | BS160: - | BT160: - | BU160: - | BV160: - | BW160: - | BX160: -
A161: 01 | B161: 0103 | C161: 010306 | D161: entrées et plats composés | E161: plats composés | F161: plats de légumes/légumineuses | G161: 25199 | H161: Palet ou galette de légumes, préfrit, surgelé | J161: - | K161: - | L161: - | M161: - | N161: 79,4 | O161: 3,29 | P161: 3,29 | Q161: 10,7 | R161: 5,44 | S161: 3,34 | T161: 0,47 | U161: - | V161: 0,47 | W161: - | X161: < 0,3 | Y161: 0,58 | Z161: - | AA161: 2,61 | AB161: - | AC161: 1,52 | AD161: 0 | AE161: traces | AF161: 1,13 | AG161: 2,24 | AH161: 1,12 | AI161: - | AJ161: - | AK161: - | AL161: - | AM161: - | AN161: - | AO161: - | AP161: - | AQ161: - | AR161: 1,05 | AS161: 0,049 | AT161: - | AU161: - | AV161: - | AW161: - | AX161: 0,94 | AY161: - | AZ161: - | BA161: - | BB161: - | BC161: - | BD161: - | BE161: - | BF161: - | BG161: - | BH161: - | BI161: 351 | BJ161: - | BK161: - | BL161: - | BM161: - | BN161: - | BO161: - | BP161: - | BQ161: - | BR161: - | BS161: - | BT161: - | BU161: - | BV161: - | BW161: - | BX161: -
A162: 01 | B162: 0103 | C162: 010306 | D162: entrées et plats composés | E162: plats composés | F162: plats de légumes/légumineuses | G162: 25208 | H162: Palet ou galette de légumes, préfrit, surgelé, cuit | J162: - | K162: - | L162: - | M162: - | N162: 78,2 | O162: 3,31 | P162: 3,31 | Q162: 8,45 | R162: 5,7 | S162: 3 | T162: 1 | U162: - | V162: 0,8 | W162: 0,7 | X162: < 0,2 | Y162: 0,5 | Z162: 4,5 | AA162: 2,6 | AB162: - | AC162: 1,42 | AD162: 0 | AE162: 0,32 | AF162: 0,64 | AG162: 2,41 | AH162: 2,29 | AI162: < 0,01 | AJ162: < 0,01 | AK162: < 0,01 | AL162: 0,01 | AM162: 0,01 | AN162: 0,03 | AO162: 0,52 | AP162: < 0,01 | AQ162: 2,29 | AR162: 2,24 | AS162: 0,05 | AT162: < 0,01 | AU162: < 0,01 | AV162: < 0,01 | AW162: 27,4 | AX162: 0,75 | AY162: 40 | AZ162: 482 | BA162: 0,06 | BB162: 0,52 | BC162: < 20 | BD162: 16 | BE162: 0,15 | BF162: 58 | BG162: 250 | BH162: < 20 | BI162: 301 | BJ162: 0,36 | BK162: < 21 | BL162: 986 | BM162: < 0,25 | BN162: 2,63 | BO162: 20,2 | BP162: - | BQ162: 1,23 | BR162: 0,19 | BS162: 0,11 | BT162: < 0,1 | BU162: 0,31 | BV162: 0,088 | BW162: 33,8 | BX162: 0,18
A163: 01 | B163: 0103 | C163: 010306 | D163: entrées et plats composés | E163: plats composés | F163: plats de légumes/légumineuses | G163: 25220 | H163: Choucroute, sans garniture, égouttée, cuite | J163: 310 | K163: 75,3 | L163: 310 | M163: 75,3 | N163: 85,6 | O163: 1,38 | P163: 1,38 | Q163: < 0,1 | R163: 6,6 | S163: < 0,2 | T163: < 0,2 | U163: - | V163: < 0,2 | W163: < 0,2 | X163: < 0,2 | Y163: < 0,2 | Z163: < 0,35 | AA163: 4,5 | AB163: < 0,5 | AC163: 1,62 | AD163: 0 | AE163: 0,53 | AF163: 2,02 | AG163: 3,12 | AH163: 1,08 | AI163: < 0,01 | AJ163: < 0,01 | AK163: < 0,01 | AL163: < 0,01 | AM163: < 0,01 | AN163: 0,06 | AO163: 1,35 | AP163: 0,58 | AQ163: 2,81 | AR163: 0,97 | AS163: 0,1 | AT163: < 0,01 | AU163: < 0,01 | AV163: < 0,01 | AW163: 8,44 | AX163: 1,26 | AY163: 43 | AZ163: 731 | BA163: 0,05 | BB163: 0,3 | BC163: < 20 | BD163: 6,8 | BE163: 0,09 | BF163: 15 | BG163: 83 | BH163: < 20 | BI163: 505 | BJ163: 0,15 | BK163: < 21 | BL163: < 5 | BM163: < 0,25 | BN163: 0,4 | BO163: 31 | BP163: - | BQ163: 17,2 | BR163: < 0,015 | BS163: < 0,01 | BT163: < 0,1 | BU163: 0,11 | BV163: 0,055 | BW163: 19,1 | BX163: 0,028
A164: 01 | B164: 0103 | C164: 010306 | D164: entrées et plats composés | E164: plats composés | F164: plats de légumes/légumineuses | G164: 25524 | H164: Tomate à la provençale, fait maison | J164: - | K164: - | L164: - | M164: - | N164: 83,6 | O164: 1,65 | P164: 1,65 | Q164: 6,55 | R164: 4,32 | S164: 2,71 | T164: - | U164: - | V164: - | W164: - | X164: - | Y164: - | Z164: 3,84 | AA164: 2 | AB164: - | AC164: 1,46 | AD164: 0 | AE164: traces | AF164: 0,94 | AG164: 2,55 | AH164: 0,6 | AI164: - | AJ164: - | AK164: - | AL164: - | AM164: - | AN164: - | AO164: - | AP164: - | AQ164: - | AR164: - | AS164: - | AT164: - | AU164: - | AV164: - | AW164: 4 | AX164: 0,47 | AY164: 23 | AZ164: - | BA164: 0,068 | BB164: 0,67 | BC164: 2,37 | BD164: 13,1 | BE164: 0,18 | BF164: 33 | BG164: 247 | BH164: 0,93 | BI164: 188 | BJ164: 0,22 | BK164: 11 | BL164: 1480 | BM164: 0,01 | BN164: 1,64 | BO164: - | BP164: - | BQ164: 21,5 | BR164: 0,063 | BS164: 0,038 | BT164: 0,61 | BU164: 0,32 | BV164: 0,11 | BW164: 22,2 | BX164: 0
A165: 01 | B165: 0103 | C165: 010306 | D165: entrées et plats composés | E165: plats composés | F165: plats de légumes/légumineuses | G165: 25556 | H165: Beignet de légumes | J165: - | K165: - | L165: - | M165: - | N165: 64,8 | O165: 3,52 | P165: 3,52 | Q165: 23 | R165: 8,52 | S165: 3,03 | T165: - | U165: - | V165: - | W165: - | X165: - | Y165: - | Z165: - | AA165: 1,95 | AB165: - | AC165: 1,23 | AD165: 0 | AE165: traces | AF165: 0,99 | AG165: 4,79 | AH165: 2,36 | AI165: - | AJ165: - | AK165: - | AL165: - | AM165: - | AN165: - | AO165: - | AP165: - | AQ165: - | AR165: - | AS165: - | AT165: - | AU165: - | AV165: - | AW165: 34 | AX165: 0,69 | AY165: 52,4 | AZ165: - | BA165: 0,078 | BB165: 0,72 | BC165: 6,62 | BD165: 17,7 | BE165: 0,18 | BF165: 68,1 | BG165: 209 | BH165: 2,55 | BI165: 275 | BJ165: 0,4 | BK165: 20,1 | BL165: 197 | BM165: 0,16 | BN165: 2,86 | BO165: - | BP165: - | BQ165: 13,2 | BR165: 0,058 | BS165: 0,14 | BT165: 0,42 | BU165: 0,39 | BV165: 0,12 | BW165: 43 | BX165: 0,14
A166: 01 | B166: 0103 | C166: 010306 | D166: entrées et plats composés | E166: plats composés | F166: plats de légumes/légumineuses | G166: 25571 | H166: Falafel ou Boulette de pois-chiche et/ou fève, frite | J166: 1050 | K166: 252 | L166: 1050 | M166: 252 | N166: 48 | O166: 8,25 | P166: 8,25 | Q166: 18,7 | R166: 14,4 | S166: 1,4 | T166: < 0,2 | U166: - | V166: 0,3 | W166: < 0,2 | X166: 0,3 | Y166: 0,8 | Z166: 11,9 | AA166: 7,7 | AB166: 0,9 | AC166: 2,66 | AD166: 0 | AE166: 0,33 | AF166: 1,5 | AG166: 6,4 | AH166: 5,83 | AI166: < 0,01 | AJ166: < 0,01 | AK166: < 0,01 | AL166: < 0,01 | AM166: < 0,01 | AN166: 0,01 | AO166: 0,88 | AP166: 0,45 | AQ166: 6,18 | AR166: 5,7 | AS166: 0,12 | AT166: < 0,01 | AU166: < 0,01 | AV166: < 0,01 | AW166: 1,95 | AX166: 1,6 | AY166: 57 | AZ166: 689 | BA166: 0,3 | BB166: 2,1 | BC166: < 20 | BD166: 51 | BE166: 0,93 | BF166: 180 | BG166: 390 | BH166: < 20 | BI166: 640 | BJ166: 1,3 | BK166: 0 | BL166: 35 | BM166: < 0,25 | BN166: 6,9 | BO166: 10 | BP166: - | BQ166: < 0,5 | BR166: 0,047 | BS166: < 0,01 | BT166: < 0,1 | BU166: 0,43 | BV166: 0,17 | BW166: 105 | BX166: 0
A167: 01 | B167: 0103 | C167: 010306 | D167: entrées et plats composés | E167: plats composés | F167: plats de légumes/légumineuses | G167: 25588 | H167: Gratin de légumes en sauce blanche type béchamel, cuit | J167: - | K167: - | L167: - | M167: - | N167: 79,9 | O167: 3,64 | P167: 3,56 | Q167: 6,74 | R167: 6,5 | S167: 3,2 | T167: 0,39 | U167: - | V167: 0,58 | W167: 1,55 | X167: < 0,2 | Y167: 0,68 | Z167: 2,9 | AA167: 1 | AB167: - | AC167: 1,26 | AD167: 0 | AE167: 0,97 | AF167: 3,48 | AG167: 2,03 | AH167: 0,51 | AI167: 0,18 | AJ167: 0,12 | AK167: 0,07 | AL167: 0,13 | AM167: 0,16 | AN167: 0,54 | AO167: 1,7 | AP167: 0,48 | AQ167: 1,76 | AR167: 0,37 | AS167: 0,13 | AT167: 0,01 | AU167: < 0,01 | AV167: < 0,01 | AW167: 37 | AX167: 0,64 | AY167: 84 | AZ167: 441 | BA167: 0,03 | BB167: 0,31 | BC167: < 20 | BD167: 13 | BE167: 0,09 | BF167: 88 | BG167: 190 | BH167: < 20 | BI167: 255 | BJ167: 0,44 | BK167: 55,2 | BL167: 609 | BM167: < 0,25 | BN167: 0,81 | BO167: 22,9 | BP167: - | BQ167: 1,94 | BR167: 0,064 | BS167: 0,1 | BT167: 0,15 | BU167: 0,43 | BV167: 0,052 | BW167: 24,4 | BX167: 0,33
A168: 01 | B168: 0103 | C168: 010306 | D168: entrées et plats composés | E168: plats composés | F168: plats de légumes/légumineuses | G168: 25590 | H168: Falafel ou Boulette de pois-chiche et/ou fève, préemballé | J168: 881 | K168: 211 | L168: 881 | M168: 211 | N168: 55,7 | O168: 7,38 | P168: 7,38 | Q168: 17,7 | R168: 10,8 | S168: 3,57 | T168: 0,4 | U168: < 0,1 | V168: 0,55 | W168: < 0,1 | X168: 1,73 | Y168: 0,89 | Z168: 9,5 | AA168: 6 | AB168: traces | AC168: 1,83 | AD168: 0 | AE168: 0,64 | AF168: 1,28 | AG168: 5,67 | AH168: 3,32 | AI168: < 0,01 | AJ168: < 0,01 | AK168: < 0,01 | AL168: < 0,01 | AM168: < 0,01 | AN168: 0,02 | AO168: 0,81 | AP168: 0,32 | AQ168: 5,47 | AR168: 3,21 | AS168: 0,11 | AT168: < 0,01 | AU168: < 0,01 | AV168: < 0,01 | AW168: - | AX168: 0,87 | AY168: 57 | AZ168: 553 | BA168: 0,24 | BB168: 1,6 | BC168: < 20 | BD168: 40 | BE168: 0,77 | BF168: 99 | BG168: 340 | BH168: < 20 | BI168: 347 | BJ168: 1 | BK168: - | BL168: 43,8 | BM168: < 0,25 | BN168: 4,04 | BO168: 23,6 | BP168: - | BQ168: < 0,5 | BR168: 0,15 | BS168: 0,044 | BT168: 0,43 | BU168: 0,36 | BV168: 0,082 | BW168: 57,3 | BX168: -
A169: 01 | B169: 0103 | C169: 010307 | D169: entrées et plats composés | E169: plats composés | F169: plats de céréales/pâtes | G169: 9082 | H169: Blé dur précuit cuisiné, en sachet micro-ondable | J169: 791 | K169: 188 | L169: 785 | M169: 186 | N169: 57 | O169: 4,93 | P169: 5,29 | Q169: 29,5 | R169: 4,84 | S169: 2,21 | T169: - | U169: - | V169: - | W169: - | X169: - | Y169: - | Z169: - | AA169: 2,58 | AB169: 0 | AC169: 1,16 | AD169: 0 | AE169: 0 | AF169: 1,11 | AG169: - | AH169: - | AI169: - | AJ169: - | AK169: - | AL169: - | AM169: - | AN169: - | AO169: - | AP169: - | AQ169: - | AR169: - | AS169: - | AT169: - | AU169: - | AV169: - | AW169: - | AX169: 1,16 | AY169: - | AZ169: - | BA169: - | BB169: - | BC169: - | BD169: - | BE169: - | BF169: - | BG169: - | BH169: - | BI169: 463 | BJ169: - | BK169: - | BL169: - | BM169: 0 | BN169: 8,99 | BO169: - | BP169: - | BQ169: - | BR169: 0,72 | BS169: 0,016 | BT169: 3 | BU169: 0 | BV169: 0,12 | BW169: 118 | BX169: 0
A170: 01 | B170: 0103 | C170: 010307 | D170: entrées et plats composés | E170: plats composés | F170: plats de céréales/pâtes | G170: 9083 | H170: Blé dur précuit, grains entiers, cuisiné, à poêler | J170: 1460 | K170: 344 | L170: 1440 | M170: 340 | N170: - | O170: 11,1 | P170: 12,1 | Q170: 67,2 | R170: 1,59 | S170: 2,64 | T170: - | U170: - | V170: - | W170: - | X170: - | Y170: - | Z170: - | AA170: 6,28 | AB170: 0 | AC170: 1,51 | AD170: 0 | AE170: 0 | AF170: 0,69 | AG170: - | AH170: - | AI170: - | AJ170: - | AK170: - | AL170: - | AM170: - | AN170: - | AO170: - | AP170: - | AQ170: - | AR170: - | AS170: - | AT170: - | AU170: - | AV170: - | AW170: - | AX170: 1,51 | AY170: - | AZ170: - | BA170: - | BB170: - | BC170: - | BD170: - | BE170: - | BF170: - | BG170: - | BH170: - | BI170: 603 | BJ170: - | BK170: - | BL170: - | BM170: - | BN170: - | BO170: - | BP170: - | BQ170: - | BR170: - | BS170: - | BT170: - | BU170: - | BV170: - | BW170: - | BX170: -
A171: 01 | B171: 0103 | C171: 010307 | D171: entrées et plats composés | E171: plats composés | F171: plats de céréales/pâtes | G171: 25019 | H171: Ravioli à la viande, sauce tomate, appertisé | J171: 401 | K171: 95,3 | L171: 401 | M171: 95,3 | N171: 79,1 | O171: 4,22 | P171: 4,22 | Q171: 12,5 | R171: 2,83 | S171: 2,23 | T171: 0,68 | U171: - | V171: 0,63 | W171: < 0,2 | X171: 0,25 | Y171: 0,67 | Z171: 7,4 | AA171: 1,41 | AB171: 0 | AC171: 1,31 | AD171: 0 | AE171: traces | AF171: 1,14 | AG171: 1,21 | AH171: 0,48 | AI171: < 0,01 | AJ171: < 0,01 | AK171: < 0,01 | AL171: 0,0022 | AM171: 0,0033 | AN171: 0,066 | AO171: 0,67 | AP171: 0,21 | AQ171: 0,87 | AR171: 0,41 | AS171: 0,068 | AT171: 0,0022 | AU171: < 0,0011 | AV171: < 0,0056 | AW171: 41,4 | AX171: 0,96 | AY171: 25,3 | AZ171: 542 | BA171: 0,074 | BB171: 1,09 | BC171: 5,5 | BD171: 13,8 | BE171: 0,24 | BF171: 60,9 | BG171: 169 | BH171: < 2,2 | BI171: 382 | BJ171: 0,49 | BK171: 0 | BL171: 150 | BM171: 0,14 | BN171: 0,32 | BO171: - | BP171: - | BQ171: 1,22 | BR171: 0,37 | BS171: 0,27 | BT171: 1,25 | BU171: 0,4 | BV171: 0,15 | BW171: 3 | BX171: traces
A172: 01 | B172: 0103 | C172: 010307 | D172: entrées et plats composés | E172: plats composés | F172: plats de céréales/pâtes | G172: 25081 | H172: Lasagnes ou cannelloni à la viande (bolognaise) | J172: 562 | K172: 134 | L172: 562 | M172: 134 | N172: 74,3 | O172: 6,29 | P172: 6,29 | Q172: 13,5 | R172: 5,72 | S172: 2,84 | T172: 0,65 | U172: - | V172: 0,58 | W172: 0,74 | X172: 0,38 | Y172: 0,31 | Z172: 8,9 | AA172: 1,91 | AB172: 0 | AC172: 1,37 | AD172: 0 | AE172: traces | AF172: 2,55 | AG172: 1,51 | AH172: 0,75 | AI172: 0,009 | AJ172: 0,009 | AK172: 0,007 | AL172: 0,018 | AM172: 0,029 | AN172: 0,12 | AO172: 0,72 | AP172: 0,32 | AQ172: 1,13 | AR172: 0,34 | AS172: 0,054 | AT172: 0,0023 | AU172: 0,00059 | AV172: 0 | AW172: 24,3 | AX172: 0,97 | AY172: 44,8 | AZ172: - | BA172: 0,12 | BB172: 0,71 | BC172: 8,67 | BD172: 21 | BE172: 0,21 | BF172: 82,9 | BG172: 194 | BH172: < 10 | BI172: 385 | BJ172: 0,78 | BK172: 12 | BL172: 107 | BM172: 0,11 | BN172: 0,91 | BO172: - | BP172: - | BQ172: 2,57 | BR172: 0,064 | BS172: 0,1 | BT172: 1,19 | BU172: 0,31 | BV172: 0,12 | BW172: 7,49 | BX172: 0,45
A173: 01 | B173: 0103 | C173: 010307 | D173: entrées et plats composés | E173: plats composés | F173: plats de céréales/pâtes | G173: 25085 | H173: Pâtes à la bolognaise (spaghetti, tagliatelles…) | J173: 487 | K173: 116 | L173: 487 | M173: 116 | N173: 69,5 | O173: 5,32 | P173: 5,32 | Q173: 13,6 | R173: 4,07 | S173: 2,64 | T173: 0,7 | U173: - | V173: 0,72 | W173: 0,075 | X173: 0,25 | Y173: 0,34 | Z173: 10,5 | AA173: 1,9 | AB173: 0 | AC173: 1,1 | AD173: 0 | AE173: traces | AF173: 1,42 | AG173: 1,34 | AH173: 0,77 | AI173: - | AJ173: - | AK173: - | AL173: - | AM173: - | AN173: - | AO173: - | AP173: - | AQ173: - | AR173: 0,3 | AS173: 0,1 | AT173: - | AU173: - | AV173: - | AW173: 11 | AX173: 0,83 | AY173: 14 | AZ173: - | BA173: 0,08 | BB173: 0,79 | BC173: 5 | BD173: 19,6 | BE173: 0,15 | BF173: 58,3 | BG173: 176 | BH173: 1,1 | BI173: 329 | BJ173: 0,9 | BK173: 0 | BL173: 150 | BM173: 0 | BN173: 1,31 | BO173: - | BP173: - | BQ173: 4,22 | BR173: 0,05 | BS173: 0,05 | BT173: 1,1 | BU173: 0,4 | BV173: 0,14 | BW173: 9,05 | BX173: 0,32
A174: 01 | B174: 0103 | C174: 010307 | D174: entrées et plats composés | E174: plats composés | F174: plats de céréales/pâtes | G174: 25088 | H174: Riz cantonais | J174: 691 | K174: 164 | L174: 691 | M174: 164 | N174: 62,9 | O174: 5,46 | P174: 5,46 | Q174: 23,6 | R174: 4,94 | S174: 1,28 | T174: < 0,1 | U174: - | V174: 0,075 | W174: < 0,1 | X174: < 0,1 | Y174: 0,38 | Z174: 18,4 | AA174: 1,74 | AB174: 0 | AC174: 1,33 | AD174: 0 | AE174: 0 | AF174: 0,75 | AG174: 1,48 | AH174: 2,4 | AI174: - | AJ174: - | AK174: - | AL174: - | AM174: 0,0033 | AN174: 0,013 | AO174: 0,41 | AP174: 0,21 | AQ174: 1,11 | AR174: 1,33 | AS174: 0,042 | AT174: 0,0093 | AU174: - | AV174: - | AW174: 15,8 | AX174: 0,86 | AY174: 16,7 | AZ174: 592 | BA174: < 0,1 | BB174: 0,4 | BC174: 2 | BD174: 8,47 | BE174: 0,1 | BF174: 60,6 | BG174: 78 | BH174: 1,18 | BI174: 361 | BJ174: 0,5 | BK174: 4 | BL174: 60 | BM174: < 0,5 | BN174: 0,91 | BO174: - | BP174: - | BQ174: 0,97 | BR174: 0,12 | BS174: 0,051 | BT174: 1,1 | BU174: 0,18 | BV174: 0,085 | BW174: 33 | BX174: 0,14
A175: 01 | B175: 0103 | C175: 010307 | D175: entrées et plats composés | E175: plats composés | F175: plats de céréales/pâtes | G175: 25110 | H175: Ravioli chinois à la vapeur à la crevette, cuit | J175: 798 | K175: 190 | L175: 798 | M175: 190 | N175: 59,4 | O175: 5,5 | P175: 5,5 | Q175: 27,8 | R175: 5,5 | S175: 1,1 | T175: < 0,2 | U175: - | V175: < 0,2 | W175: < 0,2 | X175: < 0,2 | Y175: 1,1 | Z175: 22,1 | AA175: 3,6 | AB175: 0 | AC175: 1,18 | AD175: 0 | AE175: traces | AF175: 1,55 | AG175: 2,25 | AH175: 1,38 | AI175: < 0,01 | AJ175: < 0,01 | AK175: < 0,01 | AL175: < 0,01 | AM175: 0,03 | AN175: 0,06 | AO175: 0,94 | AP175: 0,49 | AQ175: 2,01 | AR175: 1,28 | AS175: 0,06 | AT175: 0,01 | AU175: < 0,01 | AV175: 0,01 | AW175: 52,3 | AX175: 0,96 | AY175: 31 | AZ175: 437 | BA175: 0,04 | BB175: 0,57 | BC175: < 20 | BD175: 12 | BE175: 0,045 | BF175: 65 | BG175: 56 | BH175: < 20 | BI175: 383 | BJ175: 0,31 | BK175: < 21 | BL175: < 5 | BM175: < 0,25 | BN175: 0,97 | BO175: < 0,8 | BP175: - | BQ175: < 0,5 | BR175: 0,015 | BS175: < 0,01 | BT175: 0,27 | BU175: 0,061 | BV175: 0,038 | BW175: 24,5 | BX175: 0,65
A176: 01 | B176: 0103 | C176: 010307 | D176: entrées et plats composés | E176: plats composés | F176: plats de céréales/pâtes | G176: 25122 | H176: Gratin de pâtes | J176: 750 | K176: 179 | L176: 750 | M176: 179 | N176: 64,7 | O176: 7,06 | P176: 7,06 | Q176: 16,4 | R176: 9,2 | S176: 2,19 | T176: < 0,1 | U176: < 0,1 | V176: 0,2 | W176: 1,47 | X176: 0,52 | Y176: < 0,1 | Z176: 11,9 | AA176: 1 | AB176: 0 | AC176: 1,4 | AD176: 0 | AE176: 0,23 | AF176: 4,85 | AG176: 2,84 | AH176: 0,84 | AI176: 0,23 | AJ176: 0,14 | AK176: 0,09 | AL176: 0,16 | AM176: 0,2 | AN176: 0,67 | AO176: 2,53 | AP176: 0,7 | AQ176: 2,53 | AR176: 0,71 | AS176: 0,12 | AT176: 0,01 | AU176: < 0,01 | AV176: < 0,01 | AW176: 20,4 | AX176: 0,85 | AY176: 116 | AZ176: - | BA176: 0,05 | BB176: 0,4 | BC176: 5,4 | BD176: 20 | BE176: 0,1 | BF176: 137 | BG176: 124 | BH176: 4,9 | BI176: 340 | BJ176: 0,88 | BK176: 67 | BL176: 0 | BM176: 0,3 | BN176: 0,34 | BO176: - | BP176: - | BQ176: 1,1 | BR176: 0,09 | BS176: 0,13 | BT176: 0,64 | BU176: 0,28 | BV176: 0,06 | BW176: 6 | BX176: 0,39
A177: 01 | B177: 0103 | C177: 010307 | D177: entrées et plats composés | E177: plats composés | F177: plats de céréales/pâtes | G177: 25131 | H177: Lasagnes ou cannellonis aux légumes, préemballées, cuits | J177: 431 | K177: 103 | L177: 431 | M177: 103 | N177: 74 | O177: 2,75 | P177: 2,75 | Q177: 11 | R177: 4,85 | S177: 4,75 | T177: 1,48 | U177: - | V177: 1,43 | W177: < 0,1 | X177: 0,74 | Y177: 1,11 | Z177: - | AA177: 2,25 | AB177: 0 | AC177: 1,41 | AD177: 0 | AE177: traces | AF177: 1,5 | AG177: 2,45 | AH177: 0,79 | AI177: - | AJ177: - | AK177: - | AL177: - | AM177: - | AN177: - | AO177: - | AP177: - | AQ177: - | AR177: - | AS177: - | AT177: - | AU177: - | AV177: - | AW177: 5 | AX177: 0,57 | AY177: - | AZ177: - | BA177: - | BB177: - | BC177: - | BD177: - | BE177: - | BF177: - | BG177: - | BH177: - | BI177: 222 | BJ177: - | BK177: - | BL177: - | BM177: - | BN177: - | BO177: - | BP177: - | BQ177: - | BR177: - | BS177: - | BT177: - | BU177: - | BV177: - | BW177: - | BX177: -
A178: 01 | B178: 0103 | C178: 010307 | D178: entrées et plats composés | E178: plats composés | F178: plats de céréales/pâtes | G178: 25135 | H178: Pâtes à la carbonara (spaghetti, tagliatelles…) | J178: 674 | K178: 161 | L178: 674 | M178: 161 | N178: 66 | O178: 5,91 | P178: 5,91 | Q178: 14,2 | R178: 8,7 | S178: 1,79 | T178: < 0,2 | U178: - | V178: 0,094 | W178: 0,26 | X178: 0,27 | Y178: < 0,19 | Z178: 12,5 | AA178: 1,18 | AB178: 0 | AC178: 1,11 | AD178: 0 | AE178: traces | AF178: 4,34 | AG178: 2,71 | AH178: 0,69 | AI178: 0,18 | AJ178: 0,12 | AK178: 0,081 | AL178: 0,15 | AM178: 0,17 | AN178: 0,61 | AO178: 2,18 | AP178: 0,85 | AQ178: 2,34 | AR178: 0,54 | AS178: 0,048 | AT178: - | AU178: - | AV178: < 0,01 | AW178: 25,9 | AX178: 0,86 | AY178: 36,1 | AZ178: - | BA178: 0,08 | BB178: 0,45 | BC178: 8 | BD178: 14,6 | BE178: 0,15 | BF178: 86,2 | BG178: 87,1 | BH178: 1 | BI178: 347 | BJ178: 1 | BK178: 47,8 | BL178: 60 | BM178: 0,1 | BN178: 1,19 | BO178: - | BP178: - | BQ178: 0,82 | BR178: 0,13 | BS178: 0,08 | BT178: 1,9 | BU178: 0,3 | BV178: 0,06 | BW178: 7,29 | BX178: 0,11
A179: 01 | B179: 0103 | C179: 010307 | D179: entrées et plats composés | E179: plats composés | F179: plats de céréales/pâtes | G179: 25139 | H179: Lasagnes ou cannellonis au poisson, préemballées | J179: 620 | K179: 148 | L179: 620 | M179: 148 | N179: 71,2 | O179: 7,28 | P179: 7,28 | Q179: 13 | R179: 7,1 | S179: 2,03 | T179: < 0,3 | U179: - | V179: < 0,3 | W179: - | X179: < 0,3 | Y179: < 0,3 | Z179: - | AA179: 1,68 | AB179: 0 | AC179: 1,38 | AD179: 0 | AE179: traces | AF179: 2,5 | AG179: 1,88 | AH179: 1,51 | AI179: - | AJ179: - | AK179: - | AL179: - | AM179: - | AN179: - | AO179: - | AP179: - | AQ179: - | AR179: 1,08 | AS179: 0,12 | AT179: - | AU179: - | AV179: - | AW179: - | AX179: 1,02 | AY179: 63 | AZ179: - | BA179: - | BB179: 0,41 | BC179: - | BD179: - | BE179: - | BF179: - | BG179: - | BH179: - | BI179: 403 | BJ179: - | BK179: - | BL179: - | BM179: - | BN179: - | BO179: - | BP179: - | BQ179: - | BR179: - | BS179: - | BT179: - | BU179: - | BV179: - | BW179: - | BX179: -
A180: 01 | B180: 0103 | C180: 010307 | D180: entrées et plats composés | E180: plats composés | F180: plats de céréales/pâtes | G180: 25149 | H180: Pâtes fraîches farcies (ex : raviolis, tortellinis, ravioles du Dauphiné), au fromage, cuites | J180: 951 | K180: 226 | L180: 951 | M180: 226 | N180: 51,3 | O180: 10 | P180: 10 | Q180: 26,8 | R180: 8,3 | S180: 4,4 | T180: < 0,1 | U180: 0,1 | V180: 0,17 | W180: 0,96 | X180: 3,04 | Y180: 0,13 | Z180: 17,9 | AA180: 1,9 | AB180: 0 | AC180: 1,46 | AD180: 0 | AE180: 0,28 | AF180: 4,64 | AG180: 2,1 | AH180: 0,85 | AI180: 0,28 | AJ180: 0,18 | AK180: 0,11 | AL180: 0,2 | AM180: 0,23 | AN180: 0,73 | AO180: 2,11 | AP180: 0,63 | AQ180: 1,85 | AR180: 0,76 | AS180: 0,07 | AT180: 0,02 | AU180: < 0,01 | AV180: < 0,01 | AW180: 36,2 | AX180: 0,79 | AY180: 72,3 | AZ180: - | BA180: 0,3 | BB180: 0,48 | BC180: 5,2 | BD180: 16,2 | BE180: 0,2 | BF180: 88,5 | BG180: 47,9 | BH180: 13 | BI180: 317 | BJ180: 0,7 | BK180: 24,9 | BL180: 15 | BM180: 0,05 | BN180: 0,1 | BO180: - | BP180: - | BQ180: 0,2 | BR180: 0,029 | BS180: 0,047 | BT180: 0,29 | BU180: 0,27 | BV180: 0,04 | BW180: 7,47 | BX180: 0,18
A181: 01 | B181: 0103 | C181: 010307 | D181: entrées et plats composés | E181: plats composés | F181: plats de céréales/pâtes | G181: 25150 | H181: Couscous de légumes, préemballé | J181: 453 | K181: 108 | L181: 453 | M181: 108 | N181: 71,1 | O181: 4,32 | P181: 4,32 | Q181: 16,4 | R181: 2,25 | S181: 2,54 | T181: - | U181: - | V181: - | W181: - | X181: - | Y181: - | Z181: - | AA181: 2,24 | AB181: 0 | AC181: 2,07 | AD181: 0 | AE181: traces | AF181: 0,8 | AG181: 0,52 | AH181: 0,83 | AI181: - | AJ181: - | AK181: - | AL181: - | AM181: - | AN181: - | AO181: - | AP181: - | AQ181: - | AR181: 0,76 | AS181: 0,072 | AT181: - | AU181: - | AV181: - | AW181: - | AX181: 0,73 | AY181: - | AZ181: - | BA181: - | BB181: - | BC181: - | BD181: - | BE181: - | BF181: - | BG181: - | BH181: - | BI181: 274 | BJ181: - | BK181: - | BL181: - | BM181: - | BN181: - | BO181: - | BP181: - | BQ181: - | BR181: - | BS181: - | BT181: - | BU181: - | BV181: - | BW181: - | BX181: -
